{"text_format":"1","workbook":"xlsx","n_sheets":12,"sheets":["管理","表　　　　　　　　　","表印刷用","裏　　　　　　　　　","DATA_PATIENT","STATISTICS_XXX","裏印刷用","リスト用","急性期_長谷川式","回復期_長谷川式","維持期_長谷川式","祝日"],"not_rendered":{"charts":0,"images":1,"macros":1,"external_links":0,"defined_names":27,"comments":1,"pivot_tables":0},"unopened":[],"bounds":{"document_bytes":16777216,"sheet_cells":100000,"rows_first":2000,"rows_last":500,"rows_between":2000,"halvings":0,"cell_chars":16384,"cell_head_chars":4096},"cells_cut":0,"cells_raw":0,"read":"whole","date_system":"1900"}

{"sheet":"管理","index":0,"n_rows":21,"n_cols":2,"rows_kept":21,"cut":false,"hidden":true,"merged":[]}
["管理者用ページ　管理者以外は利用しないでください。"]
["急性期"]
[]
["回復期"]
[]
["維持期"]
[]
["最終確認"]
[]
[]
[]
[]
["※HumanBridge基本情報コピーのボタン使用制御解除"]
[]
[]
[]
[]
[null,"『HumanBridgeの基本情報をコピー 』ボタンを押下すると、"]
[null,"それ以降の連携パスの起動時にHumanBridge上のデータ（氏名や生年月日、住所）を"]
[null,"取得しなくなる。"]
[null,"その代り、起動時間の短縮が可能となる。"]

{"sheet":"表　　　　　　　　　","index":1,"n_rows":322,"n_cols":100,"rows_kept":322,"cut":false,"hidden":false,"merged":[[62,26,62,33],[60,26,60,39],[52,58,52,64],[21,49,22,51],[22,52,22,54],[22,55,22,59],[27,49,27,50],[26,49,26,50],[23,49,23,55],[23,63,23,65],[23,56,23,62],[21,55,21,59],[22,65,22,69],[21,62,21,64],[29,58,29,63],[28,39,28,45],[30,49,30,52],[29,33,29,34],[29,35,29,40],[31,63,31,68],[43,52,43,53],[34,26,34,29],[62,35,62,37],[30,26,30,29],[0,86,0,87],[4,39,4,42],[3,26,3,44],[5,38,5,42],[1,29,1,33],[2,26,2,44],[0,80,0,82],[4,26,4,37],[5,26,5,36],[4,64,4,66],[1,45,8,46],[7,39,7,42],[7,26,7,34],[8,26,8,29],[1,52,1,65],[2,52,2,54],[3,52,3,55],[2,56,2,62],[3,47,3,51],[1,47,2,51],[3,57,3,61],[6,26,6,44],[6,52,6,59],[8,52,8,59],[1,22,2,25],[3,22,3,25],[4,22,5,25],[7,22,9,25],[9,17,9,18],[6,0,9,3],[4,0,4,3],[5,0,5,3],[2,4,2,6],[2,7,2,21],[1,0,1,3],[4,17,4,21],[5,19,5,20],[2,0,3,3],[3,4,3,21],[5,14,5,17],[4,4,4,5],[1,4,1,21],[5,4,5,11],[5,12,5,13],[4,6,4,11],[8,17,8,18],[6,4,9,16],[8,19,8,20],[26,4,26,20],[23,8,23,14],[21,8,21,12],[21,19,21,23],[21,0,22,3],[21,4,21,6],[24,0,24,3],[24,4,24,7],[26,0,26,1],[23,15,23,17],[30,0,30,3],[30,4,30,7],[31,0,31,3],[40,4,40,11],[33,0,33,3],[28,0,28,3],[29,11,29,12],[29,13,29,18],[27,4,27,20],[28,4,28,7],[28,17,28,23],[29,4,29,7],[32,0,32,3],[27,0,27,1],[40,0,40,3],[29,0,29,3],[28,11,28,16],[31,5,31,16],[30,11,30,16],[31,18,31,23],[33,9,33,16],[32,5,32,10],[33,4,33,7],[35,9,35,16],[41,0,41,3],[42,0,42,3],[36,0,36,3],[37,0,37,3],[44,0,44,3],[42,4,42,7],[34,0,34,3],[34,4,34,7],[44,4,44,5],[41,6,41,15],[35,0,35,3],[39,6,39,15],[38,0,38,3],[39,0,39,3],[38,4,38,16],[36,11,36,18],[35,4,35,7],[36,4,36,9],[38,18,38,23],[10,0,10,3],[20,0,20,4],[20,18,20,24],[22,4,22,6],[23,0,23,7],[24,9,24,16],[47,0,47,3],[48,4,48,6],[48,15,48,21],[47,4,47,7],[44,10,44,22],[45,11,45,13],[45,7,45,9],[42,12,43,21],[42,11,43,11],[48,8,48,10],[43,0,43,3],[48,0,48,3],[46,0,46,3],[46,4,46,7],[43,7,43,8],[45,4,45,5],[48,12,48,13],[34,9,34,16],[12,23,12,25],[14,23,14,25],[14,31,14,35],[13,31,13,35],[12,0,14,3],[12,4,13,21],[17,49,18,71],[19,21,19,25],[17,0,18,25],[15,23,15,25],[19,0,19,1],[9,45,15,46],[11,0,11,3],[14,8,14,18],[19,18,19,20],[16,0,16,4],[15,4,15,21],[14,4,14,6],[10,9,10,16],[10,22,15,22],[11,4,11,7],[13,42,13,43],[11,9,11,16],[10,4,10,7],[10,23,11,25],[6,22,6,25],[9,19,9,20],[9,30,9,42],[10,26,11,44],[7,36,7,38],[11,47,11,52],[24,35,24,42],[25,0,25,71],[21,65,21,69],[12,26,12,29],[19,2,19,9],[20,57,20,63],[22,62,22,64],[22,19,22,23],[22,8,22,12],[21,15,21,17],[22,15,22,17],[20,5,20,11],[20,13,20,17],[13,23,13,25],[15,0,15,3],[15,51,15,58],[14,26,14,29],[4,67,4,71],[9,52,9,55],[8,48,8,51],[10,47,10,51],[10,60,10,62],[9,57,9,60],[5,52,5,59],[7,52,7,59],[4,61,4,63],[4,58,4,60],[4,52,4,57],[6,48,6,51],[10,52,10,59],[7,48,7,51],[4,47,4,51],[5,47,5,51],[11,53,11,56],[9,47,9,51],[10,63,10,67],[14,60,14,61],[42,57,43,66],[35,49,35,52],[42,34,43,43],[36,26,36,31],[34,31,34,38],[30,33,30,38],[33,26,33,29],[36,33,36,40],[31,40,31,45],[35,26,35,29],[31,27,31,38],[35,31,35,38],[32,27,32,32],[33,31,33,38],[41,51,41,60],[36,49,36,54],[34,49,34,52],[38,49,38,61],[39,51,39,60],[38,63,38,68],[28,62,28,68],[42,49,42,52],[28,56,28,61],[33,54,33,61],[33,49,33,52],[31,50,31,61],[35,54,35,61],[36,56,36,63],[34,54,34,61],[40,49,40,56],[28,49,28,52],[29,49,29,52],[30,56,30,61],[29,56,29,57],[32,50,32,55],[40,26,40,33],[28,26,28,29],[38,40,38,45],[28,33,28,38],[51,43,51,47],[51,40,51,42],[39,28,39,37],[38,26,38,38],[29,26,29,29],[24,30,24,33],[22,32,22,36],[45,33,45,35],[44,26,44,27],[45,29,45,31],[50,1,53,5],[45,52,45,54],[45,0,45,3],[52,26,55,29],[52,49,52,54],[51,52,51,56],[41,28,41,37],[46,26,46,29],[44,32,44,44],[48,26,48,28],[48,30,48,32],[47,26,47,29],[48,34,48,35],[45,26,45,28],[47,49,47,52],[42,33,43,33],[42,26,42,29],[49,26,51,29],[43,29,43,30],[63,53,63,56],[56,54,56,66],[58,49,60,52],[59,53,59,65],[61,53,62,65],[57,66,57,69],[57,63,57,65],[54,40,54,45],[53,40,53,45],[56,40,56,45],[55,40,55,45],[55,49,55,54],[53,49,53,54],[54,49,54,54],[57,58,57,62],[57,49,57,57],[55,63,55,68],[60,41,60,43],[53,62,53,67],[55,58,55,62],[54,65,54,69],[52,65,52,69],[51,49,51,51],[48,60,48,66],[50,59,50,71],[49,40,49,45],[48,57,48,58],[49,49,49,54],[48,53,48,55],[48,49,48,51],[50,40,50,45],[48,37,48,44],[50,49,50,54],[52,40,52,45],[45,56,45,58],[45,49,45,51],[42,56,43,56],[44,55,44,67],[44,49,44,50],[46,49,46,52],[27,30,27,46],[15,31,15,35],[16,26,16,30],[19,26,19,27],[20,31,20,37],[20,26,20,30],[19,41,19,43],[15,26,15,29],[26,53,26,71],[27,53,27,71],[27,26,27,27],[19,28,19,35],[19,49,19,50],[19,51,19,58],[24,26,24,29],[22,42,22,46],[22,29,22,31],[21,32,21,36],[26,26,26,27],[26,30,26,46],[23,40,23,42],[21,42,21,46],[12,60,12,61],[13,60,13,61],[12,48,14,58],[20,49,20,56],[17,26,18,48],[20,38,20,40],[21,29,21,31],[21,26,22,28],[13,37,13,40],[13,26,13,29],[12,31,12,35],[15,60,15,61],[20,41,20,47],[19,44,19,48],[15,48,15,50],[21,52,21,54],[23,33,23,39],[22,39,22,41],[21,39,21,41],[23,26,23,32]]}
[null,null,null,null,null,null,null,null,null,null,null,null,null,null,null,null,null,null,"基本情報",{"$f":"IF(CK322=0,\"完了\",\"未完了\")","v":"未完了"},null,null,null,"急性期入力",null,null,null,{"$f":"IF(CL322=0,\"完了\",\"未完了\")","v":"未完了"},null,null,null,null,null,null,null,null,null,null,"回復期入力",null,null,null,{"$f":"IF(CM322=0,\"完了\",\"未完了\")","v":"未完了"},null,null,null,null,null,null,null,null,null,null,"維持期入力",null,null,null,{"$f":"IF(CN322=0,\"完了\",\"未完了\")","v":"未完了"},null,null,null,null,null,null,null,null,null,null,null,null,null,null,null,null,"最終更新\n日時","2023-04-01T10:00:52","OS",{"$f":"INFO(\"osversion\")","v":"Windows (64-bit) NT 10.00"},null,null,"項目名",null,null,"値","備考","印刷文字","計算用",null,"基本","急","回","維","入力日時","入力","ﾁｪｯｸ有","前回入力",null,null,"登録開始\n日時","2023-04-01T10:00:43"]
["住　所",null,null,null,null,null,null,null,null,null,null,null,null,null,null,null,null,null,null,null,null,null,"診断名",null,null,null,null,null,null,null,null,null,null,null,"大腿骨近位部骨折",null,null,null,null,null,null,null,null,null,null,"患者背景",null,"家族背景",null,null,null,null,null,null,null,null,null,null,null,null,null,null,null,null,null,null,null,null,null,null,null,null,null,null,null,"Ｄｒ．",null,null,null,2,"住所",null,null,{"$f":"E2","v":0},null,{"$f":"IF(CF2=0,\"\",CF2)","v":""},null,null,{"$f":"IF(CH2=\"\",1,0)","v":1},null,null,null,null,"基本",{"$f":"IF($BX$7=FALSE,IF(CO2=0,FALSE,IF(CO2<BX$1,TRUE,FALSE)))","v":false}]
["氏名",null,null,null,"フリガナ",null,null,null,null,null,null,null,null,null,null,null,null,null,null,null,null,null,null,null,null,null,null,null,null,null,null,null,null,null,null,null,null,null,null,null,null,null,null,null,null,null,null,null,null,null,null,null,null,null,null,"（",null,null,null,null,null,null,null,"）",null,null,null,null,null,null,null,null,null,null,null,"Ｎｓ．",null,null,null,3,"氏名","フリガナ",null,{"$f":"H3","v":0},null,{"$f":"IF(CF3=0,\"\",CF3)","v":""},null,null,{"$f":"IF(CH3=\"\",1,0)","v":1},null,null,null,null,"基本",false]
[null,null,null,null,null,null,null,null,null,null,null,null,null,null,null,null,null,null,null,null,null,null,"受傷日",null,null,null,null,null,null,null,null,null,null,null,null,null,null,null,null,null,null,null,null,null,null,null,null,"介　護　者",null,null,null,null,null,null,null,null,"（",null,null,null,null,null,"）",null,null,null,null,null,null,null,null,null,null,null,null,"セラピスト",null,null,null,4,null,"漢字",null,{"$f":"E4","v":0},null,{"$f":"IF(CF4=0,\"\",CF4)","v":""},null,null,{"$f":"IF(CH4=\"\",1,0)","v":1},null,null,null,null,"基本",false]
["性別",null,null,null,null,null,null,null,null,null,null,null,null,null,null,null,"性別",null,null,null,null,null,"受傷機転",null,null,null,null,null,null,null,null,null,null,null,null,null,null,null,"(",null,null,null,null,"）",null,null,null,"キーパーソン：",null,null,null,null,null,null,null,null,null,null,"（続柄）",null,null,null,null,null,"（連絡先）",null,null,null,null,null,null,null,null,null,null,"ＭＳＷ",null,null,null,5,"性別",null,null,0,"1:男　2:女",{"$f":"IF(CF5=1,\"男\",IF(CF5=2,\"女\",\"\"))","v":""},null,null,{"$f":"IF(CH5=\"\",1,0)","v":1},null,null,null,null,"基本",false,0]
["生年月日",null,null,null,null,null,null,null,null,null,null,null,"　年",null,"月日",null,null,null,"満",{"$f":"CH11","v":""},null,"歳",null,null,null,null,null,null,null,null,null,null,null,null,null,null,null,"（",null,null,null,null,null,"）",null,null,null,"自宅の家屋構造",null,null,null,null,null,null,null,null,null,null,null,null,null,null,null,null,null,null,null,null,null,null,null,null,null,null,null,null,null,null,null,6,"生年月日","年号",null,0,"1:明治 2:大正 3:昭和 4:平成",{"$f":"IF(CF6<>\"\",LOOKUP(CF6,{0,1,2,3,4},{\"\",\"明治\",\"大正\",\"昭和\",\"平成\"}),\"\")","v":""},null,null,null,null,null,null,null,"基本",{"$f":"IF($BX$7=FALSE,IF(CO6=0,FALSE,IF(CO6<BX$1,TRUE,FALSE)))","v":false},0]
["現病歴",null,null,null,null,null,null,null,null,null,null,null,null,null,null,null,null,null,null,null,null,null,"手術日",null,null,null,null,null,null,null,null,null,null,null,null,null,null,null,null,null,null,null,null,null,null,null,null,null,"階",null,null,null,null,null,null,null,null,null,null,null,null,null,null,null,null,null,null,null,null,null,null,null,null,null,"基本情報",false,null,null,null,7,null,"和暦年",null,{"$f":"M6","v":"　年"},null,{"$f":"CF7","v":"　年"},null,null,null,null,null,null,null,"基本",false,"15年"]
[null,null,null,null,null,null,null,null,null,null,null,null,null,null,null,null,null,null,null,null,null,null,"術式",null,null,null,null,null,null,null,null,null,null,null,null,null,"（セメント使用",null,null,null,null,null,null,"）",null,null,null,null,"エレベーター",null,null,null,null,null,null,null,null,null,null,null,null,null,null,null,null,null,null,null,null,null,null,null,null,null,"急性期入力",false,null,null,null,8,null,"月日",null,{"$f":"O6","v":"月日"},null,null,null,null,null,null,null,null,null,"基本",false,"年月"]
[null,null,null,null,null,null,null,null,null,null,null,null,null,null,null,null,null,"身長",null,null,null,"㎝",null,null,null,null,null,null,null,null,null,null,null,null,null,null,null,null,null,null,null,null,null,null,null,null,null,null,"トイレ",null,null,null,null,null,null,null,null,null,null,null,null,null,null,null,null,null,null,null,null,null,null,null,null,null,"回復期入力",false,null,null,null,9,null,"和暦",null,{"$f":"CH6 & CH7 & TEXT(CF8,\"mm月dd日\")","v":"　年月日"},null,{"$f":"CF9","v":"　年月日"}]
[null,null,null,null,null,null,null,null,null,null,null,null,null,null,null,null,null,"体重",null,null,null,"㎏",null,null,null,null,"（インプラント：",null,null,null,null,null,null,null,null,null,null,null,null,null,null,null,null,"）",null,"介護保険関連",null,"受傷前介護申請",null,null,null,null,null,null,null,null,"（",null,null,null,null,")",null,null,null,null,null,null,null,null,null,null,null,null,"維持期入力",false,null,null,null,10,null,"西暦",null,{"$f":"DATEVALUE(SUBSTITUTE(CF9,\"元\",\"1\"))","v":{"$error":"#VALUE!"}},null,{"$f":"IF(ISERROR(CF10),\"\",CF10)","v":""},null,null,{"$f":"IF(CH10=\"\",1,0)","v":1}]
["骨粗鬆症治療",null,null,null,null,null,null,null,"（",null,null,null,null,null,null,null,null,"）",null,null,null,null,"受傷前状態","歩行",null,null,null,null,null,null,null,null,null,null,null,null,null,null,null,null,null,null,null,null,null,null,null,"ケアマネージャー：",null,null,null,null,null,null,null,null,null,null,null,null,"連絡先：",null,null,null,null,null,null,null,null,null,null,null,null,null,null,null,null,null,null,11,null,"年齢",null,{"$f":"DATEDIF(CF10,CF38,\"Y\")","v":{"$error":"#VALUE!"}},null,{"$f":"IF(ISERROR(CF11),\"\",CF11)","v":""},null,null,1]
["紹介施設",null,null,null,null,null,null,null,"（",null,null,null,null,null,null,null,null,"）",null,null,null,null,null,null,null,null,null,null,null,null,null,null,null,null,null,null,null,null,null,null,null,null,null,null,null,null,null,"受傷前利用サービス",null,null,null,null,null,null,null,null,null,"（有の場合は下欄記入）",null,null,null,null,null,null,null,null,null,null,null,null,null,null,null,null,null,null,null,null,null,12,"現病歴",null,null,{"$f":"E7","v":0},null,{"$f":"IF(CF12=0,\"\",CF12)","v":""},null,null,1,null,null,null,null,"基本",{"$f":"IF($BX$7=FALSE,IF(CO12=0,FALSE,IF(CO12<BX$1,TRUE,FALSE)))","v":false}]
["既往歴",null,null,null,null,null,null,null,null,null,null,null,null,null,null,null,null,null,null,null,null,null,null,"職　　　業",null,null,null,null,null,null,"（",null,null,null,null,null,"）","身障手帳",null,null,null,null,null,null,null,null,null,null,null,null,null,null,null,null,null,null,null,null,null,"（",null,null,"回／ｗ）",null,null,null,null,null,null,null,null,null,null,null,null,null,null,null,null,13,"身長",null,null,{"$f":"T9","v":0},null,{"$f":"IF(CF13=0,\"\",CF13)","v":""},null,null,1,null,null,null,null,"基本",false]
[null,null,null,null,null,null,null,null,null,null,null,null,null,null,null,null,null,null,null,null,null,null,null,"視覚障害",null,null,null,null,null,null,"（",null,null,null,null,null,"）",null,null,null,null,"（",null,null,"）",null,null,null,null,null,null,null,null,null,null,null,null,null,null,"（",null,null,"回／ｗ）",null,null,null,null,null,null,null,null,null,null,null,null,null,null,null,null,14,"体重",null,null,{"$f":"T10","v":0},null,{"$f":"IF(CF14=0,\"\",CF14)","v":""},null,null,1,null,null,null,null,"基本",false]
[null,null,null,null,null,null,null,"（",null,null,null,null,null,null,null,null,null,null,null,"）",null,null,null,"聴覚障害",null,null,null,null,null,null,"（",null,null,null,null,null,"）",null,null,null,null,null,null,null,null,null,null,null,null,null,null,null,null,null,null,null,null,null,null,"（",null,null,"回／ｗ）",null,null,null,null,null,null,null,null,null,null,null,null,null,null,null,null,15,"骨粗鬆症治療","無or有",null,0,"1:無 2:有",{"$f":"IF(CF15<>\"\",LOOKUP(CF15,{0,1,2},{\"\",\"無\",\"有\"}),\"\")","v":""},null,null,1,null,null,null,null,"基本",false,0]
["感染症",null,null,null,null,null,null,null,null,null,null,null,null,null,null,null,null,null,null,null,null,null,null,"言語障害",null,null,null,null,null,null,"（",null,null,null,null,null,"）",null,null,null,null,null,null,null,null,null,null,null,"(",null,null,null,null,null,null,null,null,null,null,"）（",null,null,"回／ｗ）",null,null,null,null,null,null,null,null,null,null,null,null,null,null,null,null,16,null,"テキスト",null,{"$f":"J11","v":0},null,{"$f":"IF(CF16=0,\"\",CF16)","v":""},null,null,{"$f":"IF(CF15=2,IF(CH16=\"\",1,0),0)","v":0},null,null,null,null,"基本",false]
["急性期病院名：",null,null,null,null,null,null,null,null,null,null,null,null,null,null,null,null,null,null,null,null,null,null,null,null,null,"回復期病院名：",null,null,null,null,null,null,null,null,null,null,null,null,null,null,null,null,null,null,null,null,null,null,"維持期入所施設 またはかかりつけ医：",null,null,null,null,null,null,null,null,null,null,null,null,null,null,null,null,null,null,null,null,null,null,null,null,null,null,null,null,null,17,"紹介施設",null,null,0,"1:無 2:有",{"$f":"IF(CF17<>\"\",LOOKUP(CF17,{0,1,2},{\"\",\"無\",\"有\"}),\"\")","v":""},null,null,{"$f":"IF(CH17=\"\",1,0)","v":1},null,null,null,null,"基本",false,0]
[null,null,null,null,null,null,null,null,null,null,null,null,null,null,null,null,null,null,null,null,null,null,null,null,null,null,null,null,null,null,null,null,null,null,null,null,null,null,null,null,null,null,null,null,null,null,null,null,null,null,null,null,null,null,null,null,null,null,null,null,null,null,null,null,null,null,null,null,null,null,null,null,null,null,null,null,null,null,null,18,null,"テキスト",null,{"$f":"J12","v":0},null,{"$f":"IF(CF18=0,\"\",CF18)","v":""},null,null,{"$f":"IF(CF17=2,IF(CH18=\"\",1,0),0)","v":0},null,null,null,null,"基本",false]
[null,null,null,null,null,null,null,null,null,null,null,null,null,null,null,null,null,null,null,null,null,null,null,null,null,null,null,null,null,null,null,null,null,null,null,null,null,null,null,null,null,null,null,null,null,null,null,null,null,null,null,null,null,null,null,null,null,null,null,null,null,null,null,null,null,null,null,null,null,null,null,null,null,null,null,null,null,null,null,19,"既往歴","なし",null,false,null,{"$f":"IF(CF19=TRUE,CD19,\"\")","v":""},null,null,null,null,null,null,null,"基本",false,false]
["（ID：",null,null,null,null,null,null,null,null,null,"）",null,null,null,null,null,null,null,"転帰先：",null,null,null,null,null,null,null,"（ID：",null,null,null,null,null,null,null,null,null,"）",null,null,null,null,"転帰先：",null,null,null,null,null,null,null,"（ID：",null,null,null,null,null,null,null,null,null,"）",null,null,null,null,null,null,null,null,null,null,null,null,null,null,null,null,null,null,null,20,null,"高血圧",null,false,null,{"$f":"IF(CF20=TRUE,CD20,\"\")","v":""},null,null,null,null,null,null,null,null,null,false]
["入院日(",null,null,null,null,null,null,null,null,null,null,null,")","退院（転棟）日",null,null,null,null,null,null,null,null,null,null,null,")","入院（転棟）日(",null,null,null,null,null,null,null,null,null,null,null,")　退院日(",null,null,null,null,null,null,null,null,null,")","入所日もしくは初診日（",null,null,null,null,null,null,null,null,null,null,null,null,null,null,")",null,null,null,null,null,null,null,null,null,null,null,null,null,null,21,null,"糖尿病",null,false,null,"",null,null,null,null,null,null,null,null,null,false]
["担当者",null,null,null,"Dr.",null,null,"（",null,null,null,null,null,"）",null,"Ns.   ",null,null,"（",null,null,null,null,null,"）",null,"担当者",null,null,"Dr.　　（",null,null,null,null,null,null,null,"）",null,"Ns.　　（",null,null,null,null,null,null,null,"）",null,"担当者",null,null,"Dr.　　（",null,null,null,null,null,null,null,"）",null,"Ns.　　（",null,null,null,null,null,null,null,"）",null,null,null,null,null,null,null,null,22,null,"脳卒中",null,false,null,"",null,null,null,null,null,null,null,null,null,false]
[null,null,null,null,"PT・OT",null,null,"（",null,null,null,null,null,"）",null,"その他",null,null,"（",null,null,null,null,null,"）",null,null,null,null,"PT・OT（",null,null,null,null,null,null,null,"）",null,"その他（",null,null,null,null,null,null,null,"）",null,null,null,null,"PT・OT（",null,null,null,null,null,null,null,"）",null,"その他（",null,null,null,null,null,null,null,"）",null,null,null,null,null,null,null,null,23,null,"パーキンソン",null,false,null,"",null,null,null,null,null,null,null,null,null,false]
["（",null,null,null,null,null,null,null,null,null,null,null,null,null,null,"）現在",null,null,null,null,null,null,null,null,null,null,"(",null,null,null,null,null,null,null,null,null,null,null,null,null,"）現在",null,null,null,null,null,null,null,null,"(",null,null,null,null,null,null,null,null,null,null,null,null,null,"）現在",null,null,null,null,null,null,null,null,null,null,null,null,null,null,null,24,null,"脊椎圧迫骨折",null,false,null,"",null,null,null,null,null,null,null,null,null,false]
["荷重制限",null,null,null,null,null,null,null,"（",null,null,null,null,null,null,null,null,"）",null,null,null,null,null,null,null,null,"荷重制限",null,null,null,null,null,null,null,"（",null,null,null,null,null,null,null,null,"）",null,null,null,null,null,null,null,null,null,null,null,null,null,null,null,null,null,null,null,null,null,null,null,null,null,null,null,null,null,null,null,null,null,null,null,25,null,"対側大腿骨近位部骨折",null,false,null,"",null,null,null,null,null,null,null,null,null,false]
["歩行状態：（カッコ内に右記記号で記載　◎自立　○見守り　△一部介助　×全介助）",null,null,null,null,null,null,null,null,null,null,null,null,null,null,null,null,null,null,null,null,null,null,null,null,null,null,null,null,null,null,null,null,null,null,null,null,null,null,null,null,null,null,null,null,null,null,null,null,null,null,null,null,null,null,null,null,null,null,null,null,null,null,null,null,null,null,null,null,null,null,null,null,null,null,null,null,null,null,26,null,"その他",null,false,null,"",null,{"$f":"IF(CF19=TRUE,\"なし\",IF(CJ27<>\"\", MID(CJ27,2,200),\"\"))","v":""},{"$f":"IF(CJ26=\"\",1,0)","v":1},null,null,null,null,null,null,false]
["病棟内(",null,null,")",null,null,null,null,null,null,null,null,null,null,null,null,null,null,null,null,null,null,null,null,null,null,"病棟内(",null,null,")",null,null,null,null,null,null,null,null,null,null,null,null,null,null,null,null,null,null,null,"屋外(",null,null,")",null,null,null,null,null,null,null,null,null,null,null,null,null,null,null,null,null,null,null,null,null,null,null,null,null,null,27,null,null,"テキスト",{"$f":"I15","v":0},null,{"$f":"IF(CF27=0,\"\",CF27)","v":""},"計算用",{"$f":"IF(CH20<>\"\",\"，\" & CH20,\"\")  & IF(CH21<>\"\",\"，\" & CH21,\"\")  & IF(CH22<>\"\",\"，\" & CH22,\"\") & IF(CH23<>\"\",\"，\" & CH23,\"\") & IF(CH24<>\"\",\"，\" & CH24,\"\") & IF(CH25<>\"\",\"，\" & CH25,\"\") & IF(CH26<>\"\",\"，\" & CH26 & IF(CH27<>\"\",\"(\" & CH27 & \")\",\"\"),\"\")","v":""},{"$f":"IF(CF26=TRUE,IF(CH27=\"\",1,0),0)","v":0},null,null,null,null,"基本",{"$f":"IF($BX$7=FALSE,IF(CO27=0,FALSE,IF(CO27<BX$1,TRUE,FALSE)))","v":false}]
["訓練室(",null,null,")",null,null,null,null,null,null,null,null,null,null,null,null,null,null,null,null,null,null,null,null,null,null,"訓練室(",null,null,")",null,null,null,null,null,null,null,null,null,null,null,null,null,null,null,null,null,null,null,"屋内(",null,null,")",null,null,null,null,null,null,null,null,null,null,null,null,null,null,null,null,null,null,null,null,null,null,null,null,null,null,28,"感染症","Wa氏　",null,false,null,"",null,null,null,null,null,null,null,"基本",{"$f":"IF($BX$7=FALSE,IF(CO28=0,FALSE,IF(CO28<BX$1,TRUE,FALSE)))","v":false},false]
["筋力低下",null,null,null,null,null,null,null,"（","部位：",null,null,null,null,null,null,null,null,null,null,null,null,null,null,"）",null,null,null,null,null,"（","部位：",null,null,null,null,null,null,null,null,null,null,null,null,null,null,"）",null,null,null,null,null,null,"（","部位：",null,null,null,null,null,null,null,null,null,null,null,null,null,null,"）",null,null,null,null,null,null,null,null,null,29,null,"HBV　",null,false,null,"",null,null,null,null,null,null,null,null,null,false]
["可動域制限",null,null,null,null,null,null,null,null,"部位（",null,null,null,null,null,null,null,null,null,"）",null,null,null,null,null,null,null,null,null,null,null,"部位（",null,null,null,null,null,null,null,null,null,"）",null,null,null,null,null,null,null,null,null,null,null,null,"部位（",null,null,null,null,null,null,null,null,null,"）",null,null,null,null,null,null,null,null,null,null,null,null,null,null,30,null,"HCV　",null,false,null,"",null,null,null,null,null,null,null,null,null,false]
["疼痛",null,null,null,null,null,null,null,null,"部位（",null,null,null,null,null,null,null,"）",null,null,null,null,null,null,null,null,null,null,null,null,null,"部位（",null,null,null,null,null,null,null,"）",null,null,null,null,null,null,null,null,null,null,null,null,null,null,"部位（",null,null,null,null,null,null,null,"）",null,null,null,null,null,null,null,null,null,null,null,null,null,null,null,null,31,null,"MRSA　",null,false,null,{"$f":"IF(CF31=TRUE,CD31,\"\")","v":""},null,{"$f":"IF(CF32=TRUE,CD32,IF(CJ32<>\"\", MID(CJ32,2,200),\"\"))","v":""},{"$f":"IF(CJ31=\"\",1,0)","v":1},null,null,null,null,null,null,false]
["　　対策　",null,null,null,null,null,null,null,null,null,null,null,null,null,null,null,null,"（",null,null,null,null,null,null,"）",null,null,null,null,null,null,null,null,null,null,null,null,null,null,"（",null,null,null,null,null,null,"）",null,null,null,null,null,null,null,null,null,null,null,null,null,null,null,"（",null,null,null,null,null,null,"）",null,null,null,null,null,null,null,null,null,32,null,"左記感染症なし",null,false,null,{"$f":"IF(CF32=TRUE,CD32,\"\")","v":""},null,{"$f":"IF(CH28<>\"\",\"，\"&CH28,\"\")&IF(CH29<>\"\",\"，\"&CH29,\"\")&IF(CH30<>\"\",\"，\"&CH30,\"\")&IF(CH31<>\"\",\"，\"&CH31,\"\")&IF(CH32<>\"\",\"，\"&CH32,\"\")","v":""},null,null,null,null,null,null,null,false]
[null,null,null,null,null,null,null,null,null,null,null,null,null,null,null,null,null,null,null,null,null,null,null,null,null,null,null,null,null,null,null,null,null,null,null,null,null,null,null,null,null,null,null,null,null,null,null,null,null,null,null,null,null,null,null,null,null,null,null,null,null,null,null,null,null,null,null,null,null,null,null,null,null,null,null,null,null,null,null,33,"診断名","左右",null,0,"1:右 2:左",{"$f":"IF(CF33=1,\"右\",IF(CF33=2,\"左\",\"\"))","v":""},null,null,{"$f":"IF(CH33=\"\",1,0)","v":1},null,null,null,null,"基本",{"$f":"IF($BX$7=FALSE,IF(CO33=0,FALSE,IF(CO33<BX$1,TRUE,FALSE)))","v":false},0]
["内科管理",null,null,null,null,null,null,null,"（",null,null,null,null,null,null,null,null,"）",null,null,null,null,null,null,null,null,null,null,null,null,"（",null,null,null,null,null,null,null,null,"）",null,null,null,null,null,null,null,null,null,null,null,null,null,"（",null,null,null,null,null,null,null,null,"）",null,null,null,null,null,null,null,null,null,null,null,null,null,null,null,null,34,null,"箇所","頚部",false,null,{"$f":"IF(CF34=TRUE,CE34,\"\")","v":""},null,null,null,null,null,null,null,"基本",{"$f":"IF($BX$7=FALSE,IF(CO34=0,FALSE,IF(CO34<BX$1,TRUE,FALSE)))","v":false},false]
["医療処置",null,null,null,null,null,null,null,"（",null,null,null,null,null,null,null,null,"）",null,null,null,null,null,null,null,null,null,null,null,null,"（",null,null,null,null,null,null,null,null,"）",null,null,null,null,null,null,null,null,null,null,null,null,null,"（",null,null,null,null,null,null,null,null,"）",null,null,null,null,null,null,null,null,null,null,null,null,null,null,null,null,35,null,null,"頚基部",false,null,{"$f":"IF(CF35=TRUE,CE35,\"\")","v":""},null,null,null,null,null,null,null,null,null,false]
["検　　　査",null,null,null,null,null,null,null,"（",null,null,null,null,null,null,null,null,"）",null,null,null,null,null,null,null,null,null,null,null,null,"（",null,null,null,null,null,null,null,null,"）",null,null,null,null,null,null,null,null,null,null,null,null,null,"（",null,null,null,null,null,null,null,null,"）",null,null,null,null,null,null,null,null,null,null,null,null,null,null,null,null,36,null,null,"転子部",false,null,{"$f":"IF(CF36=TRUE,CE36,\"\")","v":""},null,{"$f":"MID(CJ37,2,200)","v":""},null,null,null,null,null,null,null,false]
["食事",null,null,null,null,null,null,null,null,null,"（",null,null,null,null,null,null,null,null,"）",null,null,null,null,null,null,null,null,null,null,null,null,"（",null,null,null,null,null,null,null,null,"）",null,null,null,null,null,null,null,null,null,null,null,null,null,"（",null,null,null,null,null,null,null,null,"）",null,null,null,null,null,null,null,null,null,null,null,null,null,null,37,null,null,"転子下",false,null,{"$f":"IF(CF37=TRUE,CE37,\"\")","v":""},"計算用",{"$f":"IF(CH34<>\"\",\"，\"& CH34,\"\")&IF(CH35<>\"\",\"，\"& CH35,\"\") &IF(CH36<>\"\",\"，\"& CH36,\"\")&IF(CH37<>\"\",\"，\"& CH37,\"\")","v":""},{"$f":"IF(CJ37=\"\",1,0)","v":1},null,null,null,null,null,null,false]
[null,null,null,null,null,null,null,null,null,null,null,null,null,null,null,null,null,null,null,null,null,null,null,null,null,null,null,null,null,null,null,null,null,null,null,null,null,null,null,null,null,null,null,null,null,null,null,null,null,null,null,null,null,null,null,null,null,null,null,null,null,null,null,null,null,null,null,null,null,null,null,null,null,null,null,null,null,null,null,38,"受傷日",null,null,{"$f":"AA4","v":"00:00:00"},null,{"$f":"IF(CF38=0,\"\",CF38)","v":""},null,null,{"$f":"IF(CH38=\"\",1,0)","v":1},null,null,null,null,"基本",{"$f":"IF($BX$7=FALSE,IF(CO38=0,FALSE,IF(CO38<BX$1,TRUE,FALSE)))","v":false}]
["排泄",null,null,null,null,null,null,null,null,null,null,null,null,null,null,null,null,"（",null,null,null,null,null,null,"）",null,null,null,null,null,null,null,null,null,null,null,null,null,null,"（",null,null,null,null,null,null,"）",null,null,null,null,null,null,null,null,null,null,null,null,null,null,null,"（",null,null,null,null,null,null,"）",null,null,null,null,null,null,null,null,null,39,"受傷機転","原因",null,0,"1:転倒 2:転落 3:交通事故　4:その他",{"$f":"IF(CF39<>\"\",LOOKUP(CF39,{0,1,2,3,4},{\"\",\"転倒\",\"転落\",\"交通事故\",\"その他\"}),\"\")","v":""},null,null,{"$f":"IF(CH39=\"\",1,0)","v":1},null,null,null,null,"基本",{"$f":"IF($BX$7=FALSE,IF(CO39=0,FALSE,IF(CO39<BX$1,TRUE,FALSE)))","v":false},0]
["　自立度",null,null,null,null,null,null,null,null,null,null,null,null,null,null,null,null,null,null,null,null,null,null,null,null,null,null,null,null,null,null,null,null,null,null,null,null,null,null,null,null,null,null,null,null,null,null,null,null,null,null,null,null,null,null,null,null,null,null,null,null,null,null,null,null,null,null,null,null,null,null,null,null,null,null,null,null,null,null,40,null,null,"その他",{"$f":"AN5","v":0},null,{"$f":"IF(CF40=0,\"\",\"　（　\" & CF40 & \"　）\")","v":""},null,null,{"$f":"IF(CF39=4,IF(CH40=\"\",1,0),0)","v":0},null,null,null,null,"基本",{"$f":"IF($BX$7=FALSE,IF(CO40=0,FALSE,IF(CO40<BX$1,TRUE,FALSE)))","v":false}]
["清潔",null,null,null,null,null,null,null,null,null,null,null,null,null,null,null,null,null,null,null,null,null,null,null,null,null,null,null,null,null,null,null,null,null,null,null,null,null,null,null,null,null,null,null,null,null,null,null,null,null,null,null,null,null,null,null,null,null,null,null,null,null,null,null,null,null,null,null,null,null,null,null,null,null,null,null,null,null,null,41,null,"場所",null,0,"屋内　屋外　不明　その他",{"$f":"IF(CF41<>\"\",LOOKUP(CF41,{0,1,2,3,4},{\"\",\"屋内\",\"屋外\",\"不明\",\"その他\"}),\"\")","v":""},null,null,{"$f":"IF(CH41=\"\",1,0)","v":1},null,null,null,null,"基本",{"$f":"IF($BX$7=FALSE,IF(CO41=0,FALSE,IF(CO41<BX$1,TRUE,FALSE)))","v":false},0]
["　自立度",null,null,null,null,null,null,null,null,null,null,null,null,null,null,null,null,null,null,null,null,null,null,null,null,null,null,null,null,null,null,null,null,null,null,null,null,null,null,null,null,null,null,null,null,null,null,null,null,null,null,null,null,null,null,null,null,null,null,null,null,null,null,null,null,null,null,null,null,null,null,null,null,null,null,null,null,null,null,42,null,null,"その他",{"$f":"AM6","v":0},null,{"$f":"IF(CF42=0,\"\",\"　（　\" & CF42 & \"　）\")","v":""},null,null,{"$f":"IF(CF41=4,IF(CH42=\"\",1,0),0)","v":0},null,null,null,null,"基本",{"$f":"IF($BX$7=FALSE,IF(CO42=0,FALSE,IF(CO42<BX$1,TRUE,FALSE)))","v":false}]
["認知症",null,null,null,null,null,null,null,null,null,null,null,null,null,null,null,null,null,null,null,null,null,null,null,null,null,null,null,null,null,null,null,null,null,null,null,null,null,null,null,null,null,null,null,null,null,null,null,null,null,null,null,null,null,null,null,null,null,null,null,null,null,null,null,null,null,null,null,null,null,null,null,null,null,null,null,null,null,null,43,"手術日",null,null,{"$f":"AA7","v":"00:00:00"},null,{"$f":"IF(CF43=0,\"\",CF43)","v":""},null,null,{"$f":"IF(CH43=\"\",1,0)","v":1},null,null,null,null,"基本",{"$f":"IF($BX$7=FALSE,IF(CO43=0,FALSE,IF(CO43<BX$1,TRUE,FALSE)))","v":false}]
[null,null,null,null,"ＨＤＳ－Ｒ",null,null,null,null,"点",null,null,null,null,null,null,null,null,null,null,null,null,null,null,null,null,"ＨＤＳ－Ｒ",null,null,null,null,"点",null,null,null,null,null,null,null,null,null,null,null,null,null,null,null,null,null,"ＨＤＳ－Ｒ",null,null,null,null,"点",null,null,null,null,null,null,null,null,null,null,null,null,null,null,null,null,null,null,null,null,null,null,null,null,44,"術式",null,null,0,"骨折合術　",{"$f":"IF(CF44<>\"\",LOOKUP(CF44,{0,1,2,3},{\"\",\"骨接合術\",\"人工骨頭挿入術\",\"手術なし\"}),\"\")","v":""},null,null,{"$f":"IF(CH44=\"\",1,0)","v":1},null,null,null,null,"基本",false,0]
["10ｍ歩行",null,null,null,null,null,"秒",null,"（手段：",null,null,null,null,null,null,null,null,null,null,null,null,null,null,"）",null,null,null,null,"秒",null,"（手段：",null,null,null,null,null,null,null,null,null,null,null,null,null,null,"）",null,null,null,null,null,"秒",null,"（手段：",null,null,null,null,null,null,null,null,null,null,null,null,null,null,"）",null,null,null,null,null,null,null,null,null,null,45,null,"セメント使用",null,0,"1:有 2:無",{"$f":"IF(CF44=2,(IF(CF45<>\"\",LOOKUP(CF45,{0,1,2},{\"\",\"セメント使用　有\",\"セメント使用　無\"}),\"\")),\"\")","v":""},null,null,{"$f":"IF(CF44=2,IF(CH45=\"\",1,0),0)","v":0},null,null,null,null,"基本",false,0]
[null,null,null,null,null,null,"(",null,null,null,")",null,null,null,null,null,null,null,null,null,null,null,null,null,null,null,"(",null,null,null,null,null,")",null,null,null,null,null,null,null,null,null,null,null,null,null,null,null,null,"(",null,null,null,null,null,")",null,null,null,null,null,null,null,null,null,null,null,null,null,null,null,null,null,null,null,null,null,null,null,46,null,"インプラント",null,{"$f":"AE10","v":0},null,{"$f":"IF(CF46=0,\"\",\"インプラント：\" & CF46)","v":""},null,null,null,null,null,null,null,"基本",false]
["経過中転倒",null,null,null,null,null,null,null,null,null,null,null,null,null,null,null,null,null,null,null,null,null,null,null,null,null,null,null,null,null,null,null,null,null,null,null,null,null,null,null,null,null,null,null,null,null,null,null,null,null,null,null,null,null,null,null,null,null,null,null,null,null,null,null,null,null,null,null,null,null,null,null,null,null,null,null,null,null,null,47,"受傷前状態","歩行",null,0,null,{"$f":"IF(CF47<>\"\",LOOKUP(CF47,{0,1,2,3,4,5,6,7},{\"\",\"独歩\",\"杖\",\"伝い歩き\",\"シルバーカー\",\"歩行器等\",\"車いす\",\"寝たきり\"}),\"\")","v":""},null,null,{"$f":"IF(CH47=\"\",1,0)","v":1},null,null,null,null,"基本",false,0]
["離床センサー",null,null,null,null,null,null,null,null,null,null,null,null,null,null,null,null,null,null,null,null,null,null,null,null,null,null,null,null,null,null,null,null,null,null,null,null,null,null,null,null,null,null,null,null,null,null,null,null,null,null,null,null,null,null,null,null,null,null,null,null,null,null,null,null,null,null,null,null,null,null,"（※評価は回復期退院3カ月後・退所時のいづれか早い時期に施行）",null,null,null,null,null,null,null,48,null,"職業",null,0,"1:無 2:有",{"$f":"IF(CF48<>\"\",LOOKUP(CF48,{0,1,2},{\"\",\"無\",\"有\"}),\"\")","v":""},null,null,{"$f":"IF(CH48=\"\",1,0)","v":1},null,null,null,null,"基本",false,0]
["身障手帳",null,null,null,null,null,null,"(",null,null,null,"頃",null,null,"）",null,null,null,null,null,null,null,null,null,null,null,null,null,null,"(",null,null,null,"頃",null,null,"）",null,null,null,null,null,null,null,null,null,null,null,null,null,null,null,"(",null,null,null,"頃",null,null,"）",null,null,null,null,null,null,null,null,null,null,null,null,null,null,null,null,null,null,null,49,null,null,null,{"$f":"AF13","v":0},null,{"$f":"IF(CF49=0,\"\",\"　（　\" & CF49 & \"　）\")","v":""},null,null,{"$f":"IF(CF48=2,IF(CH49=\"\",1,0),0)","v":0},null,null,null,null,"基本",false]
["骨粗鬆症治療",null,null,null,null,null,null,null,null,null,null,null,null,null,null,null,null,null,null,null,null,null,null,null,null,null,"介護保険",null,null,null,"説　　明",null,null,null,null,null,null,null,null,null,null,null,null,null,null,null,null,null,null,null,null,null,null,null,null,null,null,null,"退院（所）時指導",null,null,null,null,null,null,null,null,null,null,null,null,null,null,null,null,null,null,null,null,50,null,"視覚障害",null,0,"1:無 2:有",{"$f":"IF(CF50<>\"\",LOOKUP(CF50,{0,1,2},{\"\",\"無\",\"有\"}),\"\")","v":""},null,null,{"$f":"IF(CH50=\"\",1,0)","v":1},null,null,null,null,"基本",false,0]
[null,null,null,null,null,null,null,null,null,null,null,null,null,null,null,null,null,null,null,null,null,null,null,null,null,null,null,null,null,null,"申　　請",null,null,null,null,null,null,null,null,null,null,null,null,null,null,null,null,null,null,null,null,null,null,null,null,null,null,null,null,null,null,null,null,null,null,null,null,null,null,null,null,null,null,null,null,null,null,null,null,51,null,null,null,{"$f":"AF14","v":0},null,{"$f":"IF(CF51=0,\"\",\"　（　\" & CF51 & \"　）\")","v":""},null,null,{"$f":"IF(CF50=2,IF(CH51=\"\",1,0),0)","v":0},null,null,null,null,"基本",false]
[null,null,null,null,null,null,null,null,null,null,null,null,null,null,null,null,null,null,null,null,null,null,null,null,null,null,null,null,null,null,"要介護認定",null,null,null,null,null,null,null,null,null,"（支・介",null,null,null,null,null,null,null,"）","（支・介",null,null,null,null,null,null,null,"）",null,null,null,null,null,null,null,null,null,null,null,null,null,null,null,null,null,null,null,null,null,52,null,"聴覚障害",null,0,"1:無 2:有",{"$f":"IF(CF52<>\"\",LOOKUP(CF52,{0,1,2},{\"\",\"無\",\"有\"}),\"\")","v":""},null,null,{"$f":"IF(CH52=\"\",1,0)","v":1},null,null,null,null,"基本",false,0]
[null,null,null,null,null,null,null,null,null,null,null,null,null,null,null,null,null,null,null,null,null,null,null,null,null,null,"連携など",null,null,null,"かかりつけ医への情報提供",null,null,null,null,null,null,null,null,null,null,null,null,null,null,null,null,null,null,null,null,null,null,null,null,null,null,null,"通所リハビリ見直し訪問",null,null,null,null,null,null,null,null,null,null,null,null,null,null,null,null,null,null,null,null,53,null,null,null,{"$f":"AF15","v":0},null,{"$f":"IF(CF53=0,\"\",\"　（　\" & CF53 & \"　）\")","v":""},null,null,{"$f":"IF(CF52=2,IF(CH53=\"\",1,0),0)","v":0},null,null,null,null,"基本",false]
[null,null,null,null,null,null,null,null,null,null,null,null,null,null,null,null,null,null,null,null,null,null,null,null,null,null,null,null,null,null,"ケアマネへの情報提供",null,null,null,null,null,null,null,null,null,null,null,null,null,null,null,null,null,null,null,null,null,null,null,null,null,null,null,null,null,null,"(",null,null,null,null,null,null,")",null,null,null,null,null,null,null,null,null,null,54,null,"言語障害",null,0,"1:無 2:有",{"$f":"IF(CF54<>\"\",LOOKUP(CF54,{0,1,2},{\"\",\"無\",\"有\"}),\"\")","v":""},null,null,{"$f":"IF(CH54=\"\",1,0)","v":1},null,null,null,null,"基本",false,0]
[null,null,null,null,null,null,null,null,null,null,null,null,null,null,null,null,null,null,null,null,null,null,null,null,null,null,null,null,null,null,"退院・退所前訪問",null,null,null,null,null,null,null,null,null,null,null,null,null,null,null,null,null,null,null,null,null,null,null,null,null,null,null,"サービス担当者会議",null,null,null,null,null,null,null,null,null,null,null,null,null,null,null,null,null,null,null,null,55,null,null,null,{"$f":"AF16","v":0},null,{"$f":"IF(CF55=0,\"\",\"　（　\" & CF55 & \"　）\")","v":""},null,null,{"$f":"IF(CF54=2,IF(CH55=\"\",1,0),0)","v":0},null,null,null,null,"基本",false]
[null,null,null,null,null,null,null,null,null,null,null,null,null,null,null,null,null,null,null,null,null,null,null,null,null,null,null,null,null,null,"紹介元への情報提供",null,null,null,null,null,null,null,null,null,null,null,null,null,null,null,null,null,null,null,null,null,null,null,null,null,null,null,"(最終開催：",null,null,null,null,null,null,null,null,null,null,")",null,null,null,null,null,null,null,null,null,56,null,"身障手帳",null,0,"1:無 2:有",{"$f":"IF(CF56<>\"\",LOOKUP(CF56,{0,1,2},{\"\",\"無\",\"有\"}),\"\")","v":""},null,null,{"$f":"IF(CH56=\"\",1,0)","v":1},null,null,null,null,"基本",false,0]
[null,null,null,null,null,null,null,null,null,null,null,null,null,null,null,null,null,null,null,null,null,null,null,null,null,null,"在宅ケア希望者退院連絡票送付",null,null,null,null,null,null,null,null,null,null,null,null,null,null,null,null,null,null,null,null,null,null,"◆サービス利用（",null,null,null,null,null,null,null,null,null,null,null,null,null,null,null,null,null,")",null,null,null,null,null,null,null,null,null,null,null,57,null,null,"級",{"$f":"AQ14","v":0},null,{"$f":"IF(CF57=0,\"\",\"　（　\" & CF57 & \"　）\")","v":""},null,null,{"$f":"IF(CF56=2,IF(CH57=\"\",1,0),0)","v":0},null,null,null,null,"基本",false]
[null,null,null,null,null,null,null,null,null,null,null,null,null,null,null,null,null,null,null,null,null,null,null,null,null,null,null,null,null,null,null,null,null,null,null,null,null,null,null,null,null,null,null,null,null,null,null,null,null,"　　ケアマネージャー（事業所：",null,null,null,null,null,null,null,null,null,null,null,null,null,"担当者：",null,null,null,null,null,null,"）",null,null,null,null,null,null,null,null,58,"患者背景","家族背景",null,0,null,{"$f":"IF(CF58<>\"\",LOOKUP(CF58,{0,1,2,3,4,5},{\"\",\"独居\",\"夫婦\",\"二世帯\",\"日中独居\",\"その他\"}),\"\")","v":""},null,null,{"$f":"IF(CH58=\"\",1,0)","v":1},null,null,null,null,"基本",false,0]
[null,null,null,null,null,null,null,null,null,null,null,null,null,null,null,null,null,null,null,null,null,null,null,null,null,null,null,null,null,null,null,null,null,null,null,null,null,null,null,null,null,null,null,null,null,null,null,null,null,null,null,null,null,null,null,null,null,null,null,null,null,null,null,null,null,null,null,null,null,null,null,null,null,null,null,null,null,null,null,59,null,null,"その他",{"$f":"BE3","v":0},null,{"$f":"IF(CF59=0,\"\",\"(\" & CF59 & \")\")","v":""},null,null,{"$f":"IF(CF58=5,IF(CH59=\"\",1,0),0)","v":0},null,null,null,null,"基本",{"$f":"IF($BX$7=FALSE,IF(CO59=0,FALSE,IF(CO59<BX$1,TRUE,FALSE)))","v":false}]
[null,null,null,null,null,null,null,null,null,null,null,null,null,null,null,null,null,null,null,null,null,null,null,null,null,null,null,null,null,null,null,null,null,null,null,null,null,null,null,null,null,null,null,null,null,null,null,null,null,null,null,null,null,null,null,null,null,null,null,null,null,null,null,null,null,null,null,null,null,null,null,null,null,null,null,null,null,null,null,60,null,"介護者",null,0,"1:無 2:有",{"$f":"IF(CF60<>\"\",LOOKUP(CF60,{0,1,2},{\"\",\"無\",\"有\"}),\"\")","v":""},null,null,{"$f":"IF(CH60=\"\",1,0)","v":1},null,null,null,null,"基本",{"$f":"IF($BX$7=FALSE,IF(CO60=0,FALSE,IF(CO60<BX$1,TRUE,FALSE)))","v":false},0]
[null,null,null,null,null,null,null,null,null,null,null,null,null,null,null,null,null,null,null,null,null,null,null,null,null,null,"　急性期病院もしくは整形外科専門医　再診予定日",null,null,null,null,null,null,null,null,null,null,null,null,null,"　(",null,null,null,")",null,null,null,null,null,null,null,null,null,null,null,null,null,null,null,null,null,null,null,null,null,null,null,null,null,null,null,null,null,null,null,null,null,null,61,null,null,"テキスト",{"$f":"BF4","v":0},null,{"$f":"IF(CF61=0,\"\",\"(\" & CF61 & \")\")","v":""},null,null,{"$f":"IF(CF60=2,IF(CH61=\"\",1,0),0)","v":0},null,null,null,null,"基本",false]
[null,null,null,null,null,null,null,null,null,null,null,null,null,null,null,null,null,null,null,null,null,null,null,null,null,null,null,null,null,null,null,null,null,null,null,null,null,null,null,null,null,null,null,null,null,null,null,null,null,null,null,null,null,null,null,null,null,null,null,null,null,null,null,null,null,null,null,null,null,null,null,null,null,null,null,null,null,null,null,62,null,"キーパーソン","名前",{"$f":"BA5","v":0},null,{"$f":"IF(CF62=0,\"\",CF62)","v":""},null,null,{"$f":"IF(CH62=\"\",1,0)","v":1},null,null,null,null,"基本",false]
[null,null,null,null,null,null,null,null,null,null,null,null,null,null,null,null,null,null,null,null,null,null,null,null,null,null,"　かかりつけ医　受診予定日",null,null,null,null,null,null,null,"（",null,null,null,")",null,null,null,null,null,null,null,null,null,null,null,null,null,null,null,null,null,null,null,null,null,null,null,null,null,null,null,null,null,null,null,null,null,null,null,null,null,null,null,null,63,null,null,"続柄",{"$f":"BJ5","v":0},null,{"$f":"IF(CF63=0,\"\",CF63)","v":""},null,null,1,null,null,null,null,"基本",false]
[null,null,null,null,null,null,null,null,null,null,null,null,null,null,null,null,null,null,null,null,null,null,null,null,null,null,null,null,null,null,null,null,null,null,null,null,null,null,null,null,null,null,null,null,null,null,null,null,null,null,null,null,null,null,null,null,null,null,null,null,null,null,null,null,null,null,null,null,null,null,null,null,null,null,null,null,null,null,null,64,null,null,"連絡先",{"$f":"BP5","v":0},null,{"$f":"IF(CF64=0,\"\",CF64)","v":""},null,null,1,null,null,null,null,"基本",false]
[null,null,null,null,null,null,null,null,null,null,null,null,null,null,null,null,null,null,null,null,null,null,null,null,null,null,null,null,null,null,null,null,null,null,null,null,null,null,null,null,null,null,null,null,null,null,null,null,null,null,null,null,null,null,null,null,null,null,null,null,null,null,null,null,null,null,null,null,null,null,null,null,null,null,null,null,null,null,null,65,null,"自宅構造",null,0,"一戸建　集合住宅",{"$f":"IF(CF65<>\"\",LOOKUP(CF65,{0,1,2},{\"\",\"一戸建\",\"集合住宅\"}),\"\")","v":""},null,null,1,null,null,null,null,"基本",false,0]
[null,null,null,null,null,null,null,null,null,null,null,null,null,null,null,null,null,null,null,null,null,null,null,null,null,null,null,null,null,null,null,null,null,null,null,null,null,null,null,null,null,null,null,null,null,null,null,null,null,null,null,null,null,null,null,null,null,null,null,null,null,null,null,null,null,null,null,null,null,null,null,null,null,null,null,null,null,null,null,66,null,null,"階",0,"１階　２階以上",{"$f":"IF(CF66<>\"\",LOOKUP(CF66,{0,1,2},{\"\",\"１階\",\"２階以上\"}),\"\")","v":""},null,null,1,null,null,null,null,"基本",false,0]
[null,null,null,null,null,null,null,null,null,null,null,null,null,null,null,null,null,null,null,null,null,null,null,null,null,null,null,null,null,null,null,null,null,null,null,null,null,null,null,null,null,null,null,null,null,null,null,null,null,null,null,null,null,null,null,null,null,null,null,null,null,null,null,null,null,null,null,null,null,null,null,null,null,null,null,null,null,null,null,67,null,null,"エレベーター",0,"1:無 2:有",{"$f":"IF(CF67<>\"\",LOOKUP(CF67,{0,1,2},{\"\",\"無\",\"有\"}),\"\")","v":""},null,null,1,null,null,null,null,"基本",false,0]
[null,null,null,null,null,null,null,null,null,null,null,null,null,null,null,null,null,null,null,null,null,null,null,null,null,null,null,null,null,null,null,null,null,null,null,null,null,null,null,null,null,null,null,null,null,null,null,null,null,null,null,null,null,null,null,null,null,null,null,null,null,null,null,null,null,null,null,null,null,null,null,null,null,null,null,null,null,null,null,68,null,null,"トイレ",0,"和式　洋式",{"$f":"IF(CF68<>\"\",LOOKUP(CF68,{0,1,2},{\"\",\"和式\",\"洋式\"}),\"\")","v":""},null,null,1,null,null,null,null,"基本",false,0]
[null,null,null,null,null,null,null,null,null,null,null,null,null,null,null,null,null,null,null,null,null,null,null,null,null,null,null,null,null,null,null,null,null,null,null,null,null,null,null,null,null,null,null,null,null,null,null,null,null,null,null,null,null,null,null,null,null,null,null,null,null,null,null,null,null,null,null,null,null,null,null,null,null,null,null,null,null,null,null,69,"介護保険関連","受傷前介護申請","有無",0,"1:無 2:有",{"$f":"IF(CF69<>\"\",LOOKUP(CF69,{0,1,2},{\"\",\"無\",\"有\"}),\"\")","v":""},null,null,1,null,null,null,null,"基本",false,0]
[null,null,null,null,null,null,null,null,null,null,null,null,null,null,null,null,null,null,null,null,null,null,null,null,null,null,null,null,null,null,null,null,null,null,null,null,null,null,null,null,null,null,null,null,null,null,null,null,null,null,null,null,null,null,null,null,null,null,null,null,null,null,null,null,null,null,null,null,null,null,null,null,null,null,null,null,null,null,null,70,null,null,"介護度",{"$f":"BF10","v":0},null,{"$f":"IF(CF70=0,\"\",CF70)","v":""},null,null,{"$f":"IF(CF69=2,IF(CH70=\"\",1,0),0)","v":0},null,null,null,null,"基本",false]
[null,null,null,null,null,null,null,null,null,null,null,null,null,null,null,null,null,null,null,null,null,null,null,null,null,null,null,null,null,null,null,null,null,null,null,null,null,null,null,null,null,null,null,null,null,null,null,null,null,null,null,null,null,null,null,null,null,null,null,null,null,null,null,null,null,null,null,null,null,null,null,null,null,null,null,null,null,null,null,71,null,"ケアマネ","名前",{"$f":"BA11","v":0},null,{"$f":"IF(CF71=0,\"\",CF71)","v":""},null,null,{"$f":"IF(CH71=\"\",1,0)","v":1},null,null,null,null,"基本",false]
[null,null,null,null,null,null,null,null,null,null,null,null,null,null,null,null,null,null,null,null,null,null,null,null,null,null,null,null,null,null,null,null,null,null,null,null,null,null,null,null,null,null,null,null,null,null,null,null,null,null,null,null,null,null,null,null,null,null,null,null,null,null,null,null,null,null,null,null,null,null,null,null,null,null,null,null,null,null,null,72,null,null,"連絡先",{"$f":"BL11","v":0},null,{"$f":"IF(CF72=0,\"\",CF72)","v":""},null,null,{"$f":"IF(CH72=\"\",1,0)","v":1},null,null,null,null,"基本",false]
[null,null,null,null,null,null,null,null,null,null,null,null,null,null,null,null,null,null,null,null,null,null,null,null,null,null,null,null,null,null,null,null,null,null,null,null,null,null,null,null,null,null,null,null,null,null,null,null,null,null,null,null,null,null,null,null,null,null,null,null,null,null,null,null,null,null,null,null,null,null,null,null,null,null,null,null,null,null,null,73,null,"受傷前利用サービス","有無",0,"1:無 2:有",{"$f":"IF(CF73<>\"\",LOOKUP(CF73,{0,1,2},{\"\",\"無\",\"有\"}),\"\")","v":""},null,null,{"$f":"IF(CH73=\"\",1,0)","v":1},null,null,null,null,"基本",false,0]
[null,null,null,null,null,null,null,null,null,null,null,null,null,null,null,null,null,null,null,null,null,null,null,null,null,null,null,null,null,null,null,null,null,null,null,null,null,null,null,null,null,null,null,null,null,null,null,null,null,null,null,null,null,null,null,null,null,null,null,null,null,null,null,null,null,null,null,null,null,null,null,null,null,null,null,null,null,null,null,74,null,"通所系サービス（デイケア・デイサービス）",null,false,null,{"$f":"IF(CF74=TRUE,CD74,\"\")","v":""},null,null,null,null,null,null,null,"基本",false,false]
[null,null,null,null,null,null,null,null,null,null,null,null,null,null,null,null,null,null,null,null,null,null,null,null,null,null,null,null,null,null,null,null,null,null,null,null,null,null,null,null,null,null,null,null,null,null,null,null,null,null,null,null,null,null,null,null,null,null,null,null,null,null,null,null,null,null,null,null,null,null,null,null,null,null,null,null,null,null,null,75,null,null,"回数",{"$f":"BI13","v":0},null,{"$f":"IF(CF75=0,\"\",\"(\" & CF75 & \"回／ｗ）\")","v":""},null,null,{"$f":"IF(CF74=TRUE,IF(CH75=\"\",1,0),0)","v":0},null,null,null,null,"基本",false]
[null,null,null,null,null,null,null,null,null,null,null,null,null,null,null,null,null,null,null,null,null,null,null,null,null,null,null,null,null,null,null,null,null,null,null,null,null,null,null,null,null,null,null,null,null,null,null,null,null,null,null,null,null,null,null,null,null,null,null,null,null,null,null,null,null,null,null,null,null,null,null,null,null,null,null,null,null,null,null,76,null,"ホームヘルパー・訪問介護",null,false,null,{"$f":"IF(CF76=TRUE,CD76,\"\")","v":""},null,null,null,null,null,null,null,null,null,false]
[null,null,null,null,null,null,null,null,null,null,null,null,null,null,null,null,null,null,null,null,null,null,null,null,null,null,null,null,null,null,null,null,null,null,null,null,null,null,null,null,null,null,null,null,null,null,null,null,null,null,null,null,null,null,null,null,null,null,null,null,null,null,null,null,null,null,null,null,null,null,null,null,null,null,null,null,null,null,null,77,null,null,"回数",{"$f":"BI14","v":0},null,{"$f":"IF(CF77=0,\"\",\"(\" & CF77 & \"回／ｗ）\")","v":""},null,null,{"$f":"IF(CF76=TRUE,IF(CH77=\"\",1,0),0)","v":0},null,null,null,null,"基本",false]
[null,null,null,null,null,null,null,null,null,null,null,null,null,null,null,null,null,null,null,null,null,null,null,null,null,null,null,null,null,null,null,null,null,null,null,null,null,null,null,null,null,null,null,null,null,null,null,null,null,null,null,null,null,null,null,null,null,null,null,null,null,null,null,null,null,null,null,null,null,null,null,null,null,null,null,null,null,null,null,78,null,"訪問看護",null,false,null,{"$f":"IF(CF78=TRUE,CD78,\"\")","v":""},null,null,null,null,null,null,null,null,null,false]
[null,null,null,null,null,null,null,null,null,null,null,null,null,null,null,null,null,null,null,null,null,null,null,null,null,null,null,null,null,null,null,null,null,null,null,null,null,null,null,null,null,null,null,null,null,null,null,null,null,null,null,null,null,null,null,null,null,null,null,null,null,null,null,null,null,null,null,null,null,null,null,null,null,null,null,null,null,null,null,79,null,null,"回数",{"$f":"BI15","v":0},null,{"$f":"IF(CF79=0,\"\",\"(\" & CF79 & \"回／ｗ）\")","v":""},null,null,{"$f":"IF(CF78=TRUE,IF(CH79=\"\",1,0),0)","v":0},null,null,null,null,"基本",false]
[null,null,null,null,null,null,null,null,null,null,null,null,null,null,null,null,null,null,null,null,null,null,null,null,null,null,null,null,null,null,null,null,null,null,null,null,null,null,null,null,null,null,null,null,null,null,null,null,null,null,null,null,null,null,null,null,null,null,null,null,null,null,null,null,null,null,null,null,null,null,null,null,null,null,null,null,null,null,null,80,null,"その他",null,false,null,{"$f":"IF(CF80=TRUE,CD80,\"\")","v":""},null,null,null,null,null,null,null,null,null,false]
[null,null,null,null,null,null,null,null,null,null,null,null,null,null,null,null,null,null,null,null,null,null,null,null,null,null,null,null,null,null,null,null,null,null,null,null,null,null,null,null,null,null,null,null,null,null,null,null,null,null,null,null,null,null,null,null,null,null,null,null,null,null,null,null,null,null,null,null,null,null,null,null,null,null,null,null,null,null,null,81,null,null,"名称",{"$f":"AZ16","v":0},null,{"$f":"IF(CF81=0,\"\",\"(\" & CF81 & \")\")","v":""},null,{"$f":"MID(CJ82,2,200)","v":""},{"$f":"IF(CF80=TRUE,IF(CH81=\"\",1,IF(CH82=\"\",1,0)),0)","v":0},null,null,null,null,"基本",false]
[null,null,null,null,null,null,null,null,null,null,null,null,null,null,null,null,null,null,null,null,null,null,null,null,null,null,null,null,null,null,null,null,null,null,null,null,null,null,null,null,null,null,null,null,null,null,null,null,null,null,null,null,null,null,null,null,null,null,null,null,null,null,null,null,null,null,null,null,null,null,null,null,null,null,null,null,null,null,null,82,null,null,"回数",{"$f":"BI16","v":0},null,{"$f":"IF(CF82=0,\"\",\"(\" & CF82 & \"回／ｗ）\")","v":""},"計算用",{"$f":"IF(CH74<>\"\",\"，\"& CH74,\"\")&IF(CH76<>\"\",\"，\"& CH76,\"\") &IF(CH78<>\"\",\"，\"& CH78,\"\")& IF(CH80<>\"\",\"，\" & CH80 & IF(CH81<>\"\",\"(\" & CH81 & \")\",\"\"),\"\")","v":""},{"$f":"IF(CF73=2,IF(CJ81=\"\",1,0),0)","v":0},null,null,null,null,"基本",false]
[null,null,null,null,null,null,null,null,null,null,null,null,null,null,null,null,null,null,null,null,null,null,null,null,null,null,null,null,null,null,null,null,null,null,null,null,null,null,null,null,null,null,null,null,null,null,null,null,null,null,null,null,null,null,null,null,null,null,null,null,null,null,null,null,null,null,null,null,null,null,null,null,null,null,null,null,null,null,null,83,"急性期病院名",null,null,{"$f":"A18","v":0},null,{"$f":"IF(CF83=0,\"\",CF83)","v":""},null,null,null,{"$f":"IF(CH83=\"\",1,0)","v":1},null,null,null,"急性期",{"$f":"IF($BX$8=FALSE,IF(CO83=0,FALSE,IF(CO83<BX$1,TRUE,FALSE)))","v":false}]
[null,null,null,null,null,null,null,null,null,null,null,null,null,null,null,null,null,null,null,null,null,null,null,null,null,null,null,null,null,null,null,null,null,null,null,null,null,null,null,null,null,null,null,null,null,null,null,null,null,null,null,null,null,null,null,null,null,null,null,null,null,null,null,null,null,null,null,null,null,null,null,null,null,null,null,null,null,null,null,84,"ID",null,null,{"$f":"C20","v":0},null,"",null,null,null,{"$f":"IF(CH84=\"\",1,0)","v":1},null,null,null,"急性期",{"$f":"IF($BX$8=FALSE,IF(CO84=0,FALSE,IF(CO84<BX$1,TRUE,FALSE)))","v":false}]
[null,null,null,null,null,null,null,null,null,null,null,null,null,null,null,null,null,null,null,null,null,null,null,null,null,null,null,null,null,null,null,null,null,null,null,null,null,null,null,null,null,null,null,null,null,null,null,null,null,null,null,null,null,null,null,null,null,null,null,null,null,null,null,null,null,null,null,null,null,null,null,null,null,null,null,null,null,null,null,85,"転帰先",null,null,{"$f":"V20","v":0},null,"",null,null,null,1,null,null,null,"急性期",false]
[null,null,null,null,null,null,null,null,null,null,null,null,null,null,null,null,null,null,null,null,null,null,null,null,null,null,null,null,null,null,null,null,null,null,null,null,null,null,null,null,null,null,null,null,null,null,null,null,null,null,null,null,null,null,null,null,null,null,null,null,null,null,null,null,null,null,null,null,null,null,null,null,null,null,null,null,null,null,null,86,"入院日",null,null,{"$f":"F21","v":"00:00:00"},null,"",null,null,null,1,null,null,null,"急性期",false]
[null,null,null,null,null,null,null,null,null,null,null,null,null,null,null,null,null,null,null,null,null,null,null,null,null,null,null,null,null,null,null,null,null,null,null,null,null,null,null,null,null,null,null,null,null,null,null,null,null,null,null,null,null,null,null,null,null,null,null,null,null,null,null,null,null,null,null,null,null,null,null,null,null,null,null,null,null,null,null,87,"退院（転棟）日",null,null,{"$f":"S21","v":"00:00:00"},null,"",null,null,null,1,null,null,null,"急性期",false]
[null,null,null,null,null,null,null,null,null,null,null,null,null,null,null,null,null,null,null,null,null,null,null,null,null,null,null,null,null,null,null,null,null,null,null,null,null,null,null,null,null,null,null,null,null,null,null,null,null,null,null,null,null,null,null,null,null,null,null,null,null,null,null,null,null,null,null,null,null,null,null,null,null,null,null,null,null,null,null,88,"担当者","Dr.",null,{"$f":"I22","v":0},null,"",null,null,null,1,null,null,null,"急性期",false]
[null,null,null,null,null,null,null,null,null,null,null,null,null,null,null,null,null,null,null,null,null,null,null,null,null,null,null,null,null,null,null,null,null,null,null,null,null,null,null,null,null,null,null,null,null,null,null,null,null,null,null,null,null,null,null,null,null,null,null,null,null,null,null,null,null,null,null,null,null,null,null,null,null,null,null,null,null,null,null,89,null,"Nr.",null,{"$f":"T22","v":0},null,"",null,null,null,1,null,null,null,"急性期",false]
[null,null,null,null,null,null,null,null,null,null,null,null,null,null,null,null,null,null,null,null,null,null,null,null,null,null,null,null,null,null,null,null,null,null,null,null,null,null,null,null,null,null,null,null,null,null,null,null,null,null,null,null,null,null,null,null,null,null,null,null,null,null,null,null,null,null,null,null,null,null,null,null,null,null,null,null,null,null,null,90,null,"PT.OT",null,{"$f":"I23","v":0},null,"",null,null,null,1,null,null,null,"急性期",false]
[null,null,null,null,null,null,null,null,null,null,null,null,null,null,null,null,null,null,null,null,null,null,null,null,null,null,null,null,null,null,null,null,null,null,null,null,null,null,null,null,null,null,null,null,null,null,null,null,null,null,null,null,null,null,null,null,null,null,null,null,null,null,null,null,null,null,null,null,null,null,null,null,null,null,null,null,null,null,null,91,null,"その他",null,{"$f":"T23","v":0},null,"",null,null,null,1,null,null,null,"急性期",false]
[null,null,null,null,null,null,null,null,null,null,null,null,null,null,null,null,null,null,null,null,null,null,null,null,null,null,null,null,null,null,null,null,null,null,null,null,null,null,null,null,null,null,null,null,null,null,null,null,null,null,null,null,null,null,null,null,null,null,null,null,null,null,null,null,null,null,null,null,null,null,null,null,null,null,null,null,null,null,null,92,"入力日",null,null,{"$f":"I24","v":"00:00:00"},null,"",null,null,null,1,null,null,null,"急性期",false]
[null,null,null,null,null,null,null,null,null,null,null,null,null,null,null,null,null,null,null,null,null,null,null,null,null,null,null,null,null,null,null,null,null,null,null,null,null,null,null,null,null,null,null,null,null,null,null,null,null,null,null,null,null,null,null,null,null,null,null,null,null,null,null,null,null,null,null,null,null,null,null,null,null,null,null,null,null,null,null,93,"荷重制限","有無",null,0,null,{"$f":"IF(CF93<>\"\",LOOKUP(CF93,{0,1,2},{\"\",\"無\",\"有\"}),\"\")","v":""},null,null,null,1,null,null,null,"急性期",{"$f":"IF($BX$8=FALSE,IF(CO93=0,FALSE,IF(CO93<BX$1,TRUE,FALSE)))","v":false},0]
[null,null,null,null,null,null,null,null,null,null,null,null,null,null,null,null,null,null,null,null,null,null,null,null,null,null,null,null,null,null,null,null,null,null,null,null,null,null,null,null,null,null,null,null,null,null,null,null,null,null,null,null,null,null,null,null,null,null,null,null,null,null,null,null,null,null,null,null,null,null,null,null,null,null,null,null,null,null,null,94,null,"テキスト",null,{"$f":"J25","v":0},null,{"$f":"IF(CF94=0,\"\",\"(\" & CF94 & \")\")","v":""},null,null,null,{"$f":"IF(CF93=2,IF(CH94=\"\",1,0),0)","v":0},null,null,null,"急性期",{"$f":"IF($BX$8=FALSE,IF(CO94=0,FALSE,IF(CO94<BX$1,TRUE,FALSE)))","v":false}]
[null,null,null,null,null,null,null,null,null,null,null,null,null,null,null,null,null,null,null,null,null,null,null,null,null,null,null,null,null,null,null,null,null,null,null,null,null,null,null,null,null,null,null,null,null,null,null,null,null,null,null,null,null,null,null,null,null,null,null,null,null,null,null,null,null,null,null,null,null,null,null,null,null,null,null,null,null,null,null,95,"歩行状態","病棟内",null,{"$f":"C27","v":0},"◎自立　○見守り　△一部介助　×全介助",{"$f":"IF(CF95=\"\",\"\",IF(CF95=\"◎\",\"自立\",IF(CF95=\"○\",\"見守り\",IF(CF95=\"△\",\"一部介助\",IF(CF95=\"×\",\"全介助\",\"\")))))","v":""},null,null,null,{"$f":"IF(CH95=\"\",1,0)","v":1},null,null,null,"急性期",{"$f":"IF($BX$8=FALSE,IF(CO95=0,FALSE,IF(CO95<BX$1,TRUE,FALSE)))","v":false}]
[null,null,null,null,null,null,null,null,null,null,null,null,null,null,null,null,null,null,null,null,null,null,null,null,null,null,null,null,null,null,null,null,null,null,null,null,null,null,null,null,null,null,null,null,null,null,null,null,null,null,null,null,null,null,null,null,null,null,null,null,null,null,null,null,null,null,null,null,null,null,null,null,null,null,null,null,null,null,null,96,null,"種類","車いす",false,null,{"$f":"IF(CF96=TRUE,CE96,\"\")","v":""},null,null,null,null,null,null,null,"急性期",{"$f":"IF($BX$8=FALSE,IF(CO96=0,FALSE,IF(CO96<BX$1,TRUE,FALSE)))","v":false},false]
[null,null,null,null,null,null,null,null,null,null,null,null,null,null,null,null,null,null,null,null,null,null,null,null,null,null,null,null,null,null,null,null,null,null,null,null,null,null,null,null,null,null,null,null,null,null,null,null,null,null,null,null,null,null,null,null,null,null,null,null,null,null,null,null,null,null,null,null,null,null,null,null,null,null,null,null,null,null,null,97,null,null,"歩行器等",false,null,{"$f":"IF(CF97=TRUE,CE97,\"\")","v":""},null,null,null,null,null,null,null,null,null,false]
[null,null,null,null,null,null,null,null,null,null,null,null,null,null,null,null,null,null,null,null,null,null,null,null,null,null,null,null,null,null,null,null,null,null,null,null,null,null,null,null,null,null,null,null,null,null,null,null,null,null,null,null,null,null,null,null,null,null,null,null,null,null,null,null,null,null,null,null,null,null,null,null,null,null,null,null,null,null,null,98,null,null,"シルバーカー",false,null,{"$f":"IF(CF98=TRUE,CE98,\"\")","v":""},null,null,null,null,null,null,null,null,null,false]
[null,null,null,null,null,null,null,null,null,null,null,null,null,null,null,null,null,null,null,null,null,null,null,null,null,null,null,null,null,null,null,null,null,null,null,null,null,null,null,null,null,null,null,null,null,null,null,null,null,null,null,null,null,null,null,null,null,null,null,null,null,null,null,null,null,null,null,null,null,null,null,null,null,null,null,null,null,null,null,99,null,null,"杖",false,null,{"$f":"IF(CF99=TRUE,CE99,\"\")","v":""},null,{"$f":"MID(CJ100,2,200)","v":""},null,{"$f":"IF(CJ99=\"\",1,0)","v":1},null,null,null,null,null,false]
[null,null,null,null,null,null,null,null,null,null,null,null,null,null,null,null,null,null,null,null,null,null,null,null,null,null,null,null,null,null,null,null,null,null,null,null,null,null,null,null,null,null,null,null,null,null,null,null,null,null,null,null,null,null,null,null,null,null,null,null,null,null,null,null,null,null,null,null,null,null,null,null,null,null,null,null,null,null,null,100,null,null,"未実施",false,null,{"$f":"IF(CF100=TRUE,CE100,\"\")","v":""},"計算用",{"$f":"IF(CH96<>\"\",\"，\"& CH96,\"\")& IF(CH97<>\"\",\"，\"& CH97,\"\")&IF(CH98<>\"\",\"，\"& CH98,\"\") &IF(CH99<>\"\",\"，\"& CH99,\"\")&IF(CH100<>\"\",\"，\"& CH100,\"\")","v":""},null,null,null,null,null,null,null,false]
[null,null,null,null,null,null,null,null,null,null,null,null,null,null,null,null,null,null,null,null,null,null,null,null,null,null,null,null,null,null,null,null,null,null,null,null,null,null,null,null,null,null,null,null,null,null,null,null,null,null,null,null,null,null,null,null,null,null,null,null,null,null,null,null,null,null,null,null,null,null,null,null,null,null,null,null,null,null,null,101,null,"訓練室",null,{"$f":"C28","v":0},"◎自立　○見守り　△一部介助　×全介助",{"$f":"IF(CF101=\"\",\"\",IF(CF101=\"◎\",\"自立\",IF(CF101=\"○\",\"見守り\",IF(CF101=\"△\",\"一部介助\",IF(CF101=\"×\",\"全介助\",\"\")))))","v":""},null,null,null,{"$f":"IF(CH101=\"\",1,0)","v":1},null,null,null,"急性期",{"$f":"IF($BX$8=FALSE,IF(CO101=0,FALSE,IF(CO101<BX$1,TRUE,FALSE)))","v":false}]
[null,null,null,null,null,null,null,null,null,null,null,null,null,null,null,null,null,null,null,null,null,null,null,null,null,null,null,null,null,null,null,null,null,null,null,null,null,null,null,null,null,null,null,null,null,null,null,null,null,null,null,null,null,null,null,null,null,null,null,null,null,null,null,null,null,null,null,null,null,null,null,null,null,null,null,null,null,null,null,102,null,"種類","平行棒",false,null,{"$f":"IF(CF102=TRUE,CE102,\"\")","v":""},null,null,null,null,null,null,null,"急性期",{"$f":"IF($BX$8=FALSE,IF(CO102=0,FALSE,IF(CO102<BX$1,TRUE,FALSE)))","v":false},false]
[null,null,null,null,null,null,null,null,null,null,null,null,null,null,null,null,null,null,null,null,null,null,null,null,null,null,null,null,null,null,null,null,null,null,null,null,null,null,null,null,null,null,null,null,null,null,null,null,null,null,null,null,null,null,null,null,null,null,null,null,null,null,null,null,null,null,null,null,null,null,null,null,null,null,null,null,null,null,null,103,null,null,"歩行器等",false,null,{"$f":"IF(CF103=TRUE,CE103,\"\")","v":""},null,null,null,null,null,null,null,null,null,false]
[null,null,null,null,null,null,null,null,null,null,null,null,null,null,null,null,null,null,null,null,null,null,null,null,null,null,null,null,null,null,null,null,null,null,null,null,null,null,null,null,null,null,null,null,null,null,null,null,null,null,null,null,null,null,null,null,null,null,null,null,null,null,null,null,null,null,null,null,null,null,null,null,null,null,null,null,null,null,null,104,null,null,"シルバーカー",false,null,{"$f":"IF(CF104=TRUE,CE104,\"\")","v":""},null,null,null,null,null,null,null,null,null,false]
[null,null,null,null,null,null,null,null,null,null,null,null,null,null,null,null,null,null,null,null,null,null,null,null,null,null,null,null,null,null,null,null,null,null,null,null,null,null,null,null,null,null,null,null,null,null,null,null,null,null,null,null,null,null,null,null,null,null,null,null,null,null,null,null,null,null,null,null,null,null,null,null,null,null,null,null,null,null,null,105,null,null,"杖",false,null,{"$f":"IF(CF105=TRUE,CE105,\"\")","v":""},null,{"$f":"MID(CJ106,2,200)","v":""},null,{"$f":"IF(CJ105=\"\",1,0)","v":1},null,null,null,null,null,false]
[null,null,null,null,null,null,null,null,null,null,null,null,null,null,null,null,null,null,null,null,null,null,null,null,null,null,null,null,null,null,null,null,null,null,null,null,null,null,null,null,null,null,null,null,null,null,null,null,null,null,null,null,null,null,null,null,null,null,null,null,null,null,null,null,null,null,null,null,null,null,null,null,null,null,null,null,null,null,null,106,null,null,"未実施",false,null,{"$f":"IF(CF106=TRUE,CE106,\"\")","v":""},"計算用",{"$f":"IF(CH102<>\"\",\"，\"& CH102,\"\")& IF(CH103<>\"\",\"，\"& CH103,\"\")&IF(CH104<>\"\",\"，\"& CH104,\"\") &IF(CH105<>\"\",\"，\"& CH105,\"\")&IF(CH106<>\"\",\"，\"& CH106,\"\")","v":""},null,null,null,null,null,null,null,false]
[null,null,null,null,null,null,null,null,null,null,null,null,null,null,null,null,null,null,null,null,null,null,null,null,null,null,null,null,null,null,null,null,null,null,null,null,null,null,null,null,null,null,null,null,null,null,null,null,null,null,null,null,null,null,null,null,null,null,null,null,null,null,null,null,null,null,null,null,null,null,null,null,null,null,null,null,null,null,null,107,"筋力低下","有無",null,0,"1:無 2:有",{"$f":"IF(CF107<>\"\",LOOKUP(CF107,{0,1,2},{\"\",\"無\",\"有\"}),\"\")","v":""},null,null,null,{"$f":"IF(CH107=\"\",1,0)","v":1},null,null,null,"急性期",{"$f":"IF($BX$8=FALSE,IF(CO107=0,FALSE,IF(CO107<BX$1,TRUE,FALSE)))","v":false},0]
[null,null,null,null,null,null,null,null,null,null,null,null,null,null,null,null,null,null,null,null,null,null,null,null,null,null,null,null,null,null,null,null,null,null,null,null,null,null,null,null,null,null,null,null,null,null,null,null,null,null,null,null,null,null,null,null,null,null,null,null,null,null,null,null,null,null,null,null,null,null,null,null,null,null,null,null,null,null,null,108,null,"部位",null,{"$f":"L29","v":0},null,{"$f":"IF(CF108=0,\"\",CF108)","v":""},null,null,null,{"$f":"IF(CF107=2,IF(CH108=\"\",1,0),0)","v":0},null,null,null,"急性期",false]
[null,null,null,null,null,null,null,null,null,null,null,null,null,null,null,null,null,null,null,null,null,null,null,null,null,null,null,null,null,null,null,null,null,null,null,null,null,null,null,null,null,null,null,null,null,null,null,null,null,null,null,null,null,null,null,null,null,null,null,null,null,null,null,null,null,null,null,null,null,null,null,null,null,null,null,null,null,null,null,109,null,"程度",null,0,"1:重度 2:中度 3:軽度",{"$f":"IF(CF109<>\"\",LOOKUP(CF109,{0,1,2,3},{\"\",\"重度\",\"中度\",\"軽度\"}),\"\")","v":""},null,null,null,{"$f":"IF(CF107=2,IF(CH109=\"\",1,0),0)","v":0},null,null,null,"急性期",false,0]
[null,null,null,null,null,null,null,null,null,null,null,null,null,null,null,null,null,null,null,null,null,null,null,null,null,null,null,null,null,null,null,null,null,null,null,null,null,null,null,null,null,null,null,null,null,null,null,null,null,null,null,null,null,null,null,null,null,null,null,null,null,null,null,null,null,null,null,null,null,null,null,null,null,null,null,null,null,null,null,110,"可動域制限","有無",null,0,"1:無 2:有",{"$f":"IF(CF110<>\"\",LOOKUP(CF110,{0,1,2},{\"\",\"無\",\"有\"}),\"\")","v":""},null,null,null,{"$f":"IF(CH110=\"\",1,0)","v":1},null,null,null,"急性期",false,0]
[null,null,null,null,null,null,null,null,null,null,null,null,null,null,null,null,null,null,null,null,null,null,null,null,null,null,null,null,null,null,null,null,null,null,null,null,null,null,null,null,null,null,null,null,null,null,null,null,null,null,null,null,null,null,null,null,null,null,null,null,null,null,null,null,null,null,null,null,null,null,null,null,null,null,null,null,null,null,null,111,null,"部位",null,{"$f":"L30","v":0},null,{"$f":"IF(CF111=0,\"\",CF111)","v":""},null,null,null,{"$f":"IF(CF110=2,IF(CH111=\"\",1,0),0)","v":0},null,null,null,"急性期",false]
[null,null,null,null,null,null,null,null,null,null,null,null,null,null,null,null,null,null,null,null,null,null,null,null,null,null,null,null,null,null,null,null,null,null,null,null,null,null,null,null,null,null,null,null,null,null,null,null,null,null,null,null,null,null,null,null,null,null,null,null,null,null,null,null,null,null,null,null,null,null,null,null,null,null,null,null,null,null,null,112,null,"その他テキスト",null,{"$f":"N30","v":0},null,{"$f":"IF(CF112=0,\"\",CF112)","v":""},null,null,null,{"$f":"IF(CF111=\"他：\",IF(CH112=\"\",1,0),0)","v":0},null,null,null,"急性期",false]
[null,null,null,null,null,null,null,null,null,null,null,null,null,null,null,null,null,null,null,null,null,null,null,null,null,null,null,null,null,null,null,null,null,null,null,null,null,null,null,null,null,null,null,null,null,null,null,null,null,null,null,null,null,null,null,null,null,null,null,null,null,null,null,null,null,null,null,null,null,null,null,null,null,null,null,null,null,null,null,113,"疼痛対策","有無",null,0,"1:無 2:有",{"$f":"IF(CF113<>\"\",LOOKUP(CF113,{0,1,2},{\"\",\"無\",\"有\"}),\"\")","v":""},null,null,null,{"$f":"IF(CH113=\"\",1,0)","v":1},null,null,null,"急性期",false,0]
[null,null,null,null,null,null,null,null,null,null,null,null,null,null,null,null,null,null,null,null,null,null,null,null,null,null,null,null,null,null,null,null,null,null,null,null,null,null,null,null,null,null,null,null,null,null,null,null,null,null,null,null,null,null,null,null,null,null,null,null,null,null,null,null,null,null,null,null,null,null,null,null,null,null,null,null,null,null,null,114,null,"部位",null,{"$f":"L31","v":0},null,{"$f":"IF(CF114=0,\"\",CF114)","v":""},null,null,null,{"$f":"IF(CF113=2,IF(CH114=\"\",1,0),0)","v":0},null,null,null,"急性期",false]
[null,null,null,null,null,null,null,null,null,null,null,null,null,null,null,null,null,null,null,null,null,null,null,null,null,null,null,null,null,null,null,null,null,null,null,null,null,null,null,null,null,null,null,null,null,null,null,null,null,null,null,null,null,null,null,null,null,null,null,null,null,null,null,null,null,null,null,null,null,null,null,null,null,null,null,null,null,null,null,115,null,null,"内服",false,null,{"$f":"IF(CF115=TRUE,CE115,\"\")","v":""},null,null,null,null,null,null,null,"急性期",false,false]
[null,null,null,null,null,null,null,null,null,null,null,null,null,null,null,null,null,null,null,null,null,null,null,null,null,null,null,null,null,null,null,null,null,null,null,null,null,null,null,null,null,null,null,null,null,null,null,null,null,null,null,null,null,null,null,null,null,null,null,null,null,null,null,null,null,null,null,null,null,null,null,null,null,null,null,null,null,null,null,116,null,null,"坐薬",false,null,{"$f":"IF(CF116=TRUE,CE116,\"\")","v":""},null,null,null,null,null,null,null,null,null,false]
[null,null,null,null,null,null,null,null,null,null,null,null,null,null,null,null,null,null,null,null,null,null,null,null,null,null,null,null,null,null,null,null,null,null,null,null,null,null,null,null,null,null,null,null,null,null,null,null,null,null,null,null,null,null,null,null,null,null,null,null,null,null,null,null,null,null,null,null,null,null,null,null,null,null,null,null,null,null,null,117,null,null,"注射",false,null,{"$f":"IF(CF117=TRUE,CE117,\"\")","v":""},null,null,null,null,null,null,null,null,null,false]
[null,null,null,null,null,null,null,null,null,null,null,null,null,null,null,null,null,null,null,null,null,null,null,null,null,null,null,null,null,null,null,null,null,null,null,null,null,null,null,null,null,null,null,null,null,null,null,null,null,null,null,null,null,null,null,null,null,null,null,null,null,null,null,null,null,null,null,null,null,null,null,null,null,null,null,null,null,null,null,118,null,null,"外用薬",false,null,{"$f":"IF(CF118=TRUE,CE118,\"\")","v":""},null,null,null,null,null,null,null,null,null,false]
[null,null,null,null,null,null,null,null,null,null,null,null,null,null,null,null,null,null,null,null,null,null,null,null,null,null,null,null,null,null,null,null,null,null,null,null,null,null,null,null,null,null,null,null,null,null,null,null,null,null,null,null,null,null,null,null,null,null,null,null,null,null,null,null,null,null,null,null,null,null,null,null,null,null,null,null,null,null,null,119,null,null,"テキスト",{"$f":"S32","v":0},null,{"$f":"IF(CF119=0,\"\",CF119)","v":""},null,{"$f":"MID(CJ120,2,200)","v":""},null,{"$f":"IF(CF118=TRUE,IF(CH119=\"\",1,0),0)","v":0},null,null,null,"急性期",{"$f":"IF($BX$8=FALSE,IF(CO119=0,FALSE,IF(CO119<BX$1,TRUE,FALSE)))","v":false}]
[null,null,null,null,null,null,null,null,null,null,null,null,null,null,null,null,null,null,null,null,null,null,null,null,null,null,null,null,null,null,null,null,null,null,null,null,null,null,null,null,null,null,null,null,null,null,null,null,null,null,null,null,null,null,null,null,null,null,null,null,null,null,null,null,null,null,null,null,null,null,null,null,null,null,null,null,null,null,null,120,null,null,"対策不要（自制内）",false,null,{"$f":"IF(CF120=TRUE,CE120,\"\")","v":""},"計算用",{"$f":"IF(CH115<>\"\",\"，\"& CH115,\"\")& IF(CH116<>\"\",\"，\"& CH116,\"\")& IF(CH117<>\"\",\"，\"& CH117,\"\")& IF(CH118<>\"\",\"，\" & CH118 & IF(CH119<>\"\",\"(\" & CH119 & \")\",\"\"),\"\") &IF(CH120<>\"\",\"，\"& CH120,\"\")","v":""},null,{"$f":"IF(CF113=2,IF(CJ119=\"\",1,0),0)","v":0},null,null,null,null,null,false]
[null,null,null,null,null,null,null,null,null,null,null,null,null,null,null,null,null,null,null,null,null,null,null,null,null,null,null,null,null,null,null,null,null,null,null,null,null,null,null,null,null,null,null,null,null,null,null,null,null,null,null,null,null,null,null,null,null,null,null,null,null,null,null,null,null,null,null,null,null,null,null,null,null,null,null,null,null,null,null,121,"内科管理","有無",null,0,"1:無 2:有",{"$f":"IF(CF121<>\"\",LOOKUP(CF121,{0,1,2},{\"\",\"無\",\"有\"}),\"\")","v":""},null,null,null,{"$f":"IF(CH121=\"\",1,0)","v":1},null,null,null,"急性期",{"$f":"IF($BX$8=FALSE,IF(CO121=0,FALSE,IF(CO121<BX$1,TRUE,FALSE)))","v":false},0]
[null,null,null,null,null,null,null,null,null,null,null,null,null,null,null,null,null,null,null,null,null,null,null,null,null,null,null,null,null,null,null,null,null,null,null,null,null,null,null,null,null,null,null,null,null,null,null,null,null,null,null,null,null,null,null,null,null,null,null,null,null,null,null,null,null,null,null,null,null,null,null,null,null,null,null,null,null,null,null,122,null,"テキスト",null,{"$f":"J34","v":0},null,{"$f":"IF(CF122=0,\"\",\"（\" & CF122 & \"）\" )","v":""},null,null,null,{"$f":"IF(CF121=2,IF(CH122=\"\",1,0),0)","v":0},null,null,null,"急性期",false]
[null,null,null,null,null,null,null,null,null,null,null,null,null,null,null,null,null,null,null,null,null,null,null,null,null,null,null,null,null,null,null,null,null,null,null,null,null,null,null,null,null,null,null,null,null,null,null,null,null,null,null,null,null,null,null,null,null,null,null,null,null,null,null,null,null,null,null,null,null,null,null,null,null,null,null,null,null,null,null,123,"医療処置","有無",null,0,"1:無 2:有",{"$f":"IF(CF123<>\"\",LOOKUP(CF123,{0,1,2},{\"\",\"無\",\"有\"}),\"\")","v":""},null,null,null,{"$f":"IF(CH123=\"\",1,0)","v":1},null,null,null,"急性期",false,0]
[null,null,null,null,null,null,null,null,null,null,null,null,null,null,null,null,null,null,null,null,null,null,null,null,null,null,null,null,null,null,null,null,null,null,null,null,null,null,null,null,null,null,null,null,null,null,null,null,null,null,null,null,null,null,null,null,null,null,null,null,null,null,null,null,null,null,null,null,null,null,null,null,null,null,null,null,null,null,null,124,null,"テキスト",null,{"$f":"J35","v":0},null,{"$f":"IF(CF124=0,\"\",\"（\" & CF124 & \"）\" )","v":""},null,null,null,{"$f":"IF(CF123=2,IF(CH124=\"\",1,0),0)","v":0},null,null,null,"急性期",false]
[null,null,null,null,null,null,null,null,null,null,null,null,null,null,null,null,null,null,null,null,null,null,null,null,null,null,null,null,null,null,null,null,null,null,null,null,null,null,null,null,null,null,null,null,null,null,null,null,null,null,null,null,null,null,null,null,null,null,null,null,null,null,null,null,null,null,null,null,null,null,null,null,null,null,null,null,null,null,null,125,"検査","有無",null,0,"1:無 2:有",{"$f":"IF(CF125<>\"\",LOOKUP(CF125,{0,1,2},{\"\",\"無\",\"有\"}),\"\")","v":""},null,null,null,{"$f":"IF(CH125=\"\",1,0)","v":1},null,null,null,"急性期",false,0]
[null,null,null,null,null,null,null,null,null,null,null,null,null,null,null,null,null,null,null,null,null,null,null,null,null,null,null,null,null,null,null,null,null,null,null,null,null,null,null,null,null,null,null,null,null,null,null,null,null,null,null,null,null,null,null,null,null,null,null,null,null,null,null,null,null,null,null,null,null,null,null,null,null,null,null,null,null,null,null,126,null,"テキスト",null,{"$f":"J36","v":0},null,{"$f":"IF(CF126=0,\"\",\"（\" & CF126 & \"）\" )","v":""},null,null,null,{"$f":"IF(CF125=2,IF(CH126=\"\",1,0),0)","v":0},null,null,null,"急性期",false]
[null,null,null,null,null,null,null,null,null,null,null,null,null,null,null,null,null,null,null,null,null,null,null,null,null,null,null,null,null,null,null,null,null,null,null,null,null,null,null,null,null,null,null,null,null,null,null,null,null,null,null,null,null,null,null,null,null,null,null,null,null,null,null,null,null,null,null,null,null,null,null,null,null,null,null,null,null,null,null,127,"食事","種類",null,0,"1:普通 2:治療食",{"$f":"IF(CF127<>\"\",LOOKUP(CF127,{0,1,2},{\"\",\"普通\",\"治療食\"}),\"\")","v":""},null,null,null,{"$f":"IF(CH127=\"\",1,0)","v":1},null,null,null,"急性期",false,0]
[null,null,null,null,null,null,null,null,null,null,null,null,null,null,null,null,null,null,null,null,null,null,null,null,null,null,null,null,null,null,null,null,null,null,null,null,null,null,null,null,null,null,null,null,null,null,null,null,null,null,null,null,null,null,null,null,null,null,null,null,null,null,null,null,null,null,null,null,null,null,null,null,null,null,null,null,null,null,null,128,null,"テキスト",null,{"$f":"L37","v":0},null,{"$f":"IF(CF128=0,\"\",\"（\" & CF128 & \"）\" )","v":""},null,null,null,{"$f":"IF(CF127=2,IF(CH128=\"\",1,0),0)","v":0},null,null,null,"急性期",false]
[null,null,null,null,null,null,null,null,null,null,null,null,null,null,null,null,null,null,null,null,null,null,null,null,null,null,null,null,null,null,null,null,null,null,null,null,null,null,null,null,null,null,null,null,null,null,null,null,null,null,null,null,null,null,null,null,null,null,null,null,null,null,null,null,null,null,null,null,null,null,null,null,null,null,null,null,null,null,null,129,null,"特別な栄養管理","有無",0,"1:無 2:有",{"$f":"IF(CF129<>\"\",LOOKUP(CF129,{0,1,2},{\"\",\"無\",\"有\"}),\"\")","v":""}]
[null,null,null,null,null,null,null,null,null,null,null,null,null,null,null,null,null,null,null,null,null,null,null,null,null,null,null,null,null,null,null,null,null,null,null,null,null,null,null,null,null,null,null,null,null,null,null,null,null,null,null,null,null,null,null,null,null,null,null,null,null,null,null,null,null,null,null,null,null,null,null,null,null,null,null,null,null,null,null,130,"排泄","種類",null,0,"1:トイレ 2:P-トイレ 3:おむつ 4:その他",{"$f":"IF(CF130<>\"\",LOOKUP(CF130,{0,1,2,3,4},{\"\",\"トイレ\",\"P-トイレ\",\"おむつ\",\"その他\"}),\"\")","v":""},null,null,null,{"$f":"IF(CH130=\"\",1,0)","v":1},null,null,null,"急性期",false,0]
[null,null,null,null,null,null,null,null,null,null,null,null,null,null,null,null,null,null,null,null,null,null,null,null,null,null,null,null,null,null,null,null,null,null,null,null,null,null,null,null,null,null,null,null,null,null,null,null,null,null,null,null,null,null,null,null,null,null,null,null,null,null,null,null,null,null,null,null,null,null,null,null,null,null,null,null,null,null,null,131,null,null,"テキスト",{"$f":"S39","v":0},null,{"$f":"IF(CF131=0,\"\",\"（\" & CF131 & \"）\" )","v":""},null,null,null,{"$f":"IF(CF130=4,IF(CH131=\"\",1,0),0)","v":0},null,null,null,"急性期",false]
[null,null,null,null,null,null,null,null,null,null,null,null,null,null,null,null,null,null,null,null,null,null,null,null,null,null,null,null,null,null,null,null,null,null,null,null,null,null,null,null,null,null,null,null,null,null,null,null,null,null,null,null,null,null,null,null,null,null,null,null,null,null,null,null,null,null,null,null,null,null,null,null,null,null,null,null,null,null,null,132,null,"自立度",null,0,"1:自立 2:一部介助 3:全介助",{"$f":"IF(CF132<>\"\",LOOKUP(CF132,{0,1,2,3},{\"\",\"自立\",\"一部介助\",\"全介助\"}),\"\")","v":""},null,null,null,{"$f":"IF(CH132=\"\",1,0)","v":1},null,null,null,"急性期",false,0]
[null,null,null,null,null,null,null,null,null,null,null,null,null,null,null,null,null,null,null,null,null,null,null,null,null,null,null,null,null,null,null,null,null,null,null,null,null,null,null,null,null,null,null,null,null,null,null,null,null,null,null,null,null,null,null,null,null,null,null,null,null,null,null,null,null,null,null,null,null,null,null,null,null,null,null,null,null,null,null,133,"清潔","種類",null,0,"1:入浴 2:シャワー 3:清拭",{"$f":"IF(CF133<>\"\",LOOKUP(CF133,{0,1,2,3},{\"\",\"入浴\",\"シャワー\",\"清拭\"}),\"\")","v":""},null,null,null,{"$f":"IF(CH133=\"\",1,0)","v":1},null,null,null,"急性期",false,0]
[null,null,null,null,null,null,null,null,null,null,null,null,null,null,null,null,null,null,null,null,null,null,null,null,null,null,null,null,null,null,null,null,null,null,null,null,null,null,null,null,null,null,null,null,null,null,null,null,null,null,null,null,null,null,null,null,null,null,null,null,null,null,null,null,null,null,null,null,null,null,null,null,null,null,null,null,null,null,null,134,null,"自立度",null,0,"1:自立 2:一部介助 3:全介助",{"$f":"IF(CF134<>\"\",LOOKUP(CF134,{0,1,2,3},{\"\",\"自立\",\"一部介助\",\"全介助\"}),\"\")","v":""},null,null,null,{"$f":"IF(CH134=\"\",1,0)","v":1},null,null,null,"急性期",false,0]
[null,null,null,null,null,null,null,null,null,null,null,null,null,null,null,null,null,null,null,null,null,null,null,null,null,null,null,null,null,null,null,null,null,null,null,null,null,null,null,null,null,null,null,null,null,null,null,null,null,null,null,null,null,null,null,null,null,null,null,null,null,null,null,null,null,null,null,null,null,null,null,null,null,null,null,null,null,null,null,135,"認知症","有無",null,0,"1:無 2:有",{"$f":"IF(CF135<>\"\",LOOKUP(CF135,{0,1,2},{\"\",\"無\",\"有\"}),\"\")","v":""},null,null,null,{"$f":"IF(CH135=\"\",1,0)","v":1},null,null,null,"急性期",false,0]
[null,null,null,null,null,null,null,null,null,null,null,null,null,null,null,null,null,null,null,null,null,null,null,null,null,null,null,null,null,null,null,null,null,null,null,null,null,null,null,null,null,null,null,null,null,null,null,null,null,null,null,null,null,null,null,null,null,null,null,null,null,null,null,null,null,null,null,null,null,null,null,null,null,null,null,null,null,null,null,136,null,"周辺症状なし",null,false,null,{"$f":"IF(CF136=TRUE,CD136,\"\")","v":""},null,null,null,null,null,null,null,"急性期",false,false]
[null,null,null,null,null,null,null,null,null,null,null,null,null,null,null,null,null,null,null,null,null,null,null,null,null,null,null,null,null,null,null,null,null,null,null,null,null,null,null,null,null,null,null,null,null,null,null,null,null,null,null,null,null,null,null,null,null,null,null,null,null,null,null,null,null,null,null,null,null,null,null,null,null,null,null,null,null,null,null,137,null,"徘徊",null,false,null,{"$f":"IF(CF137=TRUE,CD137,\"\")","v":""},null,null,null,null,null,null,null,null,null,false]
[null,null,null,null,null,null,null,null,null,null,null,null,null,null,null,null,null,null,null,null,null,null,null,null,null,null,null,null,null,null,null,null,null,null,null,null,null,null,null,null,null,null,null,null,null,null,null,null,null,null,null,null,null,null,null,null,null,null,null,null,null,null,null,null,null,null,null,null,null,null,null,null,null,null,null,null,null,null,null,138,null,"暴言",null,false,null,{"$f":"IF(CF138=TRUE,CD138,\"\")","v":""},null,null,null,null,null,null,null,null,null,false]
[null,null,null,null,null,null,null,null,null,null,null,null,null,null,null,null,null,null,null,null,null,null,null,null,null,null,null,null,null,null,null,null,null,null,null,null,null,null,null,null,null,null,null,null,null,null,null,null,null,null,null,null,null,null,null,null,null,null,null,null,null,null,null,null,null,null,null,null,null,null,null,null,null,null,null,null,null,null,null,139,null,"介護抵抗",null,false,null,{"$f":"IF(CF139=TRUE,CD139,\"\")","v":""},null,{"$f":"MID(CJ140,2,200)","v":""},null,null,null,null,null,null,null,false]
[null,null,null,null,null,null,null,null,null,null,null,null,null,null,null,null,null,null,null,null,null,null,null,null,null,null,null,null,null,null,null,null,null,null,null,null,null,null,null,null,null,null,null,null,null,null,null,null,null,null,null,null,null,null,null,null,null,null,null,null,null,null,null,null,null,null,null,null,null,null,null,null,null,null,null,null,null,null,null,140,null,"その他",null,false,null,{"$f":"IF(CF140=TRUE,CD140,\"\")","v":""},"計算用",{"$f":"IF(CH136<>\"\",\"，\"& CH136,\"\")& IF(CH137<>\"\",\"，\"& CH137,\"\")&IF(CH138<>\"\",\"，\"& CH138,\"\") &IF(CH139<>\"\",\"，\"& CH139,\"\")&IF(CH140<>\"\",\"，\"& CH140,\"\")","v":""},null,{"$f":"IF(CF135=2,IF(CJ139=\"\",1,0),0)","v":0},null,null,null,null,null,false]
[null,null,null,null,null,null,null,null,null,null,null,null,null,null,null,null,null,null,null,null,null,null,null,null,null,null,null,null,null,null,null,null,null,null,null,null,null,null,null,null,null,null,null,null,null,null,null,null,null,null,null,null,null,null,null,null,null,null,null,null,null,null,null,null,null,null,null,null,null,null,null,null,null,null,null,null,null,null,null,141,null,"HDS-R",null,{"$f":"IF(H44=\"\",\"\",H44)","v":""},null,{"$f":"CF141","v":""},null,null,null,{"$f":"IF(CH141=\"\",1,0)","v":1},null,null,null,"急性期",{"$f":"IF($BX$8=FALSE,IF(CO141=0,FALSE,IF(CO141<BX$1,TRUE,FALSE)))","v":false}]
[null,null,null,null,null,null,null,null,null,null,null,null,null,null,null,null,null,null,null,null,null,null,null,null,null,null,null,null,null,null,null,null,null,null,null,null,null,null,null,null,null,null,null,null,null,null,null,null,null,null,null,null,null,null,null,null,null,null,null,null,null,null,null,null,null,null,null,null,null,null,null,null,null,null,null,null,null,null,null,142,"10m歩行","秒数",null,{"$f":"E45","v":0},null,{"$f":"IF(CF142=0,\"\",CF142 & \"秒\")","v":""},null,null,null,{"$f":"IF(CH142=\"\",1,0)","v":1},null,null,null,"急性期",false]
[null,null,null,null,null,null,null,null,null,null,null,null,null,null,null,null,null,null,null,null,null,null,null,null,null,null,null,null,null,null,null,null,null,null,null,null,null,null,null,null,null,null,null,null,null,null,null,null,null,null,null,null,null,null,null,null,null,null,null,null,null,null,null,null,null,null,null,null,null,null,null,null,null,null,null,null,null,null,null,143,null,"手段",null,0,"1:独歩 2:杖 3:シルバーカー 4:歩行器等",{"$f":"IF(CF143<>\"\",LOOKUP(CF143,{0,1,2,3,4},{\"\",\"（手段：独歩）\",\"（手段：杖）\",\"（手段：シルバーカー）\",\"（手段：歩行器等）\"}),\"\")","v":""},null,null,null,{"$f":"IF(CH143=\"\",1,0)","v":1},null,null,null,"急性期",false,0]
[null,null,null,null,null,null,null,null,null,null,null,null,null,null,null,null,null,null,null,null,null,null,null,null,null,null,null,null,null,null,null,null,null,null,null,null,null,null,null,null,null,null,null,null,null,null,null,null,null,null,null,null,null,null,null,null,null,null,null,null,null,null,null,null,null,null,null,null,null,null,null,null,null,null,null,null,null,null,null,144,null,"実施",null,0,"1:実施 2:未実施",{"$f":"IF(CF144<>\"\",LOOKUP(CF144,{0,1,2},{\"\",\"実施\",\"未実施\"}),\"\")","v":""},null,null,null,{"$f":"IF(CH144=\"\",1,0)","v":1},null,null,null,"急性期",false,0]
[null,null,null,null,null,null,null,null,null,null,null,null,null,null,null,null,null,null,null,null,null,null,null,null,null,null,null,null,null,null,null,null,null,null,null,null,null,null,null,null,null,null,null,null,null,null,null,null,null,null,null,null,null,null,null,null,null,null,null,null,null,null,null,null,null,null,null,null,null,null,null,null,null,null,null,null,null,null,null,145,null,"実施日",null,{"$f":"H46","v":"00:00:00"},null,{"$f":"IF(CF145=0,\"\",CF145)","v":""},null,null,null,{"$f":"IF(CF144=1,IF(CH145=\"\",1,0),0)","v":0},null,null,null,"急性期",false]
[null,null,null,null,null,null,null,null,null,null,null,null,null,null,null,null,null,null,null,null,null,null,null,null,null,null,null,null,null,null,null,null,null,null,null,null,null,null,null,null,null,null,null,null,null,null,null,null,null,null,null,null,null,null,null,null,null,null,null,null,null,null,null,null,null,null,null,null,null,null,null,null,null,null,null,null,null,null,null,146,"経過中転倒","有無",null,0,"1:無 2:有",{"$f":"IF(CF146<>\"\",LOOKUP(CF146,{0,1,2},{\"\",\"無\",\"有\"}),\"\")","v":""},null,null,null,{"$f":"IF(CH146=\"\",1,0)","v":1},null,null,null,"急性期",false,0]
[null,null,null,null,null,null,null,null,null,null,null,null,null,null,null,null,null,null,null,null,null,null,null,null,null,null,null,null,null,null,null,null,null,null,null,null,null,null,null,null,null,null,null,null,null,null,null,null,null,null,null,null,null,null,null,null,null,null,null,null,null,null,null,null,null,null,null,null,null,null,null,null,null,null,null,null,null,null,null,147,"離床センサー","有無",null,0,"1:無 2:有",{"$f":"IF(CF147<>\"\",LOOKUP(CF147,{0,1,2},{\"\",\"無\",\"有\"}),\"\")","v":""},null,null,null,{"$f":"IF(CH147=\"\",1,0)","v":1},null,null,null,"急性期",false,0]
[null,null,null,null,null,null,null,null,null,null,null,null,null,null,null,null,null,null,null,null,null,null,null,null,null,null,null,null,null,null,null,null,null,null,null,null,null,null,null,null,null,null,null,null,null,null,null,null,null,null,null,null,null,null,null,null,null,null,null,null,null,null,null,null,null,null,null,null,null,null,null,null,null,null,null,null,null,null,null,148,"手続き","状況",null,0,"1:手続中 2:未申請 3:対象外",{"$f":"IF(CF148<>\"\",LOOKUP(CF148,{0,1,2,3},{\"\",\"手続中\",\"未申請\",\"対象外\"}),\"\")","v":""},null,null,null,{"$f":"IF(CH148=\"\",1,0)","v":1},null,null,null,"急性期",false,0]
[null,null,null,null,null,null,null,null,null,null,null,null,null,null,null,null,null,null,null,null,null,null,null,null,null,null,null,null,null,null,null,null,null,null,null,null,null,null,null,null,null,null,null,null,null,null,null,null,null,null,null,null,null,null,null,null,null,null,null,null,null,null,null,null,null,null,null,null,null,null,null,null,null,null,null,null,null,null,null,149,null,"日時",null,{"$f":"I49","v":"00:00:00"},null,{"$f":"IF(CF149=0,\"\",TEXT(CF149,\"yy年mm月\"))","v":""},null,null,null,{"$f":"IF(CF148=1,IF(CH149=\"\",1,0),0)","v":0},null,null,null,"急性期",false]
[null,null,null,null,null,null,null,null,null,null,null,null,null,null,null,null,null,null,null,null,null,null,null,null,null,null,null,null,null,null,null,null,null,null,null,null,null,null,null,null,null,null,null,null,null,null,null,null,null,null,null,null,null,null,null,null,null,null,null,null,null,null,null,null,null,null,null,null,null,null,null,null,null,null,null,null,null,null,null,150,null,"級",null,{"$f":"M49","v":0},null,{"$f":"IF(CF150=0,\"\",CF150)","v":""},null,null,null,{"$f":"IF(CF148=1,IF(CH150=\"\",1,0),0)","v":0},null,null,null,"急性期",false]
[null,null,null,null,null,null,null,null,null,null,null,null,null,null,null,null,null,null,null,null,null,null,null,null,null,null,null,null,null,null,null,null,null,null,null,null,null,null,null,null,null,null,null,null,null,null,null,null,null,null,null,null,null,null,null,null,null,null,null,null,null,null,null,null,null,null,null,null,null,null,null,null,null,null,null,null,null,null,null,151,"骨粗しょう症","ビスホスホネート",null,false,null,{"$f":"IF(CF151=TRUE,CD151,\"\")","v":""},null,null,null,null,null,null,null,"急性期",false,false]
[null,null,null,null,null,null,null,null,null,null,null,null,null,null,null,null,null,null,null,null,null,null,null,null,null,null,null,null,null,null,null,null,null,null,null,null,null,null,null,null,null,null,null,null,null,null,null,null,null,null,null,null,null,null,null,null,null,null,null,null,null,null,null,null,null,null,null,null,null,null,null,null,null,null,null,null,null,null,null,152,null,"SERM",null,false,null,{"$f":"IF(CF152=TRUE,CD152,\"\")","v":""},null,null,null,null,null,null,null,null,null,false]
[null,null,null,null,null,null,null,null,null,null,null,null,null,null,null,null,null,null,null,null,null,null,null,null,null,null,null,null,null,null,null,null,null,null,null,null,null,null,null,null,null,null,null,null,null,null,null,null,null,null,null,null,null,null,null,null,null,null,null,null,null,null,null,null,null,null,null,null,null,null,null,null,null,null,null,null,null,null,null,153,null,"Vit.D 製剤",null,false,null,{"$f":"IF(CF153=TRUE,CD153,\"\")","v":""},null,{"$f":"MID(CJ154,2,200)","v":""},null,{"$f":"IF(CF15=2,IF(CJ153=\"\",1,0),0)","v":0},null,null,null,null,null,false]
[null,null,null,null,null,null,null,null,null,null,null,null,null,null,null,null,null,null,null,null,null,null,null,null,null,null,null,null,null,null,null,null,null,null,null,null,null,null,null,null,null,null,null,null,null,null,null,null,null,null,null,null,null,null,null,null,null,null,null,null,null,null,null,null,null,null,null,null,null,null,null,null,null,null,null,null,null,null,null,154,null,"その他",null,false,null,{"$f":"IF(CF154=TRUE,CD154,\"\")","v":""},"計算用",{"$f":"IF(CH151<>\"\",CHAR(10)& CH151,\"\")&IF(CH152<>\"\",CHAR(10)& CH152,\"\") &IF(CH153<>\"\",CHAR(10)& CH153,\"\")&IF(CH154<>\"\",CHAR(10)& CH154,\"\")","v":""},null,null,null,null,null,null,null,false]
[null,null,null,null,null,null,null,null,null,null,null,null,null,null,null,null,null,null,null,null,null,null,null,null,null,null,null,null,null,null,null,null,null,null,null,null,null,null,null,null,null,null,null,null,null,null,null,null,null,null,null,null,null,null,null,null,null,null,null,null,null,null,null,null,null,null,null,null,null,null,null,null,null,null,null,null,null,null,null,155,"回復期病院名",null,null,{"$f":"AA18","v":0},null,{"$f":"IF(CF155=0,\"\",CF155)","v":""},null,null,null,null,{"$f":"IF(CH155=\"\",1,0)","v":1},null,null,"回復期",{"$f":"IF($BX$9=FALSE,IF(CO155=0,FALSE,IF(CO155<BX$1,TRUE,FALSE)))","v":false}]
[null,null,null,null,null,null,null,null,null,null,null,null,null,null,null,null,null,null,null,null,null,null,null,null,null,null,null,null,null,null,null,null,null,null,null,null,null,null,null,null,null,null,null,null,null,null,null,null,null,null,null,null,null,null,null,null,null,null,null,null,null,null,null,null,null,null,null,null,null,null,null,null,null,null,null,null,null,null,null,156,"ID",null,null,{"$f":"AC20","v":0},null,"",null,null,null,null,{"$f":"IF(CH156=\"\",1,0)","v":1},null,null,"回復期",{"$f":"IF($BX$9=FALSE,IF(CO156=0,FALSE,IF(CO156<BX$1,TRUE,FALSE)))","v":false}]
[null,null,null,null,null,null,null,null,null,null,null,null,null,null,null,null,null,null,null,null,null,null,null,null,null,null,null,null,null,null,null,null,null,null,null,null,null,null,null,null,null,null,null,null,null,null,null,null,null,null,null,null,null,null,null,null,null,null,null,null,null,null,null,null,null,null,null,null,null,null,null,null,null,null,null,null,null,null,null,157,"転帰先",null,null,{"$f":"AS20","v":0},null,"",null,null,null,null,1,null,null,"回復期",false]
[null,null,null,null,null,null,null,null,null,null,null,null,null,null,null,null,null,null,null,null,null,null,null,null,null,null,null,null,null,null,null,null,null,null,null,null,null,null,null,null,null,null,null,null,null,null,null,null,null,null,null,null,null,null,null,null,null,null,null,null,null,null,null,null,null,null,null,null,null,null,null,null,null,null,null,null,null,null,null,158,"入院日",null,null,{"$f":"AF21","v":"00:00:00"},null,"",null,null,null,null,1,null,null,"回復期",false]
[null,null,null,null,null,null,null,null,null,null,null,null,null,null,null,null,null,null,null,null,null,null,null,null,null,null,null,null,null,null,null,null,null,null,null,null,null,null,null,null,null,null,null,null,null,null,null,null,null,null,null,null,null,null,null,null,null,null,null,null,null,null,null,null,null,null,null,null,null,null,null,null,null,null,null,null,null,null,null,159,"退院（転棟）日",null,null,{"$f":"AP21","v":"00:00:00"},null,"",null,null,null,null,1,null,null,"回復期",false]
[null,null,null,null,null,null,null,null,null,null,null,null,null,null,null,null,null,null,null,null,null,null,null,null,null,null,null,null,null,null,null,null,null,null,null,null,null,null,null,null,null,null,null,null,null,null,null,null,null,null,null,null,null,null,null,null,null,null,null,null,null,null,null,null,null,null,null,null,null,null,null,null,null,null,null,null,null,null,null,160,"担当者","Dr.",null,{"$f":"AG22","v":0},null,"",null,null,null,null,1,null,null,"回復期",false]
[null,null,null,null,null,null,null,null,null,null,null,null,null,null,null,null,null,null,null,null,null,null,null,null,null,null,null,null,null,null,null,null,null,null,null,null,null,null,null,null,null,null,null,null,null,null,null,null,null,null,null,null,null,null,null,null,null,null,null,null,null,null,null,null,null,null,null,null,null,null,null,null,null,null,null,null,null,null,null,161,null,"Nr.",null,{"$f":"AQ22","v":0},null,"",null,null,null,null,1,null,null,"回復期",false]
[null,null,null,null,null,null,null,null,null,null,null,null,null,null,null,null,null,null,null,null,null,null,null,null,null,null,null,null,null,null,null,null,null,null,null,null,null,null,null,null,null,null,null,null,null,null,null,null,null,null,null,null,null,null,null,null,null,null,null,null,null,null,null,null,null,null,null,null,null,null,null,null,null,null,null,null,null,null,null,162,null,"PT.OT",null,{"$f":"AG23","v":0},null,"",null,null,null,null,1,null,null,"回復期",false]
[null,null,null,null,null,null,null,null,null,null,null,null,null,null,null,null,null,null,null,null,null,null,null,null,null,null,null,null,null,null,null,null,null,null,null,null,null,null,null,null,null,null,null,null,null,null,null,null,null,null,null,null,null,null,null,null,null,null,null,null,null,null,null,null,null,null,null,null,null,null,null,null,null,null,null,null,null,null,null,163,null,"その他",null,{"$f":"AQ23","v":0},null,"",null,null,null,null,1,null,null,"回復期",false]
[null,null,null,null,null,null,null,null,null,null,null,null,null,null,null,null,null,null,null,null,null,null,null,null,null,null,null,null,null,null,null,null,null,null,null,null,null,null,null,null,null,null,null,null,null,null,null,null,null,null,null,null,null,null,null,null,null,null,null,null,null,null,null,null,null,null,null,null,null,null,null,null,null,null,null,null,null,null,null,164,"入力日",null,null,{"$f":"AH24","v":"00:00:00"},null,"",null,null,null,null,1,null,null,"回復期",false]
[null,null,null,null,null,null,null,null,null,null,null,null,null,null,null,null,null,null,null,null,null,null,null,null,null,null,null,null,null,null,null,null,null,null,null,null,null,null,null,null,null,null,null,null,null,null,null,null,null,null,null,null,null,null,null,null,null,null,null,null,null,null,null,null,null,null,null,null,null,null,null,null,null,null,null,null,null,null,null,165,"荷重制限","有無",null,0,null,{"$f":"IF(CF165<>\"\",LOOKUP(CF165,{0,1,2},{\"\",\"無\",\"有\"}),\"\")","v":""},null,null,null,null,1,null,null,"回復期",false,0]
[null,null,null,null,null,null,null,null,null,null,null,null,null,null,null,null,null,null,null,null,null,null,null,null,null,null,null,null,null,null,null,null,null,null,null,null,null,null,null,null,null,null,null,null,null,null,null,null,null,null,null,null,null,null,null,null,null,null,null,null,null,null,null,null,null,null,null,null,null,null,null,null,null,null,null,null,null,null,null,166,null,"テキスト",null,{"$f":"AJ25","v":0},null,{"$f":"IF(CF166=0,\"\",\"(\" & CF166 & \")\")","v":""},null,null,null,null,{"$f":"IF(CF165=2,IF(CH166=\"\",1,0),0)","v":0},null,null,"回復期",false]
[null,null,null,null,null,null,null,null,null,null,null,null,null,null,null,null,null,null,null,null,null,null,null,null,null,null,null,null,null,null,null,null,null,null,null,null,null,null,null,null,null,null,null,null,null,null,null,null,null,null,null,null,null,null,null,null,null,null,null,null,null,null,null,null,null,null,null,null,null,null,null,null,null,null,null,null,null,null,null,167,"歩行状態","病棟内",null,{"$f":"AC27","v":0},"◎自立　○見守り　△一部介助　×全介助",{"$f":"IF(CF167=\"\",\"\",IF(CF167=\"◎\",\"自立\",IF(CF167=\"○\",\"見守り\",IF(CF167=\"△\",\"一部介助\",IF(CF167=\"×\",\"全介助\",\"\")))))","v":""},null,null,null,null,{"$f":"IF(CH167=\"\",1,0)","v":1},null,null,"回復期",false]
[null,null,null,null,null,null,null,null,null,null,null,null,null,null,null,null,null,null,null,null,null,null,null,null,null,null,null,null,null,null,null,null,null,null,null,null,null,null,null,null,null,null,null,null,null,null,null,null,null,null,null,null,null,null,null,null,null,null,null,null,null,null,null,null,null,null,null,null,null,null,null,null,null,null,null,null,null,null,null,168,null,"種類","車いす",false,null,{"$f":"IF(CF168=TRUE,CE168,\"\")","v":""},null,null,null,null,null,null,null,"回復期",false,false]
[null,null,null,null,null,null,null,null,null,null,null,null,null,null,null,null,null,null,null,null,null,null,null,null,null,null,null,null,null,null,null,null,null,null,null,null,null,null,null,null,null,null,null,null,null,null,null,null,null,null,null,null,null,null,null,null,null,null,null,null,null,null,null,null,null,null,null,null,null,null,null,null,null,null,null,null,null,null,null,169,null,null,"歩行器等",false,null,{"$f":"IF(CF169=TRUE,CE169,\"\")","v":""},null,null,null,null,null,null,null,null,null,false]
[null,null,null,null,null,null,null,null,null,null,null,null,null,null,null,null,null,null,null,null,null,null,null,null,null,null,null,null,null,null,null,null,null,null,null,null,null,null,null,null,null,null,null,null,null,null,null,null,null,null,null,null,null,null,null,null,null,null,null,null,null,null,null,null,null,null,null,null,null,null,null,null,null,null,null,null,null,null,null,170,null,null,"シルバーカー",false,null,{"$f":"IF(CF170=TRUE,CE170,\"\")","v":""},null,null,null,null,null,null,null,null,null,false]
[null,null,null,null,null,null,null,null,null,null,null,null,null,null,null,null,null,null,null,null,null,null,null,null,null,null,null,null,null,null,null,null,null,null,null,null,null,null,null,null,null,null,null,null,null,null,null,null,null,null,null,null,null,null,null,null,null,null,null,null,null,null,null,null,null,null,null,null,null,null,null,null,null,null,null,null,null,null,null,171,null,null,"杖",false,null,{"$f":"IF(CF171=TRUE,CE171,\"\")","v":""},null,{"$f":"MID(CJ172,2,200)","v":""},null,null,{"$f":"IF(CJ171=\"\",1,0)","v":1},null,null,null,null,false]
[null,null,null,null,null,null,null,null,null,null,null,null,null,null,null,null,null,null,null,null,null,null,null,null,null,null,null,null,null,null,null,null,null,null,null,null,null,null,null,null,null,null,null,null,null,null,null,null,null,null,null,null,null,null,null,null,null,null,null,null,null,null,null,null,null,null,null,null,null,null,null,null,null,null,null,null,null,null,null,172,null,null,"独歩",false,null,{"$f":"IF(CF172=TRUE,CE172,\"\")","v":""},"計算用",{"$f":"IF(CH168<>\"\",\"，\"& CH168,\"\")& IF(CH169<>\"\",\"，\"& CH169,\"\")&IF(CH170<>\"\",\"，\"& CH170,\"\") &IF(CH171<>\"\",\"，\"& CH171,\"\")&IF(CH172<>\"\",\"，\"& CH172,\"\")","v":""},null,null,null,null,null,null,null,false]
[null,null,null,null,null,null,null,null,null,null,null,null,null,null,null,null,null,null,null,null,null,null,null,null,null,null,null,null,null,null,null,null,null,null,null,null,null,null,null,null,null,null,null,null,null,null,null,null,null,null,null,null,null,null,null,null,null,null,null,null,null,null,null,null,null,null,null,null,null,null,null,null,null,null,null,null,null,null,null,173,null,"訓練室",null,{"$f":"AC28","v":0},"◎自立　○見守り　△一部介助　×全介助",{"$f":"IF(CF173=\"\",\"\",IF(CF173=\"◎\",\"自立\",IF(CF173=\"○\",\"見守り\",IF(CF173=\"△\",\"一部介助\",IF(CF173=\"×\",\"全介助\",\"\")))))","v":""},null,null,null,null,{"$f":"IF(CH173=\"\",1,0)","v":1},null,null,"回復期",{"$f":"IF($BX$9=FALSE,IF(CO173=0,FALSE,IF(CO173<BX$1,TRUE,FALSE)))","v":false}]
[null,null,null,null,null,null,null,null,null,null,null,null,null,null,null,null,null,null,null,null,null,null,null,null,null,null,null,null,null,null,null,null,null,null,null,null,null,null,null,null,null,null,null,null,null,null,null,null,null,null,null,null,null,null,null,null,null,null,null,null,null,null,null,null,null,null,null,null,null,null,null,null,null,null,null,null,null,null,null,174,null,"種類","平行棒",false,null,{"$f":"IF(CF174=TRUE,CE174,\"\")","v":""},null,null,null,null,null,null,null,"回復期",{"$f":"IF($BX$9=FALSE,IF(CO174=0,FALSE,IF(CO174<BX$1,TRUE,FALSE)))","v":false},false]
[null,null,null,null,null,null,null,null,null,null,null,null,null,null,null,null,null,null,null,null,null,null,null,null,null,null,null,null,null,null,null,null,null,null,null,null,null,null,null,null,null,null,null,null,null,null,null,null,null,null,null,null,null,null,null,null,null,null,null,null,null,null,null,null,null,null,null,null,null,null,null,null,null,null,null,null,null,null,null,175,null,null,"歩行器等",false,null,{"$f":"IF(CF175=TRUE,CE175,\"\")","v":""},null,null,null,null,null,null,null,null,null,false]
[null,null,null,null,null,null,null,null,null,null,null,null,null,null,null,null,null,null,null,null,null,null,null,null,null,null,null,null,null,null,null,null,null,null,null,null,null,null,null,null,null,null,null,null,null,null,null,null,null,null,null,null,null,null,null,null,null,null,null,null,null,null,null,null,null,null,null,null,null,null,null,null,null,null,null,null,null,null,null,176,null,null,"シルバーカー",false,null,{"$f":"IF(CF176=TRUE,CE176,\"\")","v":""},null,null,null,null,null,null,null,null,null,false]
[null,null,null,null,null,null,null,null,null,null,null,null,null,null,null,null,null,null,null,null,null,null,null,null,null,null,null,null,null,null,null,null,null,null,null,null,null,null,null,null,null,null,null,null,null,null,null,null,null,null,null,null,null,null,null,null,null,null,null,null,null,null,null,null,null,null,null,null,null,null,null,null,null,null,null,null,null,null,null,177,null,null,"杖",false,null,{"$f":"IF(CF177=TRUE,CE177,\"\")","v":""},null,{"$f":"MID(CJ178,2,200)","v":""},null,null,{"$f":"IF(CJ177=\"\",1,0)","v":1},null,null,null,null,false]
[null,null,null,null,null,null,null,null,null,null,null,null,null,null,null,null,null,null,null,null,null,null,null,null,null,null,null,null,null,null,null,null,null,null,null,null,null,null,null,null,null,null,null,null,null,null,null,null,null,null,null,null,null,null,null,null,null,null,null,null,null,null,null,null,null,null,null,null,null,null,null,null,null,null,null,null,null,null,null,178,null,null,"独歩",false,null,{"$f":"IF(CF178=TRUE,CE178,\"\")","v":""},"計算用",{"$f":"IF(CH174<>\"\",\"，\"& CH174,\"\")& IF(CH175<>\"\",\"，\"& CH175,\"\")&IF(CH176<>\"\",\"，\"& CH176,\"\") &IF(CH177<>\"\",\"，\"& CH177,\"\")&IF(CH178<>\"\",\"，\"& CH178,\"\")","v":""},null,null,null,null,null,null,null,false]
[null,null,null,null,null,null,null,null,null,null,null,null,null,null,null,null,null,null,null,null,null,null,null,null,null,null,null,null,null,null,null,null,null,null,null,null,null,null,null,null,null,null,null,null,null,null,null,null,null,null,null,null,null,null,null,null,null,null,null,null,null,null,null,null,null,null,null,null,null,null,null,null,null,null,null,null,null,null,null,179,"筋力低下","有無",null,0,"1:無 2:有",{"$f":"IF(CF179<>\"\",LOOKUP(CF179,{0,1,2},{\"\",\"無\",\"有\"}),\"\")","v":""},null,null,null,null,{"$f":"IF(CH179=\"\",1,0)","v":1},null,null,"回復期",{"$f":"IF($BX$9=FALSE,IF(CO179=0,FALSE,IF(CO179<BX$1,TRUE,FALSE)))","v":false},0]
[null,null,null,null,null,null,null,null,null,null,null,null,null,null,null,null,null,null,null,null,null,null,null,null,null,null,null,null,null,null,null,null,null,null,null,null,null,null,null,null,null,null,null,null,null,null,null,null,null,null,null,null,null,null,null,null,null,null,null,null,null,null,null,null,null,null,null,null,null,null,null,null,null,null,null,null,null,null,null,180,null,"部位",null,{"$f":"AH29","v":0},null,{"$f":"IF(CF180=0,\"\",CF180)","v":""},null,null,null,null,{"$f":"IF(CF179=2,IF(CH180=\"\",1,0),0)","v":0},null,null,"回復期",false]
[null,null,null,null,null,null,null,null,null,null,null,null,null,null,null,null,null,null,null,null,null,null,null,null,null,null,null,null,null,null,null,null,null,null,null,null,null,null,null,null,null,null,null,null,null,null,null,null,null,null,null,null,null,null,null,null,null,null,null,null,null,null,null,null,null,null,null,null,null,null,null,null,null,null,null,null,null,null,null,181,null,"程度",null,0,"1:重度 2:中度 3:軽度",{"$f":"IF(CF181<>\"\",LOOKUP(CF181,{0,1,2,3},{\"\",\"重度\",\"中度\",\"軽度\"}),\"\")","v":""},null,null,null,null,{"$f":"IF(CF179=2,IF(CH181=\"\",1,0),0)","v":0},null,null,"回復期",false,0]
[null,null,null,null,null,null,null,null,null,null,null,null,null,null,null,null,null,null,null,null,null,null,null,null,null,null,null,null,null,null,null,null,null,null,null,null,null,null,null,null,null,null,null,null,null,null,null,null,null,null,null,null,null,null,null,null,null,null,null,null,null,null,null,null,null,null,null,null,null,null,null,null,null,null,null,null,null,null,null,182,"可動域制限","有無",null,0,"1:無 2:有",{"$f":"IF(CF182<>\"\",LOOKUP(CF182,{0,1,2},{\"\",\"無\",\"有\"}),\"\")","v":""},null,null,null,null,{"$f":"IF(CH182=\"\",1,0)","v":1},null,null,"回復期",false,0]
[null,null,null,null,null,null,null,null,null,null,null,null,null,null,null,null,null,null,null,null,null,null,null,null,null,null,null,null,null,null,null,null,null,null,null,null,null,null,null,null,null,null,null,null,null,null,null,null,null,null,null,null,null,null,null,null,null,null,null,null,null,null,null,null,null,null,null,null,null,null,null,null,null,null,null,null,null,null,null,183,null,"部位",null,{"$f":"AH30","v":0},null,{"$f":"IF(CF183=0,\"\",CF183)","v":""},null,null,null,null,{"$f":"IF(CF182=2,IF(CH183=\"\",1,0),0)","v":0},null,null,"回復期",false]
[null,null,null,null,null,null,null,null,null,null,null,null,null,null,null,null,null,null,null,null,null,null,null,null,null,null,null,null,null,null,null,null,null,null,null,null,null,null,null,null,null,null,null,null,null,null,null,null,null,null,null,null,null,null,null,null,null,null,null,null,null,null,null,null,null,null,null,null,null,null,null,null,null,null,null,null,null,null,null,184,null,"その他テキスト",null,{"$f":"AJ30","v":0},null,{"$f":"IF(CF184=0,\"\",CF184)","v":""},null,null,null,null,{"$f":"IF(CF183=\"他：\",IF(CH184=\"\",1,0),0)","v":0},null,null,"回復期",false]
[null,null,null,null,null,null,null,null,null,null,null,null,null,null,null,null,null,null,null,null,null,null,null,null,null,null,null,null,null,null,null,null,null,null,null,null,null,null,null,null,null,null,null,null,null,null,null,null,null,null,null,null,null,null,null,null,null,null,null,null,null,null,null,null,null,null,null,null,null,null,null,null,null,null,null,null,null,null,null,185,"疼痛対策","有無",null,0,"1:無 2:有",{"$f":"IF(CF185<>\"\",LOOKUP(CF185,{0,1,2},{\"\",\"無\",\"有\"}),\"\")","v":""},null,null,null,null,{"$f":"IF(CH185=\"\",1,0)","v":1},null,null,"回復期",false,0]
[null,null,null,null,null,null,null,null,null,null,null,null,null,null,null,null,null,null,null,null,null,null,null,null,null,null,null,null,null,null,null,null,null,null,null,null,null,null,null,null,null,null,null,null,null,null,null,null,null,null,null,null,null,null,null,null,null,null,null,null,null,null,null,null,null,null,null,null,null,null,null,null,null,null,null,null,null,null,null,186,null,"部位",null,{"$f":"AH31","v":0},null,{"$f":"IF(CF186=0,\"\",CF186)","v":""},null,null,null,null,{"$f":"IF(CF185=2,IF(CH186=\"\",1,0),0)","v":0},null,null,"回復期",false]
[null,null,null,null,null,null,null,null,null,null,null,null,null,null,null,null,null,null,null,null,null,null,null,null,null,null,null,null,null,null,null,null,null,null,null,null,null,null,null,null,null,null,null,null,null,null,null,null,null,null,null,null,null,null,null,null,null,null,null,null,null,null,null,null,null,null,null,null,null,null,null,null,null,null,null,null,null,null,null,187,null,null,"内服",false,null,{"$f":"IF(CF187=TRUE,CE187,\"\")","v":""},null,null,null,null,null,null,null,"回復期",false,false]
[null,null,null,null,null,null,null,null,null,null,null,null,null,null,null,null,null,null,null,null,null,null,null,null,null,null,null,null,null,null,null,null,null,null,null,null,null,null,null,null,null,null,null,null,null,null,null,null,null,null,null,null,null,null,null,null,null,null,null,null,null,null,null,null,null,null,null,null,null,null,null,null,null,null,null,null,null,null,null,188,null,null,"坐薬",false,null,{"$f":"IF(CF188=TRUE,CE188,\"\")","v":""},null,null,null,null,null,null,null,null,null,false]
[null,null,null,null,null,null,null,null,null,null,null,null,null,null,null,null,null,null,null,null,null,null,null,null,null,null,null,null,null,null,null,null,null,null,null,null,null,null,null,null,null,null,null,null,null,null,null,null,null,null,null,null,null,null,null,null,null,null,null,null,null,null,null,null,null,null,null,null,null,null,null,null,null,null,null,null,null,null,null,189,null,null,"注射",false,null,{"$f":"IF(CF189=TRUE,CE189,\"\")","v":""},null,null,null,null,null,null,null,null,null,false]
[null,null,null,null,null,null,null,null,null,null,null,null,null,null,null,null,null,null,null,null,null,null,null,null,null,null,null,null,null,null,null,null,null,null,null,null,null,null,null,null,null,null,null,null,null,null,null,null,null,null,null,null,null,null,null,null,null,null,null,null,null,null,null,null,null,null,null,null,null,null,null,null,null,null,null,null,null,null,null,190,null,null,"外用薬",false,null,{"$f":"IF(CF190=TRUE,CE190,\"\")","v":""},null,null,null,null,null,null,null,null,null,false]
[null,null,null,null,null,null,null,null,null,null,null,null,null,null,null,null,null,null,null,null,null,null,null,null,null,null,null,null,null,null,null,null,null,null,null,null,null,null,null,null,null,null,null,null,null,null,null,null,null,null,null,null,null,null,null,null,null,null,null,null,null,null,null,null,null,null,null,null,null,null,null,null,null,null,null,null,null,null,null,191,null,null,"テキスト",{"$f":"AO32","v":0},null,{"$f":"IF(CF191=0,\"\",CF191)","v":""},null,{"$f":"MID(CJ192,2,200)","v":""},null,null,{"$f":"IF(CF190=TRUE,IF(CH191=\"\",1,0),0)","v":0},null,null,"回復期",{"$f":"IF($BX$9=FALSE,IF(CO191=0,FALSE,IF(CO191<BX$1,TRUE,FALSE)))","v":false}]
[null,null,null,null,null,null,null,null,null,null,null,null,null,null,null,null,null,null,null,null,null,null,null,null,null,null,null,null,null,null,null,null,null,null,null,null,null,null,null,null,null,null,null,null,null,null,null,null,null,null,null,null,null,null,null,null,null,null,null,null,null,null,null,null,null,null,null,null,null,null,null,null,null,null,null,null,null,null,null,192,null,null,"対策不要（自制内）",false,null,{"$f":"IF(CF192=TRUE,CE192,\"\")","v":""},"計算用",{"$f":"IF(CH187<>\"\",\"，\"& CH187,\"\")& IF(CH188<>\"\",\"，\"& CH188,\"\")& IF(CH189<>\"\",\"，\"& CH189,\"\")& IF(CH190<>\"\",\"，\" & CH190 & IF(CH191<>\"\",\"(\" & CH191 & \")\",\"\"),\"\") &IF(CH192<>\"\",\"，\"& CH192,\"\")","v":""},null,null,{"$f":"IF(CF185=2,IF(CJ191=\"\",1,0),0)","v":0},null,null,null,null,false]
[null,null,null,null,null,null,null,null,null,null,null,null,null,null,null,null,null,null,null,null,null,null,null,null,null,null,null,null,null,null,null,null,null,null,null,null,null,null,null,null,null,null,null,null,null,null,null,null,null,null,null,null,null,null,null,null,null,null,null,null,null,null,null,null,null,null,null,null,null,null,null,null,null,null,null,null,null,null,null,193,"内科管理","有無",null,0,"1:無 2:有",{"$f":"IF(CF193<>\"\",LOOKUP(CF193,{0,1,2},{\"\",\"無\",\"有\"}),\"\")","v":""},null,null,null,null,{"$f":"IF(CH193=\"\",1,0)","v":1},null,null,"回復期",{"$f":"IF($BX$9=FALSE,IF(CO193=0,FALSE,IF(CO193<BX$1,TRUE,FALSE)))","v":false},0]
[null,null,null,null,null,null,null,null,null,null,null,null,null,null,null,null,null,null,null,null,null,null,null,null,null,null,null,null,null,null,null,null,null,null,null,null,null,null,null,null,null,null,null,null,null,null,null,null,null,null,null,null,null,null,null,null,null,null,null,null,null,null,null,null,null,null,null,null,null,null,null,null,null,null,null,null,null,null,null,194,null,"テキスト",null,{"$f":"AF34","v":0},null,{"$f":"IF(CF194=0,\"\",\"（\" & CF194 & \"）\" )","v":""},null,null,null,null,{"$f":"IF(CF193=2,IF(CH194=\"\",1,0),0)","v":0},null,null,"回復期",false]
[null,null,null,null,null,null,null,null,null,null,null,null,null,null,null,null,null,null,null,null,null,null,null,null,null,null,null,null,null,null,null,null,null,null,null,null,null,null,null,null,null,null,null,null,null,null,null,null,null,null,null,null,null,null,null,null,null,null,null,null,null,null,null,null,null,null,null,null,null,null,null,null,null,null,null,null,null,null,null,195,"医療処置","有無",null,0,"1:無 2:有",{"$f":"IF(CF195<>\"\",LOOKUP(CF195,{0,1,2},{\"\",\"無\",\"有\"}),\"\")","v":""},null,null,null,null,{"$f":"IF(CH195=\"\",1,0)","v":1},null,null,"回復期",false,0]
[null,null,null,null,null,null,null,null,null,null,null,null,null,null,null,null,null,null,null,null,null,null,null,null,null,null,null,null,null,null,null,null,null,null,null,null,null,null,null,null,null,null,null,null,null,null,null,null,null,null,null,null,null,null,null,null,null,null,null,null,null,null,null,null,null,null,null,null,null,null,null,null,null,null,null,null,null,null,null,196,null,"テキスト",null,{"$f":"AF35","v":0},null,{"$f":"IF(CF196=0,\"\",\"（\" & CF196 & \"）\" )","v":""},null,null,null,null,{"$f":"IF(CF195=2,IF(CH196=\"\",1,0),0)","v":0},null,null,"回復期",false]
[null,null,null,null,null,null,null,null,null,null,null,null,null,null,null,null,null,null,null,null,null,null,null,null,null,null,null,null,null,null,null,null,null,null,null,null,null,null,null,null,null,null,null,null,null,null,null,null,null,null,null,null,null,null,null,null,null,null,null,null,null,null,null,null,null,null,null,null,null,null,null,null,null,null,null,null,null,null,null,197,"検査","有無",null,0,"1:無 2:有",{"$f":"IF(CF197<>\"\",LOOKUP(CF197,{0,1,2},{\"\",\"無\",\"有\"}),\"\")","v":""},null,null,null,null,{"$f":"IF(CH197=\"\",1,0)","v":1},null,null,"回復期",false,0]
[null,null,null,null,null,null,null,null,null,null,null,null,null,null,null,null,null,null,null,null,null,null,null,null,null,null,null,null,null,null,null,null,null,null,null,null,null,null,null,null,null,null,null,null,null,null,null,null,null,null,null,null,null,null,null,null,null,null,null,null,null,null,null,null,null,null,null,null,null,null,null,null,null,null,null,null,null,null,null,198,null,"テキスト",null,{"$f":"AF36","v":0},null,{"$f":"IF(CF198=0,\"\",\"（\" & CF198 & \"）\" )","v":""},null,null,null,null,{"$f":"IF(CF197=2,IF(CH198=\"\",1,0),0)","v":0},null,null,"回復期",false]
[null,null,null,null,null,null,null,null,null,null,null,null,null,null,null,null,null,null,null,null,null,null,null,null,null,null,null,null,null,null,null,null,null,null,null,null,null,null,null,null,null,null,null,null,null,null,null,null,null,null,null,null,null,null,null,null,null,null,null,null,null,null,null,null,null,null,null,null,null,null,null,null,null,null,null,null,null,null,null,199,"食事","種類",null,0,"1:普通 2:治療食",{"$f":"IF(CF199<>\"\",LOOKUP(CF199,{0,1,2},{\"\",\"普通\",\"治療食\"}),\"\")","v":""},null,null,null,null,{"$f":"IF(CH199=\"\",1,0)","v":1},null,null,"回復期",false,0]
[null,null,null,null,null,null,null,null,null,null,null,null,null,null,null,null,null,null,null,null,null,null,null,null,null,null,null,null,null,null,null,null,null,null,null,null,null,null,null,null,null,null,null,null,null,null,null,null,null,null,null,null,null,null,null,null,null,null,null,null,null,null,null,null,null,null,null,null,null,null,null,null,null,null,null,null,null,null,null,200,null,"テキスト",null,{"$f":"AH37","v":0},null,{"$f":"IF(CF200=0,\"\",\"（\" & CF200 & \"）\" )","v":""},null,null,null,null,{"$f":"IF(CF199=2,IF(CH200=\"\",1,0),0)","v":0},null,null,"回復期",false]
[null,null,null,null,null,null,null,null,null,null,null,null,null,null,null,null,null,null,null,null,null,null,null,null,null,null,null,null,null,null,null,null,null,null,null,null,null,null,null,null,null,null,null,null,null,null,null,null,null,null,null,null,null,null,null,null,null,null,null,null,null,null,null,null,null,null,null,null,null,null,null,null,null,null,null,null,null,null,null,201,null,"特別な栄養管理","有無",0,"1:無 2:有",{"$f":"IF(CF201<>\"\",LOOKUP(CF201,{0,1,2},{\"\",\"無\",\"有\"}),\"\")","v":""}]
[null,null,null,null,null,null,null,null,null,null,null,null,null,null,null,null,null,null,null,null,null,null,null,null,null,null,null,null,null,null,null,null,null,null,null,null,null,null,null,null,null,null,null,null,null,null,null,null,null,null,null,null,null,null,null,null,null,null,null,null,null,null,null,null,null,null,null,null,null,null,null,null,null,null,null,null,null,null,null,202,"排泄","種類",null,0,"1:トイレ 2:P-トイレ 3:おむつ 4:その他",{"$f":"IF(CF202<>\"\",LOOKUP(CF202,{0,1,2,3,4},{\"\",\"トイレ\",\"P-トイレ\",\"おむつ\",\"その他\"}),\"\")","v":""},null,null,null,null,{"$f":"IF(CH202=\"\",1,0)","v":1},null,null,"回復期",false,0]
[null,null,null,null,null,null,null,null,null,null,null,null,null,null,null,null,null,null,null,null,null,null,null,null,null,null,null,null,null,null,null,null,null,null,null,null,null,null,null,null,null,null,null,null,null,null,null,null,null,null,null,null,null,null,null,null,null,null,null,null,null,null,null,null,null,null,null,null,null,null,null,null,null,null,null,null,null,null,null,203,null,null,"テキスト",{"$f":"AO39","v":0},null,{"$f":"IF(CF203=0,\"\",\"（\" & CF203 & \"）\" )","v":""},null,null,null,null,{"$f":"IF(CF202=4,IF(CH203=\"\",1,0),0)","v":0},null,null,"回復期",false]
[null,null,null,null,null,null,null,null,null,null,null,null,null,null,null,null,null,null,null,null,null,null,null,null,null,null,null,null,null,null,null,null,null,null,null,null,null,null,null,null,null,null,null,null,null,null,null,null,null,null,null,null,null,null,null,null,null,null,null,null,null,null,null,null,null,null,null,null,null,null,null,null,null,null,null,null,null,null,null,204,null,"自立度",null,0,"1:自立 2:一部介助 3:全介助",{"$f":"IF(CF204<>\"\",LOOKUP(CF204,{0,1,2,3},{\"\",\"自立\",\"一部介助\",\"全介助\"}),\"\")","v":""},null,null,null,null,{"$f":"IF(CH204=\"\",1,0)","v":1},null,null,"回復期",false,0]
[null,null,null,null,null,null,null,null,null,null,null,null,null,null,null,null,null,null,null,null,null,null,null,null,null,null,null,null,null,null,null,null,null,null,null,null,null,null,null,null,null,null,null,null,null,null,null,null,null,null,null,null,null,null,null,null,null,null,null,null,null,null,null,null,null,null,null,null,null,null,null,null,null,null,null,null,null,null,null,205,"清潔","種類",null,0,"1:入浴 2:シャワー 3:清拭",{"$f":"IF(CF205<>\"\",LOOKUP(CF205,{0,1,2,3},{\"\",\"入浴\",\"シャワー\",\"清拭\"}),\"\")","v":""},null,null,null,null,{"$f":"IF(CH205=\"\",1,0)","v":1},null,null,"回復期",false,0]
[null,null,null,null,null,null,null,null,null,null,null,null,null,null,null,null,null,null,null,null,null,null,null,null,null,null,null,null,null,null,null,null,null,null,null,null,null,null,null,null,null,null,null,null,null,null,null,null,null,null,null,null,null,null,null,null,null,null,null,null,null,null,null,null,null,null,null,null,null,null,null,null,null,null,null,null,null,null,null,206,null,"自立度",null,0,"1:自立 2:一部介助 3:全介助",{"$f":"IF(CF206<>\"\",LOOKUP(CF206,{0,1,2,3},{\"\",\"自立\",\"一部介助\",\"全介助\"}),\"\")","v":""},null,null,null,null,{"$f":"IF(CH206=\"\",1,0)","v":1},null,null,"回復期",false,0]
[null,null,null,null,null,null,null,null,null,null,null,null,null,null,null,null,null,null,null,null,null,null,null,null,null,null,null,null,null,null,null,null,null,null,null,null,null,null,null,null,null,null,null,null,null,null,null,null,null,null,null,null,null,null,null,null,null,null,null,null,null,null,null,null,null,null,null,null,null,null,null,null,null,null,null,null,null,null,null,207,"認知症","有無",null,0,"1:無 2:有",{"$f":"IF(CF207<>\"\",LOOKUP(CF207,{0,1,2},{\"\",\"無\",\"有\"}),\"\")","v":""},null,null,null,null,{"$f":"IF(CH207=\"\",1,0)","v":1},null,null,"回復期",false,0]
[null,null,null,null,null,null,null,null,null,null,null,null,null,null,null,null,null,null,null,null,null,null,null,null,null,null,null,null,null,null,null,null,null,null,null,null,null,null,null,null,null,null,null,null,null,null,null,null,null,null,null,null,null,null,null,null,null,null,null,null,null,null,null,null,null,null,null,null,null,null,null,null,null,null,null,null,null,null,null,208,null,"周辺症状なし",null,false,null,{"$f":"IF(CF208=TRUE,CD208,\"\")","v":""},null,null,null,null,null,null,null,"回復期",false,false]
[null,null,null,null,null,null,null,null,null,null,null,null,null,null,null,null,null,null,null,null,null,null,null,null,null,null,null,null,null,null,null,null,null,null,null,null,null,null,null,null,null,null,null,null,null,null,null,null,null,null,null,null,null,null,null,null,null,null,null,null,null,null,null,null,null,null,null,null,null,null,null,null,null,null,null,null,null,null,null,209,null,"徘徊",null,false,null,{"$f":"IF(CF209=TRUE,CD209,\"\")","v":""},null,null,null,null,null,null,null,null,null,false]
[null,null,null,null,null,null,null,null,null,null,null,null,null,null,null,null,null,null,null,null,null,null,null,null,null,null,null,null,null,null,null,null,null,null,null,null,null,null,null,null,null,null,null,null,null,null,null,null,null,null,null,null,null,null,null,null,null,null,null,null,null,null,null,null,null,null,null,null,null,null,null,null,null,null,null,null,null,null,null,210,null,"暴言",null,false,null,{"$f":"IF(CF210=TRUE,CD210,\"\")","v":""},null,null,null,null,null,null,null,null,null,false]
[null,null,null,null,null,null,null,null,null,null,null,null,null,null,null,null,null,null,null,null,null,null,null,null,null,null,null,null,null,null,null,null,null,null,null,null,null,null,null,null,null,null,null,null,null,null,null,null,null,null,null,null,null,null,null,null,null,null,null,null,null,null,null,null,null,null,null,null,null,null,null,null,null,null,null,null,null,null,null,211,null,"介護抵抗",null,false,null,{"$f":"IF(CF211=TRUE,CD211,\"\")","v":""},null,{"$f":"MID(CJ212,2,200)","v":""},null,null,null,null,null,null,null,false]
[null,null,null,null,null,null,null,null,null,null,null,null,null,null,null,null,null,null,null,null,null,null,null,null,null,null,null,null,null,null,null,null,null,null,null,null,null,null,null,null,null,null,null,null,null,null,null,null,null,null,null,null,null,null,null,null,null,null,null,null,null,null,null,null,null,null,null,null,null,null,null,null,null,null,null,null,null,null,null,212,null,"その他",null,false,null,{"$f":"IF(CF212=TRUE,CD212,\"\")","v":""},"計算用",{"$f":"IF(CH208<>\"\",\"，\"& CH208,\"\")& IF(CH209<>\"\",\"，\"& CH209,\"\")&IF(CH210<>\"\",\"，\"& CH210,\"\") &IF(CH211<>\"\",\"，\"& CH211,\"\")&IF(CH212<>\"\",\"，\"& CH212,\"\")","v":""},null,null,{"$f":"IF(CF207=2,IF(CJ211=\"\",1,0),0)","v":0},null,null,null,null,false]
[null,null,null,null,null,null,null,null,null,null,null,null,null,null,null,null,null,null,null,null,null,null,null,null,null,null,null,null,null,null,null,null,null,null,null,null,null,null,null,null,null,null,null,null,null,null,null,null,null,null,null,null,null,null,null,null,null,null,null,null,null,null,null,null,null,null,null,null,null,null,null,null,null,null,null,null,null,null,null,213,null,"HDS-R",null,{"$f":"IF(AD44=\"\",\"\",AD44)","v":""},null,{"$f":"CF213","v":""},null,null,null,null,{"$f":"IF(CH213=\"\",1,0)","v":1},null,null,"回復期",{"$f":"IF($BX$9=FALSE,IF(CO213=0,FALSE,IF(CO213<BX$1,TRUE,FALSE)))","v":false}]
[null,null,null,null,null,null,null,null,null,null,null,null,null,null,null,null,null,null,null,null,null,null,null,null,null,null,null,null,null,null,null,null,null,null,null,null,null,null,null,null,null,null,null,null,null,null,null,null,null,null,null,null,null,null,null,null,null,null,null,null,null,null,null,null,null,null,null,null,null,null,null,null,null,null,null,null,null,null,null,214,"10m歩行","秒数",null,{"$f":"AA45","v":0},null,{"$f":"IF(CF214=0,\"\",CF214 & \"秒\")","v":""},null,null,null,null,{"$f":"IF(CH214=\"\",1,0)","v":1},null,null,"回復期",false]
[null,null,null,null,null,null,null,null,null,null,null,null,null,null,null,null,null,null,null,null,null,null,null,null,null,null,null,null,null,null,null,null,null,null,null,null,null,null,null,null,null,null,null,null,null,null,null,null,null,null,null,null,null,null,null,null,null,null,null,null,null,null,null,null,null,null,null,null,null,null,null,null,null,null,null,null,null,null,null,215,null,"手段",null,0,"1:独歩 2:杖 3:シルバーカー 4:歩行器等",{"$f":"IF(CF215<>\"\",LOOKUP(CF215,{0,1,2,3,4},{\"\",\"（手段：独歩）\",\"（手段：杖）\",\"（手段：シルバーカー）\",\"（手段：歩行器等）\"}),\"\")","v":""},null,null,null,null,{"$f":"IF(CH215=\"\",1,0)","v":1},null,null,"回復期",false,0]
[null,null,null,null,null,null,null,null,null,null,null,null,null,null,null,null,null,null,null,null,null,null,null,null,null,null,null,null,null,null,null,null,null,null,null,null,null,null,null,null,null,null,null,null,null,null,null,null,null,null,null,null,null,null,null,null,null,null,null,null,null,null,null,null,null,null,null,null,null,null,null,null,null,null,null,null,null,null,null,216,null,"実施",null,0,"1:実施 2:未実施",{"$f":"IF(CF216<>\"\",LOOKUP(CF216,{0,1,2},{\"\",\"実施\",\"未実施\"}),\"\")","v":""},null,null,null,null,{"$f":"IF(CH216=\"\",1,0)","v":1},null,null,"回復期",false,0]
[null,null,null,null,null,null,null,null,null,null,null,null,null,null,null,null,null,null,null,null,null,null,null,null,null,null,null,null,null,null,null,null,null,null,null,null,null,null,null,null,null,null,null,null,null,null,null,null,null,null,null,null,null,null,null,null,null,null,null,null,null,null,null,null,null,null,null,null,null,null,null,null,null,null,null,null,null,null,null,217,null,"実施日",null,{"$f":"AD46","v":"00:00:00"},null,{"$f":"IF(CF217=0,\"\",CF217)","v":""},null,null,null,null,{"$f":"IF(CF216=1,IF(CH217=\"\",1,0),0)","v":0},null,null,"回復期",false]
[null,null,null,null,null,null,null,null,null,null,null,null,null,null,null,null,null,null,null,null,null,null,null,null,null,null,null,null,null,null,null,null,null,null,null,null,null,null,null,null,null,null,null,null,null,null,null,null,null,null,null,null,null,null,null,null,null,null,null,null,null,null,null,null,null,null,null,null,null,null,null,null,null,null,null,null,null,null,null,218,"経過中転倒","有無",null,0,"1:無 2:有",{"$f":"IF(CF218<>\"\",LOOKUP(CF218,{0,1,2},{\"\",\"無\",\"有\"}),\"\")","v":""},null,null,null,null,{"$f":"IF(CH218=\"\",1,0)","v":1},null,null,"回復期",false,0]
[null,null,null,null,null,null,null,null,null,null,null,null,null,null,null,null,null,null,null,null,null,null,null,null,null,null,null,null,null,null,null,null,null,null,null,null,null,null,null,null,null,null,null,null,null,null,null,null,null,null,null,null,null,null,null,null,null,null,null,null,null,null,null,null,null,null,null,null,null,null,null,null,null,null,null,null,null,null,null,219,"離床センサー","有無",null,0,"1:無 2:有",{"$f":"IF(CF219<>\"\",LOOKUP(CF219,{0,1,2},{\"\",\"無\",\"有\"}),\"\")","v":""},null,null,null,null,{"$f":"IF(CH219=\"\",1,0)","v":1},null,null,"回復期",false,0]
[null,null,null,null,null,null,null,null,null,null,null,null,null,null,null,null,null,null,null,null,null,null,null,null,null,null,null,null,null,null,null,null,null,null,null,null,null,null,null,null,null,null,null,null,null,null,null,null,null,null,null,null,null,null,null,null,null,null,null,null,null,null,null,null,null,null,null,null,null,null,null,null,null,null,null,null,null,null,null,220,"手続き","状況",null,0,"1:手続中 2:未申請 3:対象外",{"$f":"IF(CF220<>\"\",LOOKUP(CF220,{0,1,2,3},{\"\",\"手続中\",\"未申請\",\"対象外\"}),\"\")","v":""},null,null,null,null,{"$f":"IF(CH220=\"\",1,0)","v":1},null,null,"回復期",false,0]
[null,null,null,null,null,null,null,null,null,null,null,null,null,null,null,null,null,null,null,null,null,null,null,null,null,null,null,null,null,null,null,null,null,null,null,null,null,null,null,null,null,null,null,null,null,null,null,null,null,null,null,null,null,null,null,null,null,null,null,null,null,null,null,null,null,null,null,null,null,null,null,null,null,null,null,null,null,null,null,221,null,"日時",null,{"$f":"AE49","v":"00:00:00"},null,{"$f":"IF(CF221=0,\"\",TEXT(CF221,\"yy年mm月\"))","v":""},null,null,null,null,{"$f":"IF(CF220=1,IF(CH221=\"\",1,0),0)","v":0},null,null,"回復期",false]
[null,null,null,null,null,null,null,null,null,null,null,null,null,null,null,null,null,null,null,null,null,null,null,null,null,null,null,null,null,null,null,null,null,null,null,null,null,null,null,null,null,null,null,null,null,null,null,null,null,null,null,null,null,null,null,null,null,null,null,null,null,null,null,null,null,null,null,null,null,null,null,null,null,null,null,null,null,null,null,222,null,"級",null,{"$f":"AI49","v":0},null,{"$f":"IF(CF222=0,\"\",CF222)","v":""},null,null,null,null,{"$f":"IF(CF220=1,IF(CH222=\"\",1,0),0)","v":0},null,null,"回復期",false]
[null,null,null,null,null,null,null,null,null,null,null,null,null,null,null,null,null,null,null,null,null,null,null,null,null,null,null,null,null,null,null,null,null,null,null,null,null,null,null,null,null,null,null,null,null,null,null,null,null,null,null,null,null,null,null,null,null,null,null,null,null,null,null,null,null,null,null,null,null,null,null,null,null,null,null,null,null,null,null,223,"維持期病院名",null,null,{"$f":"AX18","v":0},null,{"$f":"IF(CF223=0,\"\",CF223)","v":""},null,null,null,null,null,{"$f":"IF(CH223=\"\",1,0)","v":1},null,"維持期",{"$f":"IF($BX$10=FALSE,IF(CO223=0,FALSE,IF(CO223<BX$1,TRUE,FALSE)))","v":false}]
[null,null,null,null,null,null,null,null,null,null,null,null,null,null,null,null,null,null,null,null,null,null,null,null,null,null,null,null,null,null,null,null,null,null,null,null,null,null,null,null,null,null,null,null,null,null,null,null,null,null,null,null,null,null,null,null,null,null,null,null,null,null,null,null,null,null,null,null,null,null,null,null,null,null,null,null,null,null,null,224,"ID",null,null,{"$f":"AZ20","v":0},null,"",null,null,null,null,null,{"$f":"IF(CH224=\"\",1,0)","v":1},null,null,{"$f":"IF($BX$7=FALSE,IF(CO224=0,FALSE,IF(CO224<BX$1,TRUE,FALSE)))","v":false}]
[null,null,null,null,null,null,null,null,null,null,null,null,null,null,null,null,null,null,null,null,null,null,null,null,null,null,null,null,null,null,null,null,null,null,null,null,null,null,null,null,null,null,null,null,null,null,null,null,null,null,null,null,null,null,null,null,null,null,null,null,null,null,null,null,null,null,null,null,null,null,null,null,null,null,null,null,null,null,null,225,"転帰先",null,null,null,null,""]
[null,null,null,null,null,null,null,null,null,null,null,null,null,null,null,null,null,null,null,null,null,null,null,null,null,null,null,null,null,null,null,null,null,null,null,null,null,null,null,null,null,null,null,null,null,null,null,null,null,null,null,null,null,null,null,null,null,null,null,null,null,null,null,null,null,null,null,null,null,null,null,null,null,null,null,null,null,null,null,226,"入院日",null,null,{"$f":"BF21","v":"00:00:00"},null,"",null,null,null,null,null,1,null,"維持期",{"$f":"IF($BX$10=FALSE,IF(CO226=0,FALSE,IF(CO226<BX$1,TRUE,FALSE)))","v":false}]
[null,null,null,null,null,null,null,null,null,null,null,null,null,null,null,null,null,null,null,null,null,null,null,null,null,null,null,null,null,null,null,null,null,null,null,null,null,null,null,null,null,null,null,null,null,null,null,null,null,null,null,null,null,null,null,null,null,null,null,null,null,null,null,null,null,null,null,null,null,null,null,null,null,null,null,null,null,null,null,227,"担当者","Dr.",null,{"$f":"BD22","v":0},null,"",null,null,null,null,null,1,null,"維持期",false]
[null,null,null,null,null,null,null,null,null,null,null,null,null,null,null,null,null,null,null,null,null,null,null,null,null,null,null,null,null,null,null,null,null,null,null,null,null,null,null,null,null,null,null,null,null,null,null,null,null,null,null,null,null,null,null,null,null,null,null,null,null,null,null,null,null,null,null,null,null,null,null,null,null,null,null,null,null,null,null,228,null,"Nr.",null,{"$f":"BN22","v":0},null,"",null,null,null,null,null,1,null,"維持期",false]
[null,null,null,null,null,null,null,null,null,null,null,null,null,null,null,null,null,null,null,null,null,null,null,null,null,null,null,null,null,null,null,null,null,null,null,null,null,null,null,null,null,null,null,null,null,null,null,null,null,null,null,null,null,null,null,null,null,null,null,null,null,null,null,null,null,null,null,null,null,null,null,null,null,null,null,null,null,null,null,229,null,"PT.OT",null,{"$f":"BD23","v":0},null,"",null,null,null,null,null,1,null,"維持期",false]
[null,null,null,null,null,null,null,null,null,null,null,null,null,null,null,null,null,null,null,null,null,null,null,null,null,null,null,null,null,null,null,null,null,null,null,null,null,null,null,null,null,null,null,null,null,null,null,null,null,null,null,null,null,null,null,null,null,null,null,null,null,null,null,null,null,null,null,null,null,null,null,null,null,null,null,null,null,null,null,230,null,"その他",null,{"$f":"BN23","v":0},null,"",null,null,null,null,null,1,null,"維持期",false]
[null,null,null,null,null,null,null,null,null,null,null,null,null,null,null,null,null,null,null,null,null,null,null,null,null,null,null,null,null,null,null,null,null,null,null,null,null,null,null,null,null,null,null,null,null,null,null,null,null,null,null,null,null,null,null,null,null,null,null,null,null,null,null,null,null,null,null,null,null,null,null,null,null,null,null,null,null,null,null,231,"入力日",null,null,{"$f":"BE24","v":"00:00:00"},null,"",null,null,null,null,null,{"$f":"IF(CH231=\"\",1,0)","v":1},null,"維持期",false]
[null,null,null,null,null,null,null,null,null,null,null,null,null,null,null,null,null,null,null,null,null,null,null,null,null,null,null,null,null,null,null,null,null,null,null,null,null,null,null,null,null,null,null,null,null,null,null,null,null,null,null,null,null,null,null,null,null,null,null,null,null,null,null,null,null,null,null,null,null,null,null,null,null,null,null,null,null,null,null,232,"歩行状態","屋外",null,{"$f":"AZ27","v":0},"◎自立　○見守り　△一部介助　×全介助",{"$f":"IF(CF232=\"\",\"\",IF(CF232=\"◎\",\"自立\",IF(CF232=\"○\",\"見守り\",IF(CF232=\"△\",\"一部介助\",IF(CF232=\"×\",\"全介助\",\"\")))))","v":""},null,null,null,null,null,{"$f":"IF(CH232=\"\",1,0)","v":1},null,"維持期",false]
[null,null,null,null,null,null,null,null,null,null,null,null,null,null,null,null,null,null,null,null,null,null,null,null,null,null,null,null,null,null,null,null,null,null,null,null,null,null,null,null,null,null,null,null,null,null,null,null,null,null,null,null,null,null,null,null,null,null,null,null,null,null,null,null,null,null,null,null,null,null,null,null,null,null,null,null,null,null,null,233,null,"種類","車いす",false,null,{"$f":"IF(CF233=TRUE,CE233,\"\")","v":""},null,null,null,null,null,null,null,"維持期",false,false]
[null,null,null,null,null,null,null,null,null,null,null,null,null,null,null,null,null,null,null,null,null,null,null,null,null,null,null,null,null,null,null,null,null,null,null,null,null,null,null,null,null,null,null,null,null,null,null,null,null,null,null,null,null,null,null,null,null,null,null,null,null,null,null,null,null,null,null,null,null,null,null,null,null,null,null,null,null,null,null,234,null,null,"歩行器等",false,null,{"$f":"IF(CF234=TRUE,CE234,\"\")","v":""},null,null,null,null,null,null,null,null,null,false]
[null,null,null,null,null,null,null,null,null,null,null,null,null,null,null,null,null,null,null,null,null,null,null,null,null,null,null,null,null,null,null,null,null,null,null,null,null,null,null,null,null,null,null,null,null,null,null,null,null,null,null,null,null,null,null,null,null,null,null,null,null,null,null,null,null,null,null,null,null,null,null,null,null,null,null,null,null,null,null,235,null,null,"シルバーカー",false,null,{"$f":"IF(CF235=TRUE,CE235,\"\")","v":""},null,null,null,null,null,null,null,null,null,false]
[null,null,null,null,null,null,null,null,null,null,null,null,null,null,null,null,null,null,null,null,null,null,null,null,null,null,null,null,null,null,null,null,null,null,null,null,null,null,null,null,null,null,null,null,null,null,null,null,null,null,null,null,null,null,null,null,null,null,null,null,null,null,null,null,null,null,null,null,null,null,null,null,null,null,null,null,null,null,null,236,null,null,"杖",false,null,{"$f":"IF(CF236=TRUE,CE236,\"\")","v":""},{"$f":"IF(CG237=TRUE,CD237,\"\")","v":""},{"$f":"MID(CJ237,2,200)","v":""},null,null,null,{"$f":"IF(CJ236=\"\",1,0)","v":1},null,null,null,false]
[null,null,null,null,null,null,null,null,null,null,null,null,null,null,null,null,null,null,null,null,null,null,null,null,null,null,null,null,null,null,null,null,null,null,null,null,null,null,null,null,null,null,null,null,null,null,null,null,null,null,null,null,null,null,null,null,null,null,null,null,null,null,null,null,null,null,null,null,null,null,null,null,null,null,null,null,null,null,null,237,null,"屋外困難","独歩",false,false,{"$f":"IF(CF237=TRUE,CE237,\"\")","v":""},"計算用",{"$f":"IF(CI236<>\"\",\"，\"& CI236,\"\")& IF(CH233<>\"\",\"，\"& CH233,\"\")& IF(CH234<>\"\",\"，\"& CH234,\"\")&IF(CH235<>\"\",\"，\"& CH235,\"\") &IF(CH236<>\"\",\"，\"& CH236,\"\")&IF(CH237<>\"\",\"，\"& CH237,\"\")","v":""},null,null,null,null,null,null,null,false,false]
[null,null,null,null,null,null,null,null,null,null,null,null,null,null,null,null,null,null,null,null,null,null,null,null,null,null,null,null,null,null,null,null,null,null,null,null,null,null,null,null,null,null,null,null,null,null,null,null,null,null,null,null,null,null,null,null,null,null,null,null,null,null,null,null,null,null,null,null,null,null,null,null,null,null,null,null,null,null,null,238,null,"屋内",null,{"$f":"AZ28","v":0},"◎自立　○見守り　△一部介助　×全介助",{"$f":"IF(CF238=\"\",\"\",IF(CF238=\"◎\",\"自立\",IF(CF238=\"○\",\"見守り\",IF(CF238=\"△\",\"一部介助\",IF(CF238=\"×\",\"全介助\",\"\")))))","v":""},null,null,null,null,null,{"$f":"IF(CH238=\"\",1,0)","v":1},null,"維持期",{"$f":"IF($BX$10=FALSE,IF(CO238=0,FALSE,IF(CO238<BX$1,TRUE,FALSE)))","v":false}]
[null,null,null,null,null,null,null,null,null,null,null,null,null,null,null,null,null,null,null,null,null,null,null,null,null,null,null,null,null,null,null,null,null,null,null,null,null,null,null,null,null,null,null,null,null,null,null,null,null,null,null,null,null,null,null,null,null,null,null,null,null,null,null,null,null,null,null,null,null,null,null,null,null,null,null,null,null,null,null,239,null,"種類","伝い歩き",false,null,{"$f":"IF(CF239=TRUE,CE239,\"\")","v":""},null,null,null,null,null,null,null,"維持期",{"$f":"IF($BX$10=FALSE,IF(CO239=0,FALSE,IF(CO239<BX$1,TRUE,FALSE)))","v":false},false]
[null,null,null,null,null,null,null,null,null,null,null,null,null,null,null,null,null,null,null,null,null,null,null,null,null,null,null,null,null,null,null,null,null,null,null,null,null,null,null,null,null,null,null,null,null,null,null,null,null,null,null,null,null,null,null,null,null,null,null,null,null,null,null,null,null,null,null,null,null,null,null,null,null,null,null,null,null,null,null,240,null,null,"歩行器等",false,null,{"$f":"IF(CF240=TRUE,CE240,\"\")","v":""},null,null,null,null,null,null,null,null,null,false]
[null,null,null,null,null,null,null,null,null,null,null,null,null,null,null,null,null,null,null,null,null,null,null,null,null,null,null,null,null,null,null,null,null,null,null,null,null,null,null,null,null,null,null,null,null,null,null,null,null,null,null,null,null,null,null,null,null,null,null,null,null,null,null,null,null,null,null,null,null,null,null,null,null,null,null,null,null,null,null,241,null,null,"シルバーカー",false,null,{"$f":"IF(CF241=TRUE,CE241,\"\")","v":""},null,null,null,null,null,null,null,null,null,false]
[null,null,null,null,null,null,null,null,null,null,null,null,null,null,null,null,null,null,null,null,null,null,null,null,null,null,null,null,null,null,null,null,null,null,null,null,null,null,null,null,null,null,null,null,null,null,null,null,null,null,null,null,null,null,null,null,null,null,null,null,null,null,null,null,null,null,null,null,null,null,null,null,null,null,null,null,null,null,null,242,null,null,"杖",false,null,{"$f":"IF(CF242=TRUE,CE242,\"\")","v":""},{"$f":"IF(CG243=TRUE,CD243,\"\")","v":""},{"$f":"MID(CJ243,2,200)","v":""},null,null,null,{"$f":"IF(CJ242=\"\",1,0)","v":1},null,null,null,false]
[null,null,null,null,null,null,null,null,null,null,null,null,null,null,null,null,null,null,null,null,null,null,null,null,null,null,null,null,null,null,null,null,null,null,null,null,null,null,null,null,null,null,null,null,null,null,null,null,null,null,null,null,null,null,null,null,null,null,null,null,null,null,null,null,null,null,null,null,null,null,null,null,null,null,null,null,null,null,null,243,null,"車いす","独歩",false,false,{"$f":"IF(CF243=TRUE,CE243,\"\")","v":""},"計算用",{"$f":"IF(CI242<>\"\",\"，\"& CI242,\"\")& IF(CH239<>\"\",\"，\"& CH239,\"\")& IF(CH240<>\"\",\"，\"& CH240,\"\")&IF(CH241<>\"\",\"，\"& CH241,\"\") &IF(CH242<>\"\",\"，\"& CH242,\"\")&IF(CH243<>\"\",\"，\"& CH243,\"\")","v":""},null,null,null,null,null,null,null,false,false]
[null,null,null,null,null,null,null,null,null,null,null,null,null,null,null,null,null,null,null,null,null,null,null,null,null,null,null,null,null,null,null,null,null,null,null,null,null,null,null,null,null,null,null,null,null,null,null,null,null,null,null,null,null,null,null,null,null,null,null,null,null,null,null,null,null,null,null,null,null,null,null,null,null,null,null,null,null,null,null,244,"筋力低下","有無",null,0,"1:無 2:有",{"$f":"IF(CF244<>\"\",LOOKUP(CF244,{0,1,2},{\"\",\"無\",\"有\"}),\"\")","v":""},null,null,null,null,null,{"$f":"IF(CH244=\"\",1,0)","v":1},null,"維持期",{"$f":"IF($BX$10=FALSE,IF(CO244=0,FALSE,IF(CO244<BX$1,TRUE,FALSE)))","v":false},0]
[null,null,null,null,null,null,null,null,null,null,null,null,null,null,null,null,null,null,null,null,null,null,null,null,null,null,null,null,null,null,null,null,null,null,null,null,null,null,null,null,null,null,null,null,null,null,null,null,null,null,null,null,null,null,null,null,null,null,null,null,null,null,null,null,null,null,null,null,null,null,null,null,null,null,null,null,null,null,null,245,null,"部位",null,{"$f":"BE29","v":0},null,{"$f":"IF(CF245=0,\"\",CF245)","v":""},null,null,null,null,null,{"$f":"IF(CF244=2,IF(CH245=\"\",1,0),0)","v":0},null,"維持期",false]
[null,null,null,null,null,null,null,null,null,null,null,null,null,null,null,null,null,null,null,null,null,null,null,null,null,null,null,null,null,null,null,null,null,null,null,null,null,null,null,null,null,null,null,null,null,null,null,null,null,null,null,null,null,null,null,null,null,null,null,null,null,null,null,null,null,null,null,null,null,null,null,null,null,null,null,null,null,null,null,246,null,"程度",null,0,"1:重度 2:中度 3:軽度",{"$f":"IF(CF246<>\"\",LOOKUP(CF246,{0,1,2,3},{\"\",\"重度\",\"中度\",\"軽度\"}),\"\")","v":""},null,null,null,null,null,{"$f":"IF(CF244=2,IF(CH246=\"\",1,0),0)","v":0},null,"維持期",false,0]
[null,null,null,null,null,null,null,null,null,null,null,null,null,null,null,null,null,null,null,null,null,null,null,null,null,null,null,null,null,null,null,null,null,null,null,null,null,null,null,null,null,null,null,null,null,null,null,null,null,null,null,null,null,null,null,null,null,null,null,null,null,null,null,null,null,null,null,null,null,null,null,null,null,null,null,null,null,null,null,247,"可動域制限","有無",null,0,"1:無 2:有",{"$f":"IF(CF247<>\"\",LOOKUP(CF247,{0,1,2},{\"\",\"無\",\"有\"}),\"\")","v":""},null,null,null,null,null,{"$f":"IF(CH247=\"\",1,0)","v":1},null,"維持期",false,0]
[null,null,null,null,null,null,null,null,null,null,null,null,null,null,null,null,null,null,null,null,null,null,null,null,null,null,null,null,null,null,null,null,null,null,null,null,null,null,null,null,null,null,null,null,null,null,null,null,null,null,null,null,null,null,null,null,null,null,null,null,null,null,null,null,null,null,null,null,null,null,null,null,null,null,null,null,null,null,null,248,null,"部位",null,{"$f":"BE30","v":0},null,{"$f":"IF(CF248=0,\"\",CF248)","v":""},null,null,null,null,null,{"$f":"IF(CF247=2,IF(CH248=\"\",1,0),0)","v":0},null,"維持期",false]
[null,null,null,null,null,null,null,null,null,null,null,null,null,null,null,null,null,null,null,null,null,null,null,null,null,null,null,null,null,null,null,null,null,null,null,null,null,null,null,null,null,null,null,null,null,null,null,null,null,null,null,null,null,null,null,null,null,null,null,null,null,null,null,null,null,null,null,null,null,null,null,null,null,null,null,null,null,null,null,249,null,"その他テキスト",null,{"$f":"BG30","v":0},null,{"$f":"IF(CF249=0,\"\",CF249)","v":""},null,null,null,null,null,{"$f":"IF(CF248=\"他：\",IF(CH249=\"\",1,0),0)","v":0},null,"維持期",false]
[null,null,null,null,null,null,null,null,null,null,null,null,null,null,null,null,null,null,null,null,null,null,null,null,null,null,null,null,null,null,null,null,null,null,null,null,null,null,null,null,null,null,null,null,null,null,null,null,null,null,null,null,null,null,null,null,null,null,null,null,null,null,null,null,null,null,null,null,null,null,null,null,null,null,null,null,null,null,null,250,"疼痛対策","有無",null,0,"1:無 2:有",{"$f":"IF(CF250<>\"\",LOOKUP(CF250,{0,1,2},{\"\",\"無\",\"有\"}),\"\")","v":""},null,null,null,null,null,{"$f":"IF(CH250=\"\",1,0)","v":1},null,"維持期",false,0]
[null,null,null,null,null,null,null,null,null,null,null,null,null,null,null,null,null,null,null,null,null,null,null,null,null,null,null,null,null,null,null,null,null,null,null,null,null,null,null,null,null,null,null,null,null,null,null,null,null,null,null,null,null,null,null,null,null,null,null,null,null,null,null,null,null,null,null,null,null,null,null,null,null,null,null,null,null,null,null,251,null,"部位",null,{"$f":"BE31","v":0},null,{"$f":"IF(CF251=0,\"\",CF251)","v":""},null,null,null,null,null,{"$f":"IF(CF250=2,IF(CH251=\"\",1,0),0)","v":0},null,"維持期",false]
[null,null,null,null,null,null,null,null,null,null,null,null,null,null,null,null,null,null,null,null,null,null,null,null,null,null,null,null,null,null,null,null,null,null,null,null,null,null,null,null,null,null,null,null,null,null,null,null,null,null,null,null,null,null,null,null,null,null,null,null,null,null,null,null,null,null,null,null,null,null,null,null,null,null,null,null,null,null,null,252,null,null,"内服",false,null,{"$f":"IF(CF252=TRUE,CE252,\"\")","v":""},null,null,null,null,null,null,null,"維持期",false,false]
[null,null,null,null,null,null,null,null,null,null,null,null,null,null,null,null,null,null,null,null,null,null,null,null,null,null,null,null,null,null,null,null,null,null,null,null,null,null,null,null,null,null,null,null,null,null,null,null,null,null,null,null,null,null,null,null,null,null,null,null,null,null,null,null,null,null,null,null,null,null,null,null,null,null,null,null,null,null,null,253,null,null,"坐薬",false,null,{"$f":"IF(CF253=TRUE,CE253,\"\")","v":""},null,null,null,null,null,null,null,null,null,false]
[null,null,null,null,null,null,null,null,null,null,null,null,null,null,null,null,null,null,null,null,null,null,null,null,null,null,null,null,null,null,null,null,null,null,null,null,null,null,null,null,null,null,null,null,null,null,null,null,null,null,null,null,null,null,null,null,null,null,null,null,null,null,null,null,null,null,null,null,null,null,null,null,null,null,null,null,null,null,null,254,null,null,"注射",false,null,{"$f":"IF(CF254=TRUE,CE254,\"\")","v":""},null,null,null,null,null,null,null,null,null,false]
[null,null,null,null,null,null,null,null,null,null,null,null,null,null,null,null,null,null,null,null,null,null,null,null,null,null,null,null,null,null,null,null,null,null,null,null,null,null,null,null,null,null,null,null,null,null,null,null,null,null,null,null,null,null,null,null,null,null,null,null,null,null,null,null,null,null,null,null,null,null,null,null,null,null,null,null,null,null,null,255,null,null,"外用薬",false,null,{"$f":"IF(CF255=TRUE,CE255,\"\")","v":""},null,null,null,null,null,null,null,null,null,false]
[null,null,null,null,null,null,null,null,null,null,null,null,null,null,null,null,null,null,null,null,null,null,null,null,null,null,null,null,null,null,null,null,null,null,null,null,null,null,null,null,null,null,null,null,null,null,null,null,null,null,null,null,null,null,null,null,null,null,null,null,null,null,null,null,null,null,null,null,null,null,null,null,null,null,null,null,null,null,null,256,null,null,"テキスト",{"$f":"BL32","v":0},null,{"$f":"IF(CF256=0,\"\",CF256)","v":""},null,{"$f":"MID(CJ257,2,200)","v":""},null,null,null,{"$f":"IF(CF255=TRUE,IF(CH256=\"\",1,0),0)","v":0},null,"維持期",{"$f":"IF($BX$10=FALSE,IF(CO256=0,FALSE,IF(CO256<BX$1,TRUE,FALSE)))","v":false}]
[null,null,null,null,null,null,null,null,null,null,null,null,null,null,null,null,null,null,null,null,null,null,null,null,null,null,null,null,null,null,null,null,null,null,null,null,null,null,null,null,null,null,null,null,null,null,null,null,null,null,null,null,null,null,null,null,null,null,null,null,null,null,null,null,null,null,null,null,null,null,null,null,null,null,null,null,null,null,null,257,null,null,"対策不要（自制内）",false,null,{"$f":"IF(CF257=TRUE,CE257,\"\")","v":""},"計算用",{"$f":"IF(CH252<>\"\",\"，\"& CH252,\"\")& IF(CH253<>\"\",\"，\"& CH253,\"\")& IF(CH254<>\"\",\"，\"& CH254,\"\")& IF(CH255<>\"\",\"，\" & CH255 & IF(CH256<>\"\",\"(\" & CH256 & \")\",\"\"),\"\") &IF(CH257<>\"\",\"，\"& CH257,\"\")","v":""},null,null,null,{"$f":"IF(CF250=2,IF(CJ256=\"\",1,0),0)","v":0},null,null,null,false]
[null,null,null,null,null,null,null,null,null,null,null,null,null,null,null,null,null,null,null,null,null,null,null,null,null,null,null,null,null,null,null,null,null,null,null,null,null,null,null,null,null,null,null,null,null,null,null,null,null,null,null,null,null,null,null,null,null,null,null,null,null,null,null,null,null,null,null,null,null,null,null,null,null,null,null,null,null,null,null,258,"内科管理","有無",null,0,"1:無 2:有",{"$f":"IF(CF258<>\"\",LOOKUP(CF258,{0,1,2},{\"\",\"無\",\"有\"}),\"\")","v":""},null,null,null,null,null,{"$f":"IF(CH258=\"\",1,0)","v":1},null,"維持期",{"$f":"IF($BX$10=FALSE,IF(CO258=0,FALSE,IF(CO258<BX$1,TRUE,FALSE)))","v":false},0]
[null,null,null,null,null,null,null,null,null,null,null,null,null,null,null,null,null,null,null,null,null,null,null,null,null,null,null,null,null,null,null,null,null,null,null,null,null,null,null,null,null,null,null,null,null,null,null,null,null,null,null,null,null,null,null,null,null,null,null,null,null,null,null,null,null,null,null,null,null,null,null,null,null,null,null,null,null,null,null,259,null,"テキスト",null,{"$f":"BC34","v":0},null,{"$f":"IF(CF259=0,\"\",\"（\" & CF259 & \"）\" )","v":""},null,null,null,null,null,{"$f":"IF(CF258=2,IF(CH259=\"\",1,0),0)","v":0},null,"維持期",false]
[null,null,null,null,null,null,null,null,null,null,null,null,null,null,null,null,null,null,null,null,null,null,null,null,null,null,null,null,null,null,null,null,null,null,null,null,null,null,null,null,null,null,null,null,null,null,null,null,null,null,null,null,null,null,null,null,null,null,null,null,null,null,null,null,null,null,null,null,null,null,null,null,null,null,null,null,null,null,null,260,"医療処置","有無",null,0,"1:無 2:有",{"$f":"IF(CF260<>\"\",LOOKUP(CF260,{0,1,2},{\"\",\"無\",\"有\"}),\"\")","v":""},null,null,null,null,null,{"$f":"IF(CH260=\"\",1,0)","v":1},null,"維持期",false,0]
[null,null,null,null,null,null,null,null,null,null,null,null,null,null,null,null,null,null,null,null,null,null,null,null,null,null,null,null,null,null,null,null,null,null,null,null,null,null,null,null,null,null,null,null,null,null,null,null,null,null,null,null,null,null,null,null,null,null,null,null,null,null,null,null,null,null,null,null,null,null,null,null,null,null,null,null,null,null,null,261,null,"テキスト",null,{"$f":"BC35","v":0},null,{"$f":"IF(CF261=0,\"\",\"（\" & CF261 & \"）\" )","v":""},null,null,null,null,null,{"$f":"IF(CF260=2,IF(CH261=\"\",1,0),0)","v":0},null,"維持期",false]
[null,null,null,null,null,null,null,null,null,null,null,null,null,null,null,null,null,null,null,null,null,null,null,null,null,null,null,null,null,null,null,null,null,null,null,null,null,null,null,null,null,null,null,null,null,null,null,null,null,null,null,null,null,null,null,null,null,null,null,null,null,null,null,null,null,null,null,null,null,null,null,null,null,null,null,null,null,null,null,262,"検査","有無",null,0,"1:無 2:有",{"$f":"IF(CF262<>\"\",LOOKUP(CF262,{0,1,2},{\"\",\"無\",\"有\"}),\"\")","v":""},null,null,null,null,null,{"$f":"IF(CH262=\"\",1,0)","v":1},null,"維持期",false,0]
[null,null,null,null,null,null,null,null,null,null,null,null,null,null,null,null,null,null,null,null,null,null,null,null,null,null,null,null,null,null,null,null,null,null,null,null,null,null,null,null,null,null,null,null,null,null,null,null,null,null,null,null,null,null,null,null,null,null,null,null,null,null,null,null,null,null,null,null,null,null,null,null,null,null,null,null,null,null,null,263,null,"テキスト",null,{"$f":"BC36","v":0},null,{"$f":"IF(CF263=0,\"\",\"（\" & CF263 & \"）\" )","v":""},null,null,null,null,null,{"$f":"IF(CF262=2,IF(CH263=\"\",1,0),0)","v":0},null,"維持期",false]
[null,null,null,null,null,null,null,null,null,null,null,null,null,null,null,null,null,null,null,null,null,null,null,null,null,null,null,null,null,null,null,null,null,null,null,null,null,null,null,null,null,null,null,null,null,null,null,null,null,null,null,null,null,null,null,null,null,null,null,null,null,null,null,null,null,null,null,null,null,null,null,null,null,null,null,null,null,null,null,264,"食事","種類",null,0,"1:普通 2:治療食",{"$f":"IF(CF264<>\"\",LOOKUP(CF264,{0,1,2},{\"\",\"普通\",\"治療食\"}),\"\")","v":""},null,null,null,null,null,{"$f":"IF(CH264=\"\",1,0)","v":1},null,"維持期",false,0]
[null,null,null,null,null,null,null,null,null,null,null,null,null,null,null,null,null,null,null,null,null,null,null,null,null,null,null,null,null,null,null,null,null,null,null,null,null,null,null,null,null,null,null,null,null,null,null,null,null,null,null,null,null,null,null,null,null,null,null,null,null,null,null,null,null,null,null,null,null,null,null,null,null,null,null,null,null,null,null,265,null,"テキスト",null,{"$f":"BE37","v":0},null,{"$f":"IF(CF265=0,\"\",\"（\" & CF265 & \"）\" )","v":""},null,null,null,null,null,{"$f":"IF(CF264=2,IF(CH265=\"\",1,0),0)","v":0},null,"維持期",false]
[null,null,null,null,null,null,null,null,null,null,null,null,null,null,null,null,null,null,null,null,null,null,null,null,null,null,null,null,null,null,null,null,null,null,null,null,null,null,null,null,null,null,null,null,null,null,null,null,null,null,null,null,null,null,null,null,null,null,null,null,null,null,null,null,null,null,null,null,null,null,null,null,null,null,null,null,null,null,null,266,null,"特別な栄養管理","有無",0,"1:無 2:有",{"$f":"IF(CF266<>\"\",LOOKUP(CF266,{0,1,2},{\"\",\"無\",\"有\"}),\"\")","v":""}]
[null,null,null,null,null,null,null,null,null,null,null,null,null,null,null,null,null,null,null,null,null,null,null,null,null,null,null,null,null,null,null,null,null,null,null,null,null,null,null,null,null,null,null,null,null,null,null,null,null,null,null,null,null,null,null,null,null,null,null,null,null,null,null,null,null,null,null,null,null,null,null,null,null,null,null,null,null,null,null,267,"排泄","種類",null,0,"1:トイレ 2:P-トイレ 3:おむつ 4:その他",{"$f":"IF(CF267<>\"\",LOOKUP(CF267,{0,1,2,3,4},{\"\",\"トイレ\",\"P-トイレ\",\"おむつ\",\"その他\"}),\"\")","v":""},null,null,null,null,null,{"$f":"IF(CH267=\"\",1,0)","v":1},null,"維持期",false,0]
[null,null,null,null,null,null,null,null,null,null,null,null,null,null,null,null,null,null,null,null,null,null,null,null,null,null,null,null,null,null,null,null,null,null,null,null,null,null,null,null,null,null,null,null,null,null,null,null,null,null,null,null,null,null,null,null,null,null,null,null,null,null,null,null,null,null,null,null,null,null,null,null,null,null,null,null,null,null,null,268,null,null,"テキスト",{"$f":"BL39","v":0},null,{"$f":"IF(CF268=0,\"\",\"（\" & CF268 & \"）\" )","v":""},null,null,null,null,null,{"$f":"IF(CF267=4,IF(CH268=\"\",1,0),0)","v":0},null,"維持期",false]
[null,null,null,null,null,null,null,null,null,null,null,null,null,null,null,null,null,null,null,null,null,null,null,null,null,null,null,null,null,null,null,null,null,null,null,null,null,null,null,null,null,null,null,null,null,null,null,null,null,null,null,null,null,null,null,null,null,null,null,null,null,null,null,null,null,null,null,null,null,null,null,null,null,null,null,null,null,null,null,269,null,"自立度",null,0,"1:自立 2:一部介助 3:全介助",{"$f":"IF(CF269<>\"\",LOOKUP(CF269,{0,1,2,3},{\"\",\"自立\",\"一部介助\",\"全介助\"}),\"\")","v":""},null,null,null,null,null,{"$f":"IF(CH269=\"\",1,0)","v":1},null,"維持期",false,0]
[null,null,null,null,null,null,null,null,null,null,null,null,null,null,null,null,null,null,null,null,null,null,null,null,null,null,null,null,null,null,null,null,null,null,null,null,null,null,null,null,null,null,null,null,null,null,null,null,null,null,null,null,null,null,null,null,null,null,null,null,null,null,null,null,null,null,null,null,null,null,null,null,null,null,null,null,null,null,null,270,"清潔","種類",null,0,"1:入浴 2:シャワー 3:清拭",{"$f":"IF(CF270<>\"\",LOOKUP(CF270,{0,1,2,3},{\"\",\"入浴\",\"シャワー\",\"清拭\"}),\"\")","v":""},null,null,null,null,null,{"$f":"IF(CH270=\"\",1,0)","v":1},null,"維持期",false,0]
[null,null,null,null,null,null,null,null,null,null,null,null,null,null,null,null,null,null,null,null,null,null,null,null,null,null,null,null,null,null,null,null,null,null,null,null,null,null,null,null,null,null,null,null,null,null,null,null,null,null,null,null,null,null,null,null,null,null,null,null,null,null,null,null,null,null,null,null,null,null,null,null,null,null,null,null,null,null,null,271,null,"自立度",null,0,"1:自立 2:一部介助 3:全介助",{"$f":"IF(CF271<>\"\",LOOKUP(CF271,{0,1,2,3},{\"\",\"自立\",\"一部介助\",\"全介助\"}),\"\")","v":""},null,null,null,null,null,{"$f":"IF(CH271=\"\",1,0)","v":1},null,"維持期",false,0]
[null,null,null,null,null,null,null,null,null,null,null,null,null,null,null,null,null,null,null,null,null,null,null,null,null,null,null,null,null,null,null,null,null,null,null,null,null,null,null,null,null,null,null,null,null,null,null,null,null,null,null,null,null,null,null,null,null,null,null,null,null,null,null,null,null,null,null,null,null,null,null,null,null,null,null,null,null,null,null,272,"認知症","有無",null,0,"1:無 2:有",{"$f":"IF(CF272<>\"\",LOOKUP(CF272,{0,1,2},{\"\",\"無\",\"有\"}),\"\")","v":""},null,null,null,null,null,{"$f":"IF(CH272=\"\",1,0)","v":1},null,"維持期",false,0]
[null,null,null,null,null,null,null,null,null,null,null,null,null,null,null,null,null,null,null,null,null,null,null,null,null,null,null,null,null,null,null,null,null,null,null,null,null,null,null,null,null,null,null,null,null,null,null,null,null,null,null,null,null,null,null,null,null,null,null,null,null,null,null,null,null,null,null,null,null,null,null,null,null,null,null,null,null,null,null,273,null,"周辺症状なし",null,false,null,{"$f":"IF(CF273=TRUE,CD273,\"\")","v":""},null,null,null,null,null,null,null,"維持期",false,false]
[null,null,null,null,null,null,null,null,null,null,null,null,null,null,null,null,null,null,null,null,null,null,null,null,null,null,null,null,null,null,null,null,null,null,null,null,null,null,null,null,null,null,null,null,null,null,null,null,null,null,null,null,null,null,null,null,null,null,null,null,null,null,null,null,null,null,null,null,null,null,null,null,null,null,null,null,null,null,null,274,null,"徘徊",null,false,null,{"$f":"IF(CF274=TRUE,CD274,\"\")","v":""},null,null,null,null,null,null,null,null,null,false]
[null,null,null,null,null,null,null,null,null,null,null,null,null,null,null,null,null,null,null,null,null,null,null,null,null,null,null,null,null,null,null,null,null,null,null,null,null,null,null,null,null,null,null,null,null,null,null,null,null,null,null,null,null,null,null,null,null,null,null,null,null,null,null,null,null,null,null,null,null,null,null,null,null,null,null,null,null,null,null,275,null,"暴言",null,false,null,{"$f":"IF(CF275=TRUE,CD275,\"\")","v":""},null,null,null,null,null,null,null,null,null,false]
[null,null,null,null,null,null,null,null,null,null,null,null,null,null,null,null,null,null,null,null,null,null,null,null,null,null,null,null,null,null,null,null,null,null,null,null,null,null,null,null,null,null,null,null,null,null,null,null,null,null,null,null,null,null,null,null,null,null,null,null,null,null,null,null,null,null,null,null,null,null,null,null,null,null,null,null,null,null,null,276,null,"介護抵抗",null,false,null,{"$f":"IF(CF276=TRUE,CD276,\"\")","v":""},null,{"$f":"MID(CJ277,2,200)","v":""},null,null,null,null,null,null,null,false]
[null,null,null,null,null,null,null,null,null,null,null,null,null,null,null,null,null,null,null,null,null,null,null,null,null,null,null,null,null,null,null,null,null,null,null,null,null,null,null,null,null,null,null,null,null,null,null,null,null,null,null,null,null,null,null,null,null,null,null,null,null,null,null,null,null,null,null,null,null,null,null,null,null,null,null,null,null,null,null,277,null,"その他",null,false,null,{"$f":"IF(CF277=TRUE,CD277,\"\")","v":""},"計算用",{"$f":"IF(CH273<>\"\",\"，\"& CH273,\"\")& IF(CH274<>\"\",\"，\"& CH274,\"\")&IF(CH275<>\"\",\"，\"& CH275,\"\") &IF(CH276<>\"\",\"，\"& CH276,\"\")&IF(CH277<>\"\",\"，\"& CH277,\"\")","v":""},null,null,null,{"$f":"IF(CF272=2,IF(CJ276=\"\",1,0),0)","v":0},null,null,null,false]
[null,null,null,null,null,null,null,null,null,null,null,null,null,null,null,null,null,null,null,null,null,null,null,null,null,null,null,null,null,null,null,null,null,null,null,null,null,null,null,null,null,null,null,null,null,null,null,null,null,null,null,null,null,null,null,null,null,null,null,null,null,null,null,null,null,null,null,null,null,null,null,null,null,null,null,null,null,null,null,278,null,"HDS-R",null,{"$f":"IF(BA44=\"\",\"\",BA44)","v":""},null,{"$f":"CF278","v":""},null,null,null,null,null,{"$f":"IF(CH278=\"\",1,0)","v":1},null,"維持期",{"$f":"IF($BX$10=FALSE,IF(CO278=0,FALSE,IF(CO278<BX$1,TRUE,FALSE)))","v":false}]
[null,null,null,null,null,null,null,null,null,null,null,null,null,null,null,null,null,null,null,null,null,null,null,null,null,null,null,null,null,null,null,null,null,null,null,null,null,null,null,null,null,null,null,null,null,null,null,null,null,null,null,null,null,null,null,null,null,null,null,null,null,null,null,null,null,null,null,null,null,null,null,null,null,null,null,null,null,null,null,279,"10m歩行","秒数",null,{"$f":"AX45","v":0},null,{"$f":"IF(CF279=0,\"\",CF279 & \"秒\")","v":""},null,null,null,null,null,{"$f":"IF(CH279=\"\",1,0)","v":1},null,"維持期",false]
[null,null,null,null,null,null,null,null,null,null,null,null,null,null,null,null,null,null,null,null,null,null,null,null,null,null,null,null,null,null,null,null,null,null,null,null,null,null,null,null,null,null,null,null,null,null,null,null,null,null,null,null,null,null,null,null,null,null,null,null,null,null,null,null,null,null,null,null,null,null,null,null,null,null,null,null,null,null,null,280,null,"手段",null,0,"1:独歩 2:杖 3:シルバーカー 4:歩行器等",{"$f":"IF(CF280<>\"\",LOOKUP(CF280,{0,1,2,3,4},{\"\",\"（手段：独歩）\",\"（手段：杖）\",\"（手段：シルバーカー）\",\"（手段：歩行器等）\"}),\"\")","v":""},null,null,null,null,null,{"$f":"IF(CH280=\"\",1,0)","v":1},null,"維持期",false,0]
[null,null,null,null,null,null,null,null,null,null,null,null,null,null,null,null,null,null,null,null,null,null,null,null,null,null,null,null,null,null,null,null,null,null,null,null,null,null,null,null,null,null,null,null,null,null,null,null,null,null,null,null,null,null,null,null,null,null,null,null,null,null,null,null,null,null,null,null,null,null,null,null,null,null,null,null,null,null,null,281,null,"実施",null,0,"1:実施 2:未実施",{"$f":"IF(CF281<>\"\",LOOKUP(CF281,{0,1,2},{\"\",\"実施\",\"未実施\"}),\"\")","v":""},null,null,null,null,null,{"$f":"IF(CH281=\"\",1,0)","v":1},null,"維持期",false,0]
[null,null,null,null,null,null,null,null,null,null,null,null,null,null,null,null,null,null,null,null,null,null,null,null,null,null,null,null,null,null,null,null,null,null,null,null,null,null,null,null,null,null,null,null,null,null,null,null,null,null,null,null,null,null,null,null,null,null,null,null,null,null,null,null,null,null,null,null,null,null,null,null,null,null,null,null,null,null,null,282,null,"実施日",null,{"$f":"BA46","v":"00:00:00"},null,{"$f":"IF(CF282=0,\"\",CF282)","v":""},null,null,null,null,null,{"$f":"IF(CF281=1,IF(CH282=\"\",1,0),0)","v":0},null,"維持期",false]
[null,null,null,null,null,null,null,null,null,null,null,null,null,null,null,null,null,null,null,null,null,null,null,null,null,null,null,null,null,null,null,null,null,null,null,null,null,null,null,null,null,null,null,null,null,null,null,null,null,null,null,null,null,null,null,null,null,null,null,null,null,null,null,null,null,null,null,null,null,null,null,null,null,null,null,null,null,null,null,283,"経過中転倒","有無",null,0,"1:無 2:有",{"$f":"IF(CF283<>\"\",LOOKUP(CF283,{0,1,2},{\"\",\"無\",\"有\"}),\"\")","v":""},null,null,null,null,null,{"$f":"IF(CH283=\"\",1,0)","v":1},null,"維持期",false,0]
[null,null,null,null,null,null,null,null,null,null,null,null,null,null,null,null,null,null,null,null,null,null,null,null,null,null,null,null,null,null,null,null,null,null,null,null,null,null,null,null,null,null,null,null,null,null,null,null,null,null,null,null,null,null,null,null,null,null,null,null,null,null,null,null,null,null,null,null,null,null,null,null,null,null,null,null,null,null,null,284,"離床センサー","有無",null,0,"1:無 2:有",{"$f":"IF(CF284<>\"\",LOOKUP(CF284,{0,1,2},{\"\",\"無\",\"有\"}),\"\")","v":""},null,null,null,null,null,{"$f":"IF(CH284=\"\",1,0)","v":1},null,"維持期",false,0]
[null,null,null,null,null,null,null,null,null,null,null,null,null,null,null,null,null,null,null,null,null,null,null,null,null,null,null,null,null,null,null,null,null,null,null,null,null,null,null,null,null,null,null,null,null,null,null,null,null,null,null,null,null,null,null,null,null,null,null,null,null,null,null,null,null,null,null,null,null,null,null,null,null,null,null,null,null,null,null,285,"手続き","状況",null,0,"1:手続中 2:未申請 3:対象外",{"$f":"IF(CF285<>\"\",LOOKUP(CF285,{0,1,2,3},{\"\",\"手続中\",\"未申請\",\"対象外\"}),\"\")","v":""},null,null,null,null,null,{"$f":"IF(CH285=\"\",1,0)","v":1},null,"維持期",false,0]
[null,null,null,null,null,null,null,null,null,null,null,null,null,null,null,null,null,null,null,null,null,null,null,null,null,null,null,null,null,null,null,null,null,null,null,null,null,null,null,null,null,null,null,null,null,null,null,null,null,null,null,null,null,null,null,null,null,null,null,null,null,null,null,null,null,null,null,null,null,null,null,null,null,null,null,null,null,null,null,286,null,"日時",null,{"$f":"BB49","v":"00:00:00"},null,{"$f":"IF(CF286=0,\"\",TEXT(CF286,\"yy年mm月\"))","v":""},null,null,null,null,null,{"$f":"IF(CF285=1,IF(CH286=\"\",1,0),0)","v":0},null,"維持期",false]
[null,null,null,null,null,null,null,null,null,null,null,null,null,null,null,null,null,null,null,null,null,null,null,null,null,null,null,null,null,null,null,null,null,null,null,null,null,null,null,null,null,null,null,null,null,null,null,null,null,null,null,null,null,null,null,null,null,null,null,null,null,null,null,null,null,null,null,null,null,null,null,null,null,null,null,null,null,null,null,287,null,"級",null,{"$f":"BF49","v":0},null,{"$f":"IF(CF287=0,\"\",CF287)","v":""},null,null,null,null,null,{"$f":"IF(CF285=1,IF(CH287=\"\",1,0),0)","v":0},null,"維持期",false]
[null,null,null,null,null,null,null,null,null,null,null,null,null,null,null,null,null,null,null,null,null,null,null,null,null,null,null,null,null,null,null,null,null,null,null,null,null,null,null,null,null,null,null,null,null,null,null,null,null,null,null,null,null,null,null,null,null,null,null,null,null,null,null,null,null,null,null,null,null,null,null,null,null,null,null,null,null,null,null,288,"回復期","介護保険","説明",0,"1:済 2:未施行",{"$f":"IF(CF288<>\"\",LOOKUP(CF288,{0,1,2},{\"\",\"済\",\"未施行\"}),\"\")","v":""},null,null,null,null,{"$f":"IF(CH288=\"\",1,0)","v":1},null,null,"維持期",false,0]
[null,null,null,null,null,null,null,null,null,null,null,null,null,null,null,null,null,null,null,null,null,null,null,null,null,null,null,null,null,null,null,null,null,null,null,null,null,null,null,null,null,null,null,null,null,null,null,null,null,null,null,null,null,null,null,null,null,null,null,null,null,null,null,null,null,null,null,null,null,null,null,null,null,null,null,null,null,null,null,289,null,null,"申請",0,"1:済 2:未施行",{"$f":"IF(CF289<>\"\",LOOKUP(CF289,{0,1,2},{\"\",\"済\",\"未施行\"}),\"\")","v":""},null,null,null,null,1,null,null,"維持期",false,0]
[null,null,null,null,null,null,null,null,null,null,null,null,null,null,null,null,null,null,null,null,null,null,null,null,null,null,null,null,null,null,null,null,null,null,null,null,null,null,null,null,null,null,null,null,null,null,null,null,null,null,null,null,null,null,null,null,null,null,null,null,null,null,null,null,null,null,null,null,null,null,null,null,null,null,null,null,null,null,null,290,null,null,"要介護申請",{"$f":"AR52","v":0},null,{"$f":"IF(CF290=0,\"\",CF290)","v":""},null,null,null,null,1,null,null,"維持期",false]
[null,null,null,null,null,null,null,null,null,null,null,null,null,null,null,null,null,null,null,null,null,null,null,null,null,null,null,null,null,null,null,null,null,null,null,null,null,null,null,null,null,null,null,null,null,null,null,null,null,null,null,null,null,null,null,null,null,null,null,null,null,null,null,null,null,null,null,null,null,null,null,null,null,null,null,null,null,null,null,291,null,"連携など","かかりつけ医への情報提供",0,"1:済 2:未施行",{"$f":"IF(CF291<>\"\",LOOKUP(CF291,{0,1,2},{\"\",\"済\",\"未施行\"}),\"\")","v":""},null,null,null,null,1,null,null,"維持期",false,0]
[null,null,null,null,null,null,null,null,null,null,null,null,null,null,null,null,null,null,null,null,null,null,null,null,null,null,null,null,null,null,null,null,null,null,null,null,null,null,null,null,null,null,null,null,null,null,null,null,null,null,null,null,null,null,null,null,null,null,null,null,null,null,null,null,null,null,null,null,null,null,null,null,null,null,null,null,null,null,null,292,null,null,"ケアマネへの情報提供",0,"1:済 2:未施行",{"$f":"IF(CF292<>\"\",LOOKUP(CF292,{0,1,2},{\"\",\"済\",\"未施行\"}),\"\")","v":""},null,null,null,null,1,null,null,"維持期",false,0]
[null,null,null,null,null,null,null,null,null,null,null,null,null,null,null,null,null,null,null,null,null,null,null,null,null,null,null,null,null,null,null,null,null,null,null,null,null,null,null,null,null,null,null,null,null,null,null,null,null,null,null,null,null,null,null,null,null,null,null,null,null,null,null,null,null,null,null,null,null,null,null,null,null,null,null,null,null,null,null,293,null,null,"退院・退所前訪問",0,"1:済 2:未施行",{"$f":"IF(CF293<>\"\",LOOKUP(CF293,{0,1,2},{\"\",\"済\",\"未施行\"}),\"\")","v":""},null,null,null,null,1,null,null,"維持期",false,0]
[null,null,null,null,null,null,null,null,null,null,null,null,null,null,null,null,null,null,null,null,null,null,null,null,null,null,null,null,null,null,null,null,null,null,null,null,null,null,null,null,null,null,null,null,null,null,null,null,null,null,null,null,null,null,null,null,null,null,null,null,null,null,null,null,null,null,null,null,null,null,null,null,null,null,null,null,null,null,null,294,null,null,"紹介元への情報提供",0,"1:済 2:未施行",{"$f":"IF(CF294<>\"\",LOOKUP(CF294,{0,1,2},{\"\",\"済\",\"未施行\"}),\"\")","v":""},null,null,null,null,1,null,null,"維持期",false,0]
[null,null,null,null,null,null,null,null,null,null,null,null,null,null,null,null,null,null,null,null,null,null,null,null,null,null,null,null,null,null,null,null,null,null,null,null,null,null,null,null,null,null,null,null,null,null,null,null,null,null,null,null,null,null,null,null,null,null,null,null,null,null,null,null,null,null,null,null,null,null,null,null,null,null,null,null,null,null,null,295,null,"－","在宅ケア希望者退院連絡票送付",0,"1:済 2:未施行",{"$f":"IF(CF295<>\"\",LOOKUP(CF295,{0,1,2},{\"\",\"済\",\"未施行\"}),\"\")","v":""},null,null,null,null,1,null,null,"維持期",false,0]
[null,null,null,null,null,null,null,null,null,null,null,null,null,null,null,null,null,null,null,null,null,null,null,null,null,null,null,null,null,null,null,null,null,null,null,null,null,null,null,null,null,null,null,null,null,null,null,null,null,null,null,null,null,null,null,null,null,null,null,null,null,null,null,null,null,null,null,null,null,null,null,null,null,null,null,null,null,null,null,296,"維持期","介護保険","説明",0,"1:済 2:未施行",{"$f":"IF(CF296<>\"\",LOOKUP(CF296,{0,1,2},{\"\",\"済\",\"未施行\"}),\"\")","v":""},null,null,null,null,null,{"$f":"IF(CH296=\"\",1,0)","v":1},null,"維持期",false,0]
[null,null,null,null,null,null,null,null,null,null,null,null,null,null,null,null,null,null,null,null,null,null,null,null,null,null,null,null,null,null,null,null,null,null,null,null,null,null,null,null,null,null,null,null,null,null,null,null,null,null,null,null,null,null,null,null,null,null,null,null,null,null,null,null,null,null,null,null,null,null,null,null,null,null,null,null,null,null,null,297,null,null,"申請",0,"1:済 2:未施行",{"$f":"IF(CF297<>\"\",LOOKUP(CF297,{0,1,2},{\"\",\"済\",\"未施行\"}),\"\")","v":""},null,null,null,null,null,1,null,"維持期",false,0]
[null,null,null,null,null,null,null,null,null,null,null,null,null,null,null,null,null,null,null,null,null,null,null,null,null,null,null,null,null,null,null,null,null,null,null,null,null,null,null,null,null,null,null,null,null,null,null,null,null,null,null,null,null,null,null,null,null,null,null,null,null,null,null,null,null,null,null,null,null,null,null,null,null,null,null,null,null,null,null,298,null,null,"要介護申請",{"$f":"BA52","v":0},null,{"$f":"IF(CF298=0,\"\",CF298)","v":""},null,null,null,null,null,1,null,"維持期",false]
[null,null,null,null,null,null,null,null,null,null,null,null,null,null,null,null,null,null,null,null,null,null,null,null,null,null,null,null,null,null,null,null,null,null,null,null,null,null,null,null,null,null,null,null,null,null,null,null,null,null,null,null,null,null,null,null,null,null,null,null,null,null,null,null,null,null,null,null,null,null,null,null,null,null,null,null,null,null,null,299,null,"連携など","かかりつけ医への情報提供",0,"1:済 2:未施行",{"$f":"IF(CF299<>\"\",LOOKUP(CF299,{0,1,2},{\"\",\"済\",\"未施行\"}),\"\")","v":""},null,null,null,null,null,1,null,"維持期",false,0]
[null,null,null,null,null,null,null,null,null,null,null,null,null,null,null,null,null,null,null,null,null,null,null,null,null,null,null,null,null,null,null,null,null,null,null,null,null,null,null,null,null,null,null,null,null,null,null,null,null,null,null,null,null,null,null,null,null,null,null,null,null,null,null,null,null,null,null,null,null,null,null,null,null,null,null,null,null,null,null,300,null,null,"ケアマネへの情報提供",0,"1:済 2:未施行",{"$f":"IF(CF300<>\"\",LOOKUP(CF300,{0,1,2},{\"\",\"済\",\"未施行\"}),\"\")","v":""},null,null,null,null,null,1,null,"維持期",false,0]
[null,null,null,null,null,null,null,null,null,null,null,null,null,null,null,null,null,null,null,null,null,null,null,null,null,null,null,null,null,null,null,null,null,null,null,null,null,null,null,null,null,null,null,null,null,null,null,null,null,null,null,null,null,null,null,null,null,null,null,null,null,null,null,null,null,null,null,null,null,null,null,null,null,null,null,null,null,null,null,301,null,null,"退院・退所前訪問",0,"1:済 2:未施行",{"$f":"IF(CF301<>\"\",LOOKUP(CF301,{0,1,2},{\"\",\"済\",\"未施行\"}),\"\")","v":""},null,null,null,null,null,1,null,"維持期",false,0]
[null,null,null,null,null,null,null,null,null,null,null,null,null,null,null,null,null,null,null,null,null,null,null,null,null,null,null,null,null,null,null,null,null,null,null,null,null,null,null,null,null,null,null,null,null,null,null,null,null,null,null,null,null,null,null,null,null,null,null,null,null,null,null,null,null,null,null,null,null,null,null,null,null,null,null,null,null,null,null,302,null,null,"紹介元への情報提供",0,"1:済 2:未施行",{"$f":"IF(CF302<>\"\",LOOKUP(CF302,{0,1,2},{\"\",\"済\",\"未施行\"}),\"\")","v":""},null,null,null,null,null,1,null,"維持期",false,0]
[null,null,null,null,null,null,null,null,null,null,null,null,null,null,null,null,null,null,null,null,null,null,null,null,null,null,null,null,null,null,null,null,null,null,null,null,null,null,null,null,null,null,null,null,null,null,null,null,null,null,null,null,null,null,null,null,null,null,null,null,null,null,null,null,null,null,null,null,null,null,null,null,null,null,null,null,null,null,null,303,"急性期病院","再診予定日",null,{"$f":"AP61","v":0},null,{"$f":"IF(CF303=0,\"\",CF303)","v":""},null,null,null,null,{"$f":"IF(CH303=\"\",1,0)","v":1},null,null,"維持期",false]
[null,null,null,null,null,null,null,null,null,null,null,null,null,null,null,null,null,null,null,null,null,null,null,null,null,null,null,null,null,null,null,null,null,null,null,null,null,null,null,null,null,null,null,null,null,null,null,null,null,null,null,null,null,null,null,null,null,null,null,null,null,null,null,null,null,null,null,null,null,null,null,null,null,null,null,null,null,null,null,304,"かかりつけ医","受診予定日",null,{"$f":"AJ63","v":0},null,{"$f":"IF(CF304=0,\"\",CF304)","v":""},null,null,null,null,{"$f":"IF(CH304=\"\",1,0)","v":1},null,null,"維持期",false]
[null,null,null,null,null,null,null,null,null,null,null,null,null,null,null,null,null,null,null,null,null,null,null,null,null,null,null,null,null,null,null,null,null,null,null,null,null,null,null,null,null,null,null,null,null,null,null,null,null,null,null,null,null,null,null,null,null,null,null,null,null,null,null,null,null,null,null,null,null,null,null,null,null,null,null,null,null,null,null,305,"退院時指導",null,null,0,null,{"$f":"IF(CF305<>\"\",LOOKUP(CF305,{0,1,2,3},{\"\",\"入所中の為、対象外\",\"済\",\"未施行\"}),\"\")","v":""},null,null,null,null,null,{"$f":"IF(CH305=\"\",1,0)","v":1},null,"維持期",false,0]
[null,null,null,null,null,null,null,null,null,null,null,null,null,null,null,null,null,null,null,null,null,null,null,null,null,null,null,null,null,null,null,null,null,null,null,null,null,null,null,null,null,null,null,null,null,null,null,null,null,null,null,null,null,null,null,null,null,null,null,null,null,null,null,null,null,null,null,null,null,null,null,null,null,null,null,null,null,null,null,306,"通所リハビリ訪問","済み",null,0,"1:済 2:未施行",{"$f":"IF(CF306<>\"\",LOOKUP(CF306,{0,1,2},{\"\",\"済\",\"未施行\"}),\"\")","v":""},null,null,null,null,null,1,null,"維持期",false,0]
[null,null,null,null,null,null,null,null,null,null,null,null,null,null,null,null,null,null,null,null,null,null,null,null,null,null,null,null,null,null,null,null,null,null,null,null,null,null,null,null,null,null,null,null,null,null,null,null,null,null,null,null,null,null,null,null,null,null,null,null,null,null,null,null,null,null,null,null,null,null,null,null,null,null,null,null,null,null,null,307,null,"テキスト",null,{"$f":"BK54","v":"00:00:00"},null,{"$f":"IF(CF307=0,\"\",CF307)","v":""},null,null,null,null,null,{"$f":"IF(CF306=1,IF(CH307=\"\",1,0),0)","v":0},null,"維持期",false]
[null,null,null,null,null,null,null,null,null,null,null,null,null,null,null,null,null,null,null,null,null,null,null,null,null,null,null,null,null,null,null,null,null,null,null,null,null,null,null,null,null,null,null,null,null,null,null,null,null,null,null,null,null,null,null,null,null,null,null,null,null,null,null,null,null,null,null,null,null,null,null,null,null,null,null,null,null,null,null,308,"サービス担当者会議","済み",null,0,"1:済 2:未施行",{"$f":"IF(CF308<>\"\",LOOKUP(CF308,{0,1,2},{\"\",\"済\",\"未施行\"}),\"\")","v":""},null,null,null,null,null,1,null,"維持期",false,0]
[null,null,null,null,null,null,null,null,null,null,null,null,null,null,null,null,null,null,null,null,null,null,null,null,null,null,null,null,null,null,null,null,null,null,null,null,null,null,null,null,null,null,null,null,null,null,null,null,null,null,null,null,null,null,null,null,null,null,null,null,null,null,null,null,null,null,null,null,null,null,null,null,null,null,null,null,null,null,null,309,null,"最終開催日",null,{"$f":"BL56","v":0},null,{"$f":"IF(CF309=0,\"\",CF309)","v":""},null,null,null,null,null,{"$f":"IF(CF308=1,IF(CH309=\"\",1,0),0)","v":0},null,"維持期",false]
[null,null,null,null,null,null,null,null,null,null,null,null,null,null,null,null,null,null,null,null,null,null,null,null,null,null,null,null,null,null,null,null,null,null,null,null,null,null,null,null,null,null,null,null,null,null,null,null,null,null,null,null,null,null,null,null,null,null,null,null,null,null,null,null,null,null,null,null,null,null,null,null,null,null,null,null,null,null,null,310,"サービス利用",null,null,0,null,{"$f":"IF(CF310<>\"\",LOOKUP(CF310,{0,1,2,3},{\"\",\"利用中\",\"対象だが、利用されず\",\"対象外\"}),\"\")","v":""},null,null,null,null,null,1,null,"維持期",false,0]
[null,null,null,null,null,null,null,null,null,null,null,null,null,null,null,null,null,null,null,null,null,null,null,null,null,null,null,null,null,null,null,null,null,null,null,null,null,null,null,null,null,null,null,null,null,null,null,null,null,null,null,null,null,null,null,null,null,null,null,null,null,null,null,null,null,null,null,null,null,null,null,null,null,null,null,null,null,null,null,311,"ケアマネージャー","事業所",null,{"$f":"BG58","v":0},null,{"$f":"IF(CF311=0,\"\",CF311)","v":""},null,null,null,null,null,{"$f":"IF(CF310=1,IF(CH311=\"\",1,0),0)","v":0},null,"維持期",false]
[null,null,null,null,null,null,null,null,null,null,null,null,null,null,null,null,null,null,null,null,null,null,null,null,null,null,null,null,null,null,null,null,null,null,null,null,null,null,null,null,null,null,null,null,null,null,null,null,null,null,null,null,null,null,null,null,null,null,null,null,null,null,null,null,null,null,null,null,null,null,null,null,null,null,null,null,null,null,null,312,null,"担当者",null,{"$f":"BO58","v":0},null,{"$f":"IF(CF312=0,\"\",CF312)","v":""},null,null,null,null,null,{"$f":"IF(CF310=1,IF(CH312=\"\",1,0),0)","v":0},null,"維持期",false]
[null,null,null,null,null,null,null,null,null,null,null,null,null,null,null,null,null,null,null,null,null,null,null,null,null,null,null,null,null,null,null,null,null,null,null,null,null,null,null,null,null,null,null,null,null,null,null,null,null,null,null,null,null,null,null,null,null,null,null,null,null,null,null,null,null,null,null,null,null,null,null,null,null,null,null,null,null,null,null,313,"保険",null,null,0,null,{"$f":"IF(CF313<>\"\",LOOKUP(CF313,{0,1,2},{\"\",\"医療保険\",\"介護保険\"}),\"\")","v":""},null,null,null,null,null,{"$f":"IF(CH313=\"\",1,0)","v":1},null,"維持期",false,0]
[null,null,null,null,null,null,null,null,null,null,null,null,null,null,null,null,null,null,null,null,null,null,null,null,null,null,null,null,null,null,null,null,null,null,null,null,null,null,null,null,null,null,null,null,null,null,null,null,null,null,null,null,null,null,null,null,null,null,null,null,null,null,null,null,null,null,null,null,null,null,null,null,null,null,null,null,null,null,null,314,null,"医療保険",null,0,null,{"$f":"IF(CF314<>\"\",LOOKUP(CF314,{0,1,2,3},{\"\",\"通院リハビリ\",\"訪問リハビリ\",\"訪問看護\"}),\"\")","v":""},null,null,null,null,null,{"$f":"IF(CF313=1,IF(CH314=\"\",1,0),0)","v":0},null,"維持期",false,0]
[null,null,null,null,null,null,null,null,null,null,null,null,null,null,null,null,null,null,null,null,null,null,null,null,null,null,null,null,null,null,null,null,null,null,null,null,null,null,null,null,null,null,null,null,null,null,null,null,null,null,null,null,null,null,null,null,null,null,null,null,null,null,null,null,null,null,null,null,null,null,null,null,null,null,null,null,null,null,null,315,null,"介護保険",null,0,null,{"$f":"IF(CF315<>\"\",LOOKUP(CF315,{0,1,2,3,4,5,6,7},{\"\",\"通所リハビリ\",\"通所介護　\",\"訪問リハビリ\",\"訪問看護\",\"訪問介護\",\"福祉用具\",\"住宅改修\"}),\"\")","v":""},null,null,null,null,null,{"$f":"IF(CF313=2,IF(CH315=\"\",1,0),0)","v":0},null,"維持期",{"$f":"IF($BX$10=FALSE,IF(CO315=0,FALSE,IF(CO315<BX$1,TRUE,FALSE)))","v":false},0]
[null,null,null,null,null,null,null,null,null,null,null,null,null,null,null,null,null,null,null,null,null,null,null,null,null,null,null,null,null,null,null,null,null,null,null,null,null,null,null,null,null,null,null,null,null,null,null,null,null,null,null,null,null,null,null,null,null,null,null,null,null,null,null,null,null,null,null,null,null,null,null,null,null,null,null,null,null,null,null,316,"ID",null,null,null,null,{"$f":"IF(CF316=0,\"\",CF316)","v":""},null,null,null,null,null,null,null,"基本",{"$f":"IF($BX$7=FALSE,IF(CO316=0,FALSE,IF(CO316<BX$1,TRUE,FALSE)))","v":false}]
[null,null,null,null,null,null,null,null,null,null,null,null,null,null,null,null,null,null,null,null,null,null,null,null,null,null,null,null,null,null,null,null,null,null,null,null,null,null,null,null,null,null,null,null,null,null,null,null,null,null,null,null,null,null,null,null,null,null,null,null,null,null,null,null,null,null,null,null,null,null,null,null,null,null,null,null,null,null,null,317,"急性期入力完了日",null,null,null,null,""]
[null,null,null,null,null,null,null,null,null,null,null,null,null,null,null,null,null,null,null,null,null,null,null,null,null,null,null,null,null,null,null,null,null,null,null,null,null,null,null,null,null,null,null,null,null,null,null,null,null,null,null,null,null,null,null,null,null,null,null,null,null,null,null,null,null,null,null,null,null,null,null,null,null,null,null,null,null,null,null,318,"回復期入力完了日",null,null,null,null,""]
[null,null,null,null,null,null,null,null,null,null,null,null,null,null,null,null,null,null,null,null,null,null,null,null,null,null,null,null,null,null,null,null,null,null,null,null,null,null,null,null,null,null,null,null,null,null,null,null,null,null,null,null,null,null,null,null,null,null,null,null,null,null,null,null,null,null,null,null,null,null,null,null,null,null,null,null,null,null,null,319,"維持期入力完了日",null,null,null,null,""]
[null,null,null,null,null,null,null,null,null,null,null,null,null,null,null,null,null,null,null,null,null,null,null,null,null,null,null,null,null,null,null,null,null,null,null,null,null,null,null,null,null,null,null,null,null,null,null,null,null,null,null,null,null,null,null,null,null,null,null,null,null,null,null,null,null,null,null,null,null,null,null,null,null,null,null,null,null,null,null,320,"最終確認日時",null,null,null,null,""]
[null,null,null,null,null,null,null,null,null,null,null,null,null,null,null,null,null,null,null,null,null,null,null,null,null,null,null,null,null,null,null,null,null,null,null,null,null,null,null,null,null,null,null,null,null,null,null,null,null,null,null,null,null,null,null,null,null,null,null,null,null,null,null,null,null,null,null,null,null,null,null,null,null,null,null,null,null,null,null,321,"統計対象",null,null,null,null,""]
[null,null,null,null,null,null,null,null,null,null,null,null,null,null,null,null,null,null,null,null,null,null,null,null,null,null,null,null,null,null,null,null,null,null,null,null,null,null,null,null,null,null,null,null,null,null,null,null,null,null,null,null,null,null,null,null,null,null,null,null,null,null,null,null,null,null,null,null,null,null,null,null,null,null,null,null,null,null,null,null,null,null,null,null,null,null,null,null,{"$f":"SUM(CK2:CK316)","v":39},{"$f":"SUM(CL2:CL316)","v":34},{"$f":"SUM(CM2:CM316)","v":44},{"$f":"SUM(CN2:CN316)","v":43}]

{"sheet":"表印刷用","index":2,"n_rows":63,"n_cols":72,"rows_kept":63,"cut":false,"hidden":true,"merged":[[62,36,62,38],[6,26,6,44],[25,0,25,71],[21,65,21,69],[21,62,21,64],[22,65,22,69],[23,26,23,32],[24,26,24,29],[36,7,36,25],[20,31,20,37],[10,60,10,62],[16,26,16,30],[17,49,18,71],[10,63,10,67],[10,47,10,51],[14,27,14,44],[1,45,8,46],[9,45,15,46],[1,47,1,51],[10,53,10,59],[12,48,12,59],[3,47,3,51],[2,56,2,62],[4,61,4,63],[60,43,60,45],[43,53,43,54],[51,52,51,56],[57,63,57,65],[22,39,22,41],[51,49,51,51],[4,58,4,60],[4,53,4,57],[20,57,20,63],[21,52,21,54],[22,62,22,64],[31,50,31,71],[21,55,21,59],[20,49,20,56],[23,40,23,42],[19,49,19,50],[19,44,19,48],[22,52,22,54],[21,49,22,51],[20,41,20,47],[36,29,36,48],[36,52,36,71],[19,51,19,58],[53,62,53,68],[23,33,23,39],[21,39,21,41],[23,63,23,65],[23,49,23,55],[57,66,57,69],[55,63,55,69],[4,64,4,66],[4,47,4,51],[51,43,51,47],[23,56,23,62],[22,55,22,59],[4,67,4,71],[31,27,31,48],[55,58,55,62],[57,58,57,62],[57,49,57,57],[49,26,51,29],[45,29,45,32],[51,40,51,42],[45,52,45,55],[43,30,43,31],[52,26,55,29],[19,41,19,43],[17,26,18,48],[22,32,22,36],[19,28,19,35],[21,29,21,31],[21,32,21,36],[21,42,21,46],[22,42,22,46],[20,38,20,40],[33,0,33,3],[32,0,32,3],[23,15,23,17],[23,8,23,14],[23,0,23,7],[24,0,24,3],[31,5,31,25],[22,29,22,31],[21,19,21,23],[22,19,22,23],[21,4,21,6],[21,8,21,12],[22,8,22,12],[22,15,22,17],[22,4,22,6],[21,15,21,17],[21,26,22,28],[45,0,45,3],[47,0,47,3],[46,0,46,3],[48,0,48,3],[42,0,42,3],[41,0,41,3],[44,0,44,3],[50,1,54,8],[45,7,45,10],[38,0,38,3],[39,0,39,3],[34,0,34,3],[35,0,35,3],[12,0,14,3],[43,8,43,9],[43,0,43,3],[30,0,30,3],[29,0,29,3],[31,0,31,3],[21,0,22,3],[28,0,28,3],[40,0,40,3],[36,0,36,3],[37,0,37,3],[1,0,1,3],[6,0,9,3],[2,0,3,3],[4,0,4,3],[5,0,5,3],[17,0,18,25],[14,23,14,25],[11,6,11,21],[12,4,14,21],[8,19,8,20],[10,0,10,3],[11,0,11,3],[16,0,16,4],[15,0,15,3],[19,26,19,27],[20,26,20,30],[19,21,19,25],[19,2,19,9],[20,13,20,17],[20,0,20,4],[20,5,20,11],[20,18,20,24],[19,18,19,20],[19,0,19,1],[12,27,12,36],[13,27,13,44],[10,22,15,22],[10,23,11,25],[13,23,13,25],[12,23,12,25],[15,23,15,25],[15,27,15,44],[10,6,10,21],[1,26,1,43],[2,26,2,43],[2,4,2,6],[1,22,2,25],[1,4,1,21],[2,7,2,21],[5,4,5,11],[9,26,9,44],[9,19,9,20],[3,7,3,17],[4,4,4,5],[9,17,9,18],[7,22,9,25],[6,22,6,25],[8,17,8,18],[4,22,5,25],[6,4,9,16],[5,38,5,42],[3,26,3,44],[4,6,4,16],[4,39,4,42],[4,17,4,21],[3,22,3,25],[5,19,5,20]]}
[]
["住　所",null,null,null,{"$f":"'表　　　　　　　　　'!CH2","v":""},null,null,null,null,null,null,null,null,null,null,null,null,null,null,null,null,null,"診断名",null,null,null,{"$f":"'表　　　　　　　　　'!CH33  & \" 大腿骨\"& IF('表　　　　　　　　　'!CJ36=\"\", '表　　　　　　　　　'!CJ36 &\"近位部骨折\",'表　　　　　　　　　'!CJ36 &\"骨折\")","v":" 大腿骨近位部骨折"},null,null,null,null,null,null,null,null,null,null,null,null,null,null,null,null,null,null,"患者背景",null,"家族背景",null,null,null,null,null,{"$f":"'表　　　　　　　　　'!CH58  & '表　　　　　　　　　'!CH59","v":""}]
["氏名",null,null,null,"フリガナ",null,null,{"$f":"'表　　　　　　　　　'!CH3","v":""}]
[null,null,null,null,null,null,null,{"$f":"'表　　　　　　　　　'!CH4","v":""},null,null,null,null,null,null,null,null,null,null,null,null,null,null,"受傷日",null,null,null,{"$f":"'表　　　　　　　　　'!CH38","v":""},null,null,null,null,null,null,null,null,null,null,null,null,null,null,null,null,null,null,null,null,"介　護　者",null,null,null,null,null,{"$f":"'表　　　　　　　　　'!CH60","v":""},{"$f":"'表　　　　　　　　　'!CH61","v":""}]
["性別",null,null,null,null,null,null,null,null,null,null,null,null,null,null,null,null,{"$f":"\"性別：　\" & '表　　　　　　　　　'!CH5","v":"性別：　"},null,null,null,null,"受傷機転",null,null,null,{"$f":"'表　　　　　　　　　'!CH39 & '表　　　　　　　　　'!CH40","v":""},null,null,null,null,null,null,null,null,null,null,null,null,null,null,null,null,null,null,null,null,"キーパーソン：",null,null,null,null,null,{"$f":"'表　　　　　　　　　'!CH62","v":""},null,null,null,null,"（続柄）",null,null,{"$f":"'表　　　　　　　　　'!CH63","v":""},null,null,"（連絡先）",null,null,{"$f":"'表　　　　　　　　　'!CH64","v":""}]
["生年月日",null,null,null,{"$f":"IF(ISERROR('表　　　　　　　　　'!CH10),\"\",IF( TEXT('表　　　　　　　　　'!CH10,\"ge\") = \"t1\", \"大正元年\" & TEXT('表　　　　　　　　　'!CH10,\"m月d日\"), IF( TEXT('表　　　　　　　　　'!CH10,\"ge\") = \"s1\", \"昭和元年\" & TEXT('表　　　　　　　　　'!CH10,\"m月d日\"), IF( TEXT('表　　　　　　　　　'!CH10,\"ge\") = \"h1\", \"平成元年\" & TEXT('表　　　　　　　　　'!CH10,\"m月d日\"), TEXT('表　　　　　　　　　'!CH10,\"ggge年m月d日\")) ) ))","v":""},null,null,null,null,null,null,null,null,null,null,null,null,null,"満",{"$f":"'表　　　　　　　　　'!CH11","v":""},null,"歳",null,null,null,null,{"$f":"'表　　　　　　　　　'!CH41&'表　　　　　　　　　'!CH42","v":""},null,null,null,null,null,null,null,null,null,null,null,null,null,null,null,null,null,null,null,null,"自宅の家屋構造",null,null,null,null,null,{"$f":"'表　　　　　　　　　'!CH65","v":""}]
["現病歴",null,null,null,{"$f":"'表　　　　　　　　　'!CH12","v":""},null,null,null,null,null,null,null,null,null,null,null,null,null,null,null,null,null,"手術日",null,null,null,{"$f":"'表　　　　　　　　　'!CH43","v":""},null,null,null,null,null,null,null,null,null,null,null,null,null,null,null,null,null,null,null,null,null,"階",null,null,null,null,{"$f":"'表　　　　　　　　　'!CH66","v":""}]
[null,null,null,null,null,null,null,null,null,null,null,null,null,null,null,null,null,null,null,null,null,null,"術式",null,null,null,{"$f":"'表　　　　　　　　　'!CH44  & \"　　\" &  '表　　　　　　　　　'!CH45","v":"　　"},null,null,null,null,null,null,null,null,null,null,null,null,null,null,null,null,null,null,null,null,null,"エレベーター",null,null,null,null,{"$f":"'表　　　　　　　　　'!CH67","v":""}]
[null,null,null,null,null,null,null,null,null,null,null,null,null,null,null,null,null,"身長",null,{"$f":"'表　　　　　　　　　'!CH13","v":""},null,"㎝",null,null,null,null,null,null,null,null,null,null,null,null,null,null,null,null,null,null,null,null,null,null,null,null,null,null,"トイレ",null,null,null,null,{"$f":"'表　　　　　　　　　'!CH68","v":""}]
[null,null,null,null,null,null,null,null,null,null,null,null,null,null,null,null,null,"体重",null,{"$f":"'表　　　　　　　　　'!CH14","v":""},null,"㎏",null,null,null,null,{"$f":"'表　　　　　　　　　'!CH46","v":""},null,null,null,null,null,null,null,null,null,null,null,null,null,null,null,null,null,null,"介護保険関連",null,"受傷前介護申請",null,null,null,null,null,{"$f":"'表　　　　　　　　　'!CH69","v":""},null,{"$f":"'表　　　　　　　　　'!CH70","v":""}]
["骨粗鬆症治療",null,null,null,{"$f":"'表　　　　　　　　　'!CH15","v":""},null,{"$f":"'表　　　　　　　　　'!CH16","v":""},null,null,null,null,null,null,null,null,null,null,null,null,null,null,null,"受傷前状態","歩行",null,null,{"$f":"'表　　　　　　　　　'!CH47","v":""},null,null,null,null,null,null,null,null,null,null,null,null,null,null,null,null,null,null,null,null,"ケアマネージャー：",null,null,null,null,null,{"$f":"'表　　　　　　　　　'!CH71","v":""},null,null,null,null,null,null,"連絡先：",null,null,{"$f":"'表　　　　　　　　　'!CH72","v":""}]
["紹介施設",null,null,null,{"$f":"'表　　　　　　　　　'!CH17","v":""},null,{"$f":"'表　　　　　　　　　'!CH18","v":""},null,null,null,null,null,null,null,null,null,null,null,null,null,null,null,null,null,null,null,null,null,null,null,null,null,null,null,null,null,null,null,null,null,null,null,null,null,null,null,null,"受傷前利用サービス",null,null,null,null,null,null,{"$f":"'表　　　　　　　　　'!CH73","v":""}]
["既往歴",null,null,null,{"$f":"'表　　　　　　　　　'!CJ26","v":""},null,null,null,null,null,null,null,null,null,null,null,null,null,null,null,null,null,null,"職　　　業",null,null,{"$f":"'表　　　　　　　　　'!CH48","v":""},{"$f":"'表　　　　　　　　　'!CH49","v":""},null,null,null,null,null,null,null,null,null,{"$f":"\"身障手帳　\" &  '表　　　　　　　　　'!CH56 & IF('表　　　　　　　　　'!CF56 =2, '表　　　　　　　　　'!CH57,\"\")","v":"身障手帳　"},null,null,null,null,null,null,null,null,null,null,{"$f":"'表　　　　　　　　　'!CH74","v":""},null,null,null,null,null,null,null,null,null,null,null,{"$f":"'表　　　　　　　　　'!CH75","v":""}]
[null,null,null,null,null,null,null,null,null,null,null,null,null,null,null,null,null,null,null,null,null,null,null,"視覚障害",null,null,{"$f":"'表　　　　　　　　　'!CH50","v":""},{"$f":"'表　　　　　　　　　'!CH51","v":""},null,null,null,null,null,null,null,null,null,null,null,null,null,null,null,null,null,null,null,null,{"$f":"'表　　　　　　　　　'!CH76","v":""},null,null,null,null,null,null,null,null,null,null,null,{"$f":"'表　　　　　　　　　'!CH77","v":""}]
[null,null,null,null,null,null,null,null,null,null,null,null,null,null,null,null,null,null,null,null,null,null,null,"聴覚障害",null,null,{"$f":"'表　　　　　　　　　'!CH52","v":""},{"$f":"'表　　　　　　　　　'!CH53","v":""},null,null,null,null,null,null,null,null,null,null,null,null,null,null,null,null,null,null,null,null,{"$f":"'表　　　　　　　　　'!CH78","v":""},null,null,null,null,null,null,null,null,null,null,null,{"$f":"'表　　　　　　　　　'!CH79","v":""}]
["感染症",null,null,null,{"$f":"'表　　　　　　　　　'!CJ31","v":""},null,null,null,null,null,null,null,null,null,null,null,null,null,null,null,null,null,null,"言語障害",null,null,{"$f":"'表　　　　　　　　　'!CH54","v":""},{"$f":"'表　　　　　　　　　'!CH55","v":""},null,null,null,null,null,null,null,null,null,null,null,null,null,null,null,null,null,null,null,null,{"$f":"'表　　　　　　　　　'!CH80 &  '表　　　　　　　　　'!CH81","v":""},null,null,null,null,null,null,null,null,null,null,null,{"$f":"'表　　　　　　　　　'!CH82","v":""}]
["急性期病院名：",null,null,null,null,null,null,null,null,null,null,null,null,null,null,null,null,null,null,null,null,null,null,null,null,null,"回復期病院名：",null,null,null,null,null,null,null,null,null,null,null,null,null,null,null,null,null,null,null,null,null,null,"維持期入所施設 またはかかりつけ医："]
[{"$f":"'表　　　　　　　　　'!CH83","v":""},null,null,null,null,null,null,null,null,null,null,null,null,null,null,null,null,null,null,null,null,null,null,null,null,null,{"$f":"'表　　　　　　　　　'!CH155","v":""},null,null,null,null,null,null,null,null,null,null,null,null,null,null,null,null,null,null,null,null,null,null,{"$f":"'表　　　　　　　　　'!CH223","v":""}]
[]
["（ID：",null,{"$f":"'表　　　　　　　　　'!CH84","v":""},null,null,null,null,null,null,null,"）",null,null,null,null,null,null,null,"転帰先：",null,null,{"$f":"'表　　　　　　　　　'!CH85","v":""},null,null,null,null,"（ID：",null,{"$f":"'表　　　　　　　　　'!CH156","v":""},null,null,null,null,null,null,null,"）",null,null,null,null,"転帰先：",null,null,{"$f":"'表　　　　　　　　　'!CH157","v":""},null,null,null,null,"（ID：",null,{"$f":"'表　　　　　　　　　'!CH224","v":""},null,null,null,null,null,null,null,"）"]
["入院日(",null,null,null,null,{"$f":"'表　　　　　　　　　'!CH86","v":""},null,null,null,null,null,null,")","退院（転棟）日",null,null,null,null,{"$f":"'表　　　　　　　　　'!CH87","v":""},null,null,null,null,null,null,")","入院（転棟）日(",null,null,null,null,{"$f":"'表　　　　　　　　　'!CH158","v":""},null,null,null,null,null,null,")　退院日(",null,null,{"$f":"'表　　　　　　　　　'!CH159","v":""},null,null,null,null,null,null,")","入所日もしくは初診日（",null,null,null,null,null,null,null,{"$f":"'表　　　　　　　　　'!CH226","v":""},null,null,null,null,null,null,")"]
["担当者",null,null,null,"Dr.",null,null,"（",{"$f":"'表　　　　　　　　　'!CH88","v":""},null,null,null,null,"）",null,"Ns.   ",null,null,"（",{"$f":"'表　　　　　　　　　'!CH89","v":""},null,null,null,null,"）",null,"担当者",null,null,"Dr.　　（",null,null,{"$f":"'表　　　　　　　　　'!CH160","v":""},null,null,null,null,"）",null,"Ns.　　（",null,null,{"$f":"'表　　　　　　　　　'!CH161","v":""},null,null,null,null,"）",null,"担当者",null,null,"Dr.　　（",null,null,{"$f":"'表　　　　　　　　　'!CH227","v":""},null,null,null,null,"）",null,"Ns.　　（",null,null,{"$f":"'表　　　　　　　　　'!CH228","v":""},null,null,null,null,"）"]
[null,null,null,null,"PT・OT",null,null,"（",{"$f":"'表　　　　　　　　　'!CH90","v":""},null,null,null,null,"）",null,"その他",null,null,"（",{"$f":"'表　　　　　　　　　'!CH91","v":""},null,null,null,null,"）",null,null,null,null,"PT・OT（",null,null,{"$f":"'表　　　　　　　　　'!CH162","v":""},null,null,null,null,"）",null,"その他（",null,null,{"$f":"'表　　　　　　　　　'!CH163","v":""},null,null,null,null,"）",null,null,null,null,"PT・OT（",null,null,{"$f":"'表　　　　　　　　　'!CH229","v":""},null,null,null,null,"）",null,"その他（",null,null,{"$f":"'表　　　　　　　　　'!CH230","v":""},null,null,null,null,"）"]
["（",null,null,null,null,null,null,null,{"$f":"'表　　　　　　　　　'!CH92","v":""},null,null,null,null,null,null,"）現在",null,null,null,null,null,null,null,null,null,null,"(",null,null,null,null,null,null,{"$f":"'表　　　　　　　　　'!CH164","v":""},null,null,null,null,null,null,"）現在",null,null,null,null,null,null,null,null,"(",null,null,null,null,null,null,{"$f":"'表　　　　　　　　　'!CH231","v":""},null,null,null,null,null,null,"）現在"]
["荷重制限",null,null,null,{"$f":"'表　　　　　　　　　'!CH93 & \"　\" & '表　　　　　　　　　'!CH94","v":"　"},null,null,null,null,null,null,null,null,null,null,null,null,null,null,null,null,null,null,null,null,null,"荷重制限",null,null,null,{"$f":"'表　　　　　　　　　'!CH165 & \"　\" & '表　　　　　　　　　'!CH166","v":"　"}]
["歩行状態"]
[{"$f":"\"病棟内（　\" & '表　　　　　　　　　'!CH95 & \"　）\"","v":"病棟内（　　）"},null,null,null,null,null,null,{"$f":"'表　　　　　　　　　'!CJ99","v":""},null,null,null,null,null,null,null,null,null,null,null,null,null,null,null,null,null,null,{"$f":"\"病棟内（　\" & '表　　　　　　　　　'!CH167 & \"　）\"","v":"病棟内（　　）"},null,null,null,null,null,null,{"$f":"'表　　　　　　　　　'!CJ171","v":""},null,null,null,null,null,null,null,null,null,null,null,null,null,null,null,{"$f":"\"屋外（　\" & '表　　　　　　　　　'!CH232 & \"　）\"","v":"屋外（　　）"},null,null,null,null,null,null,{"$f":"'表　　　　　　　　　'!CJ236","v":""}]
[{"$f":"\"訓練室（　\" & '表　　　　　　　　　'!CH101 & \"　）\"","v":"訓練室（　　）"},null,null,null,null,null,null,{"$f":"'表　　　　　　　　　'!CJ105","v":""},null,null,null,null,null,null,null,null,null,null,null,null,null,null,null,null,null,null,{"$f":"\"訓練室（　\" & '表　　　　　　　　　'!CH173 & \"　）\"","v":"訓練室（　　）"},null,null,null,null,null,null,{"$f":"'表　　　　　　　　　'!CJ177","v":""},null,null,null,null,null,null,null,null,null,null,null,null,null,null,null,{"$f":"\"屋内（　\" & '表　　　　　　　　　'!CH238 & \"　）\"","v":"屋内（　　）"},null,null,null,null,null,null,{"$f":"'表　　　　　　　　　'!CJ242","v":""}]
["筋力低下",null,null,null,{"$f":"'表　　　　　　　　　'!CH107&\"　　\"&IF('表　　　　　　　　　'!CF107=2,\"（部位：\" & '表　　　　　　　　　'!CH108 & \"　\" & '表　　　　　　　　　'!CH109 & \"　）\",\"\")","v":"　　"},null,null,null,null,null,null,null,null,null,null,null,null,null,null,null,null,null,null,null,null,null,{"$f":"'表　　　　　　　　　'!CH179 &\"　　\"&IF('表　　　　　　　　　'!CF179=2,\"（部位：\" & '表　　　　　　　　　'!CH180 & \"　\" & '表　　　　　　　　　'!CH181 & \"　）\",\"\")","v":"　　"},null,null,null,null,null,null,null,null,null,null,null,null,null,null,null,null,null,null,null,null,null,null,{"$f":"'表　　　　　　　　　'!CH244  &\"　　\"&IF('表　　　　　　　　　'!CF244=2,\"（部位：\" & '表　　　　　　　　　'!CH245 & \"　\" & '表　　　　　　　　　'!CH246 & \"　）\",\"\")","v":"　　"}]
["可動域制限",null,null,null,{"$f":"'表　　　　　　　　　'!CH110 &\"　　\"&IF('表　　　　　　　　　'!CF110=2,\"部位（　\" & '表　　　　　　　　　'!CH111 & \"　\" & '表　　　　　　　　　'!CH112 & \"　）\",\"\")","v":"　　"},null,null,null,null,null,null,null,null,null,null,null,null,null,null,null,null,null,null,null,null,null,{"$f":"'表　　　　　　　　　'!CH182 &\"　　\"&IF('表　　　　　　　　　'!CF182=2,\"部位（　\" & '表　　　　　　　　　'!CH183 & \"　\" & '表　　　　　　　　　'!CH184 & \"　）\",\"\")","v":"　　"},null,null,null,null,null,null,null,null,null,null,null,null,null,null,null,null,null,null,null,null,null,null,{"$f":"'表　　　　　　　　　'!CH247 &\"　　\"&IF('表　　　　　　　　　'!CF247=2,\"部位（　\" & '表　　　　　　　　　'!CH248 & \"　\" & '表　　　　　　　　　'!CH249 & \"　）\",\"\")","v":"　　"}]
["疼痛",null,null,null,{"$f":"'表　　　　　　　　　'!CH113  &\"　　\"&IF('表　　　　　　　　　'!CF113=2,\"部位（　\" & '表　　　　　　　　　'!CH114  & \"　）\",\"\")","v":"　　"},null,null,null,null,null,null,null,null,null,null,null,null,null,null,null,null,null,null,null,null,null,{"$f":"'表　　　　　　　　　'!CH185  &\"　　\"&IF('表　　　　　　　　　'!CF185=2,\"部位（　\" & '表　　　　　　　　　'!CH186  & \"　）\",\"\")","v":"　　"},null,null,null,null,null,null,null,null,null,null,null,null,null,null,null,null,null,null,null,null,null,null,{"$f":"'表　　　　　　　　　'!CH250  &\"　　\"&IF('表　　　　　　　　　'!CF250=2,\"部位（　\" & '表　　　　　　　　　'!CH251  & \"　）\",\"\")","v":"　　"}]
["　　対策　",null,null,null,null,{"$f":"'表　　　　　　　　　'!CJ119","v":""},null,null,null,null,null,null,null,null,null,null,null,null,null,null,null,null,null,null,null,null,null,{"$f":"'表　　　　　　　　　'!CJ191","v":""},null,null,null,null,null,null,null,null,null,null,null,null,null,null,null,null,null,null,null,null,null,null,{"$f":"'表　　　　　　　　　'!CJ256","v":""}]
[]
["内科管理",null,null,null,{"$f":"'表　　　　　　　　　'!CH121","v":""},null,{"$f":"'表　　　　　　　　　'!CH122","v":""},null,null,null,null,null,null,null,null,null,null,null,null,null,null,null,null,null,null,null,{"$f":"'表　　　　　　　　　'!CH193","v":""},null,{"$f":"'表　　　　　　　　　'!CH194","v":""},null,null,null,null,null,null,null,null,null,null,null,null,null,null,null,null,null,null,null,null,{"$f":"'表　　　　　　　　　'!CH258","v":""},null,{"$f":"'表　　　　　　　　　'!CH259","v":""}]
["医療処置",null,null,null,{"$f":"'表　　　　　　　　　'!CH123","v":""},null,{"$f":"'表　　　　　　　　　'!CH124","v":""},null,null,null,null,null,null,null,null,null,null,null,null,null,null,null,null,null,null,null,{"$f":"'表　　　　　　　　　'!CH195","v":""},null,{"$f":"'表　　　　　　　　　'!CH196","v":""},null,null,null,null,null,null,null,null,null,null,null,null,null,null,null,null,null,null,null,null,{"$f":"'表　　　　　　　　　'!CH260","v":""},null,{"$f":"'表　　　　　　　　　'!CH261","v":""}]
["検　　　査",null,null,null,{"$f":"'表　　　　　　　　　'!CH125","v":""},null,{"$f":"'表　　　　　　　　　'!CH126","v":""},null,null,null,null,null,null,null,null,null,null,null,null,null,null,null,null,null,null,null,{"$f":"'表　　　　　　　　　'!CH197","v":""},null,{"$f":"'表　　　　　　　　　'!CH198","v":""},null,null,null,null,null,null,null,null,null,null,null,null,null,null,null,null,null,null,null,null,{"$f":"'表　　　　　　　　　'!CH262","v":""},null,{"$f":"'表　　　　　　　　　'!CH263","v":""}]
["食事",null,null,null,{"$f":"'表　　　　　　　　　'!CH127","v":""},null,null,{"$f":"'表　　　　　　　　　'!CH128","v":""},null,null,null,null,null,null,null,null,null,null,null,null,null,null,null,null,null,null,{"$f":"'表　　　　　　　　　'!CH199","v":""},null,null,{"$f":"'表　　　　　　　　　'!CH200","v":""},null,null,null,null,null,null,null,null,null,null,null,null,null,null,null,null,null,null,null,{"$f":"'表　　　　　　　　　'!CH264","v":""},null,null,{"$f":"'表　　　　　　　　　'!CH265","v":""}]
[]
["排泄",null,null,null,{"$f":"'表　　　　　　　　　'!CH130","v":""},null,null,{"$f":"'表　　　　　　　　　'!CH131","v":""},null,null,null,null,null,null,null,null,null,null,null,null,null,null,null,null,null,null,{"$f":"'表　　　　　　　　　'!CH202","v":""},null,null,{"$f":"'表　　　　　　　　　'!CH203","v":""},null,null,null,null,null,null,null,null,null,null,null,null,null,null,null,null,null,null,null,{"$f":"'表　　　　　　　　　'!CH267","v":""},null,null,{"$f":"'表　　　　　　　　　'!CH268","v":""}]
["　自立度",null,null,null,null,{"$f":"'表　　　　　　　　　'!CH132","v":""},null,null,null,null,null,null,null,null,null,null,null,null,null,null,null,null,null,null,null,null,null,{"$f":"'表　　　　　　　　　'!CH204","v":""},null,null,null,null,null,null,null,null,null,null,null,null,null,null,null,null,null,null,null,null,null,null,{"$f":"'表　　　　　　　　　'!CH269","v":""}]
["清潔",null,null,null,{"$f":"'表　　　　　　　　　'!CH133","v":""},null,null,null,null,null,null,null,null,null,null,null,null,null,null,null,null,null,null,null,null,null,{"$f":"'表　　　　　　　　　'!CH205","v":""},null,null,null,null,null,null,null,null,null,null,null,null,null,null,null,null,null,null,null,null,null,null,{"$f":"'表　　　　　　　　　'!CH270","v":""}]
["　自立度",null,null,null,null,{"$f":"'表　　　　　　　　　'!CH134","v":""},null,null,null,null,null,null,null,null,null,null,null,null,null,null,null,null,null,null,null,null,null,{"$f":"'表　　　　　　　　　'!CH206","v":""},null,null,null,null,null,null,null,null,null,null,null,null,null,null,null,null,null,null,null,null,null,null,{"$f":"'表　　　　　　　　　'!CH271","v":""}]
["認知症",null,null,null,{"$f":"'表　　　　　　　　　'!CH135","v":""},null,{"$f":"'表　　　　　　　　　'!CJ139","v":""},null,null,null,null,null,null,null,null,null,null,null,null,null,null,null,null,null,null,null,{"$f":"'表　　　　　　　　　'!CH207","v":""},null,{"$f":"'表　　　　　　　　　'!CJ211","v":""},null,null,null,null,null,null,null,null,null,null,null,null,null,null,null,null,null,null,null,null,{"$f":"'表　　　　　　　　　'!CH272","v":""},null,{"$f":"'表　　　　　　　　　'!CJ276","v":""}]
[null,null,null,null,"ＨＤＳ－Ｒ",null,null,null,{"$f":"'表　　　　　　　　　'!CH141","v":""},null,"点",null,null,null,null,null,null,null,null,null,null,null,null,null,null,null,"ＨＤＳ－Ｒ",null,null,null,{"$f":"'表　　　　　　　　　'!CH213","v":""},null,"点",null,null,null,null,null,null,null,null,null,null,null,null,null,null,null,null,"ＨＤＳ－Ｒ",null,null,null,{"$f":"'表　　　　　　　　　'!CH278","v":""},null,"点"]
["10ｍ歩行",null,null,null,{"$f":"'表　　　　　　　　　'!CH142","v":""},null,null,{"$f":"'表　　　　　　　　　'!CH143","v":""},null,null,null,null,null,null,null,null,null,null,null,null,null,null,null,null,null,null,{"$f":"'表　　　　　　　　　'!CH214","v":""},null,null,{"$f":"'表　　　　　　　　　'!CH215","v":""},null,null,null,null,null,null,null,null,null,null,null,null,null,null,null,null,null,null,null,{"$f":"'表　　　　　　　　　'!CH279","v":""},null,null,{"$f":"'表　　　　　　　　　'!CH280","v":""}]
[null,null,null,null,{"$f":"'表　　　　　　　　　'!CH144","v":""},null,null,{"$f":"'表　　　　　　　　　'!CH145","v":""},null,null,null,null,null,null,null,null,null,null,null,null,null,null,null,null,null,null,{"$f":"'表　　　　　　　　　'!CH216","v":""},null,null,{"$f":"'表　　　　　　　　　'!CH217","v":""},null,null,null,null,null,null,null,null,null,null,null,null,null,null,null,null,null,null,null,{"$f":"'表　　　　　　　　　'!CH281","v":""},null,null,{"$f":"'表　　　　　　　　　'!CH282","v":""}]
["経過中転倒",null,null,null,{"$f":"'表　　　　　　　　　'!CH146","v":""},null,null,null,null,null,null,null,null,null,null,null,null,null,null,null,null,null,null,null,null,null,{"$f":"'表　　　　　　　　　'!CH218","v":""},null,null,null,null,null,null,null,null,null,null,null,null,null,null,null,null,null,null,null,null,null,null,{"$f":"'表　　　　　　　　　'!CH283","v":""}]
["離床センサー",null,null,null,{"$f":"'表　　　　　　　　　'!CH147","v":""},null,null,null,null,null,null,null,null,null,null,null,null,null,null,null,null,null,null,null,null,null,{"$f":"'表　　　　　　　　　'!CH219","v":""},null,null,null,null,null,null,null,null,null,null,null,null,null,null,null,null,null,null,null,null,null,null,{"$f":"'表　　　　　　　　　'!CH284","v":""},null,null,null,null,null,null,null,null,null,null,null,null,null,null,null,null,null,null,null,null,null,"（※評価は回復期退院3カ月後・退所時のいづれか早い時期に施行）"]
["身障手帳",null,null,null,{"$f":"'表　　　　　　　　　'!CH148  &\"　　\"&IF('表　　　　　　　　　'!CF148=1,\"（　\" & '表　　　　　　　　　'!CH149 & \"　頃　\" & '表　　　　　　　　　'!CH150 & \"　）\",\"\")","v":"　　"},null,null,null,null,null,null,null,null,null,null,null,null,null,null,null,null,null,null,null,null,null,{"$f":"'表　　　　　　　　　'!CH220 &\"　　\"&IF('表　　　　　　　　　'!CF220=1,\"（　\" & '表　　　　　　　　　'!CH221 & \"　頃　\" & '表　　　　　　　　　'!CH222 & \"　）\",\"\")","v":"　　"},null,null,null,null,null,null,null,null,null,null,null,null,null,null,null,null,null,null,null,null,null,null,{"$f":"'表　　　　　　　　　'!CH285 &\"　　\"&IF('表　　　　　　　　　'!CF285=1,\"（　\" & '表　　　　　　　　　'!CH286 & \"　頃　\" & '表　　　　　　　　　'!CH287 & \"　）\",\"\")","v":"　　"}]
["骨粗鬆症治療",null,null,null,null,null,null,null,null,null,null,null,null,null,null,null,null,null,null,null,null,null,null,null,null,null,"介護保険",null,null,null,"説　　明",null,null,null,null,null,null,null,null,null,{"$f":"'表　　　　　　　　　'!CH288","v":""},null,null,null,null,null,null,null,null,{"$f":"'表　　　　　　　　　'!CH296","v":""},null,null,null,null,null,null,null,null,"退院（所）時指導"]
[null,{"$f":"IF('表　　　　　　　　　'!$CJ$153=\"\",\"なし\",'表　　　　　　　　　'!$CJ$153)","v":"なし"},null,null,null,null,null,null,null,null,null,null,null,null,null,null,null,null,null,null,null,null,null,null,null,null,null,null,null,null,"申　　請",null,null,null,null,null,null,null,null,null,{"$f":"'表　　　　　　　　　'!CH289","v":""},null,null,null,null,null,null,null,null,{"$f":"'表　　　　　　　　　'!CH297","v":""},null,null,null,null,null,null,null,null,null,{"$f":"'表　　　　　　　　　'!CH305","v":""}]
[null,null,null,null,null,null,null,null,null,null,null,null,null,null,null,null,null,null,null,null,null,null,null,null,null,null,null,null,null,null,"要介護認定",null,null,null,null,null,null,null,null,null,"（支・介",null,null,{"$f":"'表　　　　　　　　　'!CH290","v":""},null,null,null,null,"）","（支・介",null,null,{"$f":"'表　　　　　　　　　'!CH298","v":""},null,null,null,null,"）"]
[null,null,null,null,null,null,null,null,null,null,null,null,null,null,null,null,null,null,null,null,null,null,null,null,null,null,"連携など",null,null,null,"かかりつけ医への情報提供",null,null,null,null,null,null,null,null,null,{"$f":"'表　　　　　　　　　'!CH291","v":""},null,null,null,null,null,null,null,null,{"$f":"'表　　　　　　　　　'!CH299","v":""},null,null,null,null,null,null,null,null,"通所リハビリ見直し訪問",null,null,null,null,null,null,null,{"$f":"'表　　　　　　　　　'!CH306","v":""}]
[null,null,null,null,null,null,null,null,null,null,null,null,null,null,null,null,null,null,null,null,null,null,null,null,null,null,null,null,null,null,"ケアマネへの情報提供",null,null,null,null,null,null,null,null,null,{"$f":"'表　　　　　　　　　'!CH292","v":""},null,null,null,null,null,null,null,null,{"$f":"'表　　　　　　　　　'!CH300","v":""},null,null,null,null,null,null,null,null,null,null,null,"(",{"$f":"'表　　　　　　　　　'!CH309","v":""},null,null,null,null,null,null,")"]
[null,null,null,null,null,null,null,null,null,null,null,null,null,null,null,null,null,null,null,null,null,null,null,null,null,null,null,null,null,null,"退院・退所前訪問",null,null,null,null,null,null,null,null,null,{"$f":"'表　　　　　　　　　'!CH293","v":""},null,null,null,null,null,null,null,null,{"$f":"'表　　　　　　　　　'!CH301","v":""},null,null,null,null,null,null,null,null,"サービス担当者会議",null,null,null,null,null,null,{"$f":"'表　　　　　　　　　'!CH308","v":""}]
[null,null,null,null,null,null,null,null,null,null,null,null,null,null,null,null,null,null,null,null,null,null,null,null,null,null,null,null,null,null,"紹介元への情報提供",null,null,null,null,null,null,null,null,null,{"$f":"'表　　　　　　　　　'!CH294","v":""},null,null,null,null,null,null,null,null,{"$f":"'表　　　　　　　　　'!CH302","v":""},null,null,null,null,null,null,null,null,"(最終開催：",null,null,null,null,{"$f":"'表　　　　　　　　　'!CH309","v":""},null,null,null,null,null,null,")"]
[null,null,null,null,null,null,null,null,null,null,null,null,null,null,null,null,null,null,null,null,null,null,null,null,null,null,"在宅ケア希望者退院連絡票送付",null,null,null,null,null,null,null,null,null,null,null,null,null,{"$f":"'表　　　　　　　　　'!CH295","v":""},null,null,null,null,null,null,null,null,{"$f":" \"◆サービス利用（ \" &  '表　　　　　　　　　'!CH310 &\" )\"","v":"◆サービス利用（  )"}]
[null,null,null,null,null,null,null,null,null,null,null,null,null,null,null,null,null,null,null,null,null,null,null,null,null,null,null,null,null,null,null,null,null,null,null,null,null,null,null,null,null,null,null,null,null,null,null,null,null,"　　ケアマネージャー（事業所：",null,null,null,null,null,null,null,null,{"$f":"'表　　　　　　　　　'!CH311","v":""},null,null,null,null,"担当者：",null,null,{"$f":"'表　　　　　　　　　'!CH312","v":""},null,null,null,"）"]
[null,null,null,null,null,null,null,null,null,null,null,null,null,null,null,null,null,null,null,null,null,null,null,null,null,null,null,null,null,null,null,null,null,null,null,null,null,null,null,null,null,null,null,null,null,null,null,null,null,{"$f":" '表　　　　　　　　　'!CH313","v":""}]
[null,null,null,null,null,null,null,null,null,null,null,null,null,null,null,null,null,null,null,null,null,null,null,null,null,null,null,null,null,null,null,null,null,null,null,null,null,null,null,null,null,null,null,null,null,null,null,null,null,null,{"$f":"IF('表　　　　　　　　　'!CF313=1,'表　　　　　　　　　'!CH314,IF('表　　　　　　　　　'!CF313=2,'表　　　　　　　　　'!CH315,\"\"))","v":""}]
[null,null,null,null,null,null,null,null,null,null,null,null,null,null,null,null,null,null,null,null,null,null,null,null,null,null,"　急性期病院もしくは整形外科専門医　再診予定日",null,null,null,null,null,null,null,null,null,null,null,null,null,null,null,"（",{"$f":"'表　　　　　　　　　'!CH303","v":""},null,null,")"]
[]
[null,null,null,null,null,null,null,null,null,null,null,null,null,null,null,null,null,null,null,null,null,null,null,null,null,null,"　かかりつけ医　受診予定日",null,null,null,null,null,null,null,null,"（",{"$f":"'表　　　　　　　　　'!CH304","v":""},null,null,")"]

{"sheet":"裏　　　　　　　　　","index":3,"n_rows":110,"n_cols":107,"rows_kept":110,"cut":false,"hidden":false,"merged":[[0,92,0,94],[0,98,0,99],[41,51,41,57],[39,39,39,41],[29,41,29,50],[37,55,37,60],[30,49,31,50],[30,45,31,48],[32,41,35,50],[32,51,35,64],[30,41,31,44],[30,39,31,40],[39,51,39,56],[40,51,40,55],[36,56,36,58],[37,39,37,41],[41,39,41,41],[30,57,31,60],[28,51,28,64],[28,31,28,50],[26,42,26,47],[30,51,31,56],[29,31,29,40],[30,35,31,38],[30,61,31,64],[43,19,43,21],[42,19,42,21],[38,19,38,21],[39,19,39,21],[66,53,66,56],[66,57,66,64],[62,70,63,79],[64,70,65,79],[55,51,59,64],[60,51,65,64],[51,51,54,64],[44,67,44,83],[42,51,42,53],[54,67,59,80],[60,70,60,78],[44,51,48,64],[42,55,42,61],[37,61,37,63],[38,51,38,58],[54,31,58,50],[49,51,50,64],[37,51,37,54],[57,0,58,10],[41,19,41,21],[43,39,43,41],[42,39,42,41],[28,0,35,1],[28,2,29,10],[66,37,66,40],[66,41,66,50],[48,67,49,71],[29,67,38,80],[29,51,29,64],[46,67,47,78],[45,67,45,83],[32,2,35,10],[32,11,35,20],[30,2,31,5],[30,25,31,28],[32,21,35,30],[30,6,31,9],[30,21,31,24],[30,19,31,20],[49,31,53,50],[44,11,48,30],[38,39,38,41],[30,11,31,14],[32,31,35,40],[30,29,31,30],[30,15,31,18],[30,10,31,10],[59,11,65,30],[59,31,65,50],[66,21,66,30],[37,23,37,25],[36,16,36,18],[37,19,37,21],[49,11,53,30],[30,31,31,34],[40,19,40,21],[40,39,40,41],[36,0,43,10],[66,0,66,8],[66,17,66,20],[44,31,48,50],[36,36,36,38],[60,0,61,10],[54,11,58,30],[44,0,48,10],[54,0,55,10],[28,11,28,30],[29,11,29,20],[29,21,29,30],[16,19,17,22],[17,0,17,7],[16,11,16,18],[17,11,17,18],[25,22,26,28],[26,0,27,11],[18,8,19,10],[18,23,19,24],[18,27,19,28],[21,25,22,26],[20,27,20,28],[21,27,22,28],[20,8,20,10],[18,11,19,18],[21,23,22,24],[20,11,20,18],[20,0,20,7],[18,0,18,7],[20,23,20,24],[16,8,17,10],[16,23,17,24],[21,0,22,22],[18,19,19,22],[19,0,19,7],[9,11,9,18],[16,0,16,7],[15,0,15,7],[26,35,26,39],[15,19,15,22],[9,19,9,22],[10,19,10,22],[11,19,12,22],[14,19,14,22],[11,8,12,10],[15,8,15,10],[15,11,15,18],[10,11,10,18],[11,11,11,18],[10,8,10,10],[12,11,12,18],[14,11,14,18],[14,8,14,10],[9,27,9,28],[16,25,17,26],[16,27,17,28],[18,25,19,26],[20,25,20,26],[13,19,13,22],[9,23,9,24],[10,23,10,24],[8,0,8,7],[10,0,10,7],[11,0,12,7],[13,8,13,10],[13,11,13,18],[9,0,9,7],[14,0,14,7],[13,0,13,7],[20,19,20,22],[8,27,8,28],[15,25,15,26],[11,25,12,26],[14,27,14,28],[15,27,15,28],[13,27,13,28],[10,27,10,28],[11,27,12,28],[8,25,8,26],[7,0,7,7],[7,8,7,10],[7,25,7,26],[8,19,8,22],[7,19,7,22],[8,23,8,24],[8,11,8,18],[9,25,9,26],[10,25,10,26],[7,11,7,18],[4,25,4,26],[5,25,6,26],[8,8,8,10],[14,23,14,24],[15,23,15,24],[13,23,13,24],[13,25,13,26],[14,25,14,26],[9,8,9,10],[11,23,12,24],[2,0,2,28],[1,3,1,28],[1,0,1,2],[7,27,7,28],[7,23,7,24],[3,25,3,26],[3,27,3,28],[4,0,4,7],[5,0,5,7],[6,0,6,7],[3,19,3,22],[4,19,4,22],[5,19,6,22],[3,23,3,24],[5,11,6,18],[3,8,3,10],[4,8,4,10],[5,8,6,10],[4,23,4,24],[5,23,6,24],[4,27,4,28],[5,27,6,28],[3,11,3,18],[4,11,4,18]]}
[null,null,null,null,null,null,null,null,null,null,null,null,null,null,null,null,null,null,null,null,null,null,null,"急性期入力",null,null,null,{"$f":"IF(CW110=0,\"完了\",\"未完了\")","v":"未完了"},null,null,null,"回復期入力",null,null,null,{"$f":"IF(CX110=0,\"完了\",\"未完了\")","v":"未完了"},null,null,null,"維持期入力",null,null,null,{"$f":"IF(CY110=0,\"完了\",\"未完了\")","v":"未完了"},null,null,null,null,null,null,null,null,null,null,null,null,null,null,null,null,null,null,null,null,null,null,null,null,null,null,null,null,null,null,null,null,null,null,null,null,null,null,null,null,null,null,"最終更新\n日時","2023-04-01T10:00:52",null,null,null,null,"項目名",null,null,"値","備考","印刷文字","計算用",null,"急","回","維","入力日時","入力","ﾁｪｯｸ有","前回入力"]
["氏名:",null,null,{"$f":"IF('表　　　　　　　　　'!E4=\"\",\"\",'表　　　　　　　　　'!E4)","v":""},null,null,null,null,null,null,null,null,null,null,null,null,null,null,null,null,null,null,null,null,null,null,null,null,null,null,null,null,null,null,null,null,null,null,null,null,null,null,null,null,null,null,null,null,null,null,null,null,null,null,null,null,null,null,null,null,null,null,null,null,null,null,null,null,null,null,null,null,null,null,null,null,null,null,null,null,null,null,null,null,null,null,null,"Ｄｒ．",null,null,null,2,"日常生活機能評価表","急性期","①",{"$f":"IF(X5=\"\",\"\",X5)","v":""},null,{"$f":"CR2","v":""},null,null,{"$f":"IF(CT2=\"\",1,0)","v":1},null,null,null,"急性期",{"$f":"IF($CJ$7=FALSE,IF(CZ2=0,FALSE,IF(CZ2<$CJ$1,TRUE,FALSE)))","v":false}]
["日常生活機能評価表 　　※０～１９点",null,null,null,null,null,null,null,null,null,null,null,null,null,null,null,null,null,null,null,null,null,null,null,null,null,null,null,null,null,null,null,null,null,null,null,null,null,null,null,null,null,null,null,null,null,null,null,null,null,null,null,null,null,null,null,null,null,null,null,null,null,null,null,null,null,null,null,null,null,null,null,null,null,null,null,null,null,null,null,null,null,null,null,null,null,null,"Ｎｓ．",null,null,null,3,null,null,"②",{"$f":"IF(X6=\"\",\"\",X6)","v":""},null,{"$f":"CR3","v":""},null,null,{"$f":"IF(CT3=\"\",1,0)","v":1},null,null,null,"急性期",{"$f":"IF($CJ$7=FALSE,IF(CZ3=0,FALSE,IF(CZ3<$CJ$1,TRUE,FALSE)))","v":false}]
[null,null,null,null,null,null,null,null,"０点",null,null,"１点",null,null,null,null,null,null,null,"２点",null,null,null,"急",null,"回",null,"維",null,null,null,null,null,null,null,null,null,null,null,null,null,null,null,null,null,null,null,null,null,null,null,null,null,null,null,null,null,null,null,null,null,null,null,null,null,null,null,null,null,null,null,null,null,null,null,null,null,null,null,null,null,null,null,null,null,null,null,"セラピスト",null,null,null,4,null,null,"③",{"$f":"IF(X8=\"\",\"\",X8)","v":""},null,"",null,null,1,null,null,null,"急性期",false]
["①床上安静の指示",null,null,null,null,null,null,null,"なし",null,null,"あり",null,null,null,null,null,null,null,null,null,null,null,null,null,null,null,null,null,null,null,null,null,null,null,null,null,null,null,null,null,null,null,null,null,null,null,null,null,null,null,null,null,null,null,null,null,null,null,null,null,null,null,null,null,null,null,null,null,null,null,null,null,null,null,null,null,null,null,null,null,null,null,null,null,null,null,"ＭＳＷ",null,null,null,5,null,null,"④",{"$f":"IF(X9=\"\",\"\",X9)","v":""},null,"",null,null,1,null,null,null,"急性期",false]
["②どちらかの手を胸元",null,null,null,null,null,null,null,"できる",null,null,"できない",null,null,null,null,null,null,null,null,null,null,null,null,null,null,null,null,null,null,null,null,null,null,null,null,null,null,null,null,null,null,null,null,null,null,null,null,null,null,null,null,null,null,null,null,null,null,null,null,null,null,null,null,null,null,null,null,null,null,null,null,null,null,null,null,null,null,null,null,null,null,null,null,null,null,null,null,null,null,null,6,null,null,"⑤",{"$f":"IF(X10=\"\",\"\",X10)","v":""},null,"",null,null,1,null,null,null,"急性期",false]
["　まで持ち上げられる",null,null,null,null,null,null,null,null,null,null,null,null,null,null,null,null,null,null,null,null,null,null,null,null,null,null,null,null,null,null,null,null,null,null,null,null,null,null,null,null,null,null,null,null,null,null,null,null,null,null,null,null,null,null,null,null,null,null,null,null,null,null,null,null,null,null,null,null,null,null,null,null,null,null,null,null,null,null,null,null,null,null,null,null,null,"急性期入力",false,null,null,null,7,null,null,"⑥",{"$f":"IF(X11=\"\",\"\",X11)","v":""},null,"",null,null,1,null,null,null,"急性期",false]
["③寝返り",null,null,null,null,null,null,null,"できる",null,null,"何かにつかまればできる",null,null,null,null,null,null,null,"できない",null,null,null,null,null,null,null,null,null,null,null,null,null,null,null,null,null,null,null,null,null,null,null,null,null,null,null,null,null,null,null,null,null,null,null,null,null,null,null,null,null,null,null,null,null,null,null,null,null,null,null,null,null,null,null,null,null,null,null,null,null,null,null,null,null,null,"回復期入力",false,null,null,null,8,null,null,"⑦",{"$f":"IF(X12=\"\",\"\",X12)","v":""},null,"",null,null,1,null,null,null,"急性期",false]
["④起き上がり",null,null,null,null,null,null,null,"できる",null,null,"できない",null,null,null,null,null,null,null,null,null,null,null,null,null,null,null,null,null,null,null,null,null,null,null,null,null,null,null,null,null,null,null,null,null,null,null,null,null,null,null,null,null,null,null,null,null,null,null,null,null,null,null,null,null,null,null,null,null,null,null,null,null,null,null,null,null,null,null,null,null,null,null,null,null,null,"維持期入力",false,null,null,null,9,null,null,"⑧",{"$f":"IF(X14=\"\",\"\",X14)","v":""},null,"",null,null,1,null,null,null,"急性期",false]
["⑤座位保持",null,null,null,null,null,null,null,"できる",null,null,"支えがあればできる",null,null,null,null,null,null,null,"できない",null,null,null,null,null,null,null,null,null,null,null,null,null,null,null,null,null,null,null,null,null,null,null,null,null,null,null,null,null,null,null,null,null,null,null,null,null,null,null,null,null,null,null,null,null,null,null,null,null,null,null,null,null,null,null,null,null,null,null,null,null,null,null,null,null,null,null,null,null,null,null,10,null,null,"⑨",{"$f":"IF(X15=\"\",\"\",X15)","v":""},null,"",null,null,1,null,null,null,"急性期",false]
["⑥移乗",null,null,null,null,null,null,null,"できる",null,null,"見守り・一部介助が必要",null,null,null,null,null,null,null,"できない",null,null,null,null,null,null,null,null,null,null,null,null,null,null,null,null,null,null,null,null,null,null,null,null,null,null,null,null,null,null,null,null,null,null,null,null,null,null,null,null,null,null,null,null,null,null,null,null,null,null,null,null,null,null,null,null,null,null,null,null,null,null,null,null,null,null,null,null,null,null,null,11,null,null,"⑩",{"$f":"IF(X16=\"\",\"\",X16)","v":""},null,"",null,null,1,null,null,null,"急性期",false]
["⑦移動方法",null,null,null,null,null,null,null,"介助を要 しない移動",null,null,"介助を要する移動",null,null,null,null,null,null,null,null,null,null,null,null,null,null,null,null,null,null,null,null,null,null,null,null,null,null,null,null,null,null,null,null,null,null,null,null,null,null,null,null,null,null,null,null,null,null,null,null,null,null,null,null,null,null,null,null,null,null,null,null,null,null,null,null,null,null,null,null,null,null,null,null,null,null,null,null,null,null,null,12,null,null,"⑪",{"$f":"IF(X17=\"\",\"\",X17)","v":""},null,"",null,null,1,null,null,null,"急性期",false]
[null,null,null,null,null,null,null,null,null,null,null,"（搬送を含む）",null,null,null,null,null,null,null,null,null,null,null,null,null,null,null,null,null,null,null,null,null,null,null,null,null,null,null,null,null,null,null,null,null,null,null,null,null,null,null,null,null,null,null,null,null,null,null,null,null,null,null,null,null,null,null,null,null,null,null,null,null,null,null,null,null,null,null,null,null,null,null,null,null,null,null,null,null,null,null,13,null,null,"⑫",{"$f":"IF(X19=\"\",\"\",X19)","v":""},null,"",null,null,1,null,null,null,"急性期",false]
["⑧口腔清潔",null,null,null,null,null,null,null,"できる",null,null,"できない",null,null,null,null,null,null,null,null,null,null,null,null,null,null,null,null,null,null,null,null,null,null,null,null,null,null,null,null,null,null,null,null,null,null,null,null,null,null,null,null,null,null,null,null,null,null,null,null,null,null,null,null,null,null,null,null,null,null,null,null,null,null,null,null,null,null,null,null,null,null,null,null,null,null,null,null,null,null,null,14,null,null,"⑬",{"$f":"IF(X21=\"\",\"\",X21)","v":""},null,"",null,null,1,null,null,null,"急性期",{"$f":"IF($CJ$7=FALSE,IF(CZ14=0,FALSE,IF(CZ14<$CJ$1,TRUE,FALSE)))","v":false}]
["⑨食事摂取",null,null,null,null,null,null,null,"介助なし",null,null,"一部介助",null,null,null,null,null,null,null,"全介助",null,null,null,null,null,null,null,null,null,null,null,null,null,null,null,null,null,null,null,null,null,null,null,null,null,null,null,null,null,null,null,null,null,null,null,null,null,null,null,null,null,null,null,null,null,null,null,null,null,null,null,null,null,null,null,null,null,null,null,null,null,null,null,null,null,null,null,null,null,null,null,15,null,"回復期","①",{"$f":"IF(Z5=\"\",\"\",Z5)","v":""},null,"",null,null,null,{"$f":"IF(CT15=\"\",1,0)","v":1},null,null,"回復期",{"$f":"IF($CJ$8=FALSE,IF(CZ15=0,FALSE,IF(CZ15<$CJ$1,TRUE,FALSE)))","v":false}]
["⑩衣服の着脱",null,null,null,null,null,null,null,"介助なし",null,null,"一部介助",null,null,null,null,null,null,null,"全介助",null,null,null,null,null,null,null,null,null,null,null,null,null,null,null,null,null,null,null,null,null,null,null,null,null,null,null,null,null,null,null,null,null,null,null,null,null,null,null,null,null,null,null,null,null,null,null,null,null,null,null,null,null,null,null,null,null,null,null,null,null,null,null,null,null,null,null,null,null,null,null,16,null,null,"②",{"$f":"IF(Z6=\"\",\"\",Z6)","v":""},null,"",null,null,null,{"$f":"IF(CT16=\"\",1,0)","v":1},null,null,"回復期",{"$f":"IF($CJ$8=FALSE,IF(CZ16=0,FALSE,IF(CZ16<$CJ$1,TRUE,FALSE)))","v":false}]
["　⑪他者への",null,null,null,null,null,null,null,"できる",null,null,"　　できる時と",null,null,null,null,null,null,null,"できない",null,null,null,null,null,null,null,null,null,null,null,null,null,null,null,null,null,null,null,null,null,null,null,null,null,null,null,null,null,null,null,null,null,null,null,null,null,null,null,null,null,null,null,null,null,null,null,null,null,null,null,null,null,null,null,null,null,null,null,null,null,null,null,null,null,null,null,null,null,null,null,17,null,null,"③",{"$f":"IF(Z8=\"\",\"\",Z8)","v":""},null,"",null,null,null,1,null,null,"回復期",false]
["意思の伝達　",null,null,null,null,null,null,null,null,null,null,"　　　　できない時がある　",null,null,null,null,null,null,null,null,null,null,null,null,null,null,null,null,null,null,null,null,null,null,null,null,null,null,null,null,null,null,null,null,null,null,null,null,null,null,null,null,null,null,null,null,null,null,null,null,null,null,null,null,null,null,null,null,null,null,null,null,null,null,null,null,null,null,null,null,null,null,null,null,null,null,null,null,null,null,null,18,null,null,"④",{"$f":"IF(Z9=\"\",\"\",Z9)","v":""},null,"",null,null,null,1,null,null,"回復期",false]
["　⑫診療・療養上の",null,null,null,null,null,null,null,"はい",null,null,"いいえ",null,null,null,null,null,null,null,null,null,null,null,null,null,null,null,null,null,null,null,null,null,null,null,null,null,null,null,null,null,null,null,null,null,null,null,null,null,null,null,null,null,null,null,null,null,null,null,null,null,null,null,null,null,null,null,null,null,null,null,null,null,null,null,null,null,null,null,null,null,null,null,null,null,null,null,null,null,null,null,19,null,null,"⑤",{"$f":"IF(Z10=\"\",\"\",Z10)","v":""},null,"",null,null,null,1,null,null,"回復期",false]
["指示が通じる　",null,null,null,null,null,null,null,null,null,null,null,null,null,null,null,null,null,null,null,null,null,null,null,null,null,null,null,null,null,null,null,null,null,null,null,null,null,null,null,null,null,null,null,null,null,null,null,null,null,null,null,null,null,null,null,null,null,null,null,null,null,null,null,null,null,null,null,null,null,null,null,null,null,null,null,null,null,null,null,null,null,null,null,null,null,null,null,null,null,null,20,null,null,"⑥",{"$f":"IF(Z11=\"\",\"\",Z11)","v":""},null,"",null,null,null,1,null,null,"回復期",false]
["⑬危険行動",null,null,null,null,null,null,null,"ない",null,null,"ある",null,null,null,null,null,null,null,null,null,null,null,null,null,null,null,null,null,null,null,null,null,null,null,null,null,null,null,null,null,null,null,null,null,null,null,null,null,null,null,null,null,null,null,null,null,null,null,null,null,null,null,null,null,null,null,null,null,null,null,null,null,null,null,null,null,null,null,null,null,null,null,null,null,null,null,null,null,null,null,21,null,null,"⑦",{"$f":"IF(Z12=\"\",\"\",Z12)","v":""},null,"",null,null,null,1,null,null,"回復期",false]
["日常生活動作合計点",null,null,null,null,null,null,null,null,null,null,null,null,null,null,null,null,null,null,null,null,null,null,{"$f":"SUM(X5:Y21)","v":0},null,{"$f":"SUM(Z5:AA21)","v":0},null,{"$f":"SUM(AB5:AC21)","v":0},null,null,null,null,null,null,null,null,null,null,null,null,null,null,null,null,null,null,null,null,null,null,null,null,null,null,null,null,null,null,null,null,null,null,null,null,null,null,null,null,null,null,null,null,null,null,null,null,null,null,null,null,null,null,null,null,null,null,null,null,null,null,null,22,null,null,"⑧",{"$f":"IF(Z14=\"\",\"\",Z14)","v":""},null,"",null,null,null,1,null,null,"回復期",false]
[null,null,null,null,null,null,null,null,null,null,null,null,null,null,null,null,null,null,null,null,null,null,null,null,null,null,null,null,null,null,null,null,null,null,null,null,null,null,null,null,null,null,null,null,null,null,null,null,null,null,null,null,null,null,null,null,null,null,null,null,null,null,null,null,null,null,null,null,null,null,null,null,null,null,null,null,null,null,null,null,null,null,null,null,null,null,null,null,null,null,null,23,null,null,"⑨",{"$f":"IF(Z15=\"\",\"\",Z15)","v":""},null,"",null,null,null,1,null,null,"回復期",false]
["（急性期・回復期は退院時、維持期は維持期以降後3ヶ月目に記入）",null,null,null,null,null,null,null,null,null,null,null,null,null,null,null,null,null,null,null,null,null,null,null,null,null,null,null,null,null,null,null,null,null,null,null,null,null,null,null,null,null,null,null,null,null,null,null,null,null,null,null,null,null,null,null,null,null,null,null,null,null,null,null,null,null,null,null,null,null,null,null,null,null,null,null,null,null,null,null,null,null,null,null,null,null,null,null,null,null,null,24,null,null,"⑩",{"$f":"IF(Z16=\"\",\"\",Z16)","v":""},null,"",null,null,null,1,null,null,"回復期",false]
[null,null,null,null,null,null,null,null,null,null,null,null,null,null,null,null,null,null,null,null,null,null,null,null,null,null,null,null,null,null,null,null,null,null,null,null,null,null,null,null,null,null,null,null,null,null,null,null,null,null,null,null,null,null,null,null,null,null,null,null,null,null,null,null,null,null,null,null,null,null,null,null,null,null,null,null,null,null,null,null,null,null,null,null,null,null,null,null,null,null,null,25,null,null,"⑪",{"$f":"IF(Z17=\"\",\"\",Z17)","v":""},null,"",null,null,null,1,null,null,"回復期",false]
[null,null,null,null,null,null,null,null,null,null,null,null,null,null,null,null,null,null,null,null,null,null,"各欄には点数を記入　　",null,null,null,null,null,null,null,null,null,null,null,null,null,null,null,null,null,null,null,null,null,null,null,null,null,null,null,null,null,null,null,null,null,null,null,null,null,null,null,null,null,null,null,null,null,null,null,null,null,null,null,null,null,null,null,null,null,null,null,null,null,null,null,null,null,null,null,null,26,null,null,"⑫",{"$f":"IF(Z19=\"\",\"\",Z19)","v":""},null,"",null,null,null,1,null,null,"回復期",false]
["リハビリテーション連携計画表",null,null,null,null,null,null,null,null,null,null,null,null,null,null,null,null,null,null,null,null,null,null,null,null,null,null,null,null,null,null,null,null,null,null,null,null,null,null,null,null,null,null,null,null,null,null,null,null,null,null,null,null,null,null,null,null,null,null,null,null,null,null,null,null,null,null,null,null,null,null,null,null,null,null,null,null,null,null,null,null,null,null,null,null,null,null,null,null,null,null,27,null,null,"⑬",{"$f":"IF(Z21=\"\",\"\",Z21)","v":""},null,"",null,null,null,1,null,null,"回復期",false]
[null,null,null,null,null,null,null,null,null,null,null,null,null,null,null,null,null,null,null,null,null,null,null,null,null,null,null,null,null,null,null,null,null,null,null,null,null,null,null,null,null,null,null,null,null,null,null,null,null,null,null,null,null,null,null,null,null,null,null,null,null,null,null,null,null,null,null,null,null,null,null,null,null,null,null,null,null,null,null,null,null,null,null,null,null,null,null,null,null,null,null,28,null,"維持期","①",{"$f":"IF(AB5=\"\",\"\",AB5)","v":""},null,"",null,null,null,null,{"$f":"IF(CT28=\"\",1,0)","v":1},null,"維持期",{"$f":"IF($CJ$9=FALSE,IF(CZ28=0,FALSE,IF(CZ28<$CJ$1,TRUE,FALSE)))","v":false}]
["移動の目標",null,"受傷前の移動",null,null,null,null,null,null,null,null,"急性期",null,null,null,null,null,null,null,null,null,null,null,null,null,null,null,null,null,null,null,"回復期",null,null,null,null,null,null,null,null,null,null,null,null,null,null,null,null,null,null,null,"維持期",null,null,null,null,null,null,null,null,null,null,null,null,null,null,null,"＊術後管理：",null,null,null,null,null,null,null,null,null,null,null,null,null,null,null,null,null,null,null,null,null,null,null,29,null,null,"②",{"$f":"IF(AB6=\"\",\"\",AB6)","v":""},null,"",null,null,null,null,{"$f":"IF(CT29=\"\",1,0)","v":1},null,"維持期",{"$f":"IF($CJ$9=FALSE,IF(CZ29=0,FALSE,IF(CZ29<$CJ$1,TRUE,FALSE)))","v":false}]
[null,null,null,null,null,null,null,null,null,null,null,"初期目標",null,null,null,null,null,null,null,null,null,"変更時目標",null,null,null,null,null,null,null,null,null,"初期目標",null,null,null,null,null,null,null,null,null,"変更時目標",null,null,null,null,null,null,null,null,null,"維持期目標",null,null,null,null,null,null,null,null,null,null,null,null,null,null,null,"大腿骨近位部骨折の手術後は以下の合併症がありますのでフォロ-アップが必要です。合併症が疑われるようでしたら整形外科専門医にご相談していただければ幸いです。また、合併症が生じなくても年2回程度の整形外科専門医への受診をおすすめします。",null,null,null,null,null,null,null,null,null,null,null,null,null,null,null,null,null,null,null,null,null,null,null,30,null,null,"③",{"$f":"IF(AB8=\"\",\"\",AB8)","v":""},null,"",null,null,null,null,1,null,"維持期",false]
[null,null,"（聞取り日:",null,null,null,null,null,null,null,"）","（設定日:",null,null,null,null,null,null,null,"）",null,"（変更日:",null,null,null,null,null,null,null,"）",null,"（設定日:",null,null,null,null,null,null,null,"）",null,"（変更日:",null,null,null,null,null,null,null,"）",null,"（設定日:",null,null,null,null,null,null,null,null,null,"）",null,null,null,null,null,null,null,null,null,null,null,null,null,null,null,null,null,null,null,null,null,null,null,null,null,null,null,null,null,31,null,null,"④",{"$f":"IF(AB9=\"\",\"\",AB9)","v":""},null,"",null,null,null,null,1,null,"維持期",false]
[null,null,null,null,null,null,null,null,null,null,null,null,null,null,null,null,null,null,null,null,null,null,null,null,null,null,null,null,null,null,null,null,null,null,null,null,null,null,null,null,null,null,null,null,null,null,null,null,null,null,null,null,null,null,null,null,null,null,null,null,null,null,null,null,null,null,null,null,null,null,null,null,null,null,null,null,null,null,null,null,null,null,null,null,null,null,null,null,null,null,null,32,null,null,"⑤",{"$f":"IF(AB10=\"\",\"\",AB10)","v":""},null,"",null,null,null,null,1,null,"維持期",false]
[null,null,null,null,null,null,null,null,null,null,null,null,null,null,null,null,null,null,null,null,null,null,null,null,null,null,null,null,null,null,null,null,null,null,null,null,null,null,null,null,null,null,null,null,null,null,null,null,null,null,null,null,null,null,null,null,null,null,null,null,null,null,null,null,null,null,null,null,null,null,null,null,null,null,null,null,null,null,null,null,null,null,null,null,null,null,null,null,null,null,null,33,null,null,"⑥",{"$f":"IF(AB11=\"\",\"\",AB11)","v":""},null,"",null,null,null,null,1,null,"維持期",false]
[null,null,null,null,null,null,null,null,null,null,null,null,null,null,null,null,null,null,null,null,null,null,null,null,null,null,null,null,null,null,null,null,null,null,null,null,null,null,null,null,null,null,null,null,null,null,null,null,null,null,null,null,null,null,null,null,null,null,null,null,null,null,null,null,null,null,null,null,null,null,null,null,null,null,null,null,null,null,null,null,null,null,null,null,null,null,null,null,null,null,null,34,null,null,"⑦",{"$f":"IF(AB12=\"\",\"\",AB12)","v":""},null,"",null,null,null,null,1,null,"維持期",false]
[null,null,null,null,null,null,null,null,null,null,null,null,null,null,null,null,null,null,null,null,null,null,null,null,null,null,null,null,null,null,null,null,null,null,null,null,null,null,null,null,null,null,null,null,null,null,null,null,null,null,null,null,null,null,null,null,null,null,null,null,null,null,null,null,null,null,null,null,null,null,null,null,null,null,null,null,null,null,null,null,null,null,null,null,null,null,null,null,null,null,null,35,null,null,"⑧",{"$f":"IF(AB14=\"\",\"\",AB14)","v":""},null,"",null,null,null,null,1,null,"維持期",false]
[null,null,null,null,null,null,null,null,null,null,null,null,null,null,null,null,null,null,null,null,null,null,null,null,null,null,null,null,null,null,null,null,null,null,null,null,null,null,null,null,null,null,null,null,null,null,null,null,null,null,null,null,null,null,null,null,null,null,null,null,null,null,null,null,null,null,null,null,null,null,null,null,null,null,null,null,null,null,null,null,null,null,null,null,null,null,null,null,null,null,null,36,null,null,"⑨",{"$f":"IF(AB15=\"\",\"\",AB15)","v":""},null,"",null,null,null,null,1,null,"維持期",false]
["リハビリ経過",null,null,null,null,null,null,null,null,null,null,"リハ開始",null,null,null,"（",null,null,null,"）",null,null,null,null,null,null,null,null,null,null,null,"リハ開始",null,null,null,"（",null,null,null,"）",null,null,null,null,null,null,null,null,null,null,null,"リハ開始",null,null,null,"（",null,null,null,"）",null,null,null,null,null,null,null,null,null,null,null,null,null,null,null,null,null,null,null,null,null,null,null,null,null,null,null,null,null,null,null,37,null,null,"⑩",{"$f":"IF(AB16=\"\",\"\",AB16)","v":""},null,"",null,null,null,null,1,null,"維持期",false]
[null,null,null,null,null,null,null,null,null,null,null,"　車椅子坐位",null,null,null,null,null,null,"（",null,null,null,"）",null,null,null,null,null,null,null,null,"　車椅子坐位",null,null,null,null,null,null,"（",null,null,null,"）",null,null,null,null,null,null,null,null,"　リハ実施者（",null,null,null,null,null,null,null,null,null,null,null,null,"）",null,null,null,null,null,null,null,null,null,null,null,null,null,null,null,null,null,null,null,null,null,null,null,null,null,null,38,null,null,"⑪",{"$f":"IF(AB17=\"\",\"\",AB17)","v":""},null,"",null,null,null,null,1,null,"維持期",false]
[null,null,null,null,null,null,null,null,null,null,null,"　平行棒",null,null,null,null,null,null,"（",null,null,null,"）",null,null,null,null,null,null,null,null,"　平行棒",null,null,null,null,null,null,"（",null,null,null,"）",null,null,null,null,null,null,null,null,null,null,null,null,null,null,null,null,null,null,null,null,null,null,null,null,null,null,null,null,null,null,null,null,null,null,null,null,null,null,null,null,null,null,null,null,null,null,null,null,39,null,null,"⑫",{"$f":"IF(AB19=\"\",\"\",AB19)","v":""},null,"",null,null,null,null,1,null,"維持期",false]
[null,null,null,null,null,null,null,null,null,null,null,"　歩行器",null,null,null,null,null,null,"（",null,null,null,"）",null,null,null,null,null,null,null,null,"　歩行器",null,null,null,null,null,null,"（",null,null,null,"）",null,null,null,null,null,null,null,null,null,null,null,null,null,null,null,null,null,null,null,null,null,null,null,null,null,"□人工骨頭置換術",null,null,null,null,null,null,"□骨接合術",null,null,null,null,null,null,null,null,null,null,null,null,null,null,null,40,null,null,"⑬",{"$f":"IF(AB21=\"\",\"\",AB21)","v":""},null,"",null,null,null,null,1,null,"維持期",false]
[null,null,null,null,null,null,null,null,null,null,null,"　シルバーカー",null,null,null,null,null,null,"（",null,null,null,"）",null,null,null,null,null,null,null,null,"　シルバーカー",null,null,null,null,null,null,"（",null,null,null,"）",null,null,null,null,null,null,null,null,null,null,null,null,null,null,null,null,null,null,null,null,null,null,null,null,null,null,"・ゆるみ",null,null,null,null,null,null,"・偽関節",null,null,null,null,null,null,null,null,null,null,null,null,null,null,41,"受傷前","移動の目標","聞き取り日",{"$f":"G31","v":"00:00:00"},null,{"$f":"IF(CR41=0,\"\",CR41)","v":""},null,null,{"$f":"IF(CT41=\"\",1,0)","v":1},null,null,null,"急性期",{"$f":"IF($CJ$7=FALSE,IF(CZ41=0,FALSE,IF(CZ41<$CJ$1,TRUE,FALSE)))","v":false}]
[null,null,null,null,null,null,null,null,null,null,null,"　杖",null,null,null,null,null,null,"（",null,null,null,"）",null,null,null,null,null,null,null,null,"　杖",null,null,null,null,null,null,"（",null,null,null,"）",null,null,null,null,null,null,null,null,null,null,null,null,null,null,null,null,null,null,null,null,null,null,null,null,null,null,"・遅発性感染",null,null,null,null,null,null,"・骨頭壊死",null,null,null,null,null,null,null,null,null,null,null,null,null,null,42,null,null,"目標",0,null,{"$f":"IF(CR42<>\"\",LOOKUP(CR42,{0,1,2,3,4,5,6,7,8},{\"\",\"ベッド上\",\"車いす\",\"介助下立位\",\"伝い歩き\",\"歩行器歩行\",\"杖歩行\",\"独歩\",\"シルバーカー\"}),\"\")","v":""},null,null,1,null,null,null,"急性期",false,0]
[null,null,null,null,null,null,null,null,null,null,null,"　階段",null,null,null,null,null,null,"（",null,null,null,"）",null,null,null,null,null,null,null,null,"　階段",null,null,null,null,null,null,"（",null,null,null,"）",null,null,null,null,null,null,null,null,null,null,null,"（",null,null,null,null,null,null,null,"）",null,null,null,null,null,null,"・脱臼",null,null,null,null,null,null,null,null,null,null,null,null,null,null,null,null,null,null,null,null,null,43,"急性期","初期","設定日",{"$f":"P31","v":"00:00:00"},null,{"$f":"IF(CR43=0,\"\",CR43)","v":""},null,null,1,null,null,null,"急性期",false]
[null,null,null,null,null,null,null,null,null,null,null,"　屋外",null,null,null,null,null,null,"（",null,null,null,"）",null,null,null,null,null,null,null,null,"　屋外",null,null,null,null,null,null,"（",null,null,null,"）",null,null,null,null,null,null,null,null,null,null,null,null,null,null,null,null,null,null,null,null,null,null,null,null,null,null,null,null,null,null,null,null,null,null,null,null,null,null,null,null,null,null,null,null,null,null,null,null,44,null,null,"目標",0,null,{"$f":"IF(CR44<>\"\",LOOKUP(CR44,{0,1,2,3,4,5,6,7,8},{\"\",\"ベッド上\",\"車いす\",\"介助下立位\",\"伝い歩き\",\"歩行器歩行\",\"杖歩行\",\"独歩\",\"シルバーカー\"}),\"\")","v":""},null,null,1,null,null,null,"急性期",false,0]
["御本人・御家族の希望・要望",null,null,null,null,null,null,null,null,null,null,null,null,null,null,null,null,null,null,null,null,null,null,null,null,null,null,null,null,null,null,null,null,null,null,null,null,null,null,null,null,null,null,null,null,null,null,null,null,null,null,null,null,null,null,null,null,null,null,null,null,null,null,null,null,null,null,{"$f":" '表　　　　　　　　　'!A18 & \"において、退院時に\"","v":"において、退院時に"},null,null,null,null,null,null,null,null,null,null,null,null,null,null,null,null,null,null,null,null,null,null,null,45,null,"変更時","変更日",{"$f":"Z31","v":"00:00:00"},null,{"$f":"IF(CR45=0,\"\",CR45)","v":""},null,null,null,null,null,null,"急性期",false]
[null,null,null,null,null,null,null,null,null,null,null,null,null,null,null,null,null,null,null,null,null,null,null,null,null,null,null,null,null,null,null,null,null,null,null,null,null,null,null,null,null,null,null,null,null,null,null,null,null,null,null,null,null,null,null,null,null,null,null,null,null,null,null,null,null,null,null,"この地域連携診療計画書を受領しました。",null,null,null,null,null,null,null,null,null,null,null,null,null,null,null,null,null,null,null,null,null,null,null,46,null,null,"目標",0,null,{"$f":"IF(CR46<>\"\",LOOKUP(CR46,{0,1,2,3,4,5,6,7,8},{\"\",\"ベッド上\",\"車いす\",\"介助下立位\",\"伝い歩き\",\"歩行器歩行\",\"杖歩行\",\"独歩\",\"シルバーカー\"}),\"\")","v":""},null,null,{"$f":"IF(CR45>0,IF(CT46=\"\",1,0),0)","v":0},null,null,null,"急性期",false,0]
[null,null,null,null,null,null,null,null,null,null,null,null,null,null,null,null,null,null,null,null,null,null,null,null,null,null,null,null,null,null,null,null,null,null,null,null,null,null,null,null,null,null,null,null,null,null,null,null,null,null,null,null,null,null,null,null,null,null,null,null,null,null,null,null,null,null,null,"            年　　　　月　　　　日",null,null,null,null,null,null,null,null,null,null,null,null,null,null,null,null,null,null,null,null,null,null,null,47,null,"リハ開始",null,{"$f":"Q37","v":"00:00:00"},null,{"$f":"IF(CR47=0,\"\",CR47)","v":""},null,null,1,null,null,null,"急性期",false]
[null,null,null,null,null,null,null,null,null,null,null,null,null,null,null,null,null,null,null,null,null,null,null,null,null,null,null,null,null,null,null,null,null,null,null,null,null,null,null,null,null,null,null,null,null,null,null,null,null,null,null,null,null,null,null,null,null,null,null,null,null,null,null,null,null,null,null,null,null,null,null,null,null,null,null,null,null,null,null,null,null,null,null,null,null,null,null,null,null,null,null,48,null,"車椅子坐位","実施",0,"1:実施 2:未実施",{"$f":"IF(CR48<>\"\",LOOKUP(CR48,{0,1,2},{\"\",\"実施\",\"未実施\"}),\"\")","v":""},null,null,1,null,null,null,"急性期",false,0]
[null,null,null,null,null,null,null,null,null,null,null,null,null,null,null,null,null,null,null,null,null,null,null,null,null,null,null,null,null,null,null,null,null,null,null,null,null,null,null,null,null,null,null,null,null,null,null,null,null,null,null,null,null,null,null,null,null,null,null,null,null,null,null,null,null,null,null,"受領者",null,null,null,null,null,null,null,null,null,null,null,null,null,null,null,null,null,null,null,null,null,null,null,49,null,null,"日にち",{"$f":"T38","v":"00:00:00"},null,{"$f":"IF(CR49=0,\"\",TEXT(CR49,\"mm／ｄｄ\"))","v":""},null,null,{"$f":"IF(CR48=1,IF(CT49=\"\",1,0),0)","v":0},null,null,null,"急性期",false]
[null,null,null,null,null,null,null,null,null,null,null,null,null,null,null,null,null,null,null,null,null,null,null,null,null,null,null,null,null,null,null,null,null,null,null,null,null,null,null,null,null,null,null,null,null,null,null,null,null,null,null,"現在の生活状況\n　　（できるADL・しているADLなどについて）",null,null,null,null,null,null,null,null,null,null,null,null,null,null,null,null,null,null,null,null,null,null,null,null,null,null,null,null,null,null,null,null,null,null,null,null,null,null,null,50,null,"平行棒","実施",0,"1:実施 2:未実施",{"$f":"IF(CR50<>\"\",LOOKUP(CR50,{0,1,2},{\"\",\"実施\",\"未実施\"}),\"\")","v":""},null,null,1,null,null,null,"急性期",false,0]
[null,null,null,null,null,null,null,null,null,null,null,null,null,null,null,null,null,null,null,null,null,null,null,null,null,null,null,null,null,null,null,null,null,null,null,null,null,null,null,null,null,null,null,null,null,null,null,null,null,null,null,null,null,null,null,null,null,null,null,null,null,null,null,null,null,null,null,null,null,null,null,null,null,null,null,null,null,null,null,null,null,null,null,null,null,null,null,null,null,null,null,51,null,null,"日にち",{"$f":"T39","v":"00:00:00"},null,{"$f":"IF(CR51=0,\"\",TEXT(CR51,\"mm／ｄｄ\"))","v":""},null,null,{"$f":"IF(CR50=1,IF(CT51=\"\",1,0),0)","v":0},null,null,null,"急性期",false]
[null,null,null,null,null,null,null,null,null,null,null,null,null,null,null,null,null,null,null,null,null,null,null,null,null,null,null,null,null,null,null,null,null,null,null,null,null,null,null,null,null,null,null,null,null,null,null,null,null,null,null,null,null,null,null,null,null,null,null,null,null,null,null,null,null,null,null,null,null,null,null,null,null,null,null,null,null,null,null,null,null,null,null,null,null,null,null,null,null,null,null,52,null,"歩行器","実施",0,"1:実施 2:未実施",{"$f":"IF(CR52<>\"\",LOOKUP(CR52,{0,1,2},{\"\",\"実施\",\"未実施\"}),\"\")","v":""},null,null,1,null,null,null,"急性期",false,0]
[null,null,null,null,null,null,null,null,null,null,null,null,null,null,null,null,null,null,null,null,null,null,null,null,null,null,null,null,null,null,null,null,null,null,null,null,null,null,null,null,null,null,null,null,null,null,null,null,null,null,null,null,null,null,null,null,null,null,null,null,null,null,null,null,null,null,null,null,null,null,null,null,null,null,null,null,null,null,null,null,null,null,null,null,null,null,null,null,null,null,null,53,null,null,"日にち",{"$f":"T40","v":"00:00:00"},null,{"$f":"IF(CR53=0,\"\",TEXT(CR53,\"mm／ｄｄ\"))","v":""},null,null,{"$f":"IF(CR52=1,IF(CT53=\"\",1,0),0)","v":0},null,null,null,"急性期",false]
[null,null,null,null,null,null,null,null,null,null,null,null,null,null,null,null,null,null,null,null,null,null,null,null,null,null,null,null,null,null,null,null,null,null,null,null,null,null,null,null,null,null,null,null,null,null,null,null,null,null,null,null,null,null,null,null,null,null,null,null,null,null,null,null,null,null,null,null,null,null,null,null,null,null,null,null,null,null,null,null,null,null,null,null,null,null,null,null,null,null,null,54,null,"杖","実施",0,"1:実施 2:未実施",{"$f":"IF(CR54<>\"\",LOOKUP(CR54,{0,1,2},{\"\",\"実施\",\"未実施\"}),\"\")","v":""},null,null,1,null,null,null,"急性期",false,0]
["引継ぎ事項・",null,null,null,null,null,null,null,null,null,null,null,null,null,null,null,null,null,null,null,null,null,null,null,null,null,null,null,null,null,null,null,null,null,null,null,null,null,null,null,null,null,null,null,null,null,null,null,null,null,null,null,null,null,null,null,null,null,null,null,null,null,null,null,null,null,null,{"$f":" '表　　　　　　　　　'!$A$18 & \"の地域連携診療計画に基づく、病院退院後の診療計画に対する主治医の説明に対し、十分ご理解いただけたなら、以下に同意の署名をお願いします。\"","v":"の地域連携診療計画に基づく、病院退院後の診療計画に対する主治医の説明に対し、十分ご理解いただけたなら、以下に同意の署名をお願いします。"},null,null,null,null,null,null,null,null,null,null,null,null,null,null,null,null,null,null,null,null,null,null,null,55,null,null,"日にち",{"$f":"T42","v":"00:00:00"},null,{"$f":"IF(CR55=0,\"\",TEXT(CR55,\"mm／ｄｄ\"))","v":""},null,null,{"$f":"IF(CR54=1,IF(CT55=\"\",1,0),0)","v":0},null,null,null,"急性期",false]
[null,null,null,null,null,null,null,null,null,null,null,null,null,null,null,null,null,null,null,null,null,null,null,null,null,null,null,null,null,null,null,null,null,null,null,null,null,null,null,null,null,null,null,null,null,null,null,null,null,null,null,null,null,null,null,null,null,null,null,null,null,null,null,null,null,null,null,null,null,null,null,null,null,null,null,null,null,null,null,null,null,null,null,null,null,null,null,null,null,null,null,56,null,"階段","実施",0,"1:実施 2:未実施",{"$f":"IF(CR56<>\"\",LOOKUP(CR56,{0,1,2},{\"\",\"実施\",\"未実施\"}),\"\")","v":""},null,null,1,null,null,null,"急性期",false,0]
[null,null,null,null,null,null,null,null,null,null,null,null,null,null,null,null,null,null,null,null,null,null,null,null,null,null,null,null,null,null,null,null,null,null,null,null,null,null,null,null,null,null,null,null,null,null,null,null,null,null,null,null,null,null,null,null,null,null,null,null,null,null,null,null,null,null,null,null,null,null,null,null,null,null,null,null,null,null,null,null,null,null,null,null,null,null,null,null,null,null,null,57,null,null,"日にち",{"$f":"T43","v":"00:00:00"},null,{"$f":"IF(CR57=0,\"\",TEXT(CR57,\"mm／ｄｄ\"))","v":""},null,null,{"$f":"IF(CR56=1,IF(CT57=\"\",1,0),0)","v":0},null,null,null,"急性期",false]
["リハビリ上の留意点",null,null,null,null,null,null,null,null,null,null,null,null,null,null,null,null,null,null,null,null,null,null,null,null,null,null,null,null,null,null,null,null,null,null,null,null,null,null,null,null,null,null,null,null,null,null,null,null,null,null,null,null,null,null,null,null,null,null,null,null,null,null,null,null,null,null,null,null,null,null,null,null,null,null,null,null,null,null,null,null,null,null,null,null,null,null,null,null,null,null,58,null,"屋外","実施",0,"1:実施 2:未実施",{"$f":"IF(CR58<>\"\",LOOKUP(CR58,{0,1,2},{\"\",\"実施\",\"未実施\"}),\"\")","v":""},null,null,1,null,null,null,"急性期",false,0]
[null,null,null,null,null,null,null,null,null,null,null,null,null,null,null,null,null,null,null,null,null,null,null,null,null,null,null,null,null,null,null,null,null,null,null,null,null,null,null,null,null,null,null,null,null,null,null,null,null,null,null,null,null,null,null,null,null,null,null,null,null,null,null,null,null,null,null,null,null,null,null,null,null,null,null,null,null,null,null,null,null,null,null,null,null,null,null,null,null,null,null,59,null,null,"日にち",{"$f":"T44","v":"00:00:00"},null,{"$f":"IF(CR59=0,\"\",TEXT(CR59,\"mm／ｄｄ\"))","v":""},null,null,{"$f":"IF(CR58=1,IF(CT59=\"\",1,0),0)","v":0},null,null,null,"急性期",false]
[null,null,null,null,null,null,null,null,null,null,null,null,null,null,null,null,null,null,null,null,null,null,null,null,null,null,null,null,null,null,null,null,null,null,null,null,null,null,null,null,null,null,null,null,null,null,null,null,null,null,null,null,null,null,null,null,null,null,null,null,null,null,null,null,null,null,null,null,null,null,null,null,null,null,null,null,null,null,null,null,null,null,null,null,null,null,null,null,null,null,null,60,null,"本人の希望",null,{"$f":"L45","v":0},null,{"$f":"IF(CR60=0,\"\",CR60)","v":""},null,null,null,null,null,null,"急性期",false]
["（御本人・御家族への説明等）",null,null,null,null,null,null,null,null,null,null,null,null,null,null,null,null,null,null,null,null,null,null,null,null,null,null,null,null,null,null,null,null,null,null,null,null,null,null,null,null,null,null,null,null,null,null,null,null,null,null,null,null,null,null,null,null,null,null,null,null,null,null,null,null,null,null,"説明日",null,null,"　　年　　　月　　　日",null,null,null,null,null,null,null,null,null,null,null,null,null,null,null,null,null,null,null,null,61,null,"引継ぎ事項",null,{"$f":"L50& CHAR(10) & L55 & CHAR(10) & L60","v":"\n\n"},null,{"$f":"IF(CR61=0,\"\",CR61)","v":"\n\n"},null,null,null,null,null,null,"急性期"]
[null,null,null,null,null,null,null,null,null,null,null,null,null,null,null,null,null,null,null,null,null,null,null,null,null,null,null,null,null,null,null,null,null,null,null,null,null,null,null,null,null,null,null,null,null,null,null,null,null,null,null,null,null,null,null,null,null,null,null,null,null,null,null,null,null,null,null,null,null,null,null,null,null,null,null,null,null,null,null,null,null,null,null,null,null,null,null,null,null,null,null,62,null,"最終確認者",null,{"$f":"V67","v":0},null,{"$f":"IF(CR62=0,\"\",CR62)","v":""},null,null,{"$f":"IF(CT62=\"\",1,0)","v":1},null,null,null,"急性期",{"$f":"IF($CJ$7=FALSE,IF(CZ62=0,FALSE,IF(CZ62<$CJ$1,TRUE,FALSE)))","v":false}]
[null,null,null,null,null,null,null,null,null,null,null,null,null,null,null,null,null,null,null,null,null,null,null,null,null,null,null,null,null,null,null,null,null,null,null,null,null,null,null,null,null,null,null,null,null,null,null,null,null,null,null,null,null,null,null,null,null,null,null,null,null,null,null,null,null,null,null,"担当医",null,null,null,null,null,null,null,null,null,null,null,null,null,null,null,null,null,null,null,null,null,null,null,63,"回復期","初期","設定日",{"$f":"AJ31","v":"00:00:00"},null,{"$f":"IF(CR63=0,\"\",CR63)","v":""},null,null,null,{"$f":"IF(CT63=\"\",1,0)","v":1},null,null,"回復期",{"$f":"IF($CJ$8=FALSE,IF(CZ63=0,FALSE,IF(CZ63<$CJ$1,TRUE,FALSE)))","v":false}]
[null,null,null,null,null,null,null,null,null,null,null,null,null,null,null,null,null,null,null,null,null,null,null,null,null,null,null,null,null,null,null,null,null,null,null,null,null,null,null,null,null,null,null,null,null,null,null,null,null,null,null,null,null,null,null,null,null,null,null,null,null,null,null,null,null,null,null,null,null,null,null,null,null,null,null,null,null,null,null,null,null,null,null,null,null,null,null,null,null,null,null,64,null,null,"目標",0,null,{"$f":"IF(CR64<>\"\",LOOKUP(CR64,{0,1,2,3,4,5,6,7,8},{\"\",\"ベッド上\",\"車いす\",\"介助下立位\",\"伝い歩き\",\"歩行器歩行\",\"杖歩行\",\"独歩\",\"シルバーカー\"}),\"\")","v":""},null,null,null,{"$f":"IF(CT64=\"\",1,0)","v":1},null,null,"回復期",{"$f":"IF($CJ$8=FALSE,IF(CZ64=0,FALSE,IF(CZ64<$CJ$1,TRUE,FALSE)))","v":false},0]
[null,null,null,null,null,null,null,null,null,null,null,null,null,null,null,null,null,null,null,null,null,null,null,null,null,null,null,null,null,null,null,null,null,null,null,null,null,null,null,null,null,null,null,null,null,null,null,null,null,null,null,null,null,null,null,null,null,null,null,null,null,null,null,null,null,null,null,"同意者",null,null,null,null,null,null,null,null,null,null,null,null,null,null,null,null,null,null,null,null,null,null,null,65,null,"変更時","変更日",{"$f":"AT31","v":"00:00:00"},null,{"$f":"IF(CR65=0,\"\",CR65)","v":""},null,null,null,null,null,null,"回復期",false]
[null,null,null,null,null,null,null,null,null,null,null,null,null,null,null,null,null,null,null,null,null,null,null,null,null,null,null,null,null,null,null,null,null,null,null,null,null,null,null,null,null,null,null,null,null,null,null,null,null,null,null,null,null,null,null,null,null,null,null,null,null,null,null,null,null,null,null,null,null,null,null,null,null,null,null,null,null,null,null,null,null,null,null,null,null,null,null,null,null,null,null,66,null,null,"目標",0,null,{"$f":"IF(CR66<>\"\",LOOKUP(CR66,{0,1,2,3,4,5,6,7,8},{\"\",\"ベッド上\",\"車いす\",\"介助下立位\",\"伝い歩き\",\"歩行器歩行\",\"杖歩行\",\"独歩\",\"シルバーカー\"}),\"\")","v":""},null,null,null,{"$f":"IF(CR65>0,IF(CT66=\"\",1,0),0)","v":0},null,null,"回復期",false,0]
["※コメントには職種記入のこと",null,null,null,null,null,null,null,null,null,null,null,null,null,null,null,null,"医師：",null,null,null,null,null,null,null,null,null,null,null,null,null,null,null,null,null,null,null,"医師：",null,null,null,null,null,null,null,null,null,null,null,null,null,null,null,"医師：",null,null,null,null,null,null,null,null,null,null,null,null,null,null,null,null,null,null,null,null,null,null,null,null,null,null,null,null,null,null,null,null,null,null,null,null,null,67,null,"リハ開始",null,{"$f":"AK37","v":"00:00:00"},null,{"$f":"IF(CR67=0,\"\",CR67)","v":""},null,null,null,{"$f":"IF(CT67=\"\",1,0)","v":1},null,null,"回復期",false]
[null,null,null,null,null,null,null,null,null,null,null,null,null,null,null,null,null,null,null,null,null,null,null,null,null,null,null,null,null,null,null,null,null,null,null,null,null,null,null,null,null,null,null,null,null,null,null,null,null,null,null,null,null,null,null,null,null,null,null,null,null,null,null,null,null,null,null,null,null,null,null,null,null,null,null,null,null,null,null,null,null,null,null,null,null,null,null,null,null,null,null,68,null,"車椅子坐位","実施",0,"1:実施 2:未実施",{"$f":"IF(CR68<>\"\",LOOKUP(CR68,{0,1,2},{\"\",\"実施\",\"未実施\"}),\"\")","v":""},null,null,null,{"$f":"IF(CT68=\"\",1,0)","v":1},null,null,"回復期",false,0]
[null,null,null,null,null,null,null,null,null,null,null,null,null,null,null,null,null,null,null,null,null,null,null,null,null,null,null,null,null,null,null,null,null,null,null,null,null,null,null,null,null,null,null,null,null,null,null,null,null,null,null,null,null,null,null,null,null,null,null,null,null,null,null,null,null,null,null,null,null,null,null,null,null,null,null,null,null,null,null,null,null,null,null,null,null,null,null,null,null,null,null,69,null,null,"日にち",{"$f":"AN38","v":"00:00:00"},null,{"$f":"IF(CR69=0,\"\",TEXT(CR69,\"mm／ｄｄ\"))","v":""},null,null,null,{"$f":"IF(CR68=1,IF(CT69=\"\",1,0),0)","v":0},null,null,"回復期",false]
[null,null,null,null,null,null,null,null,null,null,null,null,null,null,null,null,null,null,null,null,null,null,null,null,null,null,null,null,null,null,null,null,null,null,null,null,null,null,null,null,null,null,null,null,null,null,null,null,null,null,null,null,null,null,null,null,null,null,null,null,null,null,null,null,null,null,null,null,null,null,null,null,null,null,null,null,null,null,null,null,null,null,null,null,null,null,null,null,null,null,null,70,null,"平行棒","実施",0,"1:実施 2:未実施",{"$f":"IF(CR70<>\"\",LOOKUP(CR70,{0,1,2},{\"\",\"実施\",\"未実施\"}),\"\")","v":""},null,null,null,{"$f":"IF(CT70=\"\",1,0)","v":1},null,null,"回復期",false,0]
[null,null,null,null,null,null,null,null,null,null,null,null,null,null,null,null,null,null,null,null,null,null,null,null,null,null,null,null,null,null,null,null,null,null,null,null,null,null,null,null,null,null,null,null,null,null,null,null,null,null,null,null,null,null,null,null,null,null,null,null,null,null,null,null,null,null,null,null,null,null,null,null,null,null,null,null,null,null,null,null,null,null,null,null,null,null,null,null,null,null,null,71,null,null,"日にち",{"$f":"AN39","v":"00:00:00"},null,{"$f":"IF(CR71=0,\"\",TEXT(CR71,\"mm／ｄｄ\"))","v":""},null,null,null,{"$f":"IF(CR70=1,IF(CT71=\"\",1,0),0)","v":0},null,null,"回復期",false]
[null,null,null,null,null,null,null,null,null,null,null,null,null,null,null,null,null,null,null,null,null,null,null,null,null,null,null,null,null,null,null,null,null,null,null,null,null,null,null,null,null,null,null,null,null,null,null,null,null,null,null,null,null,null,null,null,null,null,null,null,null,null,null,null,null,null,null,null,null,null,null,null,null,null,null,null,null,null,null,null,null,null,null,null,null,null,null,null,null,null,null,72,null,"歩行器","実施",0,"1:実施 2:未実施",{"$f":"IF(CR72<>\"\",LOOKUP(CR72,{0,1,2},{\"\",\"実施\",\"未実施\"}),\"\")","v":""},null,null,null,{"$f":"IF(CT72=\"\",1,0)","v":1},null,null,"回復期",false,0]
[null,null,null,null,null,null,null,null,null,null,null,null,null,null,null,null,null,null,null,null,null,null,null,null,null,null,null,null,null,null,null,null,null,null,null,null,null,null,null,null,null,null,null,null,null,null,null,null,null,null,null,null,null,null,null,null,null,null,null,null,null,null,null,null,null,null,null,null,null,null,null,null,null,null,null,null,null,null,null,null,null,null,null,null,null,null,null,null,null,null,null,73,null,null,"日にち",{"$f":"AN40","v":"00:00:00"},null,{"$f":"IF(CR73=0,\"\",TEXT(CR73,\"mm／ｄｄ\"))","v":""},null,null,null,{"$f":"IF(CR72=1,IF(CT73=\"\",1,0),0)","v":0},null,null,"回復期",false]
[null,null,null,null,null,null,null,null,null,null,null,null,null,null,null,null,null,null,null,null,null,null,null,null,null,null,null,null,null,null,null,null,null,null,null,null,null,null,null,null,null,null,null,null,null,null,null,null,null,null,null,null,null,null,null,null,null,null,null,null,null,null,null,null,null,null,null,null,null,null,null,null,null,null,null,null,null,null,null,null,null,null,null,null,null,null,null,null,null,null,null,74,null,"杖","実施",0,"1:実施 2:未実施",{"$f":"IF(CR74<>\"\",LOOKUP(CR74,{0,1,2},{\"\",\"実施\",\"未実施\"}),\"\")","v":""},null,null,null,{"$f":"IF(CT74=\"\",1,0)","v":1},null,null,"回復期",false,0]
[null,null,null,null,null,null,null,null,null,null,null,null,null,null,null,null,null,null,null,null,null,null,null,null,null,null,null,null,null,null,null,null,null,null,null,null,null,null,null,null,null,null,null,null,null,null,null,null,null,null,null,null,null,null,null,null,null,null,null,null,null,null,null,null,null,null,null,null,null,null,null,null,null,null,null,null,null,null,null,null,null,null,null,null,null,null,null,null,null,null,null,75,null,null,"日にち",{"$f":"AN42","v":"00:00:00"},null,{"$f":"IF(CR75=0,\"\",TEXT(CR75,\"mm／ｄｄ\"))","v":""},null,null,null,{"$f":"IF(CR74=1,IF(CT75=\"\",1,0),0)","v":0},null,null,"回復期",false]
[null,null,null,null,null,null,null,null,null,null,null,null,null,null,null,null,null,null,null,null,null,null,null,null,null,null,null,null,null,null,null,null,null,null,null,null,null,null,null,null,null,null,null,null,null,null,null,null,null,null,null,null,null,null,null,null,null,null,null,null,null,null,null,null,null,null,null,null,null,null,null,null,null,null,null,null,null,null,null,null,null,null,null,null,null,null,null,null,null,null,null,76,null,"階段","実施",0,"1:実施 2:未実施",{"$f":"IF(CR76<>\"\",LOOKUP(CR76,{0,1,2},{\"\",\"実施\",\"未実施\"}),\"\")","v":""},null,null,null,{"$f":"IF(CT76=\"\",1,0)","v":1},null,null,"回復期",false,0]
[null,null,null,null,null,null,null,null,null,null,null,null,null,null,null,null,null,null,null,null,null,null,null,null,null,null,null,null,null,null,null,null,null,null,null,null,null,null,null,null,null,null,null,null,null,null,null,null,null,null,null,null,null,null,null,null,null,null,null,null,null,null,null,null,null,null,null,null,null,null,null,null,null,null,null,null,null,null,null,null,null,null,null,null,null,null,null,null,null,null,null,77,null,null,"日にち",{"$f":"AN43","v":"00:00:00"},null,{"$f":"IF(CR77=0,\"\",TEXT(CR77,\"mm／ｄｄ\"))","v":""},null,null,null,{"$f":"IF(CR76=1,IF(CT77=\"\",1,0),0)","v":0},null,null,"回復期",false]
[null,null,null,null,null,null,null,null,null,null,null,null,null,null,null,null,null,null,null,null,null,null,null,null,null,null,null,null,null,null,null,null,null,null,null,null,null,null,null,null,null,null,null,null,null,null,null,null,null,null,null,null,null,null,null,null,null,null,null,null,null,null,null,null,null,null,null,null,null,null,null,null,null,null,null,null,null,null,null,null,null,null,null,null,null,null,null,null,null,null,null,78,null,"屋外","実施",0,"1:実施 2:未実施",{"$f":"IF(CR78<>\"\",LOOKUP(CR78,{0,1,2},{\"\",\"実施\",\"未実施\"}),\"\")","v":""},null,null,null,{"$f":"IF(CT78=\"\",1,0)","v":1},null,null,"回復期",false,0]
[null,null,null,null,null,null,null,null,null,null,null,null,null,null,null,null,null,null,null,null,null,null,null,null,null,null,null,null,null,null,null,null,null,null,null,null,null,null,null,null,null,null,null,null,null,null,null,null,null,null,null,null,null,null,null,null,null,null,null,null,null,null,null,null,null,null,null,null,null,null,null,null,null,null,null,null,null,null,null,null,null,null,null,null,null,null,null,null,null,null,null,79,null,null,"日にち",{"$f":"AN44","v":"00:00:00"},null,{"$f":"IF(CR79=0,\"\",TEXT(CR79,\"mm／ｄｄ\"))","v":""},null,null,null,{"$f":"IF(CR78=1,IF(CT79=\"\",1,0),0)","v":0},null,null,"回復期",false]
[null,null,null,null,null,null,null,null,null,null,null,null,null,null,null,null,null,null,null,null,null,null,null,null,null,null,null,null,null,null,null,null,null,null,null,null,null,null,null,null,null,null,null,null,null,null,null,null,null,null,null,null,null,null,null,null,null,null,null,null,null,null,null,null,null,null,null,null,null,null,null,null,null,null,null,null,null,null,null,null,null,null,null,null,null,null,null,null,null,null,null,80,null,"本人の希望",null,{"$f":"AF45","v":0},null,{"$f":"IF(CR80=0,\"\",CR80)","v":""},null,null,null,null,null,null,"回復期",false]
[null,null,null,null,null,null,null,null,null,null,null,null,null,null,null,null,null,null,null,null,null,null,null,null,null,null,null,null,null,null,null,null,null,null,null,null,null,null,null,null,null,null,null,null,null,null,null,null,null,null,null,null,null,null,null,null,null,null,null,null,null,null,null,null,null,null,null,null,null,null,null,null,null,null,null,null,null,null,null,null,null,null,null,null,null,null,null,null,null,null,null,81,null,"引継ぎ事項",null,{"$f":"AF50& CHAR(10) & AF55& CHAR(10) &AF60","v":"\n\n"},null,{"$f":"IF(CR81=0,\"\",CR81)","v":"\n\n"}]
[null,null,null,null,null,null,null,null,null,null,null,null,null,null,null,null,null,null,null,null,null,null,null,null,null,null,null,null,null,null,null,null,null,null,null,null,null,null,null,null,null,null,null,null,null,null,null,null,null,null,null,null,null,null,null,null,null,null,null,null,null,null,null,null,null,null,null,null,null,null,null,null,null,null,null,null,null,null,null,null,null,null,null,null,null,null,null,null,null,null,null,82,null,"最終確認者",null,{"$f":"AP67","v":0},null,{"$f":"IF(CR82=0,\"\",CR82)","v":""},null,null,null,{"$f":"IF(CT82=\"\",1,0)","v":1},null,null,"回復期",{"$f":"IF($CJ$8=FALSE,IF(CZ82=0,FALSE,IF(CZ82<$CJ$1,TRUE,FALSE)))","v":false}]
[null,null,null,null,null,null,null,null,null,null,null,null,null,null,null,null,null,null,null,null,null,null,null,null,null,null,null,null,null,null,null,null,null,null,null,null,null,null,null,null,null,null,null,null,null,null,null,null,null,null,null,null,null,null,null,null,null,null,null,null,null,null,null,null,null,null,null,null,null,null,null,null,null,null,null,null,null,null,null,null,null,null,null,null,null,null,null,null,null,null,null,83,"維持期","維持期目標","設定日",{"$f":"BF31","v":"00:00:00"},null,"",null,null,null,null,{"$f":"IF(CT83=\"\",1,0)","v":1},null,"維持期",{"$f":"IF($CJ$9=FALSE,IF(CZ83=0,FALSE,IF(CZ83<$CJ$1,TRUE,FALSE)))","v":false}]
[null,null,null,null,null,null,null,null,null,null,null,null,null,null,null,null,null,null,null,null,null,null,null,null,null,null,null,null,null,null,null,null,null,null,null,null,null,null,null,null,null,null,null,null,null,null,null,null,null,null,null,null,null,null,null,null,null,null,null,null,null,null,null,null,null,null,null,null,null,null,null,null,null,null,null,null,null,null,null,null,null,null,null,null,null,null,null,null,null,null,null,84,null,null,"目標",0,null,{"$f":"IF(CR84<>\"\",LOOKUP(CR84,{0,1,2,3,4,5,6,7,8},{\"\",\"ベッド上\",\"車いす\",\"介助下立位\",\"伝い歩き\",\"歩行器歩行\",\"杖歩行\",\"独歩\",\"シルバーカー\"}),\"\")","v":""},null,null,null,null,{"$f":"IF(CT84=\"\",1,0)","v":1},null,"維持期",false,0]
[null,null,null,null,null,null,null,null,null,null,null,null,null,null,null,null,null,null,null,null,null,null,null,null,null,null,null,null,null,null,null,null,null,null,null,null,null,null,null,null,null,null,null,null,null,null,null,null,null,null,null,null,null,null,null,null,null,null,null,null,null,null,null,null,null,null,null,null,null,null,null,null,null,null,null,null,null,null,null,null,null,null,null,null,null,null,null,null,null,null,null,85,null,"リハ開始",null,{"$f":"BE37","v":"00:00:00"},null,"",null,null,null,null,{"$f":"IF(CT85=\"\",1,0)","v":1},null,"維持期",false]
[null,null,null,null,null,null,null,null,null,null,null,null,null,null,null,null,null,null,null,null,null,null,null,null,null,null,null,null,null,null,null,null,null,null,null,null,null,null,null,null,null,null,null,null,null,null,null,null,null,null,null,null,null,null,null,null,null,null,null,null,null,null,null,null,null,null,null,null,null,null,null,null,null,null,null,null,null,null,null,null,null,null,null,null,null,null,null,null,null,null,null,86,null,"リハ実施者",null,0,null,{"$f":"IF(CR86<>\"\",LOOKUP(CR86,{0,1,2,3},{\"\",\"PT\",\"OT\",\"その他：\"}),\"\")","v":""},null,null,null,null,{"$f":"IF(CT86=\"\",1,0)","v":1},null,"維持期",false,0]
[null,null,null,null,null,null,null,null,null,null,null,null,null,null,null,null,null,null,null,null,null,null,null,null,null,null,null,null,null,null,null,null,null,null,null,null,null,null,null,null,null,null,null,null,null,null,null,null,null,null,null,null,null,null,null,null,null,null,null,null,null,null,null,null,null,null,null,null,null,null,null,null,null,null,null,null,null,null,null,null,null,null,null,null,null,null,null,null,null,null,null,87,null,null,"テキスト",{"$f":"BJ38","v":0},null,"",null,{"$f":"IF(CR86=3,CT86&CT87,CT86)","v":""},null,null,{"$f":"IF(CR86=3,IF(CT87=\"\",1,0),0)","v":0},null,"維持期",false]
[null,null,null,null,null,null,null,null,null,null,null,null,null,null,null,null,null,null,null,null,null,null,null,null,null,null,null,null,null,null,null,null,null,null,null,null,null,null,null,null,null,null,null,null,null,null,null,null,null,null,null,null,null,null,null,null,null,null,null,null,null,null,null,null,null,null,null,null,null,null,null,null,null,null,null,null,null,null,null,null,null,null,null,null,null,null,null,null,null,null,null,88,null,null,"ROM訓練・筋力強化訓練",false,null,{"$f":"IF(CR88=TRUE,CQ88,\"\")","v":""},null,null,null,null,null,null,"維持期",false,false]
[null,null,null,null,null,null,null,null,null,null,null,null,null,null,null,null,null,null,null,null,null,null,null,null,null,null,null,null,null,null,null,null,null,null,null,null,null,null,null,null,null,null,null,null,null,null,null,null,null,null,null,null,null,null,null,null,null,null,null,null,null,null,null,null,null,null,null,null,null,null,null,null,null,null,null,null,null,null,null,null,null,null,null,null,null,null,null,null,null,null,null,89,null,null,"ADL・IADL訓練",false,null,{"$f":"IF(CR89=TRUE,CQ89,\"\")","v":""},null,null,null,null,null,null,null,null,false]
[null,null,null,null,null,null,null,null,null,null,null,null,null,null,null,null,null,null,null,null,null,null,null,null,null,null,null,null,null,null,null,null,null,null,null,null,null,null,null,null,null,null,null,null,null,null,null,null,null,null,null,null,null,null,null,null,null,null,null,null,null,null,null,null,null,null,null,null,null,null,null,null,null,null,null,null,null,null,null,null,null,null,null,null,null,null,null,null,null,null,null,90,null,null,"住環境整備",false,null,{"$f":"IF(CR90=TRUE,CQ90,\"\")","v":""},null,null,null,null,null,null,null,null,false]
[null,null,null,null,null,null,null,null,null,null,null,null,null,null,null,null,null,null,null,null,null,null,null,null,null,null,null,null,null,null,null,null,null,null,null,null,null,null,null,null,null,null,null,null,null,null,null,null,null,null,null,null,null,null,null,null,null,null,null,null,null,null,null,null,null,null,null,null,null,null,null,null,null,null,null,null,null,null,null,null,null,null,null,null,null,null,null,null,null,null,null,91,null,null,"役割・趣味活動開発",false,null,{"$f":"IF(CR91=TRUE,CQ91,\"\")","v":""},null,null,null,null,null,null,null,null,false]
[null,null,null,null,null,null,null,null,null,null,null,null,null,null,null,null,null,null,null,null,null,null,null,null,null,null,null,null,null,null,null,null,null,null,null,null,null,null,null,null,null,null,null,null,null,null,null,null,null,null,null,null,null,null,null,null,null,null,null,null,null,null,null,null,null,null,null,null,null,null,null,null,null,null,null,null,null,null,null,null,null,null,null,null,null,null,null,null,null,null,null,92,null,null,"その他",false,null,{"$f":"IF(CR92=TRUE,CQ92,\"\")","v":""},null,{"$f":"IF(CR85=TRUE,\"なし\",IF(CV93<>\"\", MID(CV93,2,200),\"\"))","v":""},null,null,{"$f":"IF(CV92=\"\",1,0)","v":1},null,null,null,false]
[null,null,null,null,null,null,null,null,null,null,null,null,null,null,null,null,null,null,null,null,null,null,null,null,null,null,null,null,null,null,null,null,null,null,null,null,null,null,null,null,null,null,null,null,null,null,null,null,null,null,null,null,null,null,null,null,null,null,null,null,null,null,null,null,null,null,null,null,null,null,null,null,null,null,null,null,null,null,null,null,null,null,null,null,null,null,null,null,null,null,null,93,null,null,"その他テキスト",{"$f":"BD43","v":0},null,"","計算用",{"$f":" IF(CT88<>\"\",CHAR(10) & CT88,\"\") & IF(CT89<>\"\",CHAR(10) & CT89,\"\") & IF(CT90<>\"\",CHAR(10)  & CT90,\"\") & IF(CT91<>\"\",CHAR(10)  & CT91,\"\") & IF(CT92<>\"\",CHAR(10)  & CT92 & IF(CT93<>\"\",\"(\" & CT93 & \")\",\"\"),\"\")","v":""},null,null,{"$f":"IF(CR92=TRUE,IF(CT93=\"\",1,0),0)","v":0},null,"維持期",{"$f":"IF($CJ$9=FALSE,IF(CZ93=0,FALSE,IF(CZ93<$CJ$1,TRUE,FALSE)))","v":false}]
[null,null,null,null,null,null,null,null,null,null,null,null,null,null,null,null,null,null,null,null,null,null,null,null,null,null,null,null,null,null,null,null,null,null,null,null,null,null,null,null,null,null,null,null,null,null,null,null,null,null,null,null,null,null,null,null,null,null,null,null,null,null,null,null,null,null,null,null,null,null,null,null,null,null,null,null,null,null,null,null,null,null,null,null,null,null,null,null,null,null,null,94,null,"本人の希望",null,{"$f":"AZ45","v":0},null,"",null,null,null,null,null,null,"維持期",{"$f":"IF($CJ$9=FALSE,IF(CZ94=0,FALSE,IF(CZ94<$CJ$1,TRUE,FALSE)))","v":false}]
[null,null,null,null,null,null,null,null,null,null,null,null,null,null,null,null,null,null,null,null,null,null,null,null,null,null,null,null,null,null,null,null,null,null,null,null,null,null,null,null,null,null,null,null,null,null,null,null,null,null,null,null,null,null,null,null,null,null,null,null,null,null,null,null,null,null,null,null,null,null,null,null,null,null,null,null,null,null,null,null,null,null,null,null,null,null,null,null,null,null,null,95,null,"引継ぎ事項",null,{"$f":"AZ52& CHAR(10) & AZ56 & CHAR(10) & AZ61","v":"\n\n"},null,"\n\n"]
[null,null,null,null,null,null,null,null,null,null,null,null,null,null,null,null,null,null,null,null,null,null,null,null,null,null,null,null,null,null,null,null,null,null,null,null,null,null,null,null,null,null,null,null,null,null,null,null,null,null,null,null,null,null,null,null,null,null,null,null,null,null,null,null,null,null,null,null,null,null,null,null,null,null,null,null,null,null,null,null,null,null,null,null,null,null,null,null,null,null,null,96,null,"最終確認者",null,{"$f":"BF67","v":0},null,"",null,null,null,null,{"$f":"IF(CT96=\"\",1,0)","v":1},null,"維持期",{"$f":"IF($CJ$9=FALSE,IF(CZ96=0,FALSE,IF(CZ96<$CJ$1,TRUE,FALSE)))","v":false}]
[null,null,null,null,null,null,null,null,null,null,null,null,null,null,null,null,null,null,null,null,null,null,null,null,null,null,null,null,null,null,null,null,null,null,null,null,null,null,null,null,null,null,null,null,null,null,null,null,null,null,null,null,null,null,null,null,null,null,null,null,null,null,null,null,null,null,null,null,null,null,null,null,null,null,null,null,null,null,null,null,null,null,null,null,null,null,null,null,null,null,null,97,"急性期","引継ぎ事項","①",{"$f":"L50","v":0},null,null,null,null,null,null,null,null,"急性期",{"$f":"IF($CJ$7=FALSE,IF(CZ97=0,FALSE,IF(CZ97<$CJ$1,TRUE,FALSE)))","v":false}]
[null,null,null,null,null,null,null,null,null,null,null,null,null,null,null,null,null,null,null,null,null,null,null,null,null,null,null,null,null,null,null,null,null,null,null,null,null,null,null,null,null,null,null,null,null,null,null,null,null,null,null,null,null,null,null,null,null,null,null,null,null,null,null,null,null,null,null,null,null,null,null,null,null,null,null,null,null,null,null,null,null,null,null,null,null,null,null,null,null,null,null,98,null,null,"②",{"$f":"L55","v":0},null,null,null,null,null,null,null,null,"急性期",{"$f":"IF($CJ$7=FALSE,IF(CZ98=0,FALSE,IF(CZ98<$CJ$1,TRUE,FALSE)))","v":false}]
[null,null,null,null,null,null,null,null,null,null,null,null,null,null,null,null,null,null,null,null,null,null,null,null,null,null,null,null,null,null,null,null,null,null,null,null,null,null,null,null,null,null,null,null,null,null,null,null,null,null,null,null,null,null,null,null,null,null,null,null,null,null,null,null,null,null,null,null,null,null,null,null,null,null,null,null,null,null,null,null,null,null,null,null,null,null,null,null,null,null,null,99,null,null,"③",{"$f":"L60","v":0},null,null,null,null,null,null,null,null,"急性期",{"$f":"IF($CJ$7=FALSE,IF(CZ99=0,FALSE,IF(CZ99<$CJ$1,TRUE,FALSE)))","v":false}]
[null,null,null,null,null,null,null,null,null,null,null,null,null,null,null,null,null,null,null,null,null,null,null,null,null,null,null,null,null,null,null,null,null,null,null,null,null,null,null,null,null,null,null,null,null,null,null,null,null,null,null,null,null,null,null,null,null,null,null,null,null,null,null,null,null,null,null,null,null,null,null,null,null,null,null,null,null,null,null,null,null,null,null,null,null,null,null,null,null,null,null,100,"回復期","引継ぎ事項","①",{"$f":"AF50","v":0},null,null,null,null,null,null,null,null,"回復期",{"$f":"IF($CJ$8=FALSE,IF(CZ100=0,FALSE,IF(CZ100<$CJ$1,TRUE,FALSE)))","v":false}]
[null,null,null,null,null,null,null,null,null,null,null,null,null,null,null,null,null,null,null,null,null,null,null,null,null,null,null,null,null,null,null,null,null,null,null,null,null,null,null,null,null,null,null,null,null,null,null,null,null,null,null,null,null,null,null,null,null,null,null,null,null,null,null,null,null,null,null,null,null,null,null,null,null,null,null,null,null,null,null,null,null,null,null,null,null,null,null,null,null,null,null,101,null,null,"②",{"$f":"AF55","v":0},null,null,null,null,null,null,null,null,"回復期",{"$f":"IF($CJ$8=FALSE,IF(CZ101=0,FALSE,IF(CZ101<$CJ$1,TRUE,FALSE)))","v":false}]
[null,null,null,null,null,null,null,null,null,null,null,null,null,null,null,null,null,null,null,null,null,null,null,null,null,null,null,null,null,null,null,null,null,null,null,null,null,null,null,null,null,null,null,null,null,null,null,null,null,null,null,null,null,null,null,null,null,null,null,null,null,null,null,null,null,null,null,null,null,null,null,null,null,null,null,null,null,null,null,null,null,null,null,null,null,null,null,null,null,null,null,102,null,null,"③",{"$f":"AF60","v":0},null,null,null,null,null,null,null,null,"回復期",{"$f":"IF($CJ$8=FALSE,IF(CZ102=0,FALSE,IF(CZ102<$CJ$1,TRUE,FALSE)))","v":false}]
[null,null,null,null,null,null,null,null,null,null,null,null,null,null,null,null,null,null,null,null,null,null,null,null,null,null,null,null,null,null,null,null,null,null,null,null,null,null,null,null,null,null,null,null,null,null,null,null,null,null,null,null,null,null,null,null,null,null,null,null,null,null,null,null,null,null,null,null,null,null,null,null,null,null,null,null,null,null,null,null,null,null,null,null,null,null,null,null,null,null,null,103,"維持期","引継ぎ事項","①",{"$f":"AZ52","v":0},null,null,null,null,null,null,null,null,"維持期",{"$f":"IF($CJ$9=FALSE,IF(CZ103=0,FALSE,IF(CZ103<$CJ$1,TRUE,FALSE)))","v":false}]
[null,null,null,null,null,null,null,null,null,null,null,null,null,null,null,null,null,null,null,null,null,null,null,null,null,null,null,null,null,null,null,null,null,null,null,null,null,null,null,null,null,null,null,null,null,null,null,null,null,null,null,null,null,null,null,null,null,null,null,null,null,null,null,null,null,null,null,null,null,null,null,null,null,null,null,null,null,null,null,null,null,null,null,null,null,null,null,null,null,null,null,104,null,null,"②",{"$f":"AZ56","v":0},null,null,null,null,null,null,null,null,"維持期",{"$f":"IF($CJ$9=FALSE,IF(CZ104=0,FALSE,IF(CZ104<$CJ$1,TRUE,FALSE)))","v":false}]
[null,null,null,null,null,null,null,null,null,null,null,null,null,null,null,null,null,null,null,null,null,null,null,null,null,null,null,null,null,null,null,null,null,null,null,null,null,null,null,null,null,null,null,null,null,null,null,null,null,null,null,null,null,null,null,null,null,null,null,null,null,null,null,null,null,null,null,null,null,null,null,null,null,null,null,null,null,null,null,null,null,null,null,null,null,null,null,null,null,null,null,105,null,null,"③",{"$f":"AZ61","v":0},null,null,null,null,null,null,null,null,"維持期",{"$f":"IF($CJ$9=FALSE,IF(CZ105=0,FALSE,IF(CZ105<$CJ$1,TRUE,FALSE)))","v":false}]
[null,null,null,null,null,null,null,null,null,null,null,null,null,null,null,null,null,null,null,null,null,null,null,null,null,null,null,null,null,null,null,null,null,null,null,null,null,null,null,null,null,null,null,null,null,null,null,null,null,null,null,null,null,null,null,null,null,null,null,null,null,null,null,null,null,null,null,null,null,null,null,null,null,null,null,null,null,null,null,null,null,null,null,null,null,null,null,null,null,null,null,106,"急性期","シルバーカー","実施",0,"1:実施 2:未実施",{"$f":"IF(CR106<>\"\",LOOKUP(CR106,{0,1,2},{\"\",\"実施\",\"未実施\"}),\"\")","v":""},null,null,{"$f":"IF(CT106=\"\",1,0)","v":1},null,null,null,"急性期",{"$f":"IF($CJ$7=FALSE,IF(CZ106=0,FALSE,IF(CZ106<$CJ$1,TRUE,FALSE)))","v":false},0]
[null,null,null,null,null,null,null,null,null,null,null,null,null,null,null,null,null,null,null,null,null,null,null,null,null,null,null,null,null,null,null,null,null,null,null,null,null,null,null,null,null,null,null,null,null,null,null,null,null,null,null,null,null,null,null,null,null,null,null,null,null,null,null,null,null,null,null,null,null,null,null,null,null,null,null,null,null,null,null,null,null,null,null,null,null,null,null,null,null,null,null,107,null,null,"日にち",{"$f":"T41","v":"00:00:00"},null,{"$f":"IF(CR107=0,\"\",TEXT(CR107,\"mm／ｄｄ\"))","v":""},null,null,{"$f":"IF(CR106=1,IF(CT107=\"\",1,0),0)","v":0},null,null,null,"急性期",false]
[null,null,null,null,null,null,null,null,null,null,null,null,null,null,null,null,null,null,null,null,null,null,null,null,null,null,null,null,null,null,null,null,null,null,null,null,null,null,null,null,null,null,null,null,null,null,null,null,null,null,null,null,null,null,null,null,null,null,null,null,null,null,null,null,null,null,null,null,null,null,null,null,null,null,null,null,null,null,null,null,null,null,null,null,null,null,null,null,null,null,null,108,"回復期","シルバーカー","実施",0,"1:実施 2:未実施",{"$f":"IF(CR108<>\"\",LOOKUP(CR108,{0,1,2},{\"\",\"実施\",\"未実施\"}),\"\")","v":""},null,null,null,{"$f":"IF(CT108=\"\",1,0)","v":1},null,null,"回復期",{"$f":"IF($CJ$8=FALSE,IF(CZ108=0,FALSE,IF(CZ108<$CJ$1,TRUE,FALSE)))","v":false},0]
[null,null,null,null,null,null,null,null,null,null,null,null,null,null,null,null,null,null,null,null,null,null,null,null,null,null,null,null,null,null,null,null,null,null,null,null,null,null,null,null,null,null,null,null,null,null,null,null,null,null,null,null,null,null,null,null,null,null,null,null,null,null,null,null,null,null,null,null,null,null,null,null,null,null,null,null,null,null,null,null,null,null,null,null,null,null,null,null,null,null,null,109,null,null,"日にち",{"$f":"AN41","v":"00:00:00"},null,{"$f":"IF(CR109=0,\"\",TEXT(CR109,\"mm／ｄｄ\"))","v":""},null,null,null,{"$f":"IF(CR108=1,IF(CT109=\"\",1,0),0)","v":0},null,null,"回復期",{"$f":"IF($CJ$8=FALSE,IF(CZ109=0,FALSE,IF(CZ109<$CJ$1,TRUE,FALSE)))","v":false}]
[null,null,null,null,null,null,null,null,null,null,null,null,null,null,null,null,null,null,null,null,null,null,null,null,null,null,null,null,null,null,null,null,null,null,null,null,null,null,null,null,null,null,null,null,null,null,null,null,null,null,null,null,null,null,null,null,null,null,null,null,null,null,null,null,null,null,null,null,null,null,null,null,null,null,null,null,null,null,null,null,null,null,null,null,null,null,null,null,null,null,null,null,null,null,null,null,null,null,null,null,{"$f":"SUM(CW2:CW109)","v":26},{"$f":"SUM(CX2:CX109)","v":24},{"$f":"SUM(CY2:CY109)","v":19}]

{"sheet":"DATA_PATIENT","index":4,"n_rows":11,"n_cols":2,"rows_kept":11,"cut":false,"hidden":true,"merged":[]}
["適用施設患者情報"]
["タグ名","値"]
["患者ID"]
["カナ氏名"]
["患者氏名"]
["性別"]
["生年月日"]
["年齢"]
["郵便番号"]
["住所"]
["電話番号"]

{"sheet":"STATISTICS_XXX","index":5,"n_rows":1,"n_cols":185,"rows_kept":1,"cut":false,"hidden":true,"merged":[]}
[{"$f":"'表　　　　　　　　　'!CH5","v":""},{"$f":"IF(ISERROR('表　　　　　　　　　'!CF11),\"\",'表　　　　　　　　　'!CF11)","v":""},{"$f":"'表　　　　　　　　　'!CH12","v":""},{"$f":"'表　　　　　　　　　'!CH13","v":""},{"$f":"'表　　　　　　　　　'!CH14","v":""},{"$f":"'表　　　　　　　　　'!CF15","v":0},{"$f":"'表　　　　　　　　　'!CH16","v":""},{"$f":"IF('表　　　　　　　　　'!CF20,1,0) & \";\"\n&IF('表　　　　　　　　　'!CF21,1,0) & \";\"\n&IF('表　　　　　　　　　'!CF22,1,0) & \";\"\n&IF('表　　　　　　　　　'!CF23,1,0) & \";\"\n&IF('表　　　　　　　　　'!CF24,1,0) & \";\"\n&IF('表　　　　　　　　　'!CF25,1,0) & \";\"\n&IF('表　　　　　　　　　'!CF26,1,0)","v":"0;0;0;0;0;0;0"},{"$f":"'表　　　　　　　　　'!CH27","v":""},{"$f":"'表　　　　　　　　　'!CF33","v":0},{"$f":"IF('表　　　　　　　　　'!CF34,1,0)\n&IF('表　　　　　　　　　'!CF35,1,0)\n&IF('表　　　　　　　　　'!CF36,1,0)\n&IF('表　　　　　　　　　'!CF37,1,0)","v":"0000"},{"$f":"'表　　　　　　　　　'!CH38","v":""},{"$f":"'表　　　　　　　　　'!CF39","v":0},{"$f":"IF('表　　　　　　　　　'!CF40=0,\"\",'表　　　　　　　　　'!CF40)","v":""},{"$f":"'表　　　　　　　　　'!CF41","v":0},{"$f":"IF('表　　　　　　　　　'!CF42=0,\"\",'表　　　　　　　　　'!CF42)","v":""},{"$f":"'表　　　　　　　　　'!CH43","v":""},{"$f":"'表　　　　　　　　　'!CF44","v":0},{"$f":"'表　　　　　　　　　'!CF45","v":0},{"$f":"'表　　　　　　　　　'!CF46","v":0},{"$f":"'表　　　　　　　　　'!CF47","v":0},{"$f":"'表　　　　　　　　　'!CF48","v":0},{"$f":"'表　　　　　　　　　'!CF49","v":0},{"$f":"'表　　　　　　　　　'!CF58","v":0},{"$f":"'表　　　　　　　　　'!CF59","v":0},{"$f":"'表　　　　　　　　　'!CF60","v":0},{"$f":"'表　　　　　　　　　'!CF61","v":0},{"$f":"'表　　　　　　　　　'!CF65","v":0},{"$f":"'表　　　　　　　　　'!CF68","v":0},{"$f":"'表　　　　　　　　　'!CH86","v":""},{"$f":"'表　　　　　　　　　'!CH87","v":""},{"$f":"'表　　　　　　　　　'!CF93","v":0},{"$f":"'表　　　　　　　　　'!CF94","v":0},{"$f":"'表　　　　　　　　　'!CF95","v":0},{"$f":"IF('表　　　　　　　　　'!CF96,1,0) & \";\" &\nIF('表　　　　　　　　　'!CF97,1,0) & \";\"&\nIF('表　　　　　　　　　'!CF98,1,0) & \";\" &\nIF('表　　　　　　　　　'!CF99,1,0) & \";\" &\nIF('表　　　　　　　　　'!CF100,1,0)","v":"0;0;0;0;0"},{"$f":"'表　　　　　　　　　'!CF101","v":0},{"$f":"IF('表　　　　　　　　　'!CF102,1,0) & \";\" &\nIF('表　　　　　　　　　'!CF103,1,0) & \";\"&\nIF('表　　　　　　　　　'!CF104,1,0) & \";\" &\nIF('表　　　　　　　　　'!CF105,1,0) & \";\" &\nIF('表　　　　　　　　　'!CF106,1,0)","v":"0;0;0;0;0"},{"$f":"'表　　　　　　　　　'!CF107","v":0},{"$f":"'表　　　　　　　　　'!CH108","v":""},{"$f":"'表　　　　　　　　　'!CF109","v":0},{"$f":"'表　　　　　　　　　'!CF110","v":0},{"$f":"'表　　　　　　　　　'!CF111","v":0},{"$f":"'表　　　　　　　　　'!CF112","v":0},{"$f":"'表　　　　　　　　　'!CF113","v":0},{"$f":"'表　　　　　　　　　'!CF114","v":0},{"$f":"IF('表　　　　　　　　　'!CF115,1,0) & \";\" &\nIF('表　　　　　　　　　'!CF116,1,0) & \";\"&\nIF('表　　　　　　　　　'!CF117,1,0) & \";\" &\nIF('表　　　　　　　　　'!CF118,1,0) & \";\" &\nIF('表　　　　　　　　　'!CF120,1,0)","v":"0;0;0;0;0"},{"$f":"'表　　　　　　　　　'!CH119","v":""},{"$f":"'表　　　　　　　　　'!CF130","v":0},{"$f":"'表　　　　　　　　　'!CF131","v":0},{"$f":"'表　　　　　　　　　'!CF132","v":0},{"$f":"'表　　　　　　　　　'!CF135","v":0},{"$f":"IF('表　　　　　　　　　'!CF136,1,0) & \";\" &\nIF('表　　　　　　　　　'!CF137,1,0) & \";\"&\nIF('表　　　　　　　　　'!CF138,1,0) & \";\" &\nIF('表　　　　　　　　　'!CF139,1,0) & \";\" &\nIF('表　　　　　　　　　'!CF140,1,0)","v":"0;0;0;0;0"},{"$f":"'表　　　　　　　　　'!CF141","v":""},{"$f":"'表　　　　　　　　　'!CF142","v":0},{"$f":"'表　　　　　　　　　'!CF143","v":0},{"$f":"'表　　　　　　　　　'!CF144","v":0},{"$f":"'表　　　　　　　　　'!CH145","v":""},{"$f":"'表　　　　　　　　　'!CF146","v":0},{"$f":"IF('表　　　　　　　　　'!CF151,1,0)&\";\"&\nIF('表　　　　　　　　　'!CF152,1,0)&\";\"&\nIF('表　　　　　　　　　'!CF153,1,0)&\";\"&\nIF('表　　　　　　　　　'!CF154,1,0)","v":"0;0;0;0"},{"$f":"'表　　　　　　　　　'!CH158","v":""},{"$f":"'表　　　　　　　　　'!CH159","v":""},{"$f":"'表　　　　　　　　　'!CF165","v":0},{"$f":"'表　　　　　　　　　'!CF166","v":0},{"$f":"'表　　　　　　　　　'!CF167","v":0},{"$f":"IF('表　　　　　　　　　'!CF168,1,0) & \";\" &\nIF('表　　　　　　　　　'!CF169,1,0) & \";\"&\nIF('表　　　　　　　　　'!CF170,1,0) & \";\" &\nIF('表　　　　　　　　　'!CF171,1,0) & \";\" &\nIF('表　　　　　　　　　'!CF172,1,0)","v":"0;0;0;0;0"},{"$f":"'表　　　　　　　　　'!CF173","v":0},{"$f":"IF('表　　　　　　　　　'!CF174,1,0) & \";\" &\nIF('表　　　　　　　　　'!CF175,1,0) & \";\"&\nIF('表　　　　　　　　　'!CF176,1,0) & \";\" &\nIF('表　　　　　　　　　'!CF177,1,0) & \";\" &\nIF('表　　　　　　　　　'!CF178,1,0)","v":"0;0;0;0;0"},{"$f":"'表　　　　　　　　　'!CF179","v":0},{"$f":"'表　　　　　　　　　'!CH180","v":""},{"$f":"'表　　　　　　　　　'!CF181","v":0},{"$f":"'表　　　　　　　　　'!CF182","v":0},{"$f":"'表　　　　　　　　　'!CF183","v":0},{"$f":"'表　　　　　　　　　'!CF184","v":0},{"$f":"'表　　　　　　　　　'!CF185","v":0},{"$f":"'表　　　　　　　　　'!CF186","v":0},{"$f":"IF('表　　　　　　　　　'!CF187,1,0) & \";\" &\nIF('表　　　　　　　　　'!CF188,1,0) & \";\"&\nIF('表　　　　　　　　　'!CF189,1,0) & \";\" &\nIF('表　　　　　　　　　'!CF190,1,0) & \";\" &\nIF('表　　　　　　　　　'!CF192,1,0)","v":"0;0;0;0;0"},{"$f":"'表　　　　　　　　　'!CH191","v":""},{"$f":"'表　　　　　　　　　'!CF202","v":0},{"$f":"'表　　　　　　　　　'!CF203","v":0},{"$f":"'表　　　　　　　　　'!CF204","v":0},{"$f":"'表　　　　　　　　　'!CF207","v":0},{"$f":"IF('表　　　　　　　　　'!CF208,1,0) & \";\" &\nIF('表　　　　　　　　　'!CF209,1,0) & \";\"&\nIF('表　　　　　　　　　'!CF210,1,0) & \";\" &\nIF('表　　　　　　　　　'!CF211,1,0) & \";\" &\nIF('表　　　　　　　　　'!CF212,1,0)","v":"0;0;0;0;0"},{"$f":"'表　　　　　　　　　'!CF213","v":""},{"$f":"'表　　　　　　　　　'!CF214","v":0},{"$f":"'表　　　　　　　　　'!CF215","v":0},{"$f":"'表　　　　　　　　　'!CF216","v":0},{"$f":"'表　　　　　　　　　'!CF217","v":"00:00:00"},{"$f":"'表　　　　　　　　　'!CF218","v":0},{"$f":"'表　　　　　　　　　'!CF290","v":0},{"$f":"'表　　　　　　　　　'!CF293","v":0},{"$f":"'表　　　　　　　　　'!CF226","v":"00:00:00"},null,null,{"$f":"'表　　　　　　　　　'!CF232","v":0},{"$f":"IF('表　　　　　　　　　'!CF233,1,0) & \";\" &\nIF('表　　　　　　　　　'!CF234,1,0) & \";\"&\nIF('表　　　　　　　　　'!CF235,1,0) & \";\" &\nIF('表　　　　　　　　　'!CF236,1,0) & \";\" &\nIF('表　　　　　　　　　'!CF237,1,0) & \";\" &\nIF('表　　　　　　　　　'!CG237,1,0)","v":"0;0;0;0;0;0"},{"$f":"'表　　　　　　　　　'!CF238","v":0},{"$f":"IF('表　　　　　　　　　'!CF239,1,0) & \";\" &\nIF('表　　　　　　　　　'!CF240,1,0) & \";\"&\nIF('表　　　　　　　　　'!CF241,1,0) & \";\" &\nIF('表　　　　　　　　　'!CF242,1,0) & \";\" &\nIF('表　　　　　　　　　'!CF243,1,0) & \";\" &\nIF('表　　　　　　　　　'!CG243,1,0)","v":"0;0;0;0;0;0"},{"$f":"'表　　　　　　　　　'!CF244","v":0},{"$f":"'表　　　　　　　　　'!CF245","v":0},{"$f":"'表　　　　　　　　　'!CF246","v":0},{"$f":"'表　　　　　　　　　'!CF247","v":0},{"$f":"'表　　　　　　　　　'!CF248","v":0},{"$f":"'表　　　　　　　　　'!CF249","v":0},{"$f":"'表　　　　　　　　　'!CF250","v":0},{"$f":"'表　　　　　　　　　'!CF251","v":0},{"$f":"IF('表　　　　　　　　　'!CF252,1,0) & \";\" &\nIF('表　　　　　　　　　'!CF253,1,0) & \";\"&\nIF('表　　　　　　　　　'!CF254,1,0) & \";\" &\nIF('表　　　　　　　　　'!CF255,1,0) & \";\" &\nIF('表　　　　　　　　　'!CF257,1,0)","v":"0;0;0;0;0"},{"$f":"'表　　　　　　　　　'!CF256","v":0},{"$f":"'表　　　　　　　　　'!CF267","v":0},{"$f":"'表　　　　　　　　　'!CF268","v":0},{"$f":"'表　　　　　　　　　'!CF269","v":0},{"$f":"'表　　　　　　　　　'!CF272","v":0},{"$f":"IF('表　　　　　　　　　'!CF273,1,0) & \";\" &\nIF('表　　　　　　　　　'!CF274,1,0) & \";\"&\nIF('表　　　　　　　　　'!CF275,1,0) & \";\" &\nIF('表　　　　　　　　　'!CF276,1,0) & \";\" &\nIF('表　　　　　　　　　'!CF277,1,0)","v":"0;0;0;0;0"},{"$f":"'表　　　　　　　　　'!CF278","v":""},{"$f":"'表　　　　　　　　　'!CF279","v":0},{"$f":"'表　　　　　　　　　'!CF280","v":0},{"$f":"'表　　　　　　　　　'!CF281","v":0},{"$f":"'表　　　　　　　　　'!CF282","v":"00:00:00"},{"$f":"'表　　　　　　　　　'!CF283","v":0},{"$f":"'表　　　　　　　　　'!CF298","v":0},{"$f":"'表　　　　　　　　　'!CF301","v":0},{"$f":"'表　　　　　　　　　'!CF313","v":0},{"$f":"'表　　　　　　　　　'!CF314","v":0},{"$f":"'表　　　　　　　　　'!CF315","v":0},{"$f":"'裏　　　　　　　　　'!CR2&\";\"\n& '裏　　　　　　　　　'!CR3&\";\"\n& '裏　　　　　　　　　'!CR4&\";\"\n& '裏　　　　　　　　　'!CR5&\";\"\n& '裏　　　　　　　　　'!CR6&\";\"\n& '裏　　　　　　　　　'!CR7&\";\"\n& '裏　　　　　　　　　'!CR8&\";\"\n& '裏　　　　　　　　　'!CR9&\";\"\n& '裏　　　　　　　　　'!CR10&\";\"\n& '裏　　　　　　　　　'!CR11&\";\"\n& '裏　　　　　　　　　'!CR12&\";\"\n& '裏　　　　　　　　　'!CR13&\";\"\n& '裏　　　　　　　　　'!CR14","v":";;;;;;;;;;;;"},{"$f":"'裏　　　　　　　　　'!X22","v":0},{"$f":"'裏　　　　　　　　　'!CR15&\";\"\n& '裏　　　　　　　　　'!CR16&\";\"\n& '裏　　　　　　　　　'!CR17&\";\"\n& '裏　　　　　　　　　'!CR18&\";\"\n& '裏　　　　　　　　　'!CR19&\";\"\n& '裏　　　　　　　　　'!CR20&\";\"\n& '裏　　　　　　　　　'!CR21&\";\"\n& '裏　　　　　　　　　'!CR22&\";\"\n& '裏　　　　　　　　　'!CR23&\";\"\n& '裏　　　　　　　　　'!CR24&\";\"\n& '裏　　　　　　　　　'!CR25&\";\"\n& '裏　　　　　　　　　'!CR26&\";\"\n& '裏　　　　　　　　　'!CR27","v":";;;;;;;;;;;;"},{"$f":"'裏　　　　　　　　　'!Z22","v":0},{"$f":"'裏　　　　　　　　　'!CR28&\";\"\n& '裏　　　　　　　　　'!CR29&\";\"\n& '裏　　　　　　　　　'!CR30&\";\"\n& '裏　　　　　　　　　'!CR31&\";\"\n& '裏　　　　　　　　　'!CR32&\";\"\n& '裏　　　　　　　　　'!CR33&\";\"\n& '裏　　　　　　　　　'!CR34&\";\"\n& '裏　　　　　　　　　'!CR35&\";\"\n& '裏　　　　　　　　　'!CR36&\";\"\n& '裏　　　　　　　　　'!CR37&\";\"\n& '裏　　　　　　　　　'!CR38&\";\"\n& '裏　　　　　　　　　'!CR39&\";\"\n& '裏　　　　　　　　　'!CR40","v":";;;;;;;;;;;;"},{"$f":"'裏　　　　　　　　　'!AB22","v":0},{"$f":"'裏　　　　　　　　　'!CT41","v":""},{"$f":"'裏　　　　　　　　　'!CR42","v":0},{"$f":"'裏　　　　　　　　　'!CT43","v":""},{"$f":"'裏　　　　　　　　　'!CR44","v":0},{"$f":"'裏　　　　　　　　　'!CT45","v":""},{"$f":"'裏　　　　　　　　　'!CR46","v":0},{"$f":"'裏　　　　　　　　　'!CT47","v":""},{"$f":"'裏　　　　　　　　　'!CR48","v":0},{"$f":"'裏　　　　　　　　　'!CT49","v":""},{"$f":"'裏　　　　　　　　　'!CR50","v":0},{"$f":"'裏　　　　　　　　　'!CT51","v":""},{"$f":"'裏　　　　　　　　　'!CR52","v":0},{"$f":"'裏　　　　　　　　　'!CT53","v":""},{"$f":"'裏　　　　　　　　　'!CR54","v":0},{"$f":"'裏　　　　　　　　　'!CT55","v":""},{"$f":"'裏　　　　　　　　　'!CR56","v":0},{"$f":"'裏　　　　　　　　　'!CT57","v":""},{"$f":"'裏　　　　　　　　　'!CR58","v":0},{"$f":"'裏　　　　　　　　　'!CT59","v":""},{"$f":"'裏　　　　　　　　　'!CT63","v":""},{"$f":"'裏　　　　　　　　　'!CR64","v":0},{"$f":"'裏　　　　　　　　　'!CT65","v":""},{"$f":"'裏　　　　　　　　　'!CR66","v":0},{"$f":"'裏　　　　　　　　　'!CT67","v":""},{"$f":"'裏　　　　　　　　　'!CR68","v":0},{"$f":"'裏　　　　　　　　　'!CT69","v":""},{"$f":"'裏　　　　　　　　　'!CR70","v":0},{"$f":"'裏　　　　　　　　　'!CT71","v":""},{"$f":"'裏　　　　　　　　　'!CR72","v":0},{"$f":"'裏　　　　　　　　　'!CT73","v":""},{"$f":"'裏　　　　　　　　　'!CR74","v":0},{"$f":"'裏　　　　　　　　　'!CT75","v":""},{"$f":"'裏　　　　　　　　　'!CR76","v":0},{"$f":"'裏　　　　　　　　　'!CT77","v":""},{"$f":"'裏　　　　　　　　　'!CR78","v":0},{"$f":"'裏　　　　　　　　　'!CT79","v":""},{"$f":"'裏　　　　　　　　　'!CT83","v":""},{"$f":"'裏　　　　　　　　　'!CR84","v":0},{"$f":"'裏　　　　　　　　　'!CT85","v":""},{"$f":"'裏　　　　　　　　　'!CT86","v":""},{"$f":"'裏　　　　　　　　　'!CT87","v":""},{"$f":"IF('裏　　　　　　　　　'!CR88,1,0) & \";\" &\nIF('裏　　　　　　　　　'!CR89,1,0) & \";\"&\nIF('裏　　　　　　　　　'!CR90,1,0) & \";\" &\nIF('裏　　　　　　　　　'!CR91,1,0) & \";\" &\nIF('裏　　　　　　　　　'!CR92,1,0)","v":"0;0;0;0;0"},{"$f":"'裏　　　　　　　　　'!CT93","v":""},{"$f":"'表　　　　　　　　　'!$CH$317","v":""},{"$f":"'表　　　　　　　　　'!$CH$318","v":""},{"$f":"'表　　　　　　　　　'!$CH$319","v":""},{"$f":"'表　　　　　　　　　'!$CH$320","v":""},{"$f":"'表　　　　　　　　　'!$CH$321","v":""},{"$f":"'裏　　　　　　　　　'!CR106","v":0},{"$f":"'裏　　　　　　　　　'!CT107","v":""},{"$f":"'裏　　　　　　　　　'!CR108","v":0},{"$f":"'裏　　　　　　　　　'!CT109","v":""},{"$f":"'表　　　　　　　　　'!CH83","v":""},{"$f":"'表　　　　　　　　　'!CH155","v":""},{"$f":"'表　　　　　　　　　'!CH223","v":""},{"$f":"IF('表　　　　　　　　　'!CV1=\"\",\"\",'表　　　　　　　　　'!CV1)","v":"2023-04-01T10:00:43"}]

{"sheet":"裏印刷用","index":6,"n_rows":67,"n_cols":77,"rows_kept":67,"cut":false,"hidden":true,"merged":[[2,0,2,28],[1,0,1,2],[1,3,1,28],[18,0,18,7],[21,27,22,28],[21,25,22,26],[16,27,17,28],[20,0,20,7],[36,36,36,38],[26,0,27,11],[30,6,31,9],[28,11,28,30],[29,21,29,30],[30,25,31,28],[30,11,31,14],[30,21,31,24],[28,0,35,1],[28,2,29,10],[30,2,31,5],[32,2,35,10],[30,10,31,10],[29,11,29,20],[32,11,35,20],[32,21,35,30],[28,51,28,64],[29,51,29,64],[29,31,29,40],[29,41,29,50],[28,31,28,50],[32,31,35,40],[30,31,31,34],[30,51,31,56],[30,57,31,60],[30,29,31,30],[14,23,14,24],[8,23,8,24],[9,23,9,24],[10,23,10,24],[3,23,3,24],[4,23,4,24],[10,0,10,7],[10,8,10,10],[11,8,12,10],[7,8,7,10],[11,0,12,7],[9,0,9,7],[7,27,7,28],[8,27,8,28],[10,27,10,28],[9,25,9,26],[10,25,10,26],[3,19,3,22],[7,19,7,22],[9,27,9,28],[7,25,7,26],[8,25,8,26],[7,23,7,24],[8,0,8,7],[30,15,31,18],[4,0,4,7],[5,0,5,7],[6,0,6,7],[7,0,7,7],[7,11,7,18],[5,23,6,24],[9,8,9,10],[15,23,15,24],[10,19,10,22],[15,11,15,18],[14,0,14,7],[15,19,15,22],[13,0,13,7],[14,19,14,22],[13,19,13,22],[13,8,13,10],[14,11,14,18],[12,11,12,18],[14,8,14,10],[4,19,4,22],[5,19,6,22],[30,19,31,20],[9,19,9,22],[9,11,9,18],[11,27,12,28],[10,11,10,18],[11,23,12,24],[11,25,12,26],[11,19,12,22],[3,8,3,10],[4,8,4,10],[5,8,6,10],[4,11,4,18],[8,8,8,10],[3,11,3,18],[5,11,6,18],[8,11,8,18],[8,19,8,22],[3,25,3,26],[3,27,3,28],[4,27,4,28],[5,27,6,28],[4,25,4,26],[5,25,6,26],[11,11,11,18],[21,23,22,24],[18,25,19,26],[18,11,19,18],[13,25,13,26],[15,27,15,28],[20,27,20,28],[20,25,20,26],[18,27,19,28],[13,27,13,28],[14,27,14,28],[13,11,13,18],[15,25,15,26],[13,23,13,24],[16,23,17,24],[14,25,14,26],[16,25,17,26],[36,0,43,10],[36,16,36,18],[44,11,48,30],[44,31,48,50],[44,0,48,10],[15,8,15,10],[26,35,26,39],[15,0,15,7],[16,19,17,22],[17,0,17,7],[26,42,26,47],[20,19,20,22],[21,0,22,22],[18,19,19,22],[19,0,19,7],[18,8,19,10],[20,23,20,24],[16,11,16,18],[17,11,17,18],[20,8,20,10],[20,11,20,18],[16,0,16,7],[18,23,19,24],[16,8,17,10],[66,0,66,8],[66,17,66,20],[66,21,66,30],[60,0,61,10],[54,0,55,10],[57,0,58,10],[49,11,65,30],[45,67,48,80],[66,53,66,56],[66,57,66,64],[63,70,64,79],[65,70,66,79],[55,67,60,80],[61,70,61,78],[50,68,51,72],[51,51,65,64],[29,67,38,80],[30,49,31,50],[30,45,31,48],[30,61,31,64],[44,51,48,64],[66,37,66,40],[66,41,66,50],[49,51,50,64],[49,67,49,77],[49,31,65,50],[30,35,31,38],[30,39,31,40],[30,41,31,44],[36,56,36,58],[38,52,43,64],[32,51,35,64],[32,41,35,50],[37,51,37,64]]}
[]
["氏名:",null,null,{"$f":"IF('表　　　　　　　　　'!E4=\"\",\"\",'表　　　　　　　　　'!E4)","v":""}]
["日常生活機能評価表 　　※０～１９点"]
[null,null,null,null,null,null,null,null,"０点",null,null,"１点",null,null,null,null,null,null,null,"２点",null,null,null,"急",null,"回",null,"維"]
["①床上安静の指示",null,null,null,null,null,null,null,"なし",null,null,"あり",null,null,null,null,null,null,null,null,null,null,null,{"$f":"'裏　　　　　　　　　'!CT2","v":""},null,{"$f":"'裏　　　　　　　　　'!CT15","v":""},null,{"$f":"'裏　　　　　　　　　'!CT28","v":""}]
["②どちらかの手を胸元",null,null,null,null,null,null,null,"できる",null,null,"できない",null,null,null,null,null,null,null,null,null,null,null,{"$f":"'裏　　　　　　　　　'!CT3","v":""},null,{"$f":"'裏　　　　　　　　　'!CT16","v":""},null,{"$f":"'裏　　　　　　　　　'!CT29","v":""}]
["　まで持ち上げられる"]
["③寝返り",null,null,null,null,null,null,null,"できる",null,null,"何かにつかまればできる",null,null,null,null,null,null,null,"できない",null,null,null,{"$f":"'裏　　　　　　　　　'!CT4","v":""},null,{"$f":"'裏　　　　　　　　　'!CT17","v":""},null,{"$f":"'裏　　　　　　　　　'!CT30","v":""}]
["④起き上がり",null,null,null,null,null,null,null,"できる",null,null,"できない",null,null,null,null,null,null,null,null,null,null,null,{"$f":"'裏　　　　　　　　　'!CT5","v":""},null,{"$f":"'裏　　　　　　　　　'!CT18","v":""},null,{"$f":"'裏　　　　　　　　　'!CT31","v":""}]
["⑤座位保持",null,null,null,null,null,null,null,"できる",null,null,"支えがあればできる",null,null,null,null,null,null,null,"できない",null,null,null,{"$f":"'裏　　　　　　　　　'!CT6","v":""},null,{"$f":"'裏　　　　　　　　　'!CT19","v":""},null,{"$f":"'裏　　　　　　　　　'!CT32","v":""}]
["⑥移乗",null,null,null,null,null,null,null,"できる",null,null,"見守り・一部介助が必要",null,null,null,null,null,null,null,"できない",null,null,null,{"$f":"'裏　　　　　　　　　'!CT7","v":""},null,{"$f":"'裏　　　　　　　　　'!CT20","v":""},null,{"$f":"'裏　　　　　　　　　'!CT33","v":""}]
["⑦移動方法",null,null,null,null,null,null,null,"介助を要 しない移動",null,null,"介助を要する移動",null,null,null,null,null,null,null,null,null,null,null,{"$f":"'裏　　　　　　　　　'!CT8","v":""},null,{"$f":"'裏　　　　　　　　　'!CT21","v":""},null,{"$f":"'裏　　　　　　　　　'!CT34","v":""}]
[null,null,null,null,null,null,null,null,null,null,null,"（搬送を含む）"]
["⑧口腔清潔",null,null,null,null,null,null,null,"できる",null,null,"できない",null,null,null,null,null,null,null,null,null,null,null,{"$f":"'裏　　　　　　　　　'!CT9","v":""},null,{"$f":"'裏　　　　　　　　　'!CT22","v":""},null,{"$f":"'裏　　　　　　　　　'!CT35","v":""}]
["⑨食事摂取",null,null,null,null,null,null,null,"介助なし",null,null,"一部介助",null,null,null,null,null,null,null,"全介助",null,null,null,{"$f":"'裏　　　　　　　　　'!CT10","v":""},null,{"$f":"'裏　　　　　　　　　'!CT23","v":""},null,{"$f":"'裏　　　　　　　　　'!CT36","v":""}]
["⑩衣服の着脱",null,null,null,null,null,null,null,"介助なし",null,null,"一部介助",null,null,null,null,null,null,null,"全介助",null,null,null,{"$f":"'裏　　　　　　　　　'!CT11","v":""},null,{"$f":"'裏　　　　　　　　　'!CT24","v":""},null,{"$f":"'裏　　　　　　　　　'!CT37","v":""}]
["　⑪他者への",null,null,null,null,null,null,null,"できる",null,null,"　　できる時と",null,null,null,null,null,null,null,"できない",null,null,null,{"$f":"'裏　　　　　　　　　'!CT12","v":""},null,{"$f":"'裏　　　　　　　　　'!CT25","v":""},null,{"$f":"'裏　　　　　　　　　'!CT38","v":""}]
["意思の伝達　",null,null,null,null,null,null,null,null,null,null,"　　　　できない時がある　"]
["　⑫診療・療養上の",null,null,null,null,null,null,null,"はい",null,null,"いいえ",null,null,null,null,null,null,null,null,null,null,null,{"$f":"'裏　　　　　　　　　'!CT13","v":""},null,{"$f":"'裏　　　　　　　　　'!CT26","v":""},null,{"$f":"'裏　　　　　　　　　'!CT39","v":""}]
["指示が通じる　"]
["⑬危険行動",null,null,null,null,null,null,null,"ない",null,null,"ある",null,null,null,null,null,null,null,null,null,null,null,{"$f":"'裏　　　　　　　　　'!CT14","v":""},null,{"$f":"'裏　　　　　　　　　'!CT27","v":""},null,{"$f":"'裏　　　　　　　　　'!CT40","v":""}]
["日常生活動作合計点",null,null,null,null,null,null,null,null,null,null,null,null,null,null,null,null,null,null,null,null,null,null,{"$f":"SUM(X5:Y21)","v":0},null,{"$f":"SUM(Z5:AA21)","v":0},null,{"$f":"SUM(AB5:AC21)","v":0}]
[]
["（急性期・回復期は退院時、維持期は維持期以降後3ヶ月目に記入）"]
[]
[]
["リハビリテーション連携計画表"]
[]
["移動の目標",null,"受傷前の移動",null,null,null,null,null,null,null,null,"急性期",null,null,null,null,null,null,null,null,null,null,null,null,null,null,null,null,null,null,null,"回復期",null,null,null,null,null,null,null,null,null,null,null,null,null,null,null,null,null,null,null,"維持期",null,null,null,null,null,null,null,null,null,null,null,null,null,null,null,"＊術後管理："]
[null,null,null,null,null,null,null,null,null,null,null,"初期目標",null,null,null,null,null,null,null,null,null,"変更時目標",null,null,null,null,null,null,null,null,null,"初期目標",null,null,null,null,null,null,null,null,null,"変更時目標",null,null,null,null,null,null,null,null,null,"維持期目標",null,null,null,null,null,null,null,null,null,null,null,null,null,null,null,"大腿骨近位部骨折の手術後は以下の合併症がありますのでフォロ-アップが必要です。合併症が疑われるようでしたら整形外科専門医にご相談していただければ幸いです。また、合併症が生じなくても年2回程度の整形外科専門医への受診をおすすめします。"]
[null,null,"（聞取り日:",null,null,null,{"$f":"'裏　　　　　　　　　'!CT41","v":""},null,null,null,"）","（設定日:",null,null,null,{"$f":"'裏　　　　　　　　　'!CT43","v":""},null,null,null,"）",null,"（変更日:",null,null,null,{"$f":"'裏　　　　　　　　　'!CT45","v":""},null,null,null,"）",null,"（設定日:",null,null,null,{"$f":"'裏　　　　　　　　　'!CT63","v":""},null,null,null,"）",null,"（変更日:",null,null,null,{"$f":"'裏　　　　　　　　　'!CT65","v":""},null,null,null,"）",null,"（設定日:",null,null,null,null,null,{"$f":"'裏　　　　　　　　　'!CT83","v":""},null,null,null,"）"]
[]
[null,null,{"$f":"'裏　　　　　　　　　'!CT42","v":""},null,null,null,null,null,null,null,null,{"$f":"'裏　　　　　　　　　'!CT44","v":""},null,null,null,null,null,null,null,null,null,{"$f":"'裏　　　　　　　　　'!CT46","v":""},null,null,null,null,null,null,null,null,null,{"$f":"'裏　　　　　　　　　'!CT64","v":""},null,null,null,null,null,null,null,null,null,{"$f":"'裏　　　　　　　　　'!CT66","v":""},null,null,null,null,null,null,null,null,null,{"$f":"'裏　　　　　　　　　'!CT84","v":""}]
[]
[]
[]
["リハビリ経過",null,null,null,null,null,null,null,null,null,null,"リハ開始",null,null,null,"（",{"$f":"'裏　　　　　　　　　'!CT47","v":""},null,null,"）",null,null,null,null,null,null,null,null,null,null,null,"リハ開始",null,null,null,"（",{"$f":"'裏　　　　　　　　　'!CT67","v":""},null,null,"）",null,null,null,null,null,null,null,null,null,null,null,"リハ開始",null,null,null,"（",{"$f":"'裏　　　　　　　　　'!CT85","v":""},null,null,"）"]
[null,null,null,null,null,null,null,null,null,null,null,"　車椅子坐位",null,null,null,null,{"$f":"'裏　　　　　　　　　'!CT48&IF('裏　　　　　　　　　'!CR48=1,\"　（　\"&'裏　　　　　　　　　'!CT49&\"　）\",\"\")","v":""},null,null,null,null,null,null,null,null,null,null,null,null,null,null,"　車椅子坐位",null,null,null,null,{"$f":"'裏　　　　　　　　　'!CT68&IF('裏　　　　　　　　　'!CR68=1,\"　（　\"&'裏　　　　　　　　　'!CT69&\"　）\",\"\")","v":""},null,null,null,null,null,null,null,null,null,null,null,null,null," ",{"$f":"\"　リハ実施者（　\" & '裏　　　　　　　　　'!CV87 & \"　）\"","v":"　リハ実施者（　　）"}]
[null,null,null,null,null,null,null,null,null,null,null,"　平行棒",null,null,null,null,{"$f":"'裏　　　　　　　　　'!CT50&IF('裏　　　　　　　　　'!CR50=1,\"　（　\"&'裏　　　　　　　　　'!CT51&\"　）\",\"\")","v":""},null,null,null,null,null,null,null,null,null,null,null,null,null,null,"　平行棒",null,null,null,null,{"$f":"'裏　　　　　　　　　'!CT70&IF('裏　　　　　　　　　'!CR70=1,\"　（　\"&'裏　　　　　　　　　'!CT71&\"　）\",\"\")","v":""},null,null,null,null,null,null,null,null,null,null,null,null,null,null,null,{"$f":"'裏　　　　　　　　　'!CV92","v":""}]
[null,null,null,null,null,null,null,null,null,null,null,"　歩行器",null,null,null,null,{"$f":"'裏　　　　　　　　　'!CT52&IF('裏　　　　　　　　　'!CR52=1,\"　（　\"&'裏　　　　　　　　　'!CT53&\"　）\",\"\")","v":""},null,null,null,null,null,null,null,null,null,null,null,null,null,null,"　歩行器",null,null,null,null,{"$f":"'裏　　　　　　　　　'!CT72&IF('裏　　　　　　　　　'!CR72=1,\"　（　\"&'裏　　　　　　　　　'!CT73&\"　）\",\"\")","v":""},null,null,null,null,null,null,null,null,null,null,null,null,null,null,null,null,null,null,null,null,null,null,null,null,null,null,null,null,null,null,null,"□人工骨頭置換術",null,null,null,null,null,null,"□骨接合術"]
[null,null,null,null,null,null,null,null,null,null,null,"　シルバーカー",null,null,null,null,{"$f":"'裏　　　　　　　　　'!CT106&IF('裏　　　　　　　　　'!CR106=1,\"　（　\"&'裏　　　　　　　　　'!CT107&\"　）\",\"\")","v":""},null,null,null,null,null,null,null,null,null,null,null,null,null,null,"　シルバーカー",null,null,null,null,{"$f":"'裏　　　　　　　　　'!CT108&IF('裏　　　　　　　　　'!CR108=1,\"　（　\"&'裏　　　　　　　　　'!CT109&\"　）\",\"\")","v":""},null,null,null,null,null,null,null,null,null,null,null,null,null,null,null,null,null,null,null,null,null,null,null,null,null,null,null,null,null,null,null,null,"・ゆるみ",null,null,null,null,null,null,"・偽関節"]
[null,null,null,null,null,null,null,null,null,null,null,"　杖",null,null,null,null,{"$f":"'裏　　　　　　　　　'!CT54&IF('裏　　　　　　　　　'!CR54=1,\"　（　\"&'裏　　　　　　　　　'!CT55&\"　）\",\"\")","v":""},null,null,null,null,null,null,null,null,null,null,null,null,null,null,"　杖",null,null,null,null,{"$f":"'裏　　　　　　　　　'!CT74&IF('裏　　　　　　　　　'!CR74=1,\"　（　\"&'裏　　　　　　　　　'!CT75&\"　）\",\"\")","v":""},null,null,null,null,null,null,null,null,null,null,null,null,null,null,null,null,null,null,null,null,null,null,null,null,null,null,null,null,null,null,null,null,"・遅発性感染",null,null,null,null,null,null,"・骨頭壊死"]
[null,null,null,null,null,null,null,null,null,null,null,"　階段",null,null,null,null,{"$f":"'裏　　　　　　　　　'!CT56&IF('裏　　　　　　　　　'!CR56=1,\"　（　\"&'裏　　　　　　　　　'!CT57&\"　）\",\"\")","v":""},null,null,null,null,null,null,null,null,null,null,null,null,null,null,"　階段",null,null,null,null,{"$f":"'裏　　　　　　　　　'!CT76&IF('裏　　　　　　　　　'!CR76=1,\"　（　\"&'裏　　　　　　　　　'!CT77&\"　）\",\"\")","v":""},null,null,null,null,null,null,null,null,null,null,null,null,null,null,null,null,null,null,null,null,null,null,null,null,null,null,null,null,null,null,null,null,"・脱臼"]
[null,null,null,null,null,null,null,null,null,null,null,"　屋外",null,null,null,null,{"$f":"'裏　　　　　　　　　'!CT58&IF('裏　　　　　　　　　'!CR58=1,\"　（　\"&'裏　　　　　　　　　'!CT59&\"　）\",\"\")","v":""},null,null,null,null,null,null,null,null,null,null,null,null,null,null,"　屋外",null,null,null,null,{"$f":"'裏　　　　　　　　　'!CT78&IF('裏　　　　　　　　　'!CR78=1,\"　（　\"&'裏　　　　　　　　　'!CT79&\"　）\",\"\")","v":""}]
["御本人・御家族の希望・要望",null,null,null,null,null,null,null,null,null,null,{"$f":"'裏　　　　　　　　　'!CT60","v":""},null,null,null,null,null,null,null,null,null,null,null,null,null,null,null,null,null,null,null,{"$f":"'裏　　　　　　　　　'!CT80","v":""},null,null,null,null,null,null,null,null,null,null,null,null,null,null,null,null,null,null,null,{"$f":"'裏　　　　　　　　　'!CT94","v":""}]
[null,null,null,null,null,null,null,null,null,null,null,null,null,null,null,null,null,null,null,null,null,null,null,null,null,null,null,null,null,null,null,null,null,null,null,null,null,null,null,null,null,null,null,null,null,null,null,null,null,null,null,null,null,null,null,null,null,null,null,null,null,null,null,null,null,null,null,{"$f":" '表　　　　　　　　　'!A18 & \"において、退院時にこの地域連携診療計画書を受領しました。\"","v":"において、退院時にこの地域連携診療計画書を受領しました。"}]
[]
[]
[]
[null,null,null,null,null,null,null,null,null,null,null,{"$f":"'裏　　　　　　　　　'!CT61","v":"\n\n"},null,null,null,null,null,null,null,null,null,null,null,null,null,null,null,null,null,null,null,{"$f":"'裏　　　　　　　　　'!CT81","v":"\n\n"},null,null,null,null,null,null,null,null,null,null,null,null,null,null,null,null,null,null,null,"現在の生活状況\n　　（できるADL・しているADLなどについて）",null,null,null,null,null,null,null,null,null,null,null,null,null,null,null,"            年　　　　月　　　　日"]
[null,null,null,null,null,null,null,null,null,null,null,null,null,null,null,null,null,null,null,null,null,null,null,null,null,null,null,null,null,null,null,null,null,null,null,null,null,null,null,null,null,null,null,null,null,null,null,null,null,null,null,null,null,null,null,null,null,null,null,null,null,null,null,null,null,null,null,null,"受領者"]
[null,null,null,null,null,null,null,null,null,null,null,null,null,null,null,null,null,null,null,null,null,null,null,null,null,null,null,null,null,null,null,null,null,null,null,null,null,null,null,null,null,null,null,null,null,null,null,null,null,null,null,{"$f":"'裏　　　　　　　　　'!CT95","v":"\n\n"}]
[]
[]
["引継ぎ事項・"]
[null,null,null,null,null,null,null,null,null,null,null,null,null,null,null,null,null,null,null,null,null,null,null,null,null,null,null,null,null,null,null,null,null,null,null,null,null,null,null,null,null,null,null,null,null,null,null,null,null,null,null,null,null,null,null,null,null,null,null,null,null,null,null,null,null,null,null,{"$f":" '表　　　　　　　　　'!$A$18 & \"の地域連携診療計画に基づく、病院退院後の診療計画に対する主治医の説明に対し、十分ご理解いただけたなら、以下に同意の署名をお願いします。\"","v":"の地域連携診療計画に基づく、病院退院後の診療計画に対する主治医の説明に対し、十分ご理解いただけたなら、以下に同意の署名をお願いします。"}]
[]
["リハビリ上の留意点"]
[]
[]
["（御本人・御家族への説明等）"]
[null,null,null,null,null,null,null,null,null,null,null,null,null,null,null,null,null,null,null,null,null,null,null,null,null,null,null,null,null,null,null,null,null,null,null,null,null,null,null,null,null,null,null,null,null,null,null,null,null,null,null,null,null,null,null,null,null,null,null,null,null,null,null,null,null,null,null,"説明日",null,null,"　　年　　　月　　　日"]
[]
[null,null,null,null,null,null,null,null,null,null,null,null,null,null,null,null,null,null,null,null,null,null,null,null,null,null,null,null,null,null,null,null,null,null,null,null,null,null,null,null,null,null,null,null,null,null,null,null,null,null,null,null,null,null,null,null,null,null,null,null,null,null,null,null,null,null,null,"担当医"]
[]
[null,null,null,null,null,null,null,null,null,null,null,null,null,null,null,null,null,null,null,null,null,null,null,null,null,null,null,null,null,null,null,null,null,null,null,null,null,null,null,null,null,null,null,null,null,null,null,null,null,null,null,null,null,null,null,null,null,null,null,null,null,null,null,null,null,null,null,"同意者"]
["※コメントには職種記入のこと",null,null,null,null,null,null,null,null,null,null,null,null,null,null,null,null,"医師：",null,null,null,{"$f":"'裏　　　　　　　　　'!CT62","v":""},null,null,null,null,null,null,null,null,null,null,null,null,null,null,null,"医師：",null,null,null,{"$f":"'裏　　　　　　　　　'!CT82","v":""},null,null,null,null,null,null,null,null,null,null,null,"医師：",null,null,null,{"$f":"'裏　　　　　　　　　'!CT96","v":""}]

{"sheet":"リスト用","index":7,"n_rows":65,"n_cols":19,"rows_kept":65,"cut":false,"hidden":true,"merged":[]}
["急性期病院","回復期病院","維持期病院","身長","体重","明治","大正","昭和","平成","住所","身障手帳","介護度","回数","転帰先","回復期転帰先","歩行状態","部位","１点","２点"]
["宇部記念病院","宇部記念病院","浅山眼科★",142,37,"33年","元年","元年","元年","宇部市","１級","要支援１","１","回復期","自宅","◎","股","0","0"]
["宇部協立病院","宇部協立病院","いけだ整形外科★",143,38,"34年","2年","2年","2年","山陽小野田市","２級","要支援２","２","自宅","特養・ｸﾞﾙｰﾌﾟﾎｰﾑ等","○","膝","1","1"]
["宇部興産中央病院","宇部興産中央病院","いそべ整形外科医院★",144,39,"35年","3年","3年","3年","美祢市","３級","要介護１","３","特養・ｸﾞﾙｰﾌﾟﾎｰﾑ等","老健","△","足",null,"2"]
["尾中病院","宇部第一病院","今釜整形外科",145,40,"36年","4年","4年","4年",null,"４級","要介護２","４","老健","療養型","×","他："]
["山陽小野田市民病院★","宇部西リハビリテーション病院","宇部記念病院",146,41,"37年","5年","5年","5年",null,"５級","要介護３","５","療養型","急性期に再入院"]
["セントヒル病院★","宇部リハビリテーション病院","宇部協立病院",147,42,"38年","6年","6年","6年",null,"６級","要介護４","６","急性期に再入院","死亡"]
["山口大学医学部附属病院","尾中病院","宇部仁心会病院",148,43,"39年","7年","7年","7年",null,null,"要介護５","７","死亡","その他"]
["山口労災病院","小野田赤十字病院","宇部第一病院",149,44,"40年","8年","8年","8年",null,null,null,null,"その他"]
["美祢市立美東病院★","久保整形外科医院★","宇部西クリニック",150,45,"41年","9年","9年","9年"]
["美祢市立病院","シーサイド病院","宇部西リハビリテーション病院",151,46,"42年","10年","10年","10年"]
[null,"紫苑リハビリ内科クリニック","宇部リハビリテーション病院",152,47,"43年","11年","11年","11年"]
[null,"昭和町共生苑★","岡野整形外科クリニック",153,48,"44年","12年","12年","12年"]
[null,"セントヒル病院★","オクダ内科循環器科",154,49,"45年","13年","13年","13年"]
[null,"瀬戸病院","尾中病院",155,50,null,"14年","14年","14年"]
[null,"長沢病院","小野整形外科クリニック★",156,51,null,"15年","15年","15年"]
[null,"美祢市立美東病院★","小野田赤十字病院",157,52,null,null,"16年","16年"]
[null,"美祢市立病院","小野田ライフケアクリニック★",158,53,null,null,"17年","17年"]
[null,null,"介護老人保健施設あさ紫苑★",159,54,null,null,"18年","18年"]
[null,null,"介護老人保健施設宇部幸楽苑★",160,55,null,null,"19年","19年"]
[null,null,"介護老人保健施設寿光園★",161,56,null,null,"20年","20年"]
[null,null,"介護老人保健施設ぺあれんと",162,57,null,null,"21年","21年"]
[null,null,"金沢守クリニック★",163,58,null,null,"22年","22年"]
[null,null,"かわかみ整形外科・小児科クリニック",164,59,null,null,"23年","23年"]
[null,null,"河原内科★",165,60,null,null,"24年","24年"]
[null,null,"河村医院",166,61,null,null,"25年","25年"]
[null,null,"小林整形外科★",167,62,null,null,"26年","26年"]
[null,null,"さかい内科クリニック★",168,63,null,null,"27年","27年"]
[null,null,"札場クリニック★",169,64,null,null,"28年","28年"]
[null,null,"サンポプラ病院　　　　　　　　　",170,65,null,null,"29年","29年"]
[null,null,"シーサイド病院",171,66,null,null,"30年","30年"]
[null,null,"紫苑リハビリ内科クリニック",172,67,null,null,"31年","31年"]
[null,null,"重松整形外科医院★",173,68,null,null,"32年","32年"]
[null,null,"瀬戸病院",174,69,null,null,"33年","33年"]
[null,null,"セントヒル病院★",175,70,null,null,"34年","34年"]
[null,null,"たはら整形外科★",176,71,null,null,"35年","35年"]
[null,null,"たみたに内科循環器科",177,72,null,null,"36年","36年"]
[null,null,"徳久内科医院",178,73,null,null,"37年","37年"]
[null,null,"長沢病院",179,74,null,null,"38年","38年"]
[null,null,"西川医院",180,75,null,null,"39年","39年"]
[null,null,"西村内科医院",181,76,null,null,"40年","40年"]
[null,null,"博和会みみ・はな・のど内科クリニック★",182,77,null,null,"41年","41年"]
[null,null,"ひがしきわ整形外科クリニック★",183,78,null,null,"42年","42年"]
[null,null,"東整形外科",184,79,null,null,"43年","43年"]
[null,null,"三井外科医院★",185,80,null,null,"44年","44年"]
[null,null,"三澤医院★",186,81,null,null,"45年","45年"]
[null,null,"美祢市立病院",187,82,null,null,"46年","46年"]
[null,null,"美祢市立美東病院★",188,83,null,null,"47年","47年"]
[null,null,"村重医院",189,84,null,null,"48年","48年"]
[null,null,"森重整形外科★",190,85,null,null,"49年","49年"]
[null,null,"森田病院★",191,86,null,null,"50年","50年"]
[null,null,"やまもとクリニック",192,87,null,null,"51年"]
[null,null,"山本医院★",193,88,null,null,"52年"]
[null,null,"山本整形外科医院★",194,89,null,null,"53年"]
[null,null,"綿田内科病院",195,90,null,null,"54年"]
[null,null,null,196,91,null,null,"55年"]
[null,null,null,197,92,null,null,"56年"]
[null,null,null,198,93,null,null,"57年"]
[null,null,null,199,94,null,null,"58年"]
[null,null,null,200,95,null,null,"59年"]
[null,null,null,null,96,null,null,"60年"]
[null,null,null,null,97,null,null,"61年"]
[null,null,null,null,98,null,null,"62年"]
[null,null,null,null,99,null,null,"63年"]
[null,null,null,null,100,null,null,"64年"]

{"sheet":"急性期_長谷川式","index":8,"n_rows":41,"n_cols":9,"rows_kept":41,"cut":false,"hidden":true,"merged":[[28,2,28,3]]}
[]
["簡易長谷川式認知機能評価スケール"]
[]
[]
[null,"№","質問内容",null,"選択欄","ワーク","点数",null,"入力チェック"]
[null,1,"お歳はいくつですか？2年までの誤差は正解",null,null,0,{"$f":"IF(F6=0,\"\",F6-1)","v":""},null,{"$f":"IF(F6=0,1,0)","v":1}]
[null,2,"今日は何年の何月何日ですか？　何曜日ですか？","年",null,0,{"$f":"IF(F7=0,\"\",F7-1)","v":""},null,{"$f":"IF(F7=0,1,0)","v":1}]
[null,null,null,"月",null,null,{"$f":"IF(F8=0,\"\",F8-1)","v":""},null,{"$f":"IF(F8=0,1,0)","v":1}]
[null,null,null,"日",null,null,{"$f":"IF(F9=0,\"\",F9-1)","v":""},null,{"$f":"IF(F9=0,1,0)","v":1}]
[null,null,null,"曜日",null,null,{"$f":"IF(F10=0,\"\",F10-1)","v":""},null,{"$f":"IF(F10=0,1,0)","v":1}]
[null,3,"私たちが今いるところはどこですか？"]
[null,null,"(自発的にでれば2 点，5 秒おいて家ですか? 病院ですか? 施設ですか?",null,null,null,{"$f":"IF(F12=0,\"\",F12-1)","v":""},null,{"$f":"IF(F12=0,1,0)","v":1}]
[null,null,"のなかから正しい選択をすれば1 点)"]
[null,4,"これから言う3 つの言葉を言ってみてください．あとでまた聞きますのでよ"]
[null,null,"く覚えておいてください．"]
[null,null,"以下の系列のいずれか1つで、採用した系列に印をしておく。","a",null,null,{"$f":"IF(F16=0,\"\",F16-1)","v":""},null,{"$f":"IF(F16=0,1,0)","v":1}]
[null,null,"　　　　　　　　a)桜　　　b)猫　　　c)電車","b",null,null,{"$f":"IF(F17=0,\"\",F17-1)","v":""},null,{"$f":"IF(F17=0,1,0)","v":1}]
[null,null,"　　　　　　　　a)梅　　　b)犬　　　c)自動車","c",null,null,{"$f":"IF(F18=0,\"\",F18-1)","v":""},null,{"$f":"IF(F18=0,1,0)","v":1}]
[null,5,"100から7を順番に引いてください。（aに正解のときのみbも行う)"]
[null,null,"   a)　100―7は？","(93)",null,null,{"$f":"IF(F20=0,\"\",F20-1)","v":""},null,{"$f":"IF(F20=0,1,0)","v":1}]
[null,null,"   b)　それから7を引くと？","(86)",null,null,{"$f":"IF(F21=0,\"\",F21-1)","v":""},null,{"$f":"IF(F21=0,1,0)","v":1}]
[null,6,"これから言う数字を逆から言ってください。（aに正解のときのみbも行う)"]
[null,null,"　　a)　６―８―２","（２－８－６）",null,null,{"$f":"IF(F23=0,\"\",F23-1)","v":""},null,{"$f":"IF(F23=0,1,0)","v":1}]
[null,null,"　　b)　３―５―２―９","（９－２－５－３）",null,null,{"$f":"IF(F24=0,\"\",F24-1)","v":""},null,{"$f":"IF(F24=0,1,0)","v":1}]
[null,7,"先ほど覚えてもらった言葉（問４の３つの言葉）をもう一度言ってみてください。",{"$f":"IF(H25=1,\"系列1\",IF(H25=2,\"系列2\",\"\"))","v":""},null,null,null,0]
[null,null,"　正答がでなかった言葉にはヒントを与える",{"$f":"IF(H25=1,\"a)桜\",IF(H25=2,\"a)梅\",\"\"))","v":""},null,null,{"$f":"IF(F26=0,\"\",F26-1)","v":""},null,{"$f":"IF(F26=0,1,0)","v":1}]
[null,null,"　ヒント　a) 植物　b) 動物　c) 乗り物　",{"$f":"IF(H25=1,\"b)猫\",IF(H25=2,\"b)犬\",\"\"))","v":""},null,null,{"$f":"IF(F27=0,\"\",F27-1)","v":""},null,{"$f":"IF(F27=0,1,0)","v":1}]
[null,null,{"$f":"\"  答え  \"&IF(H25=1,\"系列1  a)桜　　　b)猫　　　c)電車\",IF(H25=2,\"系列2  a)梅　　　b)犬　　　c)自動車\",\"\"))","v":"  答え  "},{"$f":"IF(H25=1,\"c)電車\",IF(H25=2,\"c)自動車\",\"\"))","v":""},null,null,{"$f":"IF(F28=0,\"\",F28-1)","v":""},null,{"$f":"IF(F28=0,1,0)","v":1}]
[null,8,"これから５つの品物を見せます。それを隠しますので何があったか言って下さい。 ",null,null,null,{"$f":"IF(F29<>\"\",LOOKUP(F29,{0,1,2,3,4,5,6},{\"\",5,4,3,2,1,0}),\"\")","v":""},null,{"$f":"IF(F29=0,1,0)","v":1}]
[null,null,"　１つずつ名前を言いながら並べ覚えさせる。次に隠す。"]
[null,null,"　時計、くし、はさみ、タバコ、ペンなど必ず相互に無関係なものを使う。"]
[null,null,"　１つ正答するごとに１点"]
[]
[]
[null,9,"知っている野菜の名前をできるだけ多く言ってください。",null,null,null,{"$f":"IF(F35<>\"\",LOOKUP(F35,{0,1,2,3,4,5,6},{\"\",5,4,3,2,1,0}),\"\")","v":""},null,{"$f":"IF(F35=0,1,0)","v":1}]
[]
[]
[]
[]
[]
[null,null,null,null,"合計",null,{"$f":"SUM(G6:G37)","v":0},null,{"$f":"SUM(I6:I40)","v":18}]

{"sheet":"回復期_長谷川式","index":9,"n_rows":41,"n_cols":9,"rows_kept":41,"cut":false,"hidden":true,"merged":[[28,2,28,3]]}
[]
["簡易長谷川式認知機能評価スケール"]
[]
[]
[null,"№","質問内容",null,"選択欄","ワーク","点数",null,"入力チェック"]
[null,1,"お歳はいくつですか？2年までの誤差は正解",null,null,0,{"$f":"IF(F6=0,\"\",F6-1)","v":""},null,{"$f":"IF(F6=0,1,0)","v":1}]
[null,2,"今日は何年の何月何日ですか？　何曜日ですか？","年",null,0,{"$f":"IF(F7=0,\"\",F7-1)","v":""},null,{"$f":"IF(F7=0,1,0)","v":1}]
[null,null,null,"月",null,null,{"$f":"IF(F8=0,\"\",F8-1)","v":""},null,{"$f":"IF(F8=0,1,0)","v":1}]
[null,null,null,"日",null,null,{"$f":"IF(F9=0,\"\",F9-1)","v":""},null,{"$f":"IF(F9=0,1,0)","v":1}]
[null,null,null,"曜日",null,null,{"$f":"IF(F10=0,\"\",F10-1)","v":""},null,{"$f":"IF(F10=0,1,0)","v":1}]
[null,3,"私たちが今いるところはどこですか？"]
[null,null,"(自発的にでれば2 点，5 秒おいて家ですか? 病院ですか? 施設ですか?",null,null,null,{"$f":"IF(F12=0,\"\",F12-1)","v":""},null,{"$f":"IF(F12=0,1,0)","v":1}]
[null,null,"のなかから正しい選択をすれば1 点)"]
[null,4,"これから言う3 つの言葉を言ってみてください．あとでまた聞きますのでよ"]
[null,null,"く覚えておいてください．"]
[null,null,"以下の系列のいずれか1つで、採用した系列に印をしておく。","a",null,null,{"$f":"IF(F16=0,\"\",F16-1)","v":""},null,{"$f":"IF(F16=0,1,0)","v":1}]
[null,null,"　　　　　　　　a)桜　　　b)猫　　　c)電車","b",null,null,{"$f":"IF(F17=0,\"\",F17-1)","v":""},null,{"$f":"IF(F17=0,1,0)","v":1}]
[null,null,"　　　　　　　　a)梅　　　b)犬　　　c)自動車","c",null,null,{"$f":"IF(F18=0,\"\",F18-1)","v":""},null,{"$f":"IF(F18=0,1,0)","v":1}]
[null,5,"100から7を順番に引いてください。（aに正解のときのみbも行う)"]
[null,null,"   a)　100―7は？","(93)",null,null,{"$f":"IF(F20=0,\"\",F20-1)","v":""},null,{"$f":"IF(F20=0,1,0)","v":1}]
[null,null,"   b)　それから7を引くと？","(86)",null,null,{"$f":"IF(F21=0,\"\",F21-1)","v":""},null,{"$f":"IF(F21=0,1,0)","v":1}]
[null,6,"これから言う数字を逆から言ってください。（aに正解のときのみbも行う)"]
[null,null,"　　a)　６―８―２","（２－８－６）",null,null,{"$f":"IF(F23=0,\"\",F23-1)","v":""},null,{"$f":"IF(F23=0,1,0)","v":1}]
[null,null,"　　b)　３―５―２―９","（９－２－５－３）",null,null,{"$f":"IF(F24=0,\"\",F24-1)","v":""},null,{"$f":"IF(F24=0,1,0)","v":1}]
[null,7,"先ほど覚えてもらった言葉（問４の３つの言葉）をもう一度言ってみてください。",{"$f":"IF(H25=1,\"系列1\",IF(H25=2,\"系列2\",\"\"))","v":""},null,null,null,0]
[null,null,"　正答がでなかった言葉にはヒントを与える",{"$f":"IF(H25=1,\"a)桜\",IF(H25=2,\"a)梅\",\"\"))","v":""},null,null,{"$f":"IF(F26=0,\"\",F26-1)","v":""},null,{"$f":"IF(F26=0,1,0)","v":1}]
[null,null,"　ヒント　a) 植物　b) 動物　c) 乗り物　",{"$f":"IF(H25=1,\"b)猫\",IF(H25=2,\"b)犬\",\"\"))","v":""},null,null,{"$f":"IF(F27=0,\"\",F27-1)","v":""},null,{"$f":"IF(F27=0,1,0)","v":1}]
[null,null,{"$f":"\"  答え  \"&IF(H25=1,\"系列1  a)桜　　　b)猫　　　c)電車\",IF(H25=2,\"系列2  a)梅　　　b)犬　　　c)自動車\",\"\"))","v":"  答え  "},{"$f":"IF(H25=1,\"c)電車\",IF(H25=2,\"c)自動車\",\"\"))","v":""},null,null,{"$f":"IF(F28=0,\"\",F28-1)","v":""},null,{"$f":"IF(F28=0,1,0)","v":1}]
[null,8,"これから５つの品物を見せます。それを隠しますので何があったか言って下さい。 ",null,null,null,{"$f":"IF(F29<>\"\",LOOKUP(F29,{0,1,2,3,4,5,6},{\"\",5,4,3,2,1,0}),\"\")","v":""},null,{"$f":"IF(F29=0,1,0)","v":1}]
[null,null,"　１つずつ名前を言いながら並べ覚えさせる。次に隠す。"]
[null,null,"　時計、くし、はさみ、タバコ、ペンなど必ず相互に無関係なものを使う。"]
[null,null,"　１つ正答するごとに１点"]
[]
[]
[null,9,"知っている野菜の名前をできるだけ多く言ってください。",null,null,null,{"$f":"IF(F35<>\"\",LOOKUP(F35,{0,1,2,3,4,5,6},{\"\",5,4,3,2,1,0}),\"\")","v":""},null,{"$f":"IF(F35=0,1,0)","v":1}]
[]
[]
[]
[]
[]
[null,null,null,null,"合計",null,{"$f":"SUM(G6:G37)","v":0},null,{"$f":"SUM(I6:I40)","v":18}]

{"sheet":"維持期_長谷川式","index":10,"n_rows":41,"n_cols":9,"rows_kept":41,"cut":false,"hidden":true,"merged":[[28,2,28,3]]}
[]
["簡易長谷川式認知機能評価スケール"]
[]
[]
[null,"№","質問内容",null,"選択欄","ワーク","点数",null,"入力チェック"]
[null,1,"お歳はいくつですか？2年までの誤差は正解",null,null,null,{"$f":"IF(F6=0,\"\",F6-1)","v":""},null,{"$f":"IF(F6=0,1,0)","v":1}]
[null,2,"今日は何年の何月何日ですか？　何曜日ですか？","年",null,null,{"$f":"IF(F7=0,\"\",F7-1)","v":""},null,{"$f":"IF(F7=0,1,0)","v":1}]
[null,null,null,"月",null,null,{"$f":"IF(F8=0,\"\",F8-1)","v":""},null,{"$f":"IF(F8=0,1,0)","v":1}]
[null,null,null,"日",null,null,{"$f":"IF(F9=0,\"\",F9-1)","v":""},null,{"$f":"IF(F9=0,1,0)","v":1}]
[null,null,null,"曜日",null,null,{"$f":"IF(F10=0,\"\",F10-1)","v":""},null,{"$f":"IF(F10=0,1,0)","v":1}]
[null,3,"私たちが今いるところはどこですか？"]
[null,null,"(自発的にでれば2 点，5 秒おいて家ですか? 病院ですか? 施設ですか?",null,null,null,{"$f":"IF(F12=0,\"\",F12-1)","v":""},null,{"$f":"IF(F12=0,1,0)","v":1}]
[null,null,"のなかから正しい選択をすれば1 点)"]
[null,4,"これから言う3 つの言葉を言ってみてください．あとでまた聞きますのでよ"]
[null,null,"く覚えておいてください．"]
[null,null,"以下の系列のいずれか1つで、採用した系列に印をしておく。","a",null,null,{"$f":"IF(F16=0,\"\",F16-1)","v":""},null,{"$f":"IF(F16=0,1,0)","v":1}]
[null,null,"　　　　　　　　a)桜　　　b)猫　　　c)電車","b",null,null,{"$f":"IF(F17=0,\"\",F17-1)","v":""},null,{"$f":"IF(F17=0,1,0)","v":1}]
[null,null,"　　　　　　　　a)梅　　　b)犬　　　c)自動車","c",null,null,{"$f":"IF(F18=0,\"\",F18-1)","v":""},null,{"$f":"IF(F18=0,1,0)","v":1}]
[null,5,"100から7を順番に引いてください。（aに正解のときのみbも行う)"]
[null,null,"   a)　100―7は？","(93)",null,null,{"$f":"IF(F20=0,\"\",F20-1)","v":""},null,{"$f":"IF(F20=0,1,0)","v":1}]
[null,null,"   b)　それから7を引くと？","(86)",null,null,{"$f":"IF(F21=0,\"\",F21-1)","v":""},null,{"$f":"IF(F21=0,1,0)","v":1}]
[null,6,"これから言う数字を逆から言ってください。（aに正解のときのみbも行う)"]
[null,null,"　　a)　６―８―２","（２－８－６）",null,null,{"$f":"IF(F23=0,\"\",F23-1)","v":""},null,{"$f":"IF(F23=0,1,0)","v":1}]
[null,null,"　　b)　３―５―２―９","（９－２－５－３）",null,null,{"$f":"IF(F24=0,\"\",F24-1)","v":""},null,{"$f":"IF(F24=0,1,0)","v":1}]
[null,7,"先ほど覚えてもらった言葉（問４の３つの言葉）をもう一度言ってみてください。",{"$f":"IF(H25=1,\"系列1\",IF(H25=2,\"系列2\",\"\"))","v":""},null,null,null,0]
[null,null,"　正答がでなかった言葉にはヒントを与える",{"$f":"IF(H25=1,\"a)桜\",IF(H25=2,\"a)梅\",\"\"))","v":""},null,null,{"$f":"IF(F26=0,\"\",F26-1)","v":""},null,{"$f":"IF(F26=0,1,0)","v":1}]
[null,null,"　ヒント　a) 植物　b) 動物　c) 乗り物　",{"$f":"IF(H25=1,\"b)猫\",IF(H25=2,\"b)犬\",\"\"))","v":""},null,null,{"$f":"IF(F27=0,\"\",F27-1)","v":""},null,{"$f":"IF(F27=0,1,0)","v":1}]
[null,null,{"$f":"\"  答え  \"&IF(H25=1,\"系列1  a)桜　　　b)猫　　　c)電車\",IF(H25=2,\"系列2  a)梅　　　b)犬　　　c)自動車\",\"\"))","v":"  答え  "},{"$f":"IF(H25=1,\"c)電車\",IF(H25=2,\"c)自動車\",\"\"))","v":""},null,null,{"$f":"IF(F28=0,\"\",F28-1)","v":""},null,{"$f":"IF(F28=0,1,0)","v":1}]
[null,8,"これから５つの品物を見せます。それを隠しますので何があったか言って下さい。 ",null,null,null,{"$f":"IF(F29<>\"\",LOOKUP(F29,{0,1,2,3,4,5,6},{\"\",5,4,3,2,1,0}),\"\")","v":""},null,{"$f":"IF(F29=0,1,0)","v":1}]
[null,null,"　１つずつ名前を言いながら並べ覚えさせる。次に隠す。"]
[null,null,"　時計、くし、はさみ、タバコ、ペンなど必ず相互に無関係なものを使う。"]
[null,null,"　１つ正答するごとに１点"]
[]
[]
[null,9,"知っている野菜の名前をできるだけ多く言ってください。",null,null,null,{"$f":"IF(F35<>\"\",LOOKUP(F35,{0,1,2,3,4,5,6},{\"\",5,4,3,2,1,0}),\"\")","v":""},null,{"$f":"IF(F35=0,1,0)","v":1}]
[]
[]
[]
[]
[]
[null,null,null,null,"合計",null,{"$f":"SUM(G6:G37)","v":0},null,{"$f":"SUM(I6:I40)","v":18}]

{"sheet":"祝日","index":11,"n_rows":170,"n_cols":2,"rows_kept":170,"cut":false,"hidden":true,"merged":[[0,0,0,1]]}
["祝日"]
["日付","名前"]
["2011-01-01","元日"]
["2011-01-10","成人の日"]
["2011-02-11","建国記念の日"]
["2011-03-21","春分の日"]
["2011-04-29","昭和の日"]
["2011-05-03","憲法記念日"]
["2011-05-04","みどりの日"]
["2011-05-05","こどもの日"]
["2011-07-18","海の日"]
["2011-09-19","敬老の日"]
["2011-09-23","秋分の日"]
["2011-10-10","体育の日"]
["2011-11-03","文化の日"]
["2011-11-23","勤労感謝の日"]
["2011-12-23","天皇誕生日"]
["2012-01-01","元日"]
["2012-01-02","振替休日"]
["2012-01-09","成人の日"]
["2012-02-11","建国記念の日"]
["2012-03-20","春分の日"]
["2012-04-29","昭和の日"]
["2012-04-30","振替休日"]
["2012-05-03","憲法記念日"]
["2012-05-04","みどりの日"]
["2012-05-05","こどもの日"]
["2012-07-16","海の日"]
["2012-09-17","敬老の日"]
["2012-09-22","秋分の日"]
["2012-10-08","体育の日"]
["2012-11-03","文化の日"]
["2012-11-23","勤労感謝の日"]
["2012-12-23","天皇誕生日"]
["2012-12-24","振替休日"]
["2013-01-01","元日"]
["2013-01-14","成人の日"]
["2013-02-11","建国記念の日"]
["2013-03-20","春分の日"]
["2013-04-29","昭和の日"]
["2013-05-03","憲法記念日"]
["2013-05-04","みどりの日"]
["2013-05-05","こどもの日"]
["2013-05-06","振替休日"]
["2013-07-15","海の日"]
["2013-09-16","敬老の日"]
["2013-09-23","秋分の日"]
["2013-10-14","体育の日"]
["2013-11-03","文化の日"]
["2013-11-04","振替休日"]
["2013-11-23","勤労感謝の日"]
["2013-12-23","天皇誕生日"]
["2014-01-01","元日"]
["2014-01-13","成人の日"]
["2014-02-11","建国記念の日"]
["2014-03-21","春分の日"]
["2014-04-29","昭和の日"]
["2014-05-03","憲法記念日"]
["2014-05-04","みどりの日"]
["2014-05-05","こどもの日"]
["2014-05-06","振替休日"]
["2014-07-21","海の日"]
["2014-09-15","敬老の日"]
["2014-09-23","秋分の日"]
["2014-10-13","体育の日"]
["2014-11-03","文化の日"]
["2014-11-23","勤労感謝の日"]
["2014-11-24","振替休日"]
["2014-12-23","天皇誕生日"]
["2015-01-01","元日"]
["2015-01-12","成人の日"]
["2015-02-11","建国記念の日"]
["2015-03-21","春分の日"]
["2015-04-29","昭和の日"]
["2015-05-03","憲法記念日"]
["2015-05-04","みどりの日"]
["2015-05-05","こどもの日"]
["2015-05-06","振替休日"]
["2015-07-20","海の日"]
["2015-09-21","敬老の日"]
["2015-09-22","国民の休日"]
["2015-09-23","秋分の日"]
["2015-10-12","体育の日"]
["2015-11-03","文化の日"]
["2015-11-23","勤労感謝の日"]
["2015-12-23","天皇誕生日"]
["2016-01-01","元日"]
["2016-01-11","成人の日"]
["2016-02-11","建国記念の日"]
["2016-03-20","春分の日"]
["2016-03-21","振替休日"]
["2016-04-29","昭和の日"]
["2016-05-03","憲法記念日"]
["2016-05-04","みどりの日"]
["2016-05-05","こどもの日"]
["2016-07-18","海の日"]
["2016-09-19","敬老の日"]
["2016-09-22","秋分の日"]
["2016-10-10","体育の日"]
["2016-11-03","文化の日"]
["2016-11-23","勤労感謝の日"]
["2016-12-23","天皇誕生日"]
["2017-01-01","元日"]
["2017-01-02","振替休日"]
["2017-01-09","成人の日"]
["2017-02-11","建国記念の日"]
["2017-03-20","春分の日"]
["2017-04-29","昭和の日"]
["2017-05-03","憲法記念日"]
["2017-05-04","みどりの日"]
["2017-05-05","こどもの日"]
["2017-07-17","海の日"]
["2017-09-18","敬老の日"]
["2017-09-23","秋分の日"]
["2017-10-09","体育の日"]
["2017-11-03","文化の日"]
["2017-11-23","勤労感謝の日"]
["2017-12-23","天皇誕生日"]
["2018-01-01","元日"]
["2018-01-08","成人の日"]
["2018-02-11","建国記念の日"]
["2018-02-12","振替休日"]
["2018-03-21","春分の日"]
["2018-04-29","昭和の日"]
["2018-04-30","振替休日"]
["2018-05-03","憲法記念日"]
["2018-05-04","みどりの日"]
["2018-05-05","こどもの日"]
["2018-07-16","海の日"]
["2018-09-17","敬老の日"]
["2018-09-23","秋分の日"]
["2018-09-24","振替休日"]
["2018-10-08","体育の日"]
["2018-11-03","文化の日"]
["2018-11-23","勤労感謝の日"]
["2018-12-23","天皇誕生日"]
["2018-12-24","振替休日"]
["2019-01-01","元日"]
["2019-01-14","成人の日"]
["2019-02-11","建国記念の日"]
["2019-03-21","春分の日"]
["2019-04-29","昭和の日"]
["2019-05-03","憲法記念日"]
["2019-05-04","みどりの日"]
["2019-05-05","こどもの日"]
["2019-05-06","振替休日"]
["2019-07-15","海の日"]
["2019-09-16","敬老の日"]
["2019-09-23","秋分の日"]
["2019-10-14","体育の日"]
["2019-11-03","文化の日"]
["2019-11-04","振替休日"]
["2019-11-23","勤労感謝の日"]
["2019-12-23","天皇誕生日"]
["2020-01-01","元日"]
["2020-01-13","成人の日"]
["2020-02-11","建国記念の日"]
["2020-03-20","春分の日"]
["2020-04-29","昭和の日"]
["2020-05-03","憲法記念日"]
["2020-05-04","みどりの日"]
["2020-05-05","こどもの日"]
["2020-05-06","振替休日"]
["2020-07-20","海の日"]
["2020-09-21","敬老の日"]
["2020-09-22","秋分の日"]
["2020-10-12","体育の日"]
["2020-11-03","文化の日"]
["2020-11-23","勤労感謝の日"]
["2020-12-23","天皇誕生日"]